Workbook

Sheet Dashboard
B2: Patentatlas Thüringen 2010-2016 | BQ2: Technologieschema: | FG2: Update 3.2016 (Daten: 2016-10-07, Anwendung: 2016-11-29)
DU5: bis | DV5: =LastYearAllowed -> 2016 | ED5: Kreisdiagramme: | EE5: =TechPieCht_SliceCount -> 6 | EG5: Datenpunkte
V7: =IFERROR(HYPERLINK(MapEvent_MouseOver(ROW(),COLUMN())),"") ->  | W7: =IFERROR(HYPERLINK(MapEvent_MouseOver(ROW(),COLUMN())),"") ->  | X7: =IFERROR(HYPERLINK(MapEvent_MouseOver(ROW(),COLUMN())),"") ->  | Y7: =IFERROR(HYPERLINK(MapEvent_MouseOver(ROW(),COLUMN())),"") ->  | Z7: =IFERROR(HYPERLINK(MapEvent_MouseOver(ROW(),COLUMN())),"") ->  | AA7: =IFERROR(HYPERLINK(MapEvent_MouseOver(ROW(),COLUMN())),"") ->  | AB7: =IFERROR(HYPERLINK(MapEvent_MouseOver(ROW(),COLUMN())),"") ->  | AC7: =IFERROR(HYPERLINK(MapEvent_MouseOver(ROW(),COLUMN())),"") ->  | AD7: =IFERROR(HYPERLINK(MapEvent_MouseOver(ROW(),COLUMN())),"") ->  | AE7: =IFERROR(HYPERLINK(MapEvent_MouseOver(ROW(),COLUMN())),"") ->  | AF7: =IFERROR(HYPERLINK(MapEvent_MouseOver(ROW(),COLUMN())),"") ->  | AG7: =IFERROR(HYPERLINK(MapEvent_MouseOver(ROW(),COLUMN())),"") ->  | AH7: =IFERROR(HYPERLINK(MapEvent_MouseOver(ROW(),COLUMN())),"") ->  | AI7: =IFERROR(HYPERLINK(MapEvent_MouseOver(ROW(),COLUMN())),"") ->  | AJ7: =IFERROR(HYPERLINK(MapEvent_MouseOver(ROW(),COLUMN())),"") ->  | AK7: =IFERROR(HYPERLINK(MapEvent_MouseOver(ROW(),COLUMN())),"") ->  | AL7: =IFERROR(HYPERLINK(MapEvent_MouseOver(ROW(),COLUMN())),"") ->  | AM7: =IFERROR(HYPERLINK(MapEvent_MouseOver(ROW(),COLUMN())),"") ->  | AN7: =IFERROR(HYPERLINK(MapEvent_MouseOver(ROW(),COLUMN())),"") ->  | AO7: =IFERROR(HYPERLINK(MapEvent_MouseOver(ROW(),COLUMN())),"") ->  | AP7: =IFERROR(HYPERLINK(MapEvent_MouseOver(ROW(),COLUMN())),"") ->  | AQ7: =IFERROR(HYPERLINK(MapEvent_MouseOver(ROW(),COLUMN())),"") ->  | AR7: =IFERROR(HYPERLINK(MapEvent_MouseOver(ROW(),COLUMN())),"") ->  | AS7: =IFERROR(HYPERLINK(MapEvent_MouseOver(ROW(),COLUMN())),"") ->  | AT7: =IFERROR(HYPERLINK(MapEvent_MouseOver(ROW(),COLUMN())),"") ->  | AU7: =IFERROR(HYPERLINK(MapEvent_MouseOver(ROW(),COLUMN())),"") ->  | AV7: =IFERROR(HYPERLINK(MapEvent_MouseOver(ROW(),COLUMN())),"") ->  | AW7: =IFERROR(HYPERLINK(MapEvent_MouseOver(ROW(),COLUMN())),"") ->  | AX7: =IFERROR(HYPERLINK(MapEvent_MouseOver(ROW(),COLUMN())),"") ->  | AY7: =IFERROR(HYPERLINK(MapEvent_MouseOver(ROW(),COLUMN())),"") ->  | AZ7: =IFERROR(HYPERLINK(MapEvent_MouseOver(ROW(),COLUMN())),"") ->  | BA7: =IFERROR(HYPERLINK(MapEvent_MouseOver(ROW(),COLUMN())),"") ->  | BB7: =IFERROR(HYPERLINK(MapEvent_MouseOver(ROW(),COLUMN())),"") ->  | BC7: =IFERROR(HYPERLINK(MapEvent_MouseOver(ROW(),COLUMN())),"") ->  | BD7: =IFERROR(HYPERLINK(MapEvent_MouseOver(ROW(),COLUMN())),"") ->  | BE7: =IFERROR(HYPERLINK(MapEvent_MouseOver(ROW(),COLUMN())),"") ->  | BF7: =IFERROR(HYPERLINK(MapEvent_MouseOver(ROW(),COLUMN())),"") ->  | BG7: =IFERROR(HYPERLINK(MapEvent_MouseOver(ROW(),COLUMN())),"") ->  | BH7: =IFERROR(HYPERLINK(MapEvent_MouseOver(ROW(),COLUMN())),"") ->  | BI7: =IFERROR(HYPERLINK(MapEvent_MouseOver(ROW(),COLUMN())),"") ->  | BJ7: =IFERROR(HYPERLINK(MapEvent_MouseOver(ROW(),COLUMN())),"") ->  | BK7: =IFERROR(HYPERLINK(MapEvent_MouseOver(ROW(),COLUMN())),"") ->  | BL7: =IFERROR(HYPERLINK(MapEvent_MouseOver(ROW(),COLUMN())),"") ->  | BM7: =IFERROR(HYPERLINK(MapEvent_MouseOver(ROW(),COLUMN())),"") ->  | BN7: =IFERROR(HYPERLINK(MapEvent_MouseOver(ROW(),COLUMN())),"") ->  | BO7: =IFERROR(HYPERLINK(MapEvent_MouseOver(ROW(),COLUMN())),"") ->  | BP7: =IFERROR(HYPERLINK(MapEvent_MouseOver(ROW(),COLUMN())),"") ->  | BQ7: =IFERROR(HYPERLINK(MapEvent_MouseOver(ROW(),COLUMN())),"") ->  | BR7: =IFERROR(HYPERLINK(MapEvent_MouseOver(ROW(),COLUMN())),"") ->  | BS7: =IFERROR(HYPERLINK(MapEvent_MouseOver(ROW(),COLUMN())),"") ->  | BT7: =IFERROR(HYPERLINK(MapEvent_MouseOver(ROW(),COLUMN())),"") ->  | BU7: =IFERROR(HYPERLINK(MapEvent_MouseOver(ROW(),COLUMN())),"") ->  | BV7: =IFERROR(HYPERLINK(MapEvent_MouseOver(ROW(),COLUMN())),"") ->  | BW7: =IFERROR(HYPERLINK(MapEvent_MouseOver(ROW(),COLUMN())),"") ->  | BX7: =IFERROR(HYPERLINK(MapEvent_MouseOver(ROW(),COLUMN())),"") ->  | BY7: =IFERROR(HYPERLINK(MapEvent_MouseOver(ROW(),COLUMN())),"") ->  | BZ7: =IFERROR(HYPERLINK(MapEvent_MouseOver(ROW(),COLUMN())),"") ->  | CA7: =IFERROR(HYPERLINK(MapEvent_MouseOver(ROW(),COLUMN())),"") ->  | CB7: =IFERROR(HYPERLINK(MapEvent_MouseOver(ROW(),COLUMN())),"") ->  | CC7: =IFERROR(HYPERLINK(MapEvent_MouseOver(ROW(),COLUMN())),"") ->  | CD7: =IFERROR(HYPERLINK(MapEvent_MouseOver(ROW(),COLUMN())),"") ->  | CE7: =IFERROR(HYPERLINK(MapEvent_MouseOver(ROW(),COLUMN())),"") ->  | CF7: =IFERROR(HYPERLINK(MapEvent_MouseOver(ROW(),COLUMN())),"") ->  | CG7: =IFERROR(HYPERLINK(MapEvent_MouseOver(ROW(),COLUMN())),"") ->  | CH7: =IFERROR(HYPERLINK(MapEvent_MouseOver(ROW(),COLUMN())),"") ->  | CI7: =IFERROR(HYPERLINK(MapEvent_MouseOver(ROW(),COLUMN())),"") ->  | CJ7: =IFERROR(HYPERLINK(MapEvent_MouseOver(ROW(),COLUMN())),"") ->  | CK7: =IFERROR(HYPERLINK(MapEvent_MouseOver(ROW(),COLUMN())),"") ->  | CL7: =IFERROR(HYPERLINK(MapEvent_MouseOver(ROW(),COLUMN())),"") -> 
V8: =IFERROR(HYPERLINK(MapEvent_MouseOver(ROW(),COLUMN())),"") ->  | W8: =IFERROR(HYPERLINK(MapEvent_MouseOver(ROW(),COLUMN())),"") ->  | X8: =IFERROR(HYPERLINK(MapEvent_MouseOver(ROW(),COLUMN())),"") ->  | Y8: =IFERROR(HYPERLINK(MapEvent_MouseOver(ROW(),COLUMN())),"") ->  | Z8: =IFERROR(HYPERLINK(MapEvent_MouseOver(ROW(),COLUMN())),"") ->  | AA8: =IFERROR(HYPERLINK(MapEvent_MouseOver(ROW(),COLUMN())),"") ->  | AB8: =IFERROR(HYPERLINK(MapEvent_MouseOver(ROW(),COLUMN())),"") ->  | AC8: =IFERROR(HYPERLINK(MapEvent_MouseOver(ROW(),COLUMN())),"") ->  | AD8: =IFERROR(HYPERLINK(MapEvent_MouseOver(ROW(),COLUMN())),"") ->  | AE8: =IFERROR(HYPERLINK(MapEvent_MouseOver(ROW(),COLUMN())),"") ->  | AF8: =IFERROR(HYPERLINK(MapEvent_MouseOver(ROW(),COLUMN())),"") ->  | AG8: =IFERROR(HYPERLINK(MapEvent_MouseOver(ROW(),COLUMN())),"") ->  | AH8: =IFERROR(HYPERLINK(MapEvent_MouseOver(ROW(),COLUMN())),"") ->  | AI8: =IFERROR(HYPERLINK(MapEvent_MouseOver(ROW(),COLUMN())),"") ->  | AJ8: =IFERROR(HYPERLINK(MapEvent_MouseOver(ROW(),COLUMN())),"") ->  | AK8: =IFERROR(HYPERLINK(MapEvent_MouseOver(ROW(),COLUMN())),"") ->  | AL8: =IFERROR(HYPERLINK(MapEvent_MouseOver(ROW(),COLUMN())),"") ->  | AM8: =IFERROR(HYPERLINK(MapEvent_MouseOver(ROW(),COLUMN())),"") ->  | AN8: =IFERROR(HYPERLINK(MapEvent_MouseOver(ROW(),COLUMN())),"") ->  | AO8: =IFERROR(HYPERLINK(MapEvent_MouseOver(ROW(),COLUMN())),"") ->  | AP8: =IFERROR(HYPERLINK(MapEvent_MouseOver(ROW(),COLUMN())),"") ->  | AQ8: =IFERROR(HYPERLINK(MapEvent_MouseOver(ROW(),COLUMN())),"") ->  | AR8: =IFERROR(HYPERLINK(MapEvent_MouseOver(ROW(),COLUMN())),"") ->  | AS8: =IFERROR(HYPERLINK(MapEvent_MouseOver(ROW(),COLUMN())),"") ->  | AT8: =IFERROR(HYPERLINK(MapEvent_MouseOver(ROW(),COLUMN())),"") ->  | AU8: =IFERROR(HYPERLINK(MapEvent_MouseOver(ROW(),COLUMN())),"") ->  | AV8: =IFERROR(HYPERLINK(MapEvent_MouseOver(ROW(),COLUMN())),"") ->  | AW8: =IFERROR(HYPERLINK(MapEvent_MouseOver(ROW(),COLUMN())),"") ->  | AX8: =IFERROR(HYPERLINK(MapEvent_MouseOver(ROW(),COLUMN())),"") ->  | AY8: =IFERROR(HYPERLINK(MapEvent_MouseOver(ROW(),COLUMN())),"") ->  | AZ8: =IFERROR(HYPERLINK(MapEvent_MouseOver(ROW(),COLUMN())),"") ->  | BA8: =IFERROR(HYPERLINK(MapEvent_MouseOver(ROW(),COLUMN())),"") ->  | BB8: =IFERROR(HYPERLINK(MapEvent_MouseOver(ROW(),COLUMN())),"") ->  | BC8: =IFERROR(HYPERLINK(MapEvent_MouseOver(ROW(),COLUMN())),"") ->  | BD8: =IFERROR(HYPERLINK(MapEvent_MouseOver(ROW(),COLUMN())),"") ->  | BE8: =IFERROR(HYPERLINK(MapEvent_MouseOver(ROW(),COLUMN())),"") ->  | BF8: =IFERROR(HYPERLINK(MapEvent_MouseOver(ROW(),COLUMN())),"") ->  | BG8: =IFERROR(HYPERLINK(MapEvent_MouseOver(ROW(),COLUMN())),"") ->  | BH8: =IFERROR(HYPERLINK(MapEvent_MouseOver(ROW(),COLUMN())),"") ->  | BI8: =IFERROR(HYPERLINK(MapEvent_MouseOver(ROW(),COLUMN())),"") ->  | BJ8: =IFERROR(HYPERLINK(MapEvent_MouseOver(ROW(),COLUMN())),"") ->  | BK8: =IFERROR(HYPERLINK(MapEvent_MouseOver(ROW(),COLUMN())),"") ->  | BL8: =IFERROR(HYPERLINK(MapEvent_MouseOver(ROW(),COLUMN())),"") ->  | BM8: =IFERROR(HYPERLINK(MapEvent_MouseOver(ROW(),COLUMN())),"") ->  | BN8: =IFERROR(HYPERLINK(MapEvent_MouseOver(ROW(),COLUMN())),"") ->  | BO8: =IFERROR(HYPERLINK(MapEvent_MouseOver(ROW(),COLUMN())),"") ->  | BP8: =IFERROR(HYPERLINK(MapEvent_MouseOver(ROW(),COLUMN())),"") ->  | BQ8: =IFERROR(HYPERLINK(MapEvent_MouseOver(ROW(),COLUMN())),"") ->  | BR8: =IFERROR(HYPERLINK(MapEvent_MouseOver(ROW(),COLUMN())),"") ->  | BS8: =IFERROR(HYPERLINK(MapEvent_MouseOver(ROW(),COLUMN())),"") ->  | BT8: =IFERROR(HYPERLINK(MapEvent_MouseOver(ROW(),COLUMN())),"") ->  | BU8: =IFERROR(HYPERLINK(MapEvent_MouseOver(ROW(),COLUMN())),"") ->  | BV8: =IFERROR(HYPERLINK(MapEvent_MouseOver(ROW(),COLUMN())),"") ->  | BW8: =IFERROR(HYPERLINK(MapEvent_MouseOver(ROW(),COLUMN())),"") ->  | BX8: =IFERROR(HYPERLINK(MapEvent_MouseOver(ROW(),COLUMN())),"") ->  | BY8: =IFERROR(HYPERLINK(MapEvent_MouseOver(ROW(),COLUMN())),"") ->  | BZ8: =IFERROR(HYPERLINK(MapEvent_MouseOver(ROW(),COLUMN())),"") ->  | CA8: =IFERROR(HYPERLINK(MapEvent_MouseOver(ROW(),COLUMN())),"") ->  | CB8: =IFERROR(HYPERLINK(MapEvent_MouseOver(ROW(),COLUMN())),"") ->  | CC8: =IFERROR(HYPERLINK(MapEvent_MouseOver(ROW(),COLUMN())),"") ->  | CD8: =IFERROR(HYPERLINK(MapEvent_MouseOver(ROW(),COLUMN())),"") ->  | CE8: =IFERROR(HYPERLINK(MapEvent_MouseOver(ROW(),COLUMN())),"") ->  | CF8: =IFERROR(HYPERLINK(MapEvent_MouseOver(ROW(),COLUMN())),"") ->  | CG8: =IFERROR(HYPERLINK(MapEvent_MouseOver(ROW(),COLUMN())),"") ->  | CH8: =IFERROR(HYPERLINK(MapEvent_MouseOver(ROW(),COLUMN())),"") ->  | CI8: =IFERROR(HYPERLINK(MapEvent_MouseOver(ROW(),COLUMN())),"") ->  | CJ8: =IFERROR(HYPERLINK(MapEvent_MouseOver(ROW(),COLUMN())),"") ->  | CK8: =IFERROR(HYPERLINK(MapEvent_MouseOver(ROW(),COLUMN())),"") ->  | CL8: =IFERROR(HYPERLINK(MapEvent_MouseOver(ROW(),COLUMN())),"") -> 
V9: =IFERROR(HYPERLINK(MapEvent_MouseOver(ROW(),COLUMN())),"") ->  | W9: =IFERROR(HYPERLINK(MapEvent_MouseOver(ROW(),COLUMN())),"") ->  | X9: =IFERROR(HYPERLINK(MapEvent_MouseOver(ROW(),COLUMN())),"") ->  | Y9: =IFERROR(HYPERLINK(MapEvent_MouseOver(ROW(),COLUMN())),"") ->  | Z9: =IFERROR(HYPERLINK(MapEvent_MouseOver(ROW(),COLUMN())),"") ->  | AA9: =IFERROR(HYPERLINK(MapEvent_MouseOver(ROW(),COLUMN())),"") ->  | AB9: =IFERROR(HYPERLINK(MapEvent_MouseOver(ROW(),COLUMN())),"") ->  | AC9: =IFERROR(HYPERLINK(MapEvent_MouseOver(ROW(),COLUMN())),"") ->  | AD9: =IFERROR(HYPERLINK(MapEvent_MouseOver(ROW(),COLUMN())),"") ->  | AE9: =IFERROR(HYPERLINK(MapEvent_MouseOver(ROW(),COLUMN())),"") ->  | AF9: =IFERROR(HYPERLINK(MapEvent_MouseOver(ROW(),COLUMN())),"") ->  | AG9: =IFERROR(HYPERLINK(MapEvent_MouseOver(ROW(),COLUMN())),"") ->  | AH9: =IFERROR(HYPERLINK(MapEvent_MouseOver(ROW(),COLUMN())),"") ->  | AI9: =IFERROR(HYPERLINK(MapEvent_MouseOver(ROW(),COLUMN())),"") ->  | AJ9: =IFERROR(HYPERLINK(MapEvent_MouseOver(ROW(),COLUMN())),"") ->  | AK9: =IFERROR(HYPERLINK(MapEvent_MouseOver(ROW(),COLUMN())),"") ->  | AL9: =IFERROR(HYPERLINK(MapEvent_MouseOver(ROW(),COLUMN())),"") ->  | AM9: =IFERROR(HYPERLINK(MapEvent_MouseOver(ROW(),COLUMN())),"") ->  | AN9: =IFERROR(HYPERLINK(MapEvent_MouseOver(ROW(),COLUMN())),"") ->  | AO9: =IFERROR(HYPERLINK(MapEvent_MouseOver(ROW(),COLUMN())),"") ->  | AP9: =IFERROR(HYPERLINK(MapEvent_MouseOver(ROW(),COLUMN())),"") ->  | AQ9: =IFERROR(HYPERLINK(MapEvent_MouseOver(ROW(),COLUMN())),"") ->  | AR9: =IFERROR(HYPERLINK(MapEvent_MouseOver(ROW(),COLUMN())),"") ->  | AS9: =IFERROR(HYPERLINK(MapEvent_MouseOver(ROW(),COLUMN())),"") ->  | AT9: =IFERROR(HYPERLINK(MapEvent_MouseOver(ROW(),COLUMN())),"") ->  | AU9: =IFERROR(HYPERLINK(MapEvent_MouseOver(ROW(),COLUMN())),"") ->  | AV9: =IFERROR(HYPERLINK(MapEvent_MouseOver(ROW(),COLUMN())),"") ->  | AW9: =IFERROR(HYPERLINK(MapEvent_MouseOver(ROW(),COLUMN())),"") ->  | AX9: =IFERROR(HYPERLINK(MapEvent_MouseOver(ROW(),COLUMN())),"") ->  | AY9: =IFERROR(HYPERLINK(MapEvent_MouseOver(ROW(),COLUMN())),"") ->  | AZ9: =IFERROR(HYPERLINK(MapEvent_MouseOver(ROW(),COLUMN())),"") ->  | BA9: =IFERROR(HYPERLINK(MapEvent_MouseOver(ROW(),COLUMN())),"") ->  | BB9: =IFERROR(HYPERLINK(MapEvent_MouseOver(ROW(),COLUMN())),"") ->  | BC9: =IFERROR(HYPERLINK(MapEvent_MouseOver(ROW(),COLUMN())),"") ->  | BD9: =IFERROR(HYPERLINK(MapEvent_MouseOver(ROW(),COLUMN())),"") ->  | BE9: =IFERROR(HYPERLINK(MapEvent_MouseOver(ROW(),COLUMN())),"") ->  | BF9: =IFERROR(HYPERLINK(MapEvent_MouseOver(ROW(),COLUMN())),"") ->  | BG9: =IFERROR(HYPERLINK(MapEvent_MouseOver(ROW(),COLUMN())),"") ->  | BH9: =IFERROR(HYPERLINK(MapEvent_MouseOver(ROW(),COLUMN())),"") ->  | BI9: =IFERROR(HYPERLINK(MapEvent_MouseOver(ROW(),COLUMN())),"") ->  | BJ9: =IFERROR(HYPERLINK(MapEvent_MouseOver(ROW(),COLUMN())),"") ->  | BK9: =IFERROR(HYPERLINK(MapEvent_MouseOver(ROW(),COLUMN())),"") ->  | BL9: =IFERROR(HYPERLINK(MapEvent_MouseOver(ROW(),COLUMN())),"") ->  | BM9: =IFERROR(HYPERLINK(MapEvent_MouseOver(ROW(),COLUMN())),"") ->  | BN9: =IFERROR(HYPERLINK(MapEvent_MouseOver(ROW(),COLUMN())),"") ->  | BO9: =IFERROR(HYPERLINK(MapEvent_MouseOver(ROW(),COLUMN())),"") ->  | BP9: =IFERROR(HYPERLINK(MapEvent_MouseOver(ROW(),COLUMN())),"") ->  | BQ9: =IFERROR(HYPERLINK(MapEvent_MouseOver(ROW(),COLUMN())),"") ->  | BR9: =IFERROR(HYPERLINK(MapEvent_MouseOver(ROW(),COLUMN())),"") ->  | BS9: =IFERROR(HYPERLINK(MapEvent_MouseOver(ROW(),COLUMN())),"") ->  | BT9: =IFERROR(HYPERLINK(MapEvent_MouseOver(ROW(),COLUMN())),"") ->  | BU9: =IFERROR(HYPERLINK(MapEvent_MouseOver(ROW(),COLUMN())),"") ->  | BV9: =IFERROR(HYPERLINK(MapEvent_MouseOver(ROW(),COLUMN())),"") ->  | BW9: =IFERROR(HYPERLINK(MapEvent_MouseOver(ROW(),COLUMN())),"") ->  | BX9: =IFERROR(HYPERLINK(MapEvent_MouseOver(ROW(),COLUMN())),"") ->  | BY9: =IFERROR(HYPERLINK(MapEvent_MouseOver(ROW(),COLUMN())),"") ->  | BZ9: =IFERROR(HYPERLINK(MapEvent_MouseOver(ROW(),COLUMN())),"") ->  | CA9: =IFERROR(HYPERLINK(MapEvent_MouseOver(ROW(),COLUMN())),"") ->  | CB9: =IFERROR(HYPERLINK(MapEvent_MouseOver(ROW(),COLUMN())),"") ->  | CC9: =IFERROR(HYPERLINK(MapEvent_MouseOver(ROW(),COLUMN())),"") ->  | CD9: =IFERROR(HYPERLINK(MapEvent_MouseOver(ROW(),COLUMN())),"") ->  | CE9: =IFERROR(HYPERLINK(MapEvent_MouseOver(ROW(),COLUMN())),"") ->  | CF9: =IFERROR(HYPERLINK(MapEvent_MouseOver(ROW(),COLUMN())),"") ->  | CG9: =IFERROR(HYPERLINK(MapEvent_MouseOver(ROW(),COLUMN())),"") ->  | CH9: =IFERROR(HYPERLINK(MapEvent_MouseOver(ROW(),COLUMN())),"") ->  | CI9: =IFERROR(HYPERLINK(MapEvent_MouseOver(ROW(),COLUMN())),"") ->  | CJ9: =IFERROR(HYPERLINK(MapEvent_MouseOver(ROW(),COLUMN())),"") ->  | CK9: =IFERROR(HYPERLINK(MapEvent_MouseOver(ROW(),COLUMN())),"") ->  | CL9: =IFERROR(HYPERLINK(MapEvent_MouseOver(ROW(),COLUMN())),"") -> 
V10: =IFERROR(HYPERLINK(MapEvent_MouseOver(ROW(),COLUMN())),"") ->  | W10: =IFERROR(HYPERLINK(MapEvent_MouseOver(ROW(),COLUMN())),"") ->  | X10: =IFERROR(HYPERLINK(MapEvent_MouseOver(ROW(),COLUMN())),"") ->  | Y10: =IFERROR(HYPERLINK(MapEvent_MouseOver(ROW(),COLUMN())),"") ->  | Z10: =IFERROR(HYPERLINK(MapEvent_MouseOver(ROW(),COLUMN())),"") ->  | AA10: =IFERROR(HYPERLINK(MapEvent_MouseOver(ROW(),COLUMN())),"") ->  | AB10: =IFERROR(HYPERLINK(MapEvent_MouseOver(ROW(),COLUMN())),"") ->  | AC10: =IFERROR(HYPERLINK(MapEvent_MouseOver(ROW(),COLUMN())),"") ->  | AD10: =IFERROR(HYPERLINK(MapEvent_MouseOver(ROW(),COLUMN())),"") ->  | AE10: =IFERROR(HYPERLINK(MapEvent_MouseOver(ROW(),COLUMN())),"") ->  | AF10: =IFERROR(HYPERLINK(MapEvent_MouseOver(ROW(),COLUMN())),"") ->  | AG10: =IFERROR(HYPERLINK(MapEvent_MouseOver(ROW(),COLUMN())),"") ->  | AH10: =IFERROR(HYPERLINK(MapEvent_MouseOver(ROW(),COLUMN())),"") ->  | AI10: =IFERROR(HYPERLINK(MapEvent_MouseOver(ROW(),COLUMN())),"") ->  | AJ10: =IFERROR(HYPERLINK(MapEvent_MouseOver(ROW(),COLUMN())),"") ->  | AK10: =IFERROR(HYPERLINK(MapEvent_MouseOver(ROW(),COLUMN())),"") ->  | AL10: =IFERROR(HYPERLINK(MapEvent_MouseOver(ROW(),COLUMN())),"") ->  | AM10: =IFERROR(HYPERLINK(MapEvent_MouseOver(ROW(),COLUMN())),"") ->  | AN10: =IFERROR(HYPERLINK(MapEvent_MouseOver(ROW(),COLUMN())),"") ->  | AO10: =IFERROR(HYPERLINK(MapEvent_MouseOver(ROW(),COLUMN())),"") ->  | AP10: =IFERROR(HYPERLINK(MapEvent_MouseOver(ROW(),COLUMN())),"") ->  | AQ10: =IFERROR(HYPERLINK(MapEvent_MouseOver(ROW(),COLUMN())),"") ->  | AR10: =IFERROR(HYPERLINK(MapEvent_MouseOver(ROW(),COLUMN())),"") ->  | AS10: =IFERROR(HYPERLINK(MapEvent_MouseOver(ROW(),COLUMN())),"") ->  | AT10: =IFERROR(HYPERLINK(MapEvent_MouseOver(ROW(),COLUMN())),"") ->  | AU10: =IFERROR(HYPERLINK(MapEvent_MouseOver(ROW(),COLUMN())),"") ->  | AV10: =IFERROR(HYPERLINK(MapEvent_MouseOver(ROW(),COLUMN())),"") ->  | AW10: =IFERROR(HYPERLINK(MapEvent_MouseOver(ROW(),COLUMN())),"") ->  | AX10: =IFERROR(HYPERLINK(MapEvent_MouseOver(ROW(),COLUMN())),"") ->  | AY10: =IFERROR(HYPERLINK(MapEvent_MouseOver(ROW(),COLUMN())),"") ->  | AZ10: =IFERROR(HYPERLINK(MapEvent_MouseOver(ROW(),COLUMN())),"") ->  | BA10: =IFERROR(HYPERLINK(MapEvent_MouseOver(ROW(),COLUMN())),"") ->  | BB10: =IFERROR(HYPERLINK(MapEvent_MouseOver(ROW(),COLUMN())),"") ->  | BC10: =IFERROR(HYPERLINK(MapEvent_MouseOver(ROW(),COLUMN())),"") ->  | BD10: =IFERROR(HYPERLINK(MapEvent_MouseOver(ROW(),COLUMN())),"") ->  | BE10: =IFERROR(HYPERLINK(MapEvent_MouseOver(ROW(),COLUMN())),"") ->  | BF10: =IFERROR(HYPERLINK(MapEvent_MouseOver(ROW(),COLUMN())),"") ->  | BG10: =IFERROR(HYPERLINK(MapEvent_MouseOver(ROW(),COLUMN())),"") ->  | BH10: =IFERROR(HYPERLINK(MapEvent_MouseOver(ROW(),COLUMN())),"") ->  | BI10: =IFERROR(HYPERLINK(MapEvent_MouseOver(ROW(),COLUMN())),"") ->  | BJ10: =IFERROR(HYPERLINK(MapEvent_MouseOver(ROW(),COLUMN())),"") ->  | BK10: =IFERROR(HYPERLINK(MapEvent_MouseOver(ROW(),COLUMN())),"") ->  | BL10: =IFERROR(HYPERLINK(MapEvent_MouseOver(ROW(),COLUMN())),"") ->  | BM10: =IFERROR(HYPERLINK(MapEvent_MouseOver(ROW(),COLUMN())),"") ->  | BN10: =IFERROR(HYPERLINK(MapEvent_MouseOver(ROW(),COLUMN())),"") ->  | BO10: =IFERROR(HYPERLINK(MapEvent_MouseOver(ROW(),COLUMN())),"") ->  | BP10: =IFERROR(HYPERLINK(MapEvent_MouseOver(ROW(),COLUMN())),"") ->  | BQ10: =IFERROR(HYPERLINK(MapEvent_MouseOver(ROW(),COLUMN())),"") ->  | BR10: =IFERROR(HYPERLINK(MapEvent_MouseOver(ROW(),COLUMN())),"") ->  | BS10: =IFERROR(HYPERLINK(MapEvent_MouseOver(ROW(),COLUMN())),"") ->  | BT10: =IFERROR(HYPERLINK(MapEvent_MouseOver(ROW(),COLUMN())),"") ->  | BU10: =IFERROR(HYPERLINK(MapEvent_MouseOver(ROW(),COLUMN())),"") ->  | BV10: =IFERROR(HYPERLINK(MapEvent_MouseOver(ROW(),COLUMN())),"") ->  | BW10: =IFERROR(HYPERLINK(MapEvent_MouseOver(ROW(),COLUMN())),"") ->  | BX10: =IFERROR(HYPERLINK(MapEvent_MouseOver(ROW(),COLUMN())),"") ->  | BY10: =IFERROR(HYPERLINK(MapEvent_MouseOver(ROW(),COLUMN())),"") ->  | BZ10: =IFERROR(HYPERLINK(MapEvent_MouseOver(ROW(),COLUMN())),"") ->  | CA10: =IFERROR(HYPERLINK(MapEvent_MouseOver(ROW(),COLUMN())),"") ->  | CB10: =IFERROR(HYPERLINK(MapEvent_MouseOver(ROW(),COLUMN())),"") ->  | CC10: =IFERROR(HYPERLINK(MapEvent_MouseOver(ROW(),COLUMN())),"") ->  | CD10: =IFERROR(HYPERLINK(MapEvent_MouseOver(ROW(),COLUMN())),"") ->  | CE10: =IFERROR(HYPERLINK(MapEvent_MouseOver(ROW(),COLUMN())),"") ->  | CF10: =IFERROR(HYPERLINK(MapEvent_MouseOver(ROW(),COLUMN())),"") ->  | CG10: =IFERROR(HYPERLINK(MapEvent_MouseOver(ROW(),COLUMN())),"") ->  | CH10: =IFERROR(HYPERLINK(MapEvent_MouseOver(ROW(),COLUMN())),"") ->  | CI10: =IFERROR(HYPERLINK(MapEvent_MouseOver(ROW(),COLUMN())),"") ->  | CJ10: =IFERROR(HYPERLINK(MapEvent_MouseOver(ROW(),COLUMN())),"") ->  | CK10: =IFERROR(HYPERLINK(MapEvent_MouseOver(ROW(),COLUMN())),"") ->  | CL10: =IFERROR(HYPERLINK(MapEvent_MouseOver(ROW(),COLUMN())),"") -> 
V11: =IFERROR(HYPERLINK(MapEvent_MouseOver(ROW(),COLUMN())),"") ->  | W11: =IFERROR(HYPERLINK(MapEvent_MouseOver(ROW(),COLUMN())),"") ->  | X11: =IFERROR(HYPERLINK(MapEvent_MouseOver(ROW(),COLUMN())),"") ->  | Y11: =IFERROR(HYPERLINK(MapEvent_MouseOver(ROW(),COLUMN())),"") ->  | Z11: =IFERROR(HYPERLINK(MapEvent_MouseOver(ROW(),COLUMN())),"") ->  | AA11: =IFERROR(HYPERLINK(MapEvent_MouseOver(ROW(),COLUMN())),"") ->  | AB11: =IFERROR(HYPERLINK(MapEvent_MouseOver(ROW(),COLUMN())),"") ->  | AC11: =IFERROR(HYPERLINK(MapEvent_MouseOver(ROW(),COLUMN())),"") ->  | AD11: =IFERROR(HYPERLINK(MapEvent_MouseOver(ROW(),COLUMN())),"") ->  | AE11: =IFERROR(HYPERLINK(MapEvent_MouseOver(ROW(),COLUMN())),"") ->  | AF11: =IFERROR(HYPERLINK(MapEvent_MouseOver(ROW(),COLUMN())),"") ->  | AG11: =IFERROR(HYPERLINK(MapEvent_MouseOver(ROW(),COLUMN())),"") ->  | AH11: =IFERROR(HYPERLINK(MapEvent_MouseOver(ROW(),COLUMN())),"") ->  | AI11: =IFERROR(HYPERLINK(MapEvent_MouseOver(ROW(),COLUMN())),"") ->  | AJ11: =IFERROR(HYPERLINK(MapEvent_MouseOver(ROW(),COLUMN())),"") ->  | AK11: =IFERROR(HYPERLINK(MapEvent_MouseOver(ROW(),COLUMN())),"") ->  | AL11: =IFERROR(HYPERLINK(MapEvent_MouseOver(ROW(),COLUMN())),"") ->  | AM11: =IFERROR(HYPERLINK(MapEvent_MouseOver(ROW(),COLUMN())),"") ->  | AN11: =IFERROR(HYPERLINK(MapEvent_MouseOver(ROW(),COLUMN())),"") ->  | AO11: =IFERROR(HYPERLINK(MapEvent_MouseOver(ROW(),COLUMN())),"") ->  | AP11: =IFERROR(HYPERLINK(MapEvent_MouseOver(ROW(),COLUMN())),"") ->  | AQ11: =IFERROR(HYPERLINK(MapEvent_MouseOver(ROW(),COLUMN())),"") ->  | AR11: =IFERROR(HYPERLINK(MapEvent_MouseOver(ROW(),COLUMN())),"") ->  | AS11: =IFERROR(HYPERLINK(MapEvent_MouseOver(ROW(),COLUMN())),"") ->  | AT11: =IFERROR(HYPERLINK(MapEvent_MouseOver(ROW(),COLUMN())),"") ->  | AU11: =IFERROR(HYPERLINK(MapEvent_MouseOver(ROW(),COLUMN())),"") ->  | AV11: =IFERROR(HYPERLINK(MapEvent_MouseOver(ROW(),COLUMN())),"") ->  | AW11: =IFERROR(HYPERLINK(MapEvent_MouseOver(ROW(),COLUMN())),"") ->  | AX11: =IFERROR(HYPERLINK(MapEvent_MouseOver(ROW(),COLUMN())),"") ->  | AY11: =IFERROR(HYPERLINK(MapEvent_MouseOver(ROW(),COLUMN())),"") ->  | AZ11: =IFERROR(HYPERLINK(MapEvent_MouseOver(ROW(),COLUMN())),"") ->  | BA11: =IFERROR(HYPERLINK(MapEvent_MouseOver(ROW(),COLUMN())),"") ->  | BB11: =IFERROR(HYPERLINK(MapEvent_MouseOver(ROW(),COLUMN())),"") ->  | BC11: =IFERROR(HYPERLINK(MapEvent_MouseOver(ROW(),COLUMN())),"") ->  | BD11: =IFERROR(HYPERLINK(MapEvent_MouseOver(ROW(),COLUMN())),"") ->  | BE11: =IFERROR(HYPERLINK(MapEvent_MouseOver(ROW(),COLUMN())),"") ->  | BF11: =IFERROR(HYPERLINK(MapEvent_MouseOver(ROW(),COLUMN())),"") ->  | BG11: =IFERROR(HYPERLINK(MapEvent_MouseOver(ROW(),COLUMN())),"") ->  | BH11: =IFERROR(HYPERLINK(MapEvent_MouseOver(ROW(),COLUMN())),"") ->  | BI11: =IFERROR(HYPERLINK(MapEvent_MouseOver(ROW(),COLUMN())),"") ->  | BJ11: =IFERROR(HYPERLINK(MapEvent_MouseOver(ROW(),COLUMN())),"") ->  | BK11: =IFERROR(HYPERLINK(MapEvent_MouseOver(ROW(),COLUMN())),"") ->  | BL11: =IFERROR(HYPERLINK(MapEvent_MouseOver(ROW(),COLUMN())),"") ->  | BM11: =IFERROR(HYPERLINK(MapEvent_MouseOver(ROW(),COLUMN())),"") ->  | BN11: =IFERROR(HYPERLINK(MapEvent_MouseOver(ROW(),COLUMN())),"") ->  | BO11: =IFERROR(HYPERLINK(MapEvent_MouseOver(ROW(),COLUMN())),"") ->  | BP11: =IFERROR(HYPERLINK(MapEvent_MouseOver(ROW(),COLUMN())),"") ->  | BQ11: =IFERROR(HYPERLINK(MapEvent_MouseOver(ROW(),COLUMN())),"") ->  | BR11: =IFERROR(HYPERLINK(MapEvent_MouseOver(ROW(),COLUMN())),"") ->  | BS11: =IFERROR(HYPERLINK(MapEvent_MouseOver(ROW(),COLUMN())),"") ->  | BT11: =IFERROR(HYPERLINK(MapEvent_MouseOver(ROW(),COLUMN())),"") ->  | BU11: =IFERROR(HYPERLINK(MapEvent_MouseOver(ROW(),COLUMN())),"") ->  | BV11: =IFERROR(HYPERLINK(MapEvent_MouseOver(ROW(),COLUMN())),"") ->  | BW11: =IFERROR(HYPERLINK(MapEvent_MouseOver(ROW(),COLUMN())),"") ->  | BX11: =IFERROR(HYPERLINK(MapEvent_MouseOver(ROW(),COLUMN())),"") ->  | BY11: =IFERROR(HYPERLINK(MapEvent_MouseOver(ROW(),COLUMN())),"") ->  | BZ11: =IFERROR(HYPERLINK(MapEvent_MouseOver(ROW(),COLUMN())),"") ->  | CA11: =IFERROR(HYPERLINK(MapEvent_MouseOver(ROW(),COLUMN())),"") ->  | CB11: =IFERROR(HYPERLINK(MapEvent_MouseOver(ROW(),COLUMN())),"") ->  | CC11: =IFERROR(HYPERLINK(MapEvent_MouseOver(ROW(),COLUMN())),"") ->  | CD11: =IFERROR(HYPERLINK(MapEvent_MouseOver(ROW(),COLUMN())),"") ->  | CE11: =IFERROR(HYPERLINK(MapEvent_MouseOver(ROW(),COLUMN())),"") ->  | CF11: =IFERROR(HYPERLINK(MapEvent_MouseOver(ROW(),COLUMN())),"") ->  | CG11: =IFERROR(HYPERLINK(MapEvent_MouseOver(ROW(),COLUMN())),"") ->  | CH11: =IFERROR(HYPERLINK(MapEvent_MouseOver(ROW(),COLUMN())),"") ->  | CI11: =IFERROR(HYPERLINK(MapEvent_MouseOver(ROW(),COLUMN())),"") ->  | CJ11: =IFERROR(HYPERLINK(MapEvent_MouseOver(ROW(),COLUMN())),"") ->  | CK11: =IFERROR(HYPERLINK(MapEvent_MouseOver(ROW(),COLUMN())),"") ->  | CL11: =IFERROR(HYPERLINK(MapEvent_MouseOver(ROW(),COLUMN())),"") -> 
V12: =IFERROR(HYPERLINK(MapEvent_MouseOver(ROW(),COLUMN())),"") ->  | W12: =IFERROR(HYPERLINK(MapEvent_MouseOver(ROW(),COLUMN())),"") ->  | X12: =IFERROR(HYPERLINK(MapEvent_MouseOver(ROW(),COLUMN())),"") ->  | Y12: =IFERROR(HYPERLINK(MapEvent_MouseOver(ROW(),COLUMN())),"") ->  | Z12: =IFERROR(HYPERLINK(MapEvent_MouseOver(ROW(),COLUMN())),"") ->  | AA12: =IFERROR(HYPERLINK(MapEvent_MouseOver(ROW(),COLUMN())),"") ->  | AB12: =IFERROR(HYPERLINK(MapEvent_MouseOver(ROW(),COLUMN())),"") ->  | AC12: =IFERROR(HYPERLINK(MapEvent_MouseOver(ROW(),COLUMN())),"") ->  | AD12: =IFERROR(HYPERLINK(MapEvent_MouseOver(ROW(),COLUMN())),"") ->  | AE12: =IFERROR(HYPERLINK(MapEvent_MouseOver(ROW(),COLUMN())),"") ->  | AF12: =IFERROR(HYPERLINK(MapEvent_MouseOver(ROW(),COLUMN())),"") ->  | AG12: =IFERROR(HYPERLINK(MapEvent_MouseOver(ROW(),COLUMN())),"") ->  | AH12: =IFERROR(HYPERLINK(MapEvent_MouseOver(ROW(),COLUMN())),"") ->  | AI12: =IFERROR(HYPERLINK(MapEvent_MouseOver(ROW(),COLUMN())),"") ->  | AJ12: =IFERROR(HYPERLINK(MapEvent_MouseOver(ROW(),COLUMN())),"") ->  | AK12: =IFERROR(HYPERLINK(MapEvent_MouseOver(ROW(),COLUMN())),"") ->  | AL12: =IFERROR(HYPERLINK(MapEvent_MouseOver(ROW(),COLUMN())),"") ->  | AM12: =IFERROR(HYPERLINK(MapEvent_MouseOver(ROW(),COLUMN())),"") ->  | AN12: =IFERROR(HYPERLINK(MapEvent_MouseOver(ROW(),COLUMN())),"") ->  | AO12: =IFERROR(HYPERLINK(MapEvent_MouseOver(ROW(),COLUMN())),"") ->  | AP12: =IFERROR(HYPERLINK(MapEvent_MouseOver(ROW(),COLUMN())),"") ->  | AQ12: =IFERROR(HYPERLINK(MapEvent_MouseOver(ROW(),COLUMN())),"") ->  | AR12: =IFERROR(HYPERLINK(MapEvent_MouseOver(ROW(),COLUMN())),"") ->  | AS12: =IFERROR(HYPERLINK(MapEvent_MouseOver(ROW(),COLUMN())),"") ->  | AT12: =IFERROR(HYPERLINK(MapEvent_MouseOver(ROW(),COLUMN())),"") ->  | AU12: =IFERROR(HYPERLINK(MapEvent_MouseOver(ROW(),COLUMN())),"") ->  | AV12: =IFERROR(HYPERLINK(MapEvent_MouseOver(ROW(),COLUMN())),"") ->  | AW12: =IFERROR(HYPERLINK(MapEvent_MouseOver(ROW(),COLUMN())),"") ->  | AX12: =IFERROR(HYPERLINK(MapEvent_MouseOver(ROW(),COLUMN())),"") ->  | AY12: =IFERROR(HYPERLINK(MapEvent_MouseOver(ROW(),COLUMN())),"") ->  | AZ12: =IFERROR(HYPERLINK(MapEvent_MouseOver(ROW(),COLUMN())),"") ->  | BA12: =IFERROR(HYPERLINK(MapEvent_MouseOver(ROW(),COLUMN())),"") ->  | BB12: =IFERROR(HYPERLINK(MapEvent_MouseOver(ROW(),COLUMN())),"") ->  | BC12: =IFERROR(HYPERLINK(MapEvent_MouseOver(ROW(),COLUMN())),"") ->  | BD12: =IFERROR(HYPERLINK(MapEvent_MouseOver(ROW(),COLUMN())),"") ->  | BE12: =IFERROR(HYPERLINK(MapEvent_MouseOver(ROW(),COLUMN())),"") ->  | BF12: =IFERROR(HYPERLINK(MapEvent_MouseOver(ROW(),COLUMN())),"") ->  | BG12: =IFERROR(HYPERLINK(MapEvent_MouseOver(ROW(),COLUMN())),"") ->  | BH12: =IFERROR(HYPERLINK(MapEvent_MouseOver(ROW(),COLUMN())),"") ->  | BI12: =IFERROR(HYPERLINK(MapEvent_MouseOver(ROW(),COLUMN())),"") ->  | BJ12: =IFERROR(HYPERLINK(MapEvent_MouseOver(ROW(),COLUMN())),"") ->  | BK12: =IFERROR(HYPERLINK(MapEvent_MouseOver(ROW(),COLUMN())),"") ->  | BL12: =IFERROR(HYPERLINK(MapEvent_MouseOver(ROW(),COLUMN())),"") ->  | BM12: =IFERROR(HYPERLINK(MapEvent_MouseOver(ROW(),COLUMN())),"") ->  | BN12: =IFERROR(HYPERLINK(MapEvent_MouseOver(ROW(),COLUMN())),"") ->  | BO12: =IFERROR(HYPERLINK(MapEvent_MouseOver(ROW(),COLUMN())),"") ->  | BP12: =IFERROR(HYPERLINK(MapEvent_MouseOver(ROW(),COLUMN())),"") ->  | BQ12: =IFERROR(HYPERLINK(MapEvent_MouseOver(ROW(),COLUMN())),"") ->  | BR12: =IFERROR(HYPERLINK(MapEvent_MouseOver(ROW(),COLUMN())),"") ->  | BS12: =IFERROR(HYPERLINK(MapEvent_MouseOver(ROW(),COLUMN())),"") ->  | BT12: =IFERROR(HYPERLINK(MapEvent_MouseOver(ROW(),COLUMN())),"") ->  | BU12: =IFERROR(HYPERLINK(MapEvent_MouseOver(ROW(),COLUMN())),"") ->  | BV12: =IFERROR(HYPERLINK(MapEvent_MouseOver(ROW(),COLUMN())),"") ->  | BW12: =IFERROR(HYPERLINK(MapEvent_MouseOver(ROW(),COLUMN())),"") ->  | BX12: =IFERROR(HYPERLINK(MapEvent_MouseOver(ROW(),COLUMN())),"") ->  | BY12: =IFERROR(HYPERLINK(MapEvent_MouseOver(ROW(),COLUMN())),"") ->  | BZ12: =IFERROR(HYPERLINK(MapEvent_MouseOver(ROW(),COLUMN())),"") ->  | CA12: =IFERROR(HYPERLINK(MapEvent_MouseOver(ROW(),COLUMN())),"") ->  | CB12: =IFERROR(HYPERLINK(MapEvent_MouseOver(ROW(),COLUMN())),"") ->  | CC12: =IFERROR(HYPERLINK(MapEvent_MouseOver(ROW(),COLUMN())),"") ->  | CD12: =IFERROR(HYPERLINK(MapEvent_MouseOver(ROW(),COLUMN())),"") ->  | CE12: =IFERROR(HYPERLINK(MapEvent_MouseOver(ROW(),COLUMN())),"") ->  | CF12: =IFERROR(HYPERLINK(MapEvent_MouseOver(ROW(),COLUMN())),"") ->  | CG12: =IFERROR(HYPERLINK(MapEvent_MouseOver(ROW(),COLUMN())),"") ->  | CH12: =IFERROR(HYPERLINK(MapEvent_MouseOver(ROW(),COLUMN())),"") ->  | CI12: =IFERROR(HYPERLINK(MapEvent_MouseOver(ROW(),COLUMN())),"") ->  | CJ12: =IFERROR(HYPERLINK(MapEvent_MouseOver(ROW(),COLUMN())),"") ->  | CK12: =IFERROR(HYPERLINK(MapEvent_MouseOver(ROW(),COLUMN())),"") ->  | CL12: =IFERROR(HYPERLINK(MapEvent_MouseOver(ROW(),COLUMN())),"") -> 
V13: =IFERROR(HYPERLINK(MapEvent_MouseOver(ROW(),COLUMN())),"") ->  | W13: =IFERROR(HYPERLINK(MapEvent_MouseOver(ROW(),COLUMN())),"") ->  | X13: =IFERROR(HYPERLINK(MapEvent_MouseOver(ROW(),COLUMN())),"") ->  | Y13: =IFERROR(HYPERLINK(MapEvent_MouseOver(ROW(),COLUMN())),"") ->  | Z13: =IFERROR(HYPERLINK(MapEvent_MouseOver(ROW(),COLUMN())),"") ->  | AA13: =IFERROR(HYPERLINK(MapEvent_MouseOver(ROW(),COLUMN())),"") ->  | AB13: =IFERROR(HYPERLINK(MapEvent_MouseOver(ROW(),COLUMN())),"") ->  | AC13: =IFERROR(HYPERLINK(MapEvent_MouseOver(ROW(),COLUMN())),"") ->  | AD13: =IFERROR(HYPERLINK(MapEvent_MouseOver(ROW(),COLUMN())),"") ->  | AE13: =IFERROR(HYPERLINK(MapEvent_MouseOver(ROW(),COLUMN())),"") ->  | AF13: =IFERROR(HYPERLINK(MapEvent_MouseOver(ROW(),COLUMN())),"") ->  | AG13: =IFERROR(HYPERLINK(MapEvent_MouseOver(ROW(),COLUMN())),"") ->  | AH13: =IFERROR(HYPERLINK(MapEvent_MouseOver(ROW(),COLUMN())),"") ->  | AI13: =IFERROR(HYPERLINK(MapEvent_MouseOver(ROW(),COLUMN())),"") ->  | AJ13: =IFERROR(HYPERLINK(MapEvent_MouseOver(ROW(),COLUMN())),"") ->  | AK13: =IFERROR(HYPERLINK(MapEvent_MouseOver(ROW(),COLUMN())),"") ->  | AL13: =IFERROR(HYPERLINK(MapEvent_MouseOver(ROW(),COLUMN())),"") ->  | AM13: =IFERROR(HYPERLINK(MapEvent_MouseOver(ROW(),COLUMN())),"") ->  | AN13: =IFERROR(HYPERLINK(MapEvent_MouseOver(ROW(),COLUMN())),"") ->  | AO13: =IFERROR(HYPERLINK(MapEvent_MouseOver(ROW(),COLUMN())),"") ->  | AP13: =IFERROR(HYPERLINK(MapEvent_MouseOver(ROW(),COLUMN())),"") ->  | AQ13: =IFERROR(HYPERLINK(MapEvent_MouseOver(ROW(),COLUMN())),"") ->  | AR13: =IFERROR(HYPERLINK(MapEvent_MouseOver(ROW(),COLUMN())),"") ->  | AS13: =IFERROR(HYPERLINK(MapEvent_MouseOver(ROW(),COLUMN())),"") ->  | AT13: =IFERROR(HYPERLINK(MapEvent_MouseOver(ROW(),COLUMN())),"") ->  | AU13: =IFERROR(HYPERLINK(MapEvent_MouseOver(ROW(),COLUMN())),"") ->  | AV13: =IFERROR(HYPERLINK(MapEvent_MouseOver(ROW(),COLUMN())),"") ->  | AW13: =IFERROR(HYPERLINK(MapEvent_MouseOver(ROW(),COLUMN())),"") ->  | AX13: =IFERROR(HYPERLINK(MapEvent_MouseOver(ROW(),COLUMN())),"") ->  | AY13: =IFERROR(HYPERLINK(MapEvent_MouseOver(ROW(),COLUMN())),"") ->  | AZ13: =IFERROR(HYPERLINK(MapEvent_MouseOver(ROW(),COLUMN())),"") ->  | BA13: =IFERROR(HYPERLINK(MapEvent_MouseOver(ROW(),COLUMN())),"") ->  | BB13: =IFERROR(HYPERLINK(MapEvent_MouseOver(ROW(),COLUMN())),"") ->  | BC13: =IFERROR(HYPERLINK(MapEvent_MouseOver(ROW(),COLUMN())),"") ->  | BD13: =IFERROR(HYPERLINK(MapEvent_MouseOver(ROW(),COLUMN())),"") ->  | BE13: =IFERROR(HYPERLINK(MapEvent_MouseOver(ROW(),COLUMN())),"") ->  | BF13: =IFERROR(HYPERLINK(MapEvent_MouseOver(ROW(),COLUMN())),"") ->  | BG13: =IFERROR(HYPERLINK(MapEvent_MouseOver(ROW(),COLUMN())),"") ->  | BH13: =IFERROR(HYPERLINK(MapEvent_MouseOver(ROW(),COLUMN())),"") ->  | BI13: =IFERROR(HYPERLINK(MapEvent_MouseOver(ROW(),COLUMN())),"") ->  | BJ13: =IFERROR(HYPERLINK(MapEvent_MouseOver(ROW(),COLUMN())),"") ->  | BK13: =IFERROR(HYPERLINK(MapEvent_MouseOver(ROW(),COLUMN())),"") ->  | BL13: =IFERROR(HYPERLINK(MapEvent_MouseOver(ROW(),COLUMN())),"") ->  | BM13: =IFERROR(HYPERLINK(MapEvent_MouseOver(ROW(),COLUMN())),"") ->  | BN13: =IFERROR(HYPERLINK(MapEvent_MouseOver(ROW(),COLUMN())),"") ->  | BO13: =IFERROR(HYPERLINK(MapEvent_MouseOver(ROW(),COLUMN())),"") ->  | BP13: =IFERROR(HYPERLINK(MapEvent_MouseOver(ROW(),COLUMN())),"") ->  | BQ13: =IFERROR(HYPERLINK(MapEvent_MouseOver(ROW(),COLUMN())),"") ->  | BR13: =IFERROR(HYPERLINK(MapEvent_MouseOver(ROW(),COLUMN())),"") ->  | BS13: =IFERROR(HYPERLINK(MapEvent_MouseOver(ROW(),COLUMN())),"") ->  | BT13: =IFERROR(HYPERLINK(MapEvent_MouseOver(ROW(),COLUMN())),"") ->  | BU13: =IFERROR(HYPERLINK(MapEvent_MouseOver(ROW(),COLUMN())),"") ->  | BV13: =IFERROR(HYPERLINK(MapEvent_MouseOver(ROW(),COLUMN())),"") ->  | BW13: =IFERROR(HYPERLINK(MapEvent_MouseOver(ROW(),COLUMN())),"") ->  | BX13: =IFERROR(HYPERLINK(MapEvent_MouseOver(ROW(),COLUMN())),"") ->  | BY13: =IFERROR(HYPERLINK(MapEvent_MouseOver(ROW(),COLUMN())),"") ->  | BZ13: =IFERROR(HYPERLINK(MapEvent_MouseOver(ROW(),COLUMN())),"") ->  | CA13: =IFERROR(HYPERLINK(MapEvent_MouseOver(ROW(),COLUMN())),"") ->  | CB13: =IFERROR(HYPERLINK(MapEvent_MouseOver(ROW(),COLUMN())),"") ->  | CC13: =IFERROR(HYPERLINK(MapEvent_MouseOver(ROW(),COLUMN())),"") ->  | CD13: =IFERROR(HYPERLINK(MapEvent_MouseOver(ROW(),COLUMN())),"") ->  | CE13: =IFERROR(HYPERLINK(MapEvent_MouseOver(ROW(),COLUMN())),"") ->  | CF13: =IFERROR(HYPERLINK(MapEvent_MouseOver(ROW(),COLUMN())),"") ->  | CG13: =IFERROR(HYPERLINK(MapEvent_MouseOver(ROW(),COLUMN())),"") ->  | CH13: =IFERROR(HYPERLINK(MapEvent_MouseOver(ROW(),COLUMN())),"") ->  | CI13: =IFERROR(HYPERLINK(MapEvent_MouseOver(ROW(),COLUMN())),"") ->  | CJ13: =IFERROR(HYPERLINK(MapEvent_MouseOver(ROW(),COLUMN())),"") ->  | CK13: =IFERROR(HYPERLINK(MapEvent_MouseOver(ROW(),COLUMN())),"") ->  | CL13: =IFERROR(HYPERLINK(MapEvent_MouseOver(ROW(),COLUMN())),"") -> 
V14: =IFERROR(HYPERLINK(MapEvent_MouseOver(ROW(),COLUMN())),"") ->  | W14: =IFERROR(HYPERLINK(MapEvent_MouseOver(ROW(),COLUMN())),"") ->  | X14: =IFERROR(HYPERLINK(MapEvent_MouseOver(ROW(),COLUMN())),"") ->  | Y14: =IFERROR(HYPERLINK(MapEvent_MouseOver(ROW(),COLUMN())),"") ->  | Z14: =IFERROR(HYPERLINK(MapEvent_MouseOver(ROW(),COLUMN())),"") ->  | AA14: =IFERROR(HYPERLINK(MapEvent_MouseOver(ROW(),COLUMN())),"") ->  | AB14: =IFERROR(HYPERLINK(MapEvent_MouseOver(ROW(),COLUMN())),"") ->  | AC14: =IFERROR(HYPERLINK(MapEvent_MouseOver(ROW(),COLUMN())),"") ->  | AD14: =IFERROR(HYPERLINK(MapEvent_MouseOver(ROW(),COLUMN())),"") ->  | AE14: =IFERROR(HYPERLINK(MapEvent_MouseOver(ROW(),COLUMN())),"") ->  | AF14: =IFERROR(HYPERLINK(MapEvent_MouseOver(ROW(),COLUMN())),"") ->  | AG14: =IFERROR(HYPERLINK(MapEvent_MouseOver(ROW(),COLUMN())),"") ->  | AH14: =IFERROR(HYPERLINK(MapEvent_MouseOver(ROW(),COLUMN())),"") ->  | AI14: =IFERROR(HYPERLINK(MapEvent_MouseOver(ROW(),COLUMN())),"") ->  | AJ14: =IFERROR(HYPERLINK(MapEvent_MouseOver(ROW(),COLUMN())),"") ->  | AK14: =IFERROR(HYPERLINK(MapEvent_MouseOver(ROW(),COLUMN())),"") ->  | AL14: =IFERROR(HYPERLINK(MapEvent_MouseOver(ROW(),COLUMN())),"") ->  | AM14: =IFERROR(HYPERLINK(MapEvent_MouseOver(ROW(),COLUMN())),"") ->  | AN14: =IFERROR(HYPERLINK(MapEvent_MouseOver(ROW(),COLUMN())),"") ->  | AO14: =IFERROR(HYPERLINK(MapEvent_MouseOver(ROW(),COLUMN())),"") ->  | AP14: =IFERROR(HYPERLINK(MapEvent_MouseOver(ROW(),COLUMN())),"") ->  | AQ14: =IFERROR(HYPERLINK(MapEvent_MouseOver(ROW(),COLUMN())),"") ->  | AR14: =IFERROR(HYPERLINK(MapEvent_MouseOver(ROW(),COLUMN())),"") ->  | AS14: =IFERROR(HYPERLINK(MapEvent_MouseOver(ROW(),COLUMN())),"") ->  | AT14: =IFERROR(HYPERLINK(MapEvent_MouseOver(ROW(),COLUMN())),"") ->  | AU14: =IFERROR(HYPERLINK(MapEvent_MouseOver(ROW(),COLUMN())),"") ->  | AV14: =IFERROR(HYPERLINK(MapEvent_MouseOver(ROW(),COLUMN())),"") ->  | AW14: =IFERROR(HYPERLINK(MapEvent_MouseOver(ROW(),COLUMN())),"") ->  | AX14: =IFERROR(HYPERLINK(MapEvent_MouseOver(ROW(),COLUMN())),"") ->  | AY14: =IFERROR(HYPERLINK(MapEvent_MouseOver(ROW(),COLUMN())),"") ->  | AZ14: =IFERROR(HYPERLINK(MapEvent_MouseOver(ROW(),COLUMN())),"") ->  | BA14: =IFERROR(HYPERLINK(MapEvent_MouseOver(ROW(),COLUMN())),"") ->  | BB14: =IFERROR(HYPERLINK(MapEvent_MouseOver(ROW(),COLUMN())),"") ->  | BC14: =IFERROR(HYPERLINK(MapEvent_MouseOver(ROW(),COLUMN())),"") ->  | BD14: =IFERROR(HYPERLINK(MapEvent_MouseOver(ROW(),COLUMN())),"") ->  | BE14: =IFERROR(HYPERLINK(MapEvent_MouseOver(ROW(),COLUMN())),"") ->  | BF14: =IFERROR(HYPERLINK(MapEvent_MouseOver(ROW(),COLUMN())),"") ->  | BG14: =IFERROR(HYPERLINK(MapEvent_MouseOver(ROW(),COLUMN())),"") ->  | BH14: =IFERROR(HYPERLINK(MapEvent_MouseOver(ROW(),COLUMN())),"") ->  | BI14: =IFERROR(HYPERLINK(MapEvent_MouseOver(ROW(),COLUMN())),"") ->  | BJ14: =IFERROR(HYPERLINK(MapEvent_MouseOver(ROW(),COLUMN())),"") ->  | BK14: =IFERROR(HYPERLINK(MapEvent_MouseOver(ROW(),COLUMN())),"") ->  | BL14: =IFERROR(HYPERLINK(MapEvent_MouseOver(ROW(),COLUMN())),"") ->  | BM14: =IFERROR(HYPERLINK(MapEvent_MouseOver(ROW(),COLUMN())),"") ->  | BN14: =IFERROR(HYPERLINK(MapEvent_MouseOver(ROW(),COLUMN())),"") ->  | BO14: =IFERROR(HYPERLINK(MapEvent_MouseOver(ROW(),COLUMN())),"") ->  | BP14: =IFERROR(HYPERLINK(MapEvent_MouseOver(ROW(),COLUMN())),"") ->  | BQ14: =IFERROR(HYPERLINK(MapEvent_MouseOver(ROW(),COLUMN())),"") ->  | BR14: =IFERROR(HYPERLINK(MapEvent_MouseOver(ROW(),COLUMN())),"") ->  | BS14: =IFERROR(HYPERLINK(MapEvent_MouseOver(ROW(),COLUMN())),"") ->  | BT14: =IFERROR(HYPERLINK(MapEvent_MouseOver(ROW(),COLUMN())),"") ->  | BU14: =IFERROR(HYPERLINK(MapEvent_MouseOver(ROW(),COLUMN())),"") ->  | BV14: =IFERROR(HYPERLINK(MapEvent_MouseOver(ROW(),COLUMN())),"") ->  | BW14: =IFERROR(HYPERLINK(MapEvent_MouseOver(ROW(),COLUMN())),"") ->  | BX14: =IFERROR(HYPERLINK(MapEvent_MouseOver(ROW(),COLUMN())),"") ->  | BY14: =IFERROR(HYPERLINK(MapEvent_MouseOver(ROW(),COLUMN())),"") ->  | BZ14: =IFERROR(HYPERLINK(MapEvent_MouseOver(ROW(),COLUMN())),"") ->  | CA14: =IFERROR(HYPERLINK(MapEvent_MouseOver(ROW(),COLUMN())),"") ->  | CB14: =IFERROR(HYPERLINK(MapEvent_MouseOver(ROW(),COLUMN())),"") ->  | CC14: =IFERROR(HYPERLINK(MapEvent_MouseOver(ROW(),COLUMN())),"") ->  | CD14: =IFERROR(HYPERLINK(MapEvent_MouseOver(ROW(),COLUMN())),"") ->  | CE14: =IFERROR(HYPERLINK(MapEvent_MouseOver(ROW(),COLUMN())),"") ->  | CF14: =IFERROR(HYPERLINK(MapEvent_MouseOver(ROW(),COLUMN())),"") ->  | CG14: =IFERROR(HYPERLINK(MapEvent_MouseOver(ROW(),COLUMN())),"") ->  | CH14: =IFERROR(HYPERLINK(MapEvent_MouseOver(ROW(),COLUMN())),"") ->  | CI14: =IFERROR(HYPERLINK(MapEvent_MouseOver(ROW(),COLUMN())),"") ->  | CJ14: =IFERROR(HYPERLINK(MapEvent_MouseOver(ROW(),COLUMN())),"") ->  | CK14: =IFERROR(HYPERLINK(MapEvent_MouseOver(ROW(),COLUMN())),"") ->  | CL14: =IFERROR(HYPERLINK(MapEvent_MouseOver(ROW(),COLUMN())),"") -> 
V15: =IFERROR(HYPERLINK(MapEvent_MouseOver(ROW(),COLUMN())),"") ->  | W15: =IFERROR(HYPERLINK(MapEvent_MouseOver(ROW(),COLUMN())),"") ->  | X15: =IFERROR(HYPERLINK(MapEvent_MouseOver(ROW(),COLUMN())),"") ->  | Y15: =IFERROR(HYPERLINK(MapEvent_MouseOver(ROW(),COLUMN())),"") ->  | Z15: =IFERROR(HYPERLINK(MapEvent_MouseOver(ROW(),COLUMN())),"") ->  | AA15: =IFERROR(HYPERLINK(MapEvent_MouseOver(ROW(),COLUMN())),"") ->  | AB15: =IFERROR(HYPERLINK(MapEvent_MouseOver(ROW(),COLUMN())),"") ->  | AC15: =IFERROR(HYPERLINK(MapEvent_MouseOver(ROW(),COLUMN())),"") ->  | AD15: =IFERROR(HYPERLINK(MapEvent_MouseOver(ROW(),COLUMN())),"") ->  | AE15: =IFERROR(HYPERLINK(MapEvent_MouseOver(ROW(),COLUMN())),"") ->  | AF15: =IFERROR(HYPERLINK(MapEvent_MouseOver(ROW(),COLUMN())),"") ->  | AG15: =IFERROR(HYPERLINK(MapEvent_MouseOver(ROW(),COLUMN())),"") ->  | AH15: =IFERROR(HYPERLINK(MapEvent_MouseOver(ROW(),COLUMN())),"") ->  | AI15: =IFERROR(HYPERLINK(MapEvent_MouseOver(ROW(),COLUMN())),"") ->  | AJ15: =IFERROR(HYPERLINK(MapEvent_MouseOver(ROW(),COLUMN())),"") ->  | AK15: =IFERROR(HYPERLINK(MapEvent_MouseOver(ROW(),COLUMN())),"") ->  | AL15: =IFERROR(HYPERLINK(MapEvent_MouseOver(ROW(),COLUMN())),"") ->  | AM15: =IFERROR(HYPERLINK(MapEvent_MouseOver(ROW(),COLUMN())),"") ->  | AN15: =IFERROR(HYPERLINK(MapEvent_MouseOver(ROW(),COLUMN())),"") ->  | AO15: =IFERROR(HYPERLINK(MapEvent_MouseOver(ROW(),COLUMN())),"") ->  | AP15: =IFERROR(HYPERLINK(MapEvent_MouseOver(ROW(),COLUMN())),"") ->  | AQ15: =IFERROR(HYPERLINK(MapEvent_MouseOver(ROW(),COLUMN())),"") ->  | AR15: =IFERROR(HYPERLINK(MapEvent_MouseOver(ROW(),COLUMN())),"") ->  | AS15: =IFERROR(HYPERLINK(MapEvent_MouseOver(ROW(),COLUMN())),"") ->  | AT15: =IFERROR(HYPERLINK(MapEvent_MouseOver(ROW(),COLUMN())),"") ->  | AU15: =IFERROR(HYPERLINK(MapEvent_MouseOver(ROW(),COLUMN())),"") ->  | AV15: =IFERROR(HYPERLINK(MapEvent_MouseOver(ROW(),COLUMN())),"") ->  | AW15: =IFERROR(HYPERLINK(MapEvent_MouseOver(ROW(),COLUMN())),"") ->  | AX15: =IFERROR(HYPERLINK(MapEvent_MouseOver(ROW(),COLUMN())),"") ->  | AY15: =IFERROR(HYPERLINK(MapEvent_MouseOver(ROW(),COLUMN())),"") ->  | AZ15: =IFERROR(HYPERLINK(MapEvent_MouseOver(ROW(),COLUMN())),"") ->  | BA15: =IFERROR(HYPERLINK(MapEvent_MouseOver(ROW(),COLUMN())),"") ->  | BB15: =IFERROR(HYPERLINK(MapEvent_MouseOver(ROW(),COLUMN())),"") ->  | BC15: =IFERROR(HYPERLINK(MapEvent_MouseOver(ROW(),COLUMN())),"") ->  | BD15: =IFERROR(HYPERLINK(MapEvent_MouseOver(ROW(),COLUMN())),"") ->  | BE15: =IFERROR(HYPERLINK(MapEvent_MouseOver(ROW(),COLUMN())),"") ->  | BF15: =IFERROR(HYPERLINK(MapEvent_MouseOver(ROW(),COLUMN())),"") ->  | BG15: =IFERROR(HYPERLINK(MapEvent_MouseOver(ROW(),COLUMN())),"") ->  | BH15: =IFERROR(HYPERLINK(MapEvent_MouseOver(ROW(),COLUMN())),"") ->  | BI15: =IFERROR(HYPERLINK(MapEvent_MouseOver(ROW(),COLUMN())),"") ->  | BJ15: =IFERROR(HYPERLINK(MapEvent_MouseOver(ROW(),COLUMN())),"") ->  | BK15: =IFERROR(HYPERLINK(MapEvent_MouseOver(ROW(),COLUMN())),"") ->  | BL15: =IFERROR(HYPERLINK(MapEvent_MouseOver(ROW(),COLUMN())),"") ->  | BM15: =IFERROR(HYPERLINK(MapEvent_MouseOver(ROW(),COLUMN())),"") ->  | BN15: =IFERROR(HYPERLINK(MapEvent_MouseOver(ROW(),COLUMN())),"") ->  | BO15: =IFERROR(HYPERLINK(MapEvent_MouseOver(ROW(),COLUMN())),"") ->  | BP15: =IFERROR(HYPERLINK(MapEvent_MouseOver(ROW(),COLUMN())),"") ->  | BQ15: =IFERROR(HYPERLINK(MapEvent_MouseOver(ROW(),COLUMN())),"") ->  | BR15: =IFERROR(HYPERLINK(MapEvent_MouseOver(ROW(),COLUMN())),"") ->  | BS15: =IFERROR(HYPERLINK(MapEvent_MouseOver(ROW(),COLUMN())),"") ->  | BT15: =IFERROR(HYPERLINK(MapEvent_MouseOver(ROW(),COLUMN())),"") ->  | BU15: =IFERROR(HYPERLINK(MapEvent_MouseOver(ROW(),COLUMN())),"") ->  | BV15: =IFERROR(HYPERLINK(MapEvent_MouseOver(ROW(),COLUMN())),"") ->  | BW15: =IFERROR(HYPERLINK(MapEvent_MouseOver(ROW(),COLUMN())),"") ->  | BX15: =IFERROR(HYPERLINK(MapEvent_MouseOver(ROW(),COLUMN())),"") ->  | BY15: =IFERROR(HYPERLINK(MapEvent_MouseOver(ROW(),COLUMN())),"") ->  | BZ15: =IFERROR(HYPERLINK(MapEvent_MouseOver(ROW(),COLUMN())),"") ->  | CA15: =IFERROR(HYPERLINK(MapEvent_MouseOver(ROW(),COLUMN())),"") ->  | CB15: =IFERROR(HYPERLINK(MapEvent_MouseOver(ROW(),COLUMN())),"") ->  | CC15: =IFERROR(HYPERLINK(MapEvent_MouseOver(ROW(),COLUMN())),"") ->  | CD15: =IFERROR(HYPERLINK(MapEvent_MouseOver(ROW(),COLUMN())),"") ->  | CE15: =IFERROR(HYPERLINK(MapEvent_MouseOver(ROW(),COLUMN())),"") ->  | CF15: =IFERROR(HYPERLINK(MapEvent_MouseOver(ROW(),COLUMN())),"") ->  | CG15: =IFERROR(HYPERLINK(MapEvent_MouseOver(ROW(),COLUMN())),"") ->  | CH15: =IFERROR(HYPERLINK(MapEvent_MouseOver(ROW(),COLUMN())),"") ->  | CI15: =IFERROR(HYPERLINK(MapEvent_MouseOver(ROW(),COLUMN())),"") ->  | CJ15: =IFERROR(HYPERLINK(MapEvent_MouseOver(ROW(),COLUMN())),"") ->  | CK15: =IFERROR(HYPERLINK(MapEvent_MouseOver(ROW(),COLUMN())),"") ->  | CL15: =IFERROR(HYPERLINK(MapEvent_MouseOver(ROW(),COLUMN())),"") -> 
V16: =IFERROR(HYPERLINK(MapEvent_MouseOver(ROW(),COLUMN())),"") ->  | W16: =IFERROR(HYPERLINK(MapEvent_MouseOver(ROW(),COLUMN())),"") ->  | X16: =IFERROR(HYPERLINK(MapEvent_MouseOver(ROW(),COLUMN())),"") ->  | Y16: =IFERROR(HYPERLINK(MapEvent_MouseOver(ROW(),COLUMN())),"") ->  | Z16: =IFERROR(HYPERLINK(MapEvent_MouseOver(ROW(),COLUMN())),"") ->  | AA16: =IFERROR(HYPERLINK(MapEvent_MouseOver(ROW(),COLUMN())),"") ->  | AB16: =IFERROR(HYPERLINK(MapEvent_MouseOver(ROW(),COLUMN())),"") ->  | AC16: =IFERROR(HYPERLINK(MapEvent_MouseOver(ROW(),COLUMN())),"") ->  | AD16: =IFERROR(HYPERLINK(MapEvent_MouseOver(ROW(),COLUMN())),"") ->  | AE16: =IFERROR(HYPERLINK(MapEvent_MouseOver(ROW(),COLUMN())),"") ->  | AF16: =IFERROR(HYPERLINK(MapEvent_MouseOver(ROW(),COLUMN())),"") ->  | AG16: =IFERROR(HYPERLINK(MapEvent_MouseOver(ROW(),COLUMN())),"") ->  | AH16: =IFERROR(HYPERLINK(MapEvent_MouseOver(ROW(),COLUMN())),"") ->  | AI16: =IFERROR(HYPERLINK(MapEvent_MouseOver(ROW(),COLUMN())),"") ->  | AJ16: =IFERROR(HYPERLINK(MapEvent_MouseOver(ROW(),COLUMN())),"") ->  | AK16: =IFERROR(HYPERLINK(MapEvent_MouseOver(ROW(),COLUMN())),"") ->  | AL16: =IFERROR(HYPERLINK(MapEvent_MouseOver(ROW(),COLUMN())),"") ->  | AM16: =IFERROR(HYPERLINK(MapEvent_MouseOver(ROW(),COLUMN())),"") ->  | AN16: =IFERROR(HYPERLINK(MapEvent_MouseOver(ROW(),COLUMN())),"") ->  | AO16: =IFERROR(HYPERLINK(MapEvent_MouseOver(ROW(),COLUMN())),"") ->  | AP16: =IFERROR(HYPERLINK(MapEvent_MouseOver(ROW(),COLUMN())),"") ->  | AQ16: =IFERROR(HYPERLINK(MapEvent_MouseOver(ROW(),COLUMN())),"") ->  | AR16: =IFERROR(HYPERLINK(MapEvent_MouseOver(ROW(),COLUMN())),"") ->  | AS16: =IFERROR(HYPERLINK(MapEvent_MouseOver(ROW(),COLUMN())),"") ->  | AT16: =IFERROR(HYPERLINK(MapEvent_MouseOver(ROW(),COLUMN())),"") ->  | AU16: =IFERROR(HYPERLINK(MapEvent_MouseOver(ROW(),COLUMN())),"") ->  | AV16: =IFERROR(HYPERLINK(MapEvent_MouseOver(ROW(),COLUMN())),"") ->  | AW16: =IFERROR(HYPERLINK(MapEvent_MouseOver(ROW(),COLUMN())),"") ->  | AX16: =IFERROR(HYPERLINK(MapEvent_MouseOver(ROW(),COLUMN())),"") ->  | AY16: =IFERROR(HYPERLINK(MapEvent_MouseOver(ROW(),COLUMN())),"") ->  | AZ16: =IFERROR(HYPERLINK(MapEvent_MouseOver(ROW(),COLUMN())),"") ->  | BA16: =IFERROR(HYPERLINK(MapEvent_MouseOver(ROW(),COLUMN())),"") ->  | BB16: =IFERROR(HYPERLINK(MapEvent_MouseOver(ROW(),COLUMN())),"") ->  | BC16: =IFERROR(HYPERLINK(MapEvent_MouseOver(ROW(),COLUMN())),"") ->  | BD16: =IFERROR(HYPERLINK(MapEvent_MouseOver(ROW(),COLUMN())),"") ->  | BE16: =IFERROR(HYPERLINK(MapEvent_MouseOver(ROW(),COLUMN())),"") ->  | BF16: =IFERROR(HYPERLINK(MapEvent_MouseOver(ROW(),COLUMN())),"") ->  | BG16: =IFERROR(HYPERLINK(MapEvent_MouseOver(ROW(),COLUMN())),"") ->  | BH16: =IFERROR(HYPERLINK(MapEvent_MouseOver(ROW(),COLUMN())),"") ->  | BI16: =IFERROR(HYPERLINK(MapEvent_MouseOver(ROW(),COLUMN())),"") ->  | BJ16: =IFERROR(HYPERLINK(MapEvent_MouseOver(ROW(),COLUMN())),"") ->  | BK16: =IFERROR(HYPERLINK(MapEvent_MouseOver(ROW(),COLUMN())),"") ->  | BL16: =IFERROR(HYPERLINK(MapEvent_MouseOver(ROW(),COLUMN())),"") ->  | BM16: =IFERROR(HYPERLINK(MapEvent_MouseOver(ROW(),COLUMN())),"") ->  | BN16: =IFERROR(HYPERLINK(MapEvent_MouseOver(ROW(),COLUMN())),"") ->  | BO16: =IFERROR(HYPERLINK(MapEvent_MouseOver(ROW(),COLUMN())),"") ->  | BP16: =IFERROR(HYPERLINK(MapEvent_MouseOver(ROW(),COLUMN())),"") ->  | BQ16: =IFERROR(HYPERLINK(MapEvent_MouseOver(ROW(),COLUMN())),"") ->  | BR16: =IFERROR(HYPERLINK(MapEvent_MouseOver(ROW(),COLUMN())),"") ->  | BS16: =IFERROR(HYPERLINK(MapEvent_MouseOver(ROW(),COLUMN())),"") ->  | BT16: =IFERROR(HYPERLINK(MapEvent_MouseOver(ROW(),COLUMN())),"") ->  | BU16: =IFERROR(HYPERLINK(MapEvent_MouseOver(ROW(),COLUMN())),"") ->  | BV16: =IFERROR(HYPERLINK(MapEvent_MouseOver(ROW(),COLUMN())),"") ->  | BW16: =IFERROR(HYPERLINK(MapEvent_MouseOver(ROW(),COLUMN())),"") ->  | BX16: =IFERROR(HYPERLINK(MapEvent_MouseOver(ROW(),COLUMN())),"") ->  | BY16: =IFERROR(HYPERLINK(MapEvent_MouseOver(ROW(),COLUMN())),"") ->  | BZ16: =IFERROR(HYPERLINK(MapEvent_MouseOver(ROW(),COLUMN())),"") ->  | CA16: =IFERROR(HYPERLINK(MapEvent_MouseOver(ROW(),COLUMN())),"") ->  | CB16: =IFERROR(HYPERLINK(MapEvent_MouseOver(ROW(),COLUMN())),"") ->  | CC16: =IFERROR(HYPERLINK(MapEvent_MouseOver(ROW(),COLUMN())),"") ->  | CD16: =IFERROR(HYPERLINK(MapEvent_MouseOver(ROW(),COLUMN())),"") ->  | CE16: =IFERROR(HYPERLINK(MapEvent_MouseOver(ROW(),COLUMN())),"") ->  | CF16: =IFERROR(HYPERLINK(MapEvent_MouseOver(ROW(),COLUMN())),"") ->  | CG16: =IFERROR(HYPERLINK(MapEvent_MouseOver(ROW(),COLUMN())),"") ->  | CH16: =IFERROR(HYPERLINK(MapEvent_MouseOver(ROW(),COLUMN())),"") ->  | CI16: =IFERROR(HYPERLINK(MapEvent_MouseOver(ROW(),COLUMN())),"") ->  | CJ16: =IFERROR(HYPERLINK(MapEvent_MouseOver(ROW(),COLUMN())),"") ->  | CK16: =IFERROR(HYPERLINK(MapEvent_MouseOver(ROW(),COLUMN())),"") ->  | CL16: =IFERROR(HYPERLINK(MapEvent_MouseOver(ROW(),COLUMN())),"") -> 
V17: =IFERROR(HYPERLINK(MapEvent_MouseOver(ROW(),COLUMN())),"") ->  | W17: =IFERROR(HYPERLINK(MapEvent_MouseOver(ROW(),COLUMN())),"") ->  | X17: =IFERROR(HYPERLINK(MapEvent_MouseOver(ROW(),COLUMN())),"") ->  | Y17: =IFERROR(HYPERLINK(MapEvent_MouseOver(ROW(),COLUMN())),"") ->  | Z17: =IFERROR(HYPERLINK(MapEvent_MouseOver(ROW(),COLUMN())),"") ->  | AA17: =IFERROR(HYPERLINK(MapEvent_MouseOver(ROW(),COLUMN())),"") ->  | AB17: =IFERROR(HYPERLINK(MapEvent_MouseOver(ROW(),COLUMN())),"") ->  | AC17: =IFERROR(HYPERLINK(MapEvent_MouseOver(ROW(),COLUMN())),"") ->  | AD17: =IFERROR(HYPERLINK(MapEvent_MouseOver(ROW(),COLUMN())),"") ->  | AE17: =IFERROR(HYPERLINK(MapEvent_MouseOver(ROW(),COLUMN())),"") ->  | AF17: =IFERROR(HYPERLINK(MapEvent_MouseOver(ROW(),COLUMN())),"") ->  | AG17: =IFERROR(HYPERLINK(MapEvent_MouseOver(ROW(),COLUMN())),"") ->  | AH17: =IFERROR(HYPERLINK(MapEvent_MouseOver(ROW(),COLUMN())),"") ->  | AI17: =IFERROR(HYPERLINK(MapEvent_MouseOver(ROW(),COLUMN())),"") ->  | AJ17: =IFERROR(HYPERLINK(MapEvent_MouseOver(ROW(),COLUMN())),"") ->  | AK17: =IFERROR(HYPERLINK(MapEvent_MouseOver(ROW(),COLUMN())),"") ->  | AL17: =IFERROR(HYPERLINK(MapEvent_MouseOver(ROW(),COLUMN())),"") ->  | AM17: =IFERROR(HYPERLINK(MapEvent_MouseOver(ROW(),COLUMN())),"") ->  | AN17: =IFERROR(HYPERLINK(MapEvent_MouseOver(ROW(),COLUMN())),"") ->  | AO17: =IFERROR(HYPERLINK(MapEvent_MouseOver(ROW(),COLUMN())),"") ->  | AP17: =IFERROR(HYPERLINK(MapEvent_MouseOver(ROW(),COLUMN())),"") ->  | AQ17: =IFERROR(HYPERLINK(MapEvent_MouseOver(ROW(),COLUMN())),"") ->  | AR17: =IFERROR(HYPERLINK(MapEvent_MouseOver(ROW(),COLUMN())),"") ->  | AS17: =IFERROR(HYPERLINK(MapEvent_MouseOver(ROW(),COLUMN())),"") ->  | AT17: =IFERROR(HYPERLINK(MapEvent_MouseOver(ROW(),COLUMN())),"") ->  | AU17: =IFERROR(HYPERLINK(MapEvent_MouseOver(ROW(),COLUMN())),"") ->  | AV17: =IFERROR(HYPERLINK(MapEvent_MouseOver(ROW(),COLUMN())),"") ->  | AW17: =IFERROR(HYPERLINK(MapEvent_MouseOver(ROW(),COLUMN())),"") ->  | AX17: =IFERROR(HYPERLINK(MapEvent_MouseOver(ROW(),COLUMN())),"") ->  | AY17: =IFERROR(HYPERLINK(MapEvent_MouseOver(ROW(),COLUMN())),"") ->  | AZ17: =IFERROR(HYPERLINK(MapEvent_MouseOver(ROW(),COLUMN())),"") ->  | BA17: =IFERROR(HYPERLINK(MapEvent_MouseOver(ROW(),COLUMN())),"") ->  | BB17: =IFERROR(HYPERLINK(MapEvent_MouseOver(ROW(),COLUMN())),"") ->  | BC17: =IFERROR(HYPERLINK(MapEvent_MouseOver(ROW(),COLUMN())),"") ->  | BD17: =IFERROR(HYPERLINK(MapEvent_MouseOver(ROW(),COLUMN())),"") ->  | BE17: =IFERROR(HYPERLINK(MapEvent_MouseOver(ROW(),COLUMN())),"") ->  | BF17: =IFERROR(HYPERLINK(MapEvent_MouseOver(ROW(),COLUMN())),"") ->  | BG17: =IFERROR(HYPERLINK(MapEvent_MouseOver(ROW(),COLUMN())),"") ->  | BH17: =IFERROR(HYPERLINK(MapEvent_MouseOver(ROW(),COLUMN())),"") ->  | BI17: =IFERROR(HYPERLINK(MapEvent_MouseOver(ROW(),COLUMN())),"") ->  | BJ17: =IFERROR(HYPERLINK(MapEvent_MouseOver(ROW(),COLUMN())),"") ->  | BK17: =IFERROR(HYPERLINK(MapEvent_MouseOver(ROW(),COLUMN())),"") ->  | BL17: =IFERROR(HYPERLINK(MapEvent_MouseOver(ROW(),COLUMN())),"") ->  | BM17: =IFERROR(HYPERLINK(MapEvent_MouseOver(ROW(),COLUMN())),"") ->  | BN17: =IFERROR(HYPERLINK(MapEvent_MouseOver(ROW(),COLUMN())),"") ->  | BO17: =IFERROR(HYPERLINK(MapEvent_MouseOver(ROW(),COLUMN())),"") ->  | BP17: =IFERROR(HYPERLINK(MapEvent_MouseOver(ROW(),COLUMN())),"") ->  | BQ17: =IFERROR(HYPERLINK(MapEvent_MouseOver(ROW(),COLUMN())),"") ->  | BR17: =IFERROR(HYPERLINK(MapEvent_MouseOver(ROW(),COLUMN())),"") ->  | BS17: =IFERROR(HYPERLINK(MapEvent_MouseOver(ROW(),COLUMN())),"") ->  | BT17: =IFERROR(HYPERLINK(MapEvent_MouseOver(ROW(),COLUMN())),"") ->  | BU17: =IFERROR(HYPERLINK(MapEvent_MouseOver(ROW(),COLUMN())),"") ->  | BV17: =IFERROR(HYPERLINK(MapEvent_MouseOver(ROW(),COLUMN())),"") ->  | BW17: =IFERROR(HYPERLINK(MapEvent_MouseOver(ROW(),COLUMN())),"") ->  | BX17: =IFERROR(HYPERLINK(MapEvent_MouseOver(ROW(),COLUMN())),"") ->  | BY17: =IFERROR(HYPERLINK(MapEvent_MouseOver(ROW(),COLUMN())),"") ->  | BZ17: =IFERROR(HYPERLINK(MapEvent_MouseOver(ROW(),COLUMN())),"") ->  | CA17: =IFERROR(HYPERLINK(MapEvent_MouseOver(ROW(),COLUMN())),"") ->  | CB17: =IFERROR(HYPERLINK(MapEvent_MouseOver(ROW(),COLUMN())),"") ->  | CC17: =IFERROR(HYPERLINK(MapEvent_MouseOver(ROW(),COLUMN())),"") ->  | CD17: =IFERROR(HYPERLINK(MapEvent_MouseOver(ROW(),COLUMN())),"") ->  | CE17: =IFERROR(HYPERLINK(MapEvent_MouseOver(ROW(),COLUMN())),"") ->  | CF17: =IFERROR(HYPERLINK(MapEvent_MouseOver(ROW(),COLUMN())),"") ->  | CG17: =IFERROR(HYPERLINK(MapEvent_MouseOver(ROW(),COLUMN())),"") ->  | CH17: =IFERROR(HYPERLINK(MapEvent_MouseOver(ROW(),COLUMN())),"") ->  | CI17: =IFERROR(HYPERLINK(MapEvent_MouseOver(ROW(),COLUMN())),"") ->  | CJ17: =IFERROR(HYPERLINK(MapEvent_MouseOver(ROW(),COLUMN())),"") ->  | CK17: =IFERROR(HYPERLINK(MapEvent_MouseOver(ROW(),COLUMN())),"") ->  | CL17: =IFERROR(HYPERLINK(MapEvent_MouseOver(ROW(),COLUMN())),"") -> 
V18: =IFERROR(HYPERLINK(MapEvent_MouseOver(ROW(),COLUMN())),"") ->  | W18: =IFERROR(HYPERLINK(MapEvent_MouseOver(ROW(),COLUMN())),"") ->  | X18: =IFERROR(HYPERLINK(MapEvent_MouseOver(ROW(),COLUMN())),"") ->  | Y18: =IFERROR(HYPERLINK(MapEvent_MouseOver(ROW(),COLUMN())),"") ->  | Z18: =IFERROR(HYPERLINK(MapEvent_MouseOver(ROW(),COLUMN())),"") ->  | AA18: =IFERROR(HYPERLINK(MapEvent_MouseOver(ROW(),COLUMN())),"") ->  | AB18: =IFERROR(HYPERLINK(MapEvent_MouseOver(ROW(),COLUMN())),"") ->  | AC18: =IFERROR(HYPERLINK(MapEvent_MouseOver(ROW(),COLUMN())),"") ->  | AD18: =IFERROR(HYPERLINK(MapEvent_MouseOver(ROW(),COLUMN())),"") ->  | AE18: =IFERROR(HYPERLINK(MapEvent_MouseOver(ROW(),COLUMN())),"") ->  | AF18: =IFERROR(HYPERLINK(MapEvent_MouseOver(ROW(),COLUMN())),"") ->  | AG18: =IFERROR(HYPERLINK(MapEvent_MouseOver(ROW(),COLUMN())),"") ->  | AH18: =IFERROR(HYPERLINK(MapEvent_MouseOver(ROW(),COLUMN())),"") ->  | AI18: =IFERROR(HYPERLINK(MapEvent_MouseOver(ROW(),COLUMN())),"") ->  | AJ18: =IFERROR(HYPERLINK(MapEvent_MouseOver(ROW(),COLUMN())),"") ->  | AK18: =IFERROR(HYPERLINK(MapEvent_MouseOver(ROW(),COLUMN())),"") ->  | AL18: =IFERROR(HYPERLINK(MapEvent_MouseOver(ROW(),COLUMN())),"") ->  | AM18: =IFERROR(HYPERLINK(MapEvent_MouseOver(ROW(),COLUMN())),"") ->  | AN18: =IFERROR(HYPERLINK(MapEvent_MouseOver(ROW(),COLUMN())),"") ->  | AO18: =IFERROR(HYPERLINK(MapEvent_MouseOver(ROW(),COLUMN())),"") ->  | AP18: =IFERROR(HYPERLINK(MapEvent_MouseOver(ROW(),COLUMN())),"") ->  | AQ18: =IFERROR(HYPERLINK(MapEvent_MouseOver(ROW(),COLUMN())),"") ->  | AR18: =IFERROR(HYPERLINK(MapEvent_MouseOver(ROW(),COLUMN())),"") ->  | AS18: =IFERROR(HYPERLINK(MapEvent_MouseOver(ROW(),COLUMN())),"") ->  | AT18: =IFERROR(HYPERLINK(MapEvent_MouseOver(ROW(),COLUMN())),"") ->  | AU18: =IFERROR(HYPERLINK(MapEvent_MouseOver(ROW(),COLUMN())),"") ->  | AV18: =IFERROR(HYPERLINK(MapEvent_MouseOver(ROW(),COLUMN())),"") ->  | AW18: =IFERROR(HYPERLINK(MapEvent_MouseOver(ROW(),COLUMN())),"") ->  | AX18: =IFERROR(HYPERLINK(MapEvent_MouseOver(ROW(),COLUMN())),"") ->  | AY18: =IFERROR(HYPERLINK(MapEvent_MouseOver(ROW(),COLUMN())),"") ->  | AZ18: =IFERROR(HYPERLINK(MapEvent_MouseOver(ROW(),COLUMN())),"") ->  | BA18: =IFERROR(HYPERLINK(MapEvent_MouseOver(ROW(),COLUMN())),"") ->  | BB18: =IFERROR(HYPERLINK(MapEvent_MouseOver(ROW(),COLUMN())),"") ->  | BC18: =IFERROR(HYPERLINK(MapEvent_MouseOver(ROW(),COLUMN())),"") ->  | BD18: =IFERROR(HYPERLINK(MapEvent_MouseOver(ROW(),COLUMN())),"") ->  | BE18: =IFERROR(HYPERLINK(MapEvent_MouseOver(ROW(),COLUMN())),"") ->  | BF18: =IFERROR(HYPERLINK(MapEvent_MouseOver(ROW(),COLUMN())),"") ->  | BG18: =IFERROR(HYPERLINK(MapEvent_MouseOver(ROW(),COLUMN())),"") ->  | BH18: =IFERROR(HYPERLINK(MapEvent_MouseOver(ROW(),COLUMN())),"") ->  | BI18: =IFERROR(HYPERLINK(MapEvent_MouseOver(ROW(),COLUMN())),"") ->  | BJ18: =IFERROR(HYPERLINK(MapEvent_MouseOver(ROW(),COLUMN())),"") ->  | BK18: =IFERROR(HYPERLINK(MapEvent_MouseOver(ROW(),COLUMN())),"") ->  | BL18: =IFERROR(HYPERLINK(MapEvent_MouseOver(ROW(),COLUMN())),"") ->  | BM18: =IFERROR(HYPERLINK(MapEvent_MouseOver(ROW(),COLUMN())),"") ->  | BN18: =IFERROR(HYPERLINK(MapEvent_MouseOver(ROW(),COLUMN())),"") ->  | BO18: =IFERROR(HYPERLINK(MapEvent_MouseOver(ROW(),COLUMN())),"") ->  | BP18: =IFERROR(HYPERLINK(MapEvent_MouseOver(ROW(),COLUMN())),"") ->  | BQ18: =IFERROR(HYPERLINK(MapEvent_MouseOver(ROW(),COLUMN())),"") ->  | BR18: =IFERROR(HYPERLINK(MapEvent_MouseOver(ROW(),COLUMN())),"") ->  | BS18: =IFERROR(HYPERLINK(MapEvent_MouseOver(ROW(),COLUMN())),"") ->  | BT18: =IFERROR(HYPERLINK(MapEvent_MouseOver(ROW(),COLUMN())),"") ->  | BU18: =IFERROR(HYPERLINK(MapEvent_MouseOver(ROW(),COLUMN())),"") ->  | BV18: =IFERROR(HYPERLINK(MapEvent_MouseOver(ROW(),COLUMN())),"") ->  | BW18: =IFERROR(HYPERLINK(MapEvent_MouseOver(ROW(),COLUMN())),"") ->  | BX18: =IFERROR(HYPERLINK(MapEvent_MouseOver(ROW(),COLUMN())),"") ->  | BY18: =IFERROR(HYPERLINK(MapEvent_MouseOver(ROW(),COLUMN())),"") ->  | BZ18: =IFERROR(HYPERLINK(MapEvent_MouseOver(ROW(),COLUMN())),"") ->  | CA18: =IFERROR(HYPERLINK(MapEvent_MouseOver(ROW(),COLUMN())),"") ->  | CB18: =IFERROR(HYPERLINK(MapEvent_MouseOver(ROW(),COLUMN())),"") ->  | CC18: =IFERROR(HYPERLINK(MapEvent_MouseOver(ROW(),COLUMN())),"") ->  | CD18: =IFERROR(HYPERLINK(MapEvent_MouseOver(ROW(),COLUMN())),"") ->  | CE18: =IFERROR(HYPERLINK(MapEvent_MouseOver(ROW(),COLUMN())),"") ->  | CF18: =IFERROR(HYPERLINK(MapEvent_MouseOver(ROW(),COLUMN())),"") ->  | CG18: =IFERROR(HYPERLINK(MapEvent_MouseOver(ROW(),COLUMN())),"") ->  | CH18: =IFERROR(HYPERLINK(MapEvent_MouseOver(ROW(),COLUMN())),"") ->  | CI18: =IFERROR(HYPERLINK(MapEvent_MouseOver(ROW(),COLUMN())),"") ->  | CJ18: =IFERROR(HYPERLINK(MapEvent_MouseOver(ROW(),COLUMN())),"") ->  | CK18: =IFERROR(HYPERLINK(MapEvent_MouseOver(ROW(),COLUMN())),"") ->  | CL18: =IFERROR(HYPERLINK(MapEvent_MouseOver(ROW(),COLUMN())),"") -> 
V19: =IFERROR(HYPERLINK(MapEvent_MouseOver(ROW(),COLUMN())),"") ->  | W19: =IFERROR(HYPERLINK(MapEvent_MouseOver(ROW(),COLUMN())),"") ->  | X19: =IFERROR(HYPERLINK(MapEvent_MouseOver(ROW(),COLUMN())),"") ->  | Y19: =IFERROR(HYPERLINK(MapEvent_MouseOver(ROW(),COLUMN())),"") ->  | Z19: =IFERROR(HYPERLINK(MapEvent_MouseOver(ROW(),COLUMN())),"") ->  | AA19: =IFERROR(HYPERLINK(MapEvent_MouseOver(ROW(),COLUMN())),"") ->  | AB19: =IFERROR(HYPERLINK(MapEvent_MouseOver(ROW(),COLUMN())),"") ->  | AC19: =IFERROR(HYPERLINK(MapEvent_MouseOver(ROW(),COLUMN())),"") ->  | AD19: =IFERROR(HYPERLINK(MapEvent_MouseOver(ROW(),COLUMN())),"") ->  | AE19: =IFERROR(HYPERLINK(MapEvent_MouseOver(ROW(),COLUMN())),"") ->  | AF19: =IFERROR(HYPERLINK(MapEvent_MouseOver(ROW(),COLUMN())),"") ->  | AG19: =IFERROR(HYPERLINK(MapEvent_MouseOver(ROW(),COLUMN())),"") ->  | AH19: =IFERROR(HYPERLINK(MapEvent_MouseOver(ROW(),COLUMN())),"") ->  | AI19: =IFERROR(HYPERLINK(MapEvent_MouseOver(ROW(),COLUMN())),"") ->  | AJ19: =IFERROR(HYPERLINK(MapEvent_MouseOver(ROW(),COLUMN())),"") ->  | AK19: =IFERROR(HYPERLINK(MapEvent_MouseOver(ROW(),COLUMN())),"") ->  | AL19: =IFERROR(HYPERLINK(MapEvent_MouseOver(ROW(),COLUMN())),"") ->  | AM19: =IFERROR(HYPERLINK(MapEvent_MouseOver(ROW(),COLUMN())),"") ->  | AN19: =IFERROR(HYPERLINK(MapEvent_MouseOver(ROW(),COLUMN())),"") ->  | AO19: =IFERROR(HYPERLINK(MapEvent_MouseOver(ROW(),COLUMN())),"") ->  | AP19: =IFERROR(HYPERLINK(MapEvent_MouseOver(ROW(),COLUMN())),"") ->  | AQ19: =IFERROR(HYPERLINK(MapEvent_MouseOver(ROW(),COLUMN())),"") ->  | AR19: =IFERROR(HYPERLINK(MapEvent_MouseOver(ROW(),COLUMN())),"") ->  | AS19: =IFERROR(HYPERLINK(MapEvent_MouseOver(ROW(),COLUMN())),"") ->  | AT19: =IFERROR(HYPERLINK(MapEvent_MouseOver(ROW(),COLUMN())),"") ->  | AU19: =IFERROR(HYPERLINK(MapEvent_MouseOver(ROW(),COLUMN())),"") ->  | AV19: =IFERROR(HYPERLINK(MapEvent_MouseOver(ROW(),COLUMN())),"") ->  | AW19: =IFERROR(HYPERLINK(MapEvent_MouseOver(ROW(),COLUMN())),"") ->  | AX19: =IFERROR(HYPERLINK(MapEvent_MouseOver(ROW(),COLUMN())),"") ->  | AY19: =IFERROR(HYPERLINK(MapEvent_MouseOver(ROW(),COLUMN())),"") ->  | AZ19: =IFERROR(HYPERLINK(MapEvent_MouseOver(ROW(),COLUMN())),"") ->  | BA19: =IFERROR(HYPERLINK(MapEvent_MouseOver(ROW(),COLUMN())),"") ->  | BB19: =IFERROR(HYPERLINK(MapEvent_MouseOver(ROW(),COLUMN())),"") ->  | BC19: =IFERROR(HYPERLINK(MapEvent_MouseOver(ROW(),COLUMN())),"") ->  | BD19: =IFERROR(HYPERLINK(MapEvent_MouseOver(ROW(),COLUMN())),"") ->  | BE19: =IFERROR(HYPERLINK(MapEvent_MouseOver(ROW(),COLUMN())),"") ->  | BF19: =IFERROR(HYPERLINK(MapEvent_MouseOver(ROW(),COLUMN())),"") ->  | BG19: =IFERROR(HYPERLINK(MapEvent_MouseOver(ROW(),COLUMN())),"") ->  | BH19: =IFERROR(HYPERLINK(MapEvent_MouseOver(ROW(),COLUMN())),"") ->  | BI19: =IFERROR(HYPERLINK(MapEvent_MouseOver(ROW(),COLUMN())),"") ->  | BJ19: =IFERROR(HYPERLINK(MapEvent_MouseOver(ROW(),COLUMN())),"") ->  | BK19: =IFERROR(HYPERLINK(MapEvent_MouseOver(ROW(),COLUMN())),"") ->  | BL19: =IFERROR(HYPERLINK(MapEvent_MouseOver(ROW(),COLUMN())),"") ->  | BM19: =IFERROR(HYPERLINK(MapEvent_MouseOver(ROW(),COLUMN())),"") ->  | BN19: =IFERROR(HYPERLINK(MapEvent_MouseOver(ROW(),COLUMN())),"") ->  | BO19: =IFERROR(HYPERLINK(MapEvent_MouseOver(ROW(),COLUMN())),"") ->  | BP19: =IFERROR(HYPERLINK(MapEvent_MouseOver(ROW(),COLUMN())),"") ->  | BQ19: =IFERROR(HYPERLINK(MapEvent_MouseOver(ROW(),COLUMN())),"") ->  | BR19: =IFERROR(HYPERLINK(MapEvent_MouseOver(ROW(),COLUMN())),"") ->  | BS19: =IFERROR(HYPERLINK(MapEvent_MouseOver(ROW(),COLUMN())),"") ->  | BT19: =IFERROR(HYPERLINK(MapEvent_MouseOver(ROW(),COLUMN())),"") ->  | BU19: =IFERROR(HYPERLINK(MapEvent_MouseOver(ROW(),COLUMN())),"") ->  | BV19: =IFERROR(HYPERLINK(MapEvent_MouseOver(ROW(),COLUMN())),"") ->  | BW19: =IFERROR(HYPERLINK(MapEvent_MouseOver(ROW(),COLUMN())),"") ->  | BX19: =IFERROR(HYPERLINK(MapEvent_MouseOver(ROW(),COLUMN())),"") ->  | BY19: =IFERROR(HYPERLINK(MapEvent_MouseOver(ROW(),COLUMN())),"") ->  | BZ19: =IFERROR(HYPERLINK(MapEvent_MouseOver(ROW(),COLUMN())),"") ->  | CA19: =IFERROR(HYPERLINK(MapEvent_MouseOver(ROW(),COLUMN())),"") ->  | CB19: =IFERROR(HYPERLINK(MapEvent_MouseOver(ROW(),COLUMN())),"") ->  | CC19: =IFERROR(HYPERLINK(MapEvent_MouseOver(ROW(),COLUMN())),"") ->  | CD19: =IFERROR(HYPERLINK(MapEvent_MouseOver(ROW(),COLUMN())),"") ->  | CE19: =IFERROR(HYPERLINK(MapEvent_MouseOver(ROW(),COLUMN())),"") ->  | CF19: =IFERROR(HYPERLINK(MapEvent_MouseOver(ROW(),COLUMN())),"") ->  | CG19: =IFERROR(HYPERLINK(MapEvent_MouseOver(ROW(),COLUMN())),"") ->  | CH19: =IFERROR(HYPERLINK(MapEvent_MouseOver(ROW(),COLUMN())),"") ->  | CI19: =IFERROR(HYPERLINK(MapEvent_MouseOver(ROW(),COLUMN())),"") ->  | CJ19: =IFERROR(HYPERLINK(MapEvent_MouseOver(ROW(),COLUMN())),"") ->  | CK19: =IFERROR(HYPERLINK(MapEvent_MouseOver(ROW(),COLUMN())),"") ->  | CL19: =IFERROR(HYPERLINK(MapEvent_MouseOver(ROW(),COLUMN())),"") -> 
V20: =IFERROR(HYPERLINK(MapEvent_MouseOver(ROW(),COLUMN())),"") ->  | W20: =IFERROR(HYPERLINK(MapEvent_MouseOver(ROW(),COLUMN())),"") ->  | X20: =IFERROR(HYPERLINK(MapEvent_MouseOver(ROW(),COLUMN())),"") ->  | Y20: =IFERROR(HYPERLINK(MapEvent_MouseOver(ROW(),COLUMN())),"") ->  | Z20: =IFERROR(HYPERLINK(MapEvent_MouseOver(ROW(),COLUMN())),"") ->  | AA20: =IFERROR(HYPERLINK(MapEvent_MouseOver(ROW(),COLUMN())),"") ->  | AB20: =IFERROR(HYPERLINK(MapEvent_MouseOver(ROW(),COLUMN())),"") ->  | AC20: =IFERROR(HYPERLINK(MapEvent_MouseOver(ROW(),COLUMN())),"") ->  | AD20: =IFERROR(HYPERLINK(MapEvent_MouseOver(ROW(),COLUMN())),"") ->  | AE20: =IFERROR(HYPERLINK(MapEvent_MouseOver(ROW(),COLUMN())),"") ->  | AF20: =IFERROR(HYPERLINK(MapEvent_MouseOver(ROW(),COLUMN())),"") ->  | AG20: =IFERROR(HYPERLINK(MapEvent_MouseOver(ROW(),COLUMN())),"") ->  | AH20: =IFERROR(HYPERLINK(MapEvent_MouseOver(ROW(),COLUMN())),"") ->  | AI20: =IFERROR(HYPERLINK(MapEvent_MouseOver(ROW(),COLUMN())),"") ->  | AJ20: =IFERROR(HYPERLINK(MapEvent_MouseOver(ROW(),COLUMN())),"") ->  | AK20: =IFERROR(HYPERLINK(MapEvent_MouseOver(ROW(),COLUMN())),"") ->  | AL20: =IFERROR(HYPERLINK(MapEvent_MouseOver(ROW(),COLUMN())),"") ->  | AM20: =IFERROR(HYPERLINK(MapEvent_MouseOver(ROW(),COLUMN())),"") ->  | AN20: =IFERROR(HYPERLINK(MapEvent_MouseOver(ROW(),COLUMN())),"") ->  | AO20: =IFERROR(HYPERLINK(MapEvent_MouseOver(ROW(),COLUMN())),"") ->  | AP20: =IFERROR(HYPERLINK(MapEvent_MouseOver(ROW(),COLUMN())),"") ->  | AQ20: =IFERROR(HYPERLINK(MapEvent_MouseOver(ROW(),COLUMN())),"") ->  | AR20: =IFERROR(HYPERLINK(MapEvent_MouseOver(ROW(),COLUMN())),"") ->  | AS20: =IFERROR(HYPERLINK(MapEvent_MouseOver(ROW(),COLUMN())),"") ->  | AT20: =IFERROR(HYPERLINK(MapEvent_MouseOver(ROW(),COLUMN())),"") ->  | AU20: =IFERROR(HYPERLINK(MapEvent_MouseOver(ROW(),COLUMN())),"") ->  | AV20: =IFERROR(HYPERLINK(MapEvent_MouseOver(ROW(),COLUMN())),"") ->  | AW20: =IFERROR(HYPERLINK(MapEvent_MouseOver(ROW(),COLUMN())),"") ->  | AX20: =IFERROR(HYPERLINK(MapEvent_MouseOver(ROW(),COLUMN())),"") ->  | AY20: =IFERROR(HYPERLINK(MapEvent_MouseOver(ROW(),COLUMN())),"") ->  | AZ20: =IFERROR(HYPERLINK(MapEvent_MouseOver(ROW(),COLUMN())),"") ->  | BA20: =IFERROR(HYPERLINK(MapEvent_MouseOver(ROW(),COLUMN())),"") ->  | BB20: =IFERROR(HYPERLINK(MapEvent_MouseOver(ROW(),COLUMN())),"") ->  | BC20: =IFERROR(HYPERLINK(MapEvent_MouseOver(ROW(),COLUMN())),"") ->  | BD20: =IFERROR(HYPERLINK(MapEvent_MouseOver(ROW(),COLUMN())),"") ->  | BE20: =IFERROR(HYPERLINK(MapEvent_MouseOver(ROW(),COLUMN())),"") ->  | BF20: =IFERROR(HYPERLINK(MapEvent_MouseOver(ROW(),COLUMN())),"") ->  | BG20: =IFERROR(HYPERLINK(MapEvent_MouseOver(ROW(),COLUMN())),"") ->  | BH20: =IFERROR(HYPERLINK(MapEvent_MouseOver(ROW(),COLUMN())),"") ->  | BI20: =IFERROR(HYPERLINK(MapEvent_MouseOver(ROW(),COLUMN())),"") ->  | BJ20: =IFERROR(HYPERLINK(MapEvent_MouseOver(ROW(),COLUMN())),"") ->  | BK20: =IFERROR(HYPERLINK(MapEvent_MouseOver(ROW(),COLUMN())),"") ->  | BL20: =IFERROR(HYPERLINK(MapEvent_MouseOver(ROW(),COLUMN())),"") ->  | BM20: =IFERROR(HYPERLINK(MapEvent_MouseOver(ROW(),COLUMN())),"") ->  | BN20: =IFERROR(HYPERLINK(MapEvent_MouseOver(ROW(),COLUMN())),"") ->  | BO20: =IFERROR(HYPERLINK(MapEvent_MouseOver(ROW(),COLUMN())),"") ->  | BP20: =IFERROR(HYPERLINK(MapEvent_MouseOver(ROW(),COLUMN())),"") ->  | BQ20: =IFERROR(HYPERLINK(MapEvent_MouseOver(ROW(),COLUMN())),"") ->  | BR20: =IFERROR(HYPERLINK(MapEvent_MouseOver(ROW(),COLUMN())),"") ->  | BS20: =IFERROR(HYPERLINK(MapEvent_MouseOver(ROW(),COLUMN())),"") ->  | BT20: =IFERROR(HYPERLINK(MapEvent_MouseOver(ROW(),COLUMN())),"") ->  | BU20: =IFERROR(HYPERLINK(MapEvent_MouseOver(ROW(),COLUMN())),"") ->  | BV20: =IFERROR(HYPERLINK(MapEvent_MouseOver(ROW(),COLUMN())),"") ->  | BW20: =IFERROR(HYPERLINK(MapEvent_MouseOver(ROW(),COLUMN())),"") ->  | BX20: =IFERROR(HYPERLINK(MapEvent_MouseOver(ROW(),COLUMN())),"") ->  | BY20: =IFERROR(HYPERLINK(MapEvent_MouseOver(ROW(),COLUMN())),"") ->  | BZ20: =IFERROR(HYPERLINK(MapEvent_MouseOver(ROW(),COLUMN())),"") ->  | CA20: =IFERROR(HYPERLINK(MapEvent_MouseOver(ROW(),COLUMN())),"") ->  | CB20: =IFERROR(HYPERLINK(MapEvent_MouseOver(ROW(),COLUMN())),"") ->  | CC20: =IFERROR(HYPERLINK(MapEvent_MouseOver(ROW(),COLUMN())),"") ->  | CD20: =IFERROR(HYPERLINK(MapEvent_MouseOver(ROW(),COLUMN())),"") ->  | CE20: =IFERROR(HYPERLINK(MapEvent_MouseOver(ROW(),COLUMN())),"") ->  | CF20: =IFERROR(HYPERLINK(MapEvent_MouseOver(ROW(),COLUMN())),"") ->  | CG20: =IFERROR(HYPERLINK(MapEvent_MouseOver(ROW(),COLUMN())),"") ->  | CH20: =IFERROR(HYPERLINK(MapEvent_MouseOver(ROW(),COLUMN())),"") ->  | CI20: =IFERROR(HYPERLINK(MapEvent_MouseOver(ROW(),COLUMN())),"") ->  | CJ20: =IFERROR(HYPERLINK(MapEvent_MouseOver(ROW(),COLUMN())),"") ->  | CK20: =IFERROR(HYPERLINK(MapEvent_MouseOver(ROW(),COLUMN())),"") ->  | CL20: =IFERROR(HYPERLINK(MapEvent_MouseOver(ROW(),COLUMN())),"") -> 
V21: =IFERROR(HYPERLINK(MapEvent_MouseOver(ROW(),COLUMN())),"") ->  | W21: =IFERROR(HYPERLINK(MapEvent_MouseOver(ROW(),COLUMN())),"") ->  | X21: =IFERROR(HYPERLINK(MapEvent_MouseOver(ROW(),COLUMN())),"") ->  | Y21: =IFERROR(HYPERLINK(MapEvent_MouseOver(ROW(),COLUMN())),"") ->  | Z21: =IFERROR(HYPERLINK(MapEvent_MouseOver(ROW(),COLUMN())),"") ->  | AA21: =IFERROR(HYPERLINK(MapEvent_MouseOver(ROW(),COLUMN())),"") ->  | AB21: =IFERROR(HYPERLINK(MapEvent_MouseOver(ROW(),COLUMN())),"") ->  | AC21: =IFERROR(HYPERLINK(MapEvent_MouseOver(ROW(),COLUMN())),"") ->  | AD21: =IFERROR(HYPERLINK(MapEvent_MouseOver(ROW(),COLUMN())),"") ->  | AE21: =IFERROR(HYPERLINK(MapEvent_MouseOver(ROW(),COLUMN())),"") ->  | AF21: =IFERROR(HYPERLINK(MapEvent_MouseOver(ROW(),COLUMN())),"") ->  | AG21: =IFERROR(HYPERLINK(MapEvent_MouseOver(ROW(),COLUMN())),"") ->  | AH21: =IFERROR(HYPERLINK(MapEvent_MouseOver(ROW(),COLUMN())),"") ->  | AI21: =IFERROR(HYPERLINK(MapEvent_MouseOver(ROW(),COLUMN())),"") ->  | AJ21: =IFERROR(HYPERLINK(MapEvent_MouseOver(ROW(),COLUMN())),"") ->  | AK21: =IFERROR(HYPERLINK(MapEvent_MouseOver(ROW(),COLUMN())),"") ->  | AL21: =IFERROR(HYPERLINK(MapEvent_MouseOver(ROW(),COLUMN())),"") ->  | AM21: =IFERROR(HYPERLINK(MapEvent_MouseOver(ROW(),COLUMN())),"") ->  | AN21: =IFERROR(HYPERLINK(MapEvent_MouseOver(ROW(),COLUMN())),"") ->  | AO21: =IFERROR(HYPERLINK(MapEvent_MouseOver(ROW(),COLUMN())),"") ->  | AP21: =IFERROR(HYPERLINK(MapEvent_MouseOver(ROW(),COLUMN())),"") ->  | AQ21: =IFERROR(HYPERLINK(MapEvent_MouseOver(ROW(),COLUMN())),"") ->  | AR21: =IFERROR(HYPERLINK(MapEvent_MouseOver(ROW(),COLUMN())),"") ->  | AS21: =IFERROR(HYPERLINK(MapEvent_MouseOver(ROW(),COLUMN())),"") ->  | AT21: =IFERROR(HYPERLINK(MapEvent_MouseOver(ROW(),COLUMN())),"") ->  | AU21: =IFERROR(HYPERLINK(MapEvent_MouseOver(ROW(),COLUMN())),"") ->  | AV21: =IFERROR(HYPERLINK(MapEvent_MouseOver(ROW(),COLUMN())),"") ->  | AW21: =IFERROR(HYPERLINK(MapEvent_MouseOver(ROW(),COLUMN())),"") ->  | AX21: =IFERROR(HYPERLINK(MapEvent_MouseOver(ROW(),COLUMN())),"") ->  | AY21: =IFERROR(HYPERLINK(MapEvent_MouseOver(ROW(),COLUMN())),"") ->  | AZ21: =IFERROR(HYPERLINK(MapEvent_MouseOver(ROW(),COLUMN())),"") ->  | BA21: =IFERROR(HYPERLINK(MapEvent_MouseOver(ROW(),COLUMN())),"") ->  | BB21: =IFERROR(HYPERLINK(MapEvent_MouseOver(ROW(),COLUMN())),"") ->  | BC21: =IFERROR(HYPERLINK(MapEvent_MouseOver(ROW(),COLUMN())),"") ->  | BD21: =IFERROR(HYPERLINK(MapEvent_MouseOver(ROW(),COLUMN())),"") ->  | BE21: =IFERROR(HYPERLINK(MapEvent_MouseOver(ROW(),COLUMN())),"") ->  | BF21: =IFERROR(HYPERLINK(MapEvent_MouseOver(ROW(),COLUMN())),"") ->  | BG21: =IFERROR(HYPERLINK(MapEvent_MouseOver(ROW(),COLUMN())),"") ->  | BH21: =IFERROR(HYPERLINK(MapEvent_MouseOver(ROW(),COLUMN())),"") ->  | BI21: =IFERROR(HYPERLINK(MapEvent_MouseOver(ROW(),COLUMN())),"") ->  | BJ21: =IFERROR(HYPERLINK(MapEvent_MouseOver(ROW(),COLUMN())),"") ->  | BK21: =IFERROR(HYPERLINK(MapEvent_MouseOver(ROW(),COLUMN())),"") ->  | BL21: =IFERROR(HYPERLINK(MapEvent_MouseOver(ROW(),COLUMN())),"") ->  | BM21: =IFERROR(HYPERLINK(MapEvent_MouseOver(ROW(),COLUMN())),"") ->  | BN21: =IFERROR(HYPERLINK(MapEvent_MouseOver(ROW(),COLUMN())),"") ->  | BO21: =IFERROR(HYPERLINK(MapEvent_MouseOver(ROW(),COLUMN())),"") ->  | BP21: =IFERROR(HYPERLINK(MapEvent_MouseOver(ROW(),COLUMN())),"") ->  | BQ21: =IFERROR(HYPERLINK(MapEvent_MouseOver(ROW(),COLUMN())),"") ->  | BR21: =IFERROR(HYPERLINK(MapEvent_MouseOver(ROW(),COLUMN())),"") ->  | BS21: =IFERROR(HYPERLINK(MapEvent_MouseOver(ROW(),COLUMN())),"") ->  | BT21: =IFERROR(HYPERLINK(MapEvent_MouseOver(ROW(),COLUMN())),"") ->  | BU21: =IFERROR(HYPERLINK(MapEvent_MouseOver(ROW(),COLUMN())),"") ->  | BV21: =IFERROR(HYPERLINK(MapEvent_MouseOver(ROW(),COLUMN())),"") ->  | BW21: =IFERROR(HYPERLINK(MapEvent_MouseOver(ROW(),COLUMN())),"") ->  | BX21: =IFERROR(HYPERLINK(MapEvent_MouseOver(ROW(),COLUMN())),"") ->  | BY21: =IFERROR(HYPERLINK(MapEvent_MouseOver(ROW(),COLUMN())),"") ->  | BZ21: =IFERROR(HYPERLINK(MapEvent_MouseOver(ROW(),COLUMN())),"") ->  | CA21: =IFERROR(HYPERLINK(MapEvent_MouseOver(ROW(),COLUMN())),"") ->  | CB21: =IFERROR(HYPERLINK(MapEvent_MouseOver(ROW(),COLUMN())),"") ->  | CC21: =IFERROR(HYPERLINK(MapEvent_MouseOver(ROW(),COLUMN())),"") ->  | CD21: =IFERROR(HYPERLINK(MapEvent_MouseOver(ROW(),COLUMN())),"") ->  | CE21: =IFERROR(HYPERLINK(MapEvent_MouseOver(ROW(),COLUMN())),"") ->  | CF21: =IFERROR(HYPERLINK(MapEvent_MouseOver(ROW(),COLUMN())),"") ->  | CG21: =IFERROR(HYPERLINK(MapEvent_MouseOver(ROW(),COLUMN())),"") ->  | CH21: =IFERROR(HYPERLINK(MapEvent_MouseOver(ROW(),COLUMN())),"") ->  | CI21: =IFERROR(HYPERLINK(MapEvent_MouseOver(ROW(),COLUMN())),"") ->  | CJ21: =IFERROR(HYPERLINK(MapEvent_MouseOver(ROW(),COLUMN())),"") ->  | CK21: =IFERROR(HYPERLINK(MapEvent_MouseOver(ROW(),COLUMN())),"") ->  | CL21: =IFERROR(HYPERLINK(MapEvent_MouseOver(ROW(),COLUMN())),"") -> 
V22: =IFERROR(HYPERLINK(MapEvent_MouseOver(ROW(),COLUMN())),"") ->  | W22: =IFERROR(HYPERLINK(MapEvent_MouseOver(ROW(),COLUMN())),"") ->  | X22: =IFERROR(HYPERLINK(MapEvent_MouseOver(ROW(),COLUMN())),"") ->  | Y22: =IFERROR(HYPERLINK(MapEvent_MouseOver(ROW(),COLUMN())),"") ->  | Z22: =IFERROR(HYPERLINK(MapEvent_MouseOver(ROW(),COLUMN())),"") ->  | AA22: =IFERROR(HYPERLINK(MapEvent_MouseOver(ROW(),COLUMN())),"") ->  | AB22: =IFERROR(HYPERLINK(MapEvent_MouseOver(ROW(),COLUMN())),"") ->  | AC22: =IFERROR(HYPERLINK(MapEvent_MouseOver(ROW(),COLUMN())),"") ->  | AD22: =IFERROR(HYPERLINK(MapEvent_MouseOver(ROW(),COLUMN())),"") ->  | AE22: =IFERROR(HYPERLINK(MapEvent_MouseOver(ROW(),COLUMN())),"") ->  | AF22: =IFERROR(HYPERLINK(MapEvent_MouseOver(ROW(),COLUMN())),"") ->  | AG22: =IFERROR(HYPERLINK(MapEvent_MouseOver(ROW(),COLUMN())),"") ->  | AH22: =IFERROR(HYPERLINK(MapEvent_MouseOver(ROW(),COLUMN())),"") ->  | AI22: =IFERROR(HYPERLINK(MapEvent_MouseOver(ROW(),COLUMN())),"") ->  | AJ22: =IFERROR(HYPERLINK(MapEvent_MouseOver(ROW(),COLUMN())),"") ->  | AK22: =IFERROR(HYPERLINK(MapEvent_MouseOver(ROW(),COLUMN())),"") ->  | AL22: =IFERROR(HYPERLINK(MapEvent_MouseOver(ROW(),COLUMN())),"") ->  | AM22: =IFERROR(HYPERLINK(MapEvent_MouseOver(ROW(),COLUMN())),"") ->  | AN22: =IFERROR(HYPERLINK(MapEvent_MouseOver(ROW(),COLUMN())),"") ->  | AO22: =IFERROR(HYPERLINK(MapEvent_MouseOver(ROW(),COLUMN())),"") ->  | AP22: =IFERROR(HYPERLINK(MapEvent_MouseOver(ROW(),COLUMN())),"") ->  | AQ22: =IFERROR(HYPERLINK(MapEvent_MouseOver(ROW(),COLUMN())),"") ->  | AR22: =IFERROR(HYPERLINK(MapEvent_MouseOver(ROW(),COLUMN())),"") ->  | AS22: =IFERROR(HYPERLINK(MapEvent_MouseOver(ROW(),COLUMN())),"") ->  | AT22: =IFERROR(HYPERLINK(MapEvent_MouseOver(ROW(),COLUMN())),"") ->  | AU22: =IFERROR(HYPERLINK(MapEvent_MouseOver(ROW(),COLUMN())),"") ->  | AV22: =IFERROR(HYPERLINK(MapEvent_MouseOver(ROW(),COLUMN())),"") ->  | AW22: =IFERROR(HYPERLINK(MapEvent_MouseOver(ROW(),COLUMN())),"") ->  | AX22: =IFERROR(HYPERLINK(MapEvent_MouseOver(ROW(),COLUMN())),"") ->  | AY22: =IFERROR(HYPERLINK(MapEvent_MouseOver(ROW(),COLUMN())),"") ->  | AZ22: =IFERROR(HYPERLINK(MapEvent_MouseOver(ROW(),COLUMN())),"") ->  | BA22: =IFERROR(HYPERLINK(MapEvent_MouseOver(ROW(),COLUMN())),"") ->  | BB22: =IFERROR(HYPERLINK(MapEvent_MouseOver(ROW(),COLUMN())),"") ->  | BC22: =IFERROR(HYPERLINK(MapEvent_MouseOver(ROW(),COLUMN())),"") ->  | BD22: =IFERROR(HYPERLINK(MapEvent_MouseOver(ROW(),COLUMN())),"") ->  | BE22: =IFERROR(HYPERLINK(MapEvent_MouseOver(ROW(),COLUMN())),"") ->  | BF22: =IFERROR(HYPERLINK(MapEvent_MouseOver(ROW(),COLUMN())),"") ->  | BG22: =IFERROR(HYPERLINK(MapEvent_MouseOver(ROW(),COLUMN())),"") ->  | BH22: =IFERROR(HYPERLINK(MapEvent_MouseOver(ROW(),COLUMN())),"") ->  | BI22: =IFERROR(HYPERLINK(MapEvent_MouseOver(ROW(),COLUMN())),"") ->  | BJ22: =IFERROR(HYPERLINK(MapEvent_MouseOver(ROW(),COLUMN())),"") ->  | BK22: =IFERROR(HYPERLINK(MapEvent_MouseOver(ROW(),COLUMN())),"") ->  | BL22: =IFERROR(HYPERLINK(MapEvent_MouseOver(ROW(),COLUMN())),"") ->  | BM22: =IFERROR(HYPERLINK(MapEvent_MouseOver(ROW(),COLUMN())),"") ->  | BN22: =IFERROR(HYPERLINK(MapEvent_MouseOver(ROW(),COLUMN())),"") ->  | BO22: =IFERROR(HYPERLINK(MapEvent_MouseOver(ROW(),COLUMN())),"") ->  | BP22: =IFERROR(HYPERLINK(MapEvent_MouseOver(ROW(),COLUMN())),"") ->  | BQ22: =IFERROR(HYPERLINK(MapEvent_MouseOver(ROW(),COLUMN())),"") ->  | BR22: =IFERROR(HYPERLINK(MapEvent_MouseOver(ROW(),COLUMN())),"") ->  | BS22: =IFERROR(HYPERLINK(MapEvent_MouseOver(ROW(),COLUMN())),"") ->  | BT22: =IFERROR(HYPERLINK(MapEvent_MouseOver(ROW(),COLUMN())),"") ->  | BU22: =IFERROR(HYPERLINK(MapEvent_MouseOver(ROW(),COLUMN())),"") ->  | BV22: =IFERROR(HYPERLINK(MapEvent_MouseOver(ROW(),COLUMN())),"") ->  | BW22: =IFERROR(HYPERLINK(MapEvent_MouseOver(ROW(),COLUMN())),"") ->  | BX22: =IFERROR(HYPERLINK(MapEvent_MouseOver(ROW(),COLUMN())),"") ->  | BY22: =IFERROR(HYPERLINK(MapEvent_MouseOver(ROW(),COLUMN())),"") ->  | BZ22: =IFERROR(HYPERLINK(MapEvent_MouseOver(ROW(),COLUMN())),"") ->  | CA22: =IFERROR(HYPERLINK(MapEvent_MouseOver(ROW(),COLUMN())),"") ->  | CB22: =IFERROR(HYPERLINK(MapEvent_MouseOver(ROW(),COLUMN())),"") ->  | CC22: =IFERROR(HYPERLINK(MapEvent_MouseOver(ROW(),COLUMN())),"") ->  | CD22: =IFERROR(HYPERLINK(MapEvent_MouseOver(ROW(),COLUMN())),"") ->  | CE22: =IFERROR(HYPERLINK(MapEvent_MouseOver(ROW(),COLUMN())),"") ->  | CF22: =IFERROR(HYPERLINK(MapEvent_MouseOver(ROW(),COLUMN())),"") ->  | CG22: =IFERROR(HYPERLINK(MapEvent_MouseOver(ROW(),COLUMN())),"") ->  | CH22: =IFERROR(HYPERLINK(MapEvent_MouseOver(ROW(),COLUMN())),"") ->  | CI22: =IFERROR(HYPERLINK(MapEvent_MouseOver(ROW(),COLUMN())),"") ->  | CJ22: =IFERROR(HYPERLINK(MapEvent_MouseOver(ROW(),COLUMN())),"") ->  | CK22: =IFERROR(HYPERLINK(MapEvent_MouseOver(ROW(),COLUMN())),"") ->  | CL22: =IFERROR(HYPERLINK(MapEvent_MouseOver(ROW(),COLUMN())),"") -> 
V23: =IFERROR(HYPERLINK(MapEvent_MouseOver(ROW(),COLUMN())),"") ->  | W23: =IFERROR(HYPERLINK(MapEvent_MouseOver(ROW(),COLUMN())),"") ->  | X23: =IFERROR(HYPERLINK(MapEvent_MouseOver(ROW(),COLUMN())),"") ->  | Y23: =IFERROR(HYPERLINK(MapEvent_MouseOver(ROW(),COLUMN())),"") ->  | Z23: =IFERROR(HYPERLINK(MapEvent_MouseOver(ROW(),COLUMN())),"") ->  | AA23: =IFERROR(HYPERLINK(MapEvent_MouseOver(ROW(),COLUMN())),"") ->  | AB23: =IFERROR(HYPERLINK(MapEvent_MouseOver(ROW(),COLUMN())),"") ->  | AC23: =IFERROR(HYPERLINK(MapEvent_MouseOver(ROW(),COLUMN())),"") ->  | AD23: =IFERROR(HYPERLINK(MapEvent_MouseOver(ROW(),COLUMN())),"") ->  | AE23: =IFERROR(HYPERLINK(MapEvent_MouseOver(ROW(),COLUMN())),"") ->  | AF23: =IFERROR(HYPERLINK(MapEvent_MouseOver(ROW(),COLUMN())),"") ->  | AG23: =IFERROR(HYPERLINK(MapEvent_MouseOver(ROW(),COLUMN())),"") ->  | AH23: =IFERROR(HYPERLINK(MapEvent_MouseOver(ROW(),COLUMN())),"") ->  | AI23: =IFERROR(HYPERLINK(MapEvent_MouseOver(ROW(),COLUMN())),"") ->  | AJ23: =IFERROR(HYPERLINK(MapEvent_MouseOver(ROW(),COLUMN())),"") ->  | AK23: =IFERROR(HYPERLINK(MapEvent_MouseOver(ROW(),COLUMN())),"") ->  | AL23: =IFERROR(HYPERLINK(MapEvent_MouseOver(ROW(),COLUMN())),"") ->  | AM23: =IFERROR(HYPERLINK(MapEvent_MouseOver(ROW(),COLUMN())),"") ->  | AN23: =IFERROR(HYPERLINK(MapEvent_MouseOver(ROW(),COLUMN())),"") ->  | AO23: =IFERROR(HYPERLINK(MapEvent_MouseOver(ROW(),COLUMN())),"") ->  | AP23: =IFERROR(HYPERLINK(MapEvent_MouseOver(ROW(),COLUMN())),"") ->  | AQ23: =IFERROR(HYPERLINK(MapEvent_MouseOver(ROW(),COLUMN())),"") ->  | AR23: =IFERROR(HYPERLINK(MapEvent_MouseOver(ROW(),COLUMN())),"") ->  | AS23: =IFERROR(HYPERLINK(MapEvent_MouseOver(ROW(),COLUMN())),"") ->  | AT23: =IFERROR(HYPERLINK(MapEvent_MouseOver(ROW(),COLUMN())),"") ->  | AU23: =IFERROR(HYPERLINK(MapEvent_MouseOver(ROW(),COLUMN())),"") ->  | AV23: =IFERROR(HYPERLINK(MapEvent_MouseOver(ROW(),COLUMN())),"") ->  | AW23: =IFERROR(HYPERLINK(MapEvent_MouseOver(ROW(),COLUMN())),"") ->  | AX23: =IFERROR(HYPERLINK(MapEvent_MouseOver(ROW(),COLUMN())),"") ->  | AY23: =IFERROR(HYPERLINK(MapEvent_MouseOver(ROW(),COLUMN())),"") ->  | AZ23: =IFERROR(HYPERLINK(MapEvent_MouseOver(ROW(),COLUMN())),"") ->  | BA23: =IFERROR(HYPERLINK(MapEvent_MouseOver(ROW(),COLUMN())),"") ->  | BB23: =IFERROR(HYPERLINK(MapEvent_MouseOver(ROW(),COLUMN())),"") ->  | BC23: =IFERROR(HYPERLINK(MapEvent_MouseOver(ROW(),COLUMN())),"") ->  | BD23: =IFERROR(HYPERLINK(MapEvent_MouseOver(ROW(),COLUMN())),"") ->  | BE23: =IFERROR(HYPERLINK(MapEvent_MouseOver(ROW(),COLUMN())),"") ->  | BF23: =IFERROR(HYPERLINK(MapEvent_MouseOver(ROW(),COLUMN())),"") ->  | BG23: =IFERROR(HYPERLINK(MapEvent_MouseOver(ROW(),COLUMN())),"") ->  | BH23: =IFERROR(HYPERLINK(MapEvent_MouseOver(ROW(),COLUMN())),"") ->  | BI23: =IFERROR(HYPERLINK(MapEvent_MouseOver(ROW(),COLUMN())),"") ->  | BJ23: =IFERROR(HYPERLINK(MapEvent_MouseOver(ROW(),COLUMN())),"") ->  | BK23: =IFERROR(HYPERLINK(MapEvent_MouseOver(ROW(),COLUMN())),"") ->  | BL23: =IFERROR(HYPERLINK(MapEvent_MouseOver(ROW(),COLUMN())),"") ->  | BM23: =IFERROR(HYPERLINK(MapEvent_MouseOver(ROW(),COLUMN())),"") ->  | BN23: =IFERROR(HYPERLINK(MapEvent_MouseOver(ROW(),COLUMN())),"") ->  | BO23: =IFERROR(HYPERLINK(MapEvent_MouseOver(ROW(),COLUMN())),"") ->  | BP23: =IFERROR(HYPERLINK(MapEvent_MouseOver(ROW(),COLUMN())),"") ->  | BQ23: =IFERROR(HYPERLINK(MapEvent_MouseOver(ROW(),COLUMN())),"") ->  | BR23: =IFERROR(HYPERLINK(MapEvent_MouseOver(ROW(),COLUMN())),"") ->  | BS23: =IFERROR(HYPERLINK(MapEvent_MouseOver(ROW(),COLUMN())),"") ->  | BT23: =IFERROR(HYPERLINK(MapEvent_MouseOver(ROW(),COLUMN())),"") ->  | BU23: =IFERROR(HYPERLINK(MapEvent_MouseOver(ROW(),COLUMN())),"") ->  | BV23: =IFERROR(HYPERLINK(MapEvent_MouseOver(ROW(),COLUMN())),"") ->  | BW23: =IFERROR(HYPERLINK(MapEvent_MouseOver(ROW(),COLUMN())),"") ->  | BX23: =IFERROR(HYPERLINK(MapEvent_MouseOver(ROW(),COLUMN())),"") ->  | BY23: =IFERROR(HYPERLINK(MapEvent_MouseOver(ROW(),COLUMN())),"") ->  | BZ23: =IFERROR(HYPERLINK(MapEvent_MouseOver(ROW(),COLUMN())),"") ->  | CA23: =IFERROR(HYPERLINK(MapEvent_MouseOver(ROW(),COLUMN())),"") ->  | CB23: =IFERROR(HYPERLINK(MapEvent_MouseOver(ROW(),COLUMN())),"") ->  | CC23: =IFERROR(HYPERLINK(MapEvent_MouseOver(ROW(),COLUMN())),"") ->  | CD23: =IFERROR(HYPERLINK(MapEvent_MouseOver(ROW(),COLUMN())),"") ->  | CE23: =IFERROR(HYPERLINK(MapEvent_MouseOver(ROW(),COLUMN())),"") ->  | CF23: =IFERROR(HYPERLINK(MapEvent_MouseOver(ROW(),COLUMN())),"") ->  | CG23: =IFERROR(HYPERLINK(MapEvent_MouseOver(ROW(),COLUMN())),"") ->  | CH23: =IFERROR(HYPERLINK(MapEvent_MouseOver(ROW(),COLUMN())),"") ->  | CI23: =IFERROR(HYPERLINK(MapEvent_MouseOver(ROW(),COLUMN())),"") ->  | CJ23: =IFERROR(HYPERLINK(MapEvent_MouseOver(ROW(),COLUMN())),"") ->  | CK23: =IFERROR(HYPERLINK(MapEvent_MouseOver(ROW(),COLUMN())),"") ->  | CL23: =IFERROR(HYPERLINK(MapEvent_MouseOver(ROW(),COLUMN())),"") -> 
V24: =IFERROR(HYPERLINK(MapEvent_MouseOver(ROW(),COLUMN())),"") ->  | W24: =IFERROR(HYPERLINK(MapEvent_MouseOver(ROW(),COLUMN())),"") ->  | X24: =IFERROR(HYPERLINK(MapEvent_MouseOver(ROW(),COLUMN())),"") ->  | Y24: =IFERROR(HYPERLINK(MapEvent_MouseOver(ROW(),COLUMN())),"") ->  | Z24: =IFERROR(HYPERLINK(MapEvent_MouseOver(ROW(),COLUMN())),"") ->  | AA24: =IFERROR(HYPERLINK(MapEvent_MouseOver(ROW(),COLUMN())),"") ->  | AB24: =IFERROR(HYPERLINK(MapEvent_MouseOver(ROW(),COLUMN())),"") ->  | AC24: =IFERROR(HYPERLINK(MapEvent_MouseOver(ROW(),COLUMN())),"") ->  | AD24: =IFERROR(HYPERLINK(MapEvent_MouseOver(ROW(),COLUMN())),"") ->  | AE24: =IFERROR(HYPERLINK(MapEvent_MouseOver(ROW(),COLUMN())),"") ->  | AF24: =IFERROR(HYPERLINK(MapEvent_MouseOver(ROW(),COLUMN())),"") ->  | AG24: =IFERROR(HYPERLINK(MapEvent_MouseOver(ROW(),COLUMN())),"") ->  | AH24: =IFERROR(HYPERLINK(MapEvent_MouseOver(ROW(),COLUMN())),"") ->  | AI24: =IFERROR(HYPERLINK(MapEvent_MouseOver(ROW(),COLUMN())),"") ->  | AJ24: =IFERROR(HYPERLINK(MapEvent_MouseOver(ROW(),COLUMN())),"") ->  | AK24: =IFERROR(HYPERLINK(MapEvent_MouseOver(ROW(),COLUMN())),"") ->  | AL24: =IFERROR(HYPERLINK(MapEvent_MouseOver(ROW(),COLUMN())),"") ->  | AM24: =IFERROR(HYPERLINK(MapEvent_MouseOver(ROW(),COLUMN())),"") ->  | AN24: =IFERROR(HYPERLINK(MapEvent_MouseOver(ROW(),COLUMN())),"") ->  | AO24: =IFERROR(HYPERLINK(MapEvent_MouseOver(ROW(),COLUMN())),"") ->  | AP24: =IFERROR(HYPERLINK(MapEvent_MouseOver(ROW(),COLUMN())),"") ->  | AQ24: =IFERROR(HYPERLINK(MapEvent_MouseOver(ROW(),COLUMN())),"") ->  | AR24: =IFERROR(HYPERLINK(MapEvent_MouseOver(ROW(),COLUMN())),"") ->  | AS24: =IFERROR(HYPERLINK(MapEvent_MouseOver(ROW(),COLUMN())),"") ->  | AT24: =IFERROR(HYPERLINK(MapEvent_MouseOver(ROW(),COLUMN())),"") ->  | AU24: =IFERROR(HYPERLINK(MapEvent_MouseOver(ROW(),COLUMN())),"") ->  | AV24: =IFERROR(HYPERLINK(MapEvent_MouseOver(ROW(),COLUMN())),"") ->  | AW24: =IFERROR(HYPERLINK(MapEvent_MouseOver(ROW(),COLUMN())),"") ->  | AX24: =IFERROR(HYPERLINK(MapEvent_MouseOver(ROW(),COLUMN())),"") ->  | AY24: =IFERROR(HYPERLINK(MapEvent_MouseOver(ROW(),COLUMN())),"") ->  | AZ24: =IFERROR(HYPERLINK(MapEvent_MouseOver(ROW(),COLUMN())),"") ->  | BA24: =IFERROR(HYPERLINK(MapEvent_MouseOver(ROW(),COLUMN())),"") ->  | BB24: =IFERROR(HYPERLINK(MapEvent_MouseOver(ROW(),COLUMN())),"") ->  | BC24: =IFERROR(HYPERLINK(MapEvent_MouseOver(ROW(),COLUMN())),"") ->  | BD24: =IFERROR(HYPERLINK(MapEvent_MouseOver(ROW(),COLUMN())),"") ->  | BE24: =IFERROR(HYPERLINK(MapEvent_MouseOver(ROW(),COLUMN())),"") ->  | BF24: =IFERROR(HYPERLINK(MapEvent_MouseOver(ROW(),COLUMN())),"") ->  | BG24: =IFERROR(HYPERLINK(MapEvent_MouseOver(ROW(),COLUMN())),"") ->  | BH24: =IFERROR(HYPERLINK(MapEvent_MouseOver(ROW(),COLUMN())),"") ->  | BI24: =IFERROR(HYPERLINK(MapEvent_MouseOver(ROW(),COLUMN())),"") ->  | BJ24: =IFERROR(HYPERLINK(MapEvent_MouseOver(ROW(),COLUMN())),"") ->  | BK24: =IFERROR(HYPERLINK(MapEvent_MouseOver(ROW(),COLUMN())),"") ->  | BL24: =IFERROR(HYPERLINK(MapEvent_MouseOver(ROW(),COLUMN())),"") ->  | BM24: =IFERROR(HYPERLINK(MapEvent_MouseOver(ROW(),COLUMN())),"") ->  | BN24: =IFERROR(HYPERLINK(MapEvent_MouseOver(ROW(),COLUMN())),"") ->  | BO24: =IFERROR(HYPERLINK(MapEvent_MouseOver(ROW(),COLUMN())),"") ->  | BP24: =IFERROR(HYPERLINK(MapEvent_MouseOver(ROW(),COLUMN())),"") ->  | BQ24: =IFERROR(HYPERLINK(MapEvent_MouseOver(ROW(),COLUMN())),"") ->  | BR24: =IFERROR(HYPERLINK(MapEvent_MouseOver(ROW(),COLUMN())),"") ->  | BS24: =IFERROR(HYPERLINK(MapEvent_MouseOver(ROW(),COLUMN())),"") ->  | BT24: =IFERROR(HYPERLINK(MapEvent_MouseOver(ROW(),COLUMN())),"") ->  | BU24: =IFERROR(HYPERLINK(MapEvent_MouseOver(ROW(),COLUMN())),"") ->  | BV24: =IFERROR(HYPERLINK(MapEvent_MouseOver(ROW(),COLUMN())),"") ->  | BW24: =IFERROR(HYPERLINK(MapEvent_MouseOver(ROW(),COLUMN())),"") ->  | BX24: =IFERROR(HYPERLINK(MapEvent_MouseOver(ROW(),COLUMN())),"") ->  | BY24: =IFERROR(HYPERLINK(MapEvent_MouseOver(ROW(),COLUMN())),"") ->  | BZ24: =IFERROR(HYPERLINK(MapEvent_MouseOver(ROW(),COLUMN())),"") ->  | CA24: =IFERROR(HYPERLINK(MapEvent_MouseOver(ROW(),COLUMN())),"") ->  | CB24: =IFERROR(HYPERLINK(MapEvent_MouseOver(ROW(),COLUMN())),"") ->  | CC24: =IFERROR(HYPERLINK(MapEvent_MouseOver(ROW(),COLUMN())),"") ->  | CD24: =IFERROR(HYPERLINK(MapEvent_MouseOver(ROW(),COLUMN())),"") ->  | CE24: =IFERROR(HYPERLINK(MapEvent_MouseOver(ROW(),COLUMN())),"") ->  | CF24: =IFERROR(HYPERLINK(MapEvent_MouseOver(ROW(),COLUMN())),"") ->  | CG24: =IFERROR(HYPERLINK(MapEvent_MouseOver(ROW(),COLUMN())),"") ->  | CH24: =IFERROR(HYPERLINK(MapEvent_MouseOver(ROW(),COLUMN())),"") ->  | CI24: =IFERROR(HYPERLINK(MapEvent_MouseOver(ROW(),COLUMN())),"") ->  | CJ24: =IFERROR(HYPERLINK(MapEvent_MouseOver(ROW(),COLUMN())),"") ->  | CK24: =IFERROR(HYPERLINK(MapEvent_MouseOver(ROW(),COLUMN())),"") ->  | CL24: =IFERROR(HYPERLINK(MapEvent_MouseOver(ROW(),COLUMN())),"") -> 
V25: =IFERROR(HYPERLINK(MapEvent_MouseOver(ROW(),COLUMN())),"") ->  | W25: =IFERROR(HYPERLINK(MapEvent_MouseOver(ROW(),COLUMN())),"") ->  | X25: =IFERROR(HYPERLINK(MapEvent_MouseOver(ROW(),COLUMN())),"") ->  | Y25: =IFERROR(HYPERLINK(MapEvent_MouseOver(ROW(),COLUMN())),"") ->  | Z25: =IFERROR(HYPERLINK(MapEvent_MouseOver(ROW(),COLUMN())),"") ->  | AA25: =IFERROR(HYPERLINK(MapEvent_MouseOver(ROW(),COLUMN())),"") ->  | AB25: =IFERROR(HYPERLINK(MapEvent_MouseOver(ROW(),COLUMN())),"") ->  | AC25: =IFERROR(HYPERLINK(MapEvent_MouseOver(ROW(),COLUMN())),"") ->  | AD25: =IFERROR(HYPERLINK(MapEvent_MouseOver(ROW(),COLUMN())),"") ->  | AE25: =IFERROR(HYPERLINK(MapEvent_MouseOver(ROW(),COLUMN())),"") ->  | AF25: =IFERROR(HYPERLINK(MapEvent_MouseOver(ROW(),COLUMN())),"") ->  | AG25: =IFERROR(HYPERLINK(MapEvent_MouseOver(ROW(),COLUMN())),"") ->  | AH25: =IFERROR(HYPERLINK(MapEvent_MouseOver(ROW(),COLUMN())),"") ->  | AI25: =IFERROR(HYPERLINK(MapEvent_MouseOver(ROW(),COLUMN())),"") ->  | AJ25: =IFERROR(HYPERLINK(MapEvent_MouseOver(ROW(),COLUMN())),"") ->  | AK25: =IFERROR(HYPERLINK(MapEvent_MouseOver(ROW(),COLUMN())),"") ->  | AL25: =IFERROR(HYPERLINK(MapEvent_MouseOver(ROW(),COLUMN())),"") ->  | AM25: =IFERROR(HYPERLINK(MapEvent_MouseOver(ROW(),COLUMN())),"") ->  | AN25: =IFERROR(HYPERLINK(MapEvent_MouseOver(ROW(),COLUMN())),"") ->  | AO25: =IFERROR(HYPERLINK(MapEvent_MouseOver(ROW(),COLUMN())),"") ->  | AP25: =IFERROR(HYPERLINK(MapEvent_MouseOver(ROW(),COLUMN())),"") ->  | AQ25: =IFERROR(HYPERLINK(MapEvent_MouseOver(ROW(),COLUMN())),"") ->  | AR25: =IFERROR(HYPERLINK(MapEvent_MouseOver(ROW(),COLUMN())),"") ->  | AS25: =IFERROR(HYPERLINK(MapEvent_MouseOver(ROW(),COLUMN())),"") ->  | AT25: =IFERROR(HYPERLINK(MapEvent_MouseOver(ROW(),COLUMN())),"") ->  | AU25: =IFERROR(HYPERLINK(MapEvent_MouseOver(ROW(),COLUMN())),"") ->  | AV25: =IFERROR(HYPERLINK(MapEvent_MouseOver(ROW(),COLUMN())),"") ->  | AW25: =IFERROR(HYPERLINK(MapEvent_MouseOver(ROW(),COLUMN())),"") ->  | AX25: =IFERROR(HYPERLINK(MapEvent_MouseOver(ROW(),COLUMN())),"") ->  | AY25: =IFERROR(HYPERLINK(MapEvent_MouseOver(ROW(),COLUMN())),"") ->  | AZ25: =IFERROR(HYPERLINK(MapEvent_MouseOver(ROW(),COLUMN())),"") ->  | BA25: =IFERROR(HYPERLINK(MapEvent_MouseOver(ROW(),COLUMN())),"") ->  | BB25: =IFERROR(HYPERLINK(MapEvent_MouseOver(ROW(),COLUMN())),"") ->  | BC25: =IFERROR(HYPERLINK(MapEvent_MouseOver(ROW(),COLUMN())),"") ->  | BD25: =IFERROR(HYPERLINK(MapEvent_MouseOver(ROW(),COLUMN())),"") ->  | BE25: =IFERROR(HYPERLINK(MapEvent_MouseOver(ROW(),COLUMN())),"") ->  | BF25: =IFERROR(HYPERLINK(MapEvent_MouseOver(ROW(),COLUMN())),"") ->  | BG25: =IFERROR(HYPERLINK(MapEvent_MouseOver(ROW(),COLUMN())),"") ->  | BH25: =IFERROR(HYPERLINK(MapEvent_MouseOver(ROW(),COLUMN())),"") ->  | BI25: =IFERROR(HYPERLINK(MapEvent_MouseOver(ROW(),COLUMN())),"") ->  | BJ25: =IFERROR(HYPERLINK(MapEvent_MouseOver(ROW(),COLUMN())),"") ->  | BK25: =IFERROR(HYPERLINK(MapEvent_MouseOver(ROW(),COLUMN())),"") ->  | BL25: =IFERROR(HYPERLINK(MapEvent_MouseOver(ROW(),COLUMN())),"") ->  | BM25: =IFERROR(HYPERLINK(MapEvent_MouseOver(ROW(),COLUMN())),"") ->  | BN25: =IFERROR(HYPERLINK(MapEvent_MouseOver(ROW(),COLUMN())),"") ->  | BO25: =IFERROR(HYPERLINK(MapEvent_MouseOver(ROW(),COLUMN())),"") ->  | BP25: =IFERROR(HYPERLINK(MapEvent_MouseOver(ROW(),COLUMN())),"") ->  | BQ25: =IFERROR(HYPERLINK(MapEvent_MouseOver(ROW(),COLUMN())),"") ->  | BR25: =IFERROR(HYPERLINK(MapEvent_MouseOver(ROW(),COLUMN())),"") ->  | BS25: =IFERROR(HYPERLINK(MapEvent_MouseOver(ROW(),COLUMN())),"") ->  | BT25: =IFERROR(HYPERLINK(MapEvent_MouseOver(ROW(),COLUMN())),"") ->  | BU25: =IFERROR(HYPERLINK(MapEvent_MouseOver(ROW(),COLUMN())),"") ->  | BV25: =IFERROR(HYPERLINK(MapEvent_MouseOver(ROW(),COLUMN())),"") ->  | BW25: =IFERROR(HYPERLINK(MapEvent_MouseOver(ROW(),COLUMN())),"") ->  | BX25: =IFERROR(HYPERLINK(MapEvent_MouseOver(ROW(),COLUMN())),"") ->  | BY25: =IFERROR(HYPERLINK(MapEvent_MouseOver(ROW(),COLUMN())),"") ->  | BZ25: =IFERROR(HYPERLINK(MapEvent_MouseOver(ROW(),COLUMN())),"") ->  | CA25: =IFERROR(HYPERLINK(MapEvent_MouseOver(ROW(),COLUMN())),"") ->  | CB25: =IFERROR(HYPERLINK(MapEvent_MouseOver(ROW(),COLUMN())),"") ->  | CC25: =IFERROR(HYPERLINK(MapEvent_MouseOver(ROW(),COLUMN())),"") ->  | CD25: =IFERROR(HYPERLINK(MapEvent_MouseOver(ROW(),COLUMN())),"") ->  | CE25: =IFERROR(HYPERLINK(MapEvent_MouseOver(ROW(),COLUMN())),"") ->  | CF25: =IFERROR(HYPERLINK(MapEvent_MouseOver(ROW(),COLUMN())),"") ->  | CG25: =IFERROR(HYPERLINK(MapEvent_MouseOver(ROW(),COLUMN())),"") ->  | CH25: =IFERROR(HYPERLINK(MapEvent_MouseOver(ROW(),COLUMN())),"") ->  | CI25: =IFERROR(HYPERLINK(MapEvent_MouseOver(ROW(),COLUMN())),"") ->  | CJ25: =IFERROR(HYPERLINK(MapEvent_MouseOver(ROW(),COLUMN())),"") ->  | CK25: =IFERROR(HYPERLINK(MapEvent_MouseOver(ROW(),COLUMN())),"") ->  | CL25: =IFERROR(HYPERLINK(MapEvent_MouseOver(ROW(),COLUMN())),"") -> 
V26: =IFERROR(HYPERLINK(MapEvent_MouseOver(ROW(),COLUMN())),"") ->  | W26: =IFERROR(HYPERLINK(MapEvent_MouseOver(ROW(),COLUMN())),"") ->  | X26: =IFERROR(HYPERLINK(MapEvent_MouseOver(ROW(),COLUMN())),"") ->  | Y26: =IFERROR(HYPERLINK(MapEvent_MouseOver(ROW(),COLUMN())),"") ->  | Z26: =IFERROR(HYPERLINK(MapEvent_MouseOver(ROW(),COLUMN())),"") ->  | AA26: =IFERROR(HYPERLINK(MapEvent_MouseOver(ROW(),COLUMN())),"") ->  | AB26: =IFERROR(HYPERLINK(MapEvent_MouseOver(ROW(),COLUMN())),"") ->  | AC26: =IFERROR(HYPERLINK(MapEvent_MouseOver(ROW(),COLUMN())),"") ->  | AD26: =IFERROR(HYPERLINK(MapEvent_MouseOver(ROW(),COLUMN())),"") ->  | AE26: =IFERROR(HYPERLINK(MapEvent_MouseOver(ROW(),COLUMN())),"") ->  | AF26: =IFERROR(HYPERLINK(MapEvent_MouseOver(ROW(),COLUMN())),"") ->  | AG26: =IFERROR(HYPERLINK(MapEvent_MouseOver(ROW(),COLUMN())),"") ->  | AH26: =IFERROR(HYPERLINK(MapEvent_MouseOver(ROW(),COLUMN())),"") ->  | AI26: =IFERROR(HYPERLINK(MapEvent_MouseOver(ROW(),COLUMN())),"") ->  | AJ26: =IFERROR(HYPERLINK(MapEvent_MouseOver(ROW(),COLUMN())),"") ->  | AK26: =IFERROR(HYPERLINK(MapEvent_MouseOver(ROW(),COLUMN())),"") ->  | AL26: =IFERROR(HYPERLINK(MapEvent_MouseOver(ROW(),COLUMN())),"") ->  | AM26: =IFERROR(HYPERLINK(MapEvent_MouseOver(ROW(),COLUMN())),"") ->  | AN26: =IFERROR(HYPERLINK(MapEvent_MouseOver(ROW(),COLUMN())),"") ->  | AO26: =IFERROR(HYPERLINK(MapEvent_MouseOver(ROW(),COLUMN())),"") ->  | AP26: =IFERROR(HYPERLINK(MapEvent_MouseOver(ROW(),COLUMN())),"") ->  | AQ26: =IFERROR(HYPERLINK(MapEvent_MouseOver(ROW(),COLUMN())),"") ->  | AR26: =IFERROR(HYPERLINK(MapEvent_MouseOver(ROW(),COLUMN())),"") ->  | AS26: =IFERROR(HYPERLINK(MapEvent_MouseOver(ROW(),COLUMN())),"") ->  | AT26: =IFERROR(HYPERLINK(MapEvent_MouseOver(ROW(),COLUMN())),"") ->  | AU26: =IFERROR(HYPERLINK(MapEvent_MouseOver(ROW(),COLUMN())),"") ->  | AV26: =IFERROR(HYPERLINK(MapEvent_MouseOver(ROW(),COLUMN())),"") ->  | AW26: =IFERROR(HYPERLINK(MapEvent_MouseOver(ROW(),COLUMN())),"") ->  | AX26: =IFERROR(HYPERLINK(MapEvent_MouseOver(ROW(),COLUMN())),"") ->  | AY26: =IFERROR(HYPERLINK(MapEvent_MouseOver(ROW(),COLUMN())),"") ->  | AZ26: =IFERROR(HYPERLINK(MapEvent_MouseOver(ROW(),COLUMN())),"") ->  | BA26: =IFERROR(HYPERLINK(MapEvent_MouseOver(ROW(),COLUMN())),"") ->  | BB26: =IFERROR(HYPERLINK(MapEvent_MouseOver(ROW(),COLUMN())),"") ->  | BC26: =IFERROR(HYPERLINK(MapEvent_MouseOver(ROW(),COLUMN())),"") ->  | BD26: =IFERROR(HYPERLINK(MapEvent_MouseOver(ROW(),COLUMN())),"") ->  | BE26: =IFERROR(HYPERLINK(MapEvent_MouseOver(ROW(),COLUMN())),"") ->  | BF26: =IFERROR(HYPERLINK(MapEvent_MouseOver(ROW(),COLUMN())),"") ->  | BG26: =IFERROR(HYPERLINK(MapEvent_MouseOver(ROW(),COLUMN())),"") ->  | BH26: =IFERROR(HYPERLINK(MapEvent_MouseOver(ROW(),COLUMN())),"") ->  | BI26: =IFERROR(HYPERLINK(MapEvent_MouseOver(ROW(),COLUMN())),"") ->  | BJ26: =IFERROR(HYPERLINK(MapEvent_MouseOver(ROW(),COLUMN())),"") ->  | BK26: =IFERROR(HYPERLINK(MapEvent_MouseOver(ROW(),COLUMN())),"") ->  | BL26: =IFERROR(HYPERLINK(MapEvent_MouseOver(ROW(),COLUMN())),"") ->  | BM26: =IFERROR(HYPERLINK(MapEvent_MouseOver(ROW(),COLUMN())),"") ->  | BN26: =IFERROR(HYPERLINK(MapEvent_MouseOver(ROW(),COLUMN())),"") ->  | BO26: =IFERROR(HYPERLINK(MapEvent_MouseOver(ROW(),COLUMN())),"") ->  | BP26: =IFERROR(HYPERLINK(MapEvent_MouseOver(ROW(),COLUMN())),"") ->  | BQ26: =IFERROR(HYPERLINK(MapEvent_MouseOver(ROW(),COLUMN())),"") ->  | BR26: =IFERROR(HYPERLINK(MapEvent_MouseOver(ROW(),COLUMN())),"") ->  | BS26: =IFERROR(HYPERLINK(MapEvent_MouseOver(ROW(),COLUMN())),"") ->  | BT26: =IFERROR(HYPERLINK(MapEvent_MouseOver(ROW(),COLUMN())),"") ->  | BU26: =IFERROR(HYPERLINK(MapEvent_MouseOver(ROW(),COLUMN())),"") ->  | BV26: =IFERROR(HYPERLINK(MapEvent_MouseOver(ROW(),COLUMN())),"") ->  | BW26: =IFERROR(HYPERLINK(MapEvent_MouseOver(ROW(),COLUMN())),"") ->  | BX26: =IFERROR(HYPERLINK(MapEvent_MouseOver(ROW(),COLUMN())),"") ->  | BY26: =IFERROR(HYPERLINK(MapEvent_MouseOver(ROW(),COLUMN())),"") ->  | BZ26: =IFERROR(HYPERLINK(MapEvent_MouseOver(ROW(),COLUMN())),"") ->  | CA26: =IFERROR(HYPERLINK(MapEvent_MouseOver(ROW(),COLUMN())),"") ->  | CB26: =IFERROR(HYPERLINK(MapEvent_MouseOver(ROW(),COLUMN())),"") ->  | CC26: =IFERROR(HYPERLINK(MapEvent_MouseOver(ROW(),COLUMN())),"") ->  | CD26: =IFERROR(HYPERLINK(MapEvent_MouseOver(ROW(),COLUMN())),"") ->  | CE26: =IFERROR(HYPERLINK(MapEvent_MouseOver(ROW(),COLUMN())),"") ->  | CF26: =IFERROR(HYPERLINK(MapEvent_MouseOver(ROW(),COLUMN())),"") ->  | CG26: =IFERROR(HYPERLINK(MapEvent_MouseOver(ROW(),COLUMN())),"") ->  | CH26: =IFERROR(HYPERLINK(MapEvent_MouseOver(ROW(),COLUMN())),"") ->  | CI26: =IFERROR(HYPERLINK(MapEvent_MouseOver(ROW(),COLUMN())),"") ->  | CJ26: =IFERROR(HYPERLINK(MapEvent_MouseOver(ROW(),COLUMN())),"") ->  | CK26: =IFERROR(HYPERLINK(MapEvent_MouseOver(ROW(),COLUMN())),"") ->  | CL26: =IFERROR(HYPERLINK(MapEvent_MouseOver(ROW(),COLUMN())),"") -> 
V27: =IFERROR(HYPERLINK(MapEvent_MouseOver(ROW(),COLUMN())),"") ->  | W27: =IFERROR(HYPERLINK(MapEvent_MouseOver(ROW(),COLUMN())),"") ->  | X27: =IFERROR(HYPERLINK(MapEvent_MouseOver(ROW(),COLUMN())),"") ->  | Y27: =IFERROR(HYPERLINK(MapEvent_MouseOver(ROW(),COLUMN())),"") ->  | Z27: =IFERROR(HYPERLINK(MapEvent_MouseOver(ROW(),COLUMN())),"") ->  | AA27: =IFERROR(HYPERLINK(MapEvent_MouseOver(ROW(),COLUMN())),"") ->  | AB27: =IFERROR(HYPERLINK(MapEvent_MouseOver(ROW(),COLUMN())),"") ->  | AC27: =IFERROR(HYPERLINK(MapEvent_MouseOver(ROW(),COLUMN())),"") ->  | AD27: =IFERROR(HYPERLINK(MapEvent_MouseOver(ROW(),COLUMN())),"") ->  | AE27: =IFERROR(HYPERLINK(MapEvent_MouseOver(ROW(),COLUMN())),"") ->  | AF27: =IFERROR(HYPERLINK(MapEvent_MouseOver(ROW(),COLUMN())),"") ->  | AG27: =IFERROR(HYPERLINK(MapEvent_MouseOver(ROW(),COLUMN())),"") ->  | AH27: =IFERROR(HYPERLINK(MapEvent_MouseOver(ROW(),COLUMN())),"") ->  | AI27: =IFERROR(HYPERLINK(MapEvent_MouseOver(ROW(),COLUMN())),"") ->  | AJ27: =IFERROR(HYPERLINK(MapEvent_MouseOver(ROW(),COLUMN())),"") ->  | AK27: =IFERROR(HYPERLINK(MapEvent_MouseOver(ROW(),COLUMN())),"") ->  | AL27: =IFERROR(HYPERLINK(MapEvent_MouseOver(ROW(),COLUMN())),"") ->  | AM27: =IFERROR(HYPERLINK(MapEvent_MouseOver(ROW(),COLUMN())),"") ->  | AN27: =IFERROR(HYPERLINK(MapEvent_MouseOver(ROW(),COLUMN())),"") ->  | AO27: =IFERROR(HYPERLINK(MapEvent_MouseOver(ROW(),COLUMN())),"") ->  | AP27: =IFERROR(HYPERLINK(MapEvent_MouseOver(ROW(),COLUMN())),"") ->  | AQ27: =IFERROR(HYPERLINK(MapEvent_MouseOver(ROW(),COLUMN())),"") ->  | AR27: =IFERROR(HYPERLINK(MapEvent_MouseOver(ROW(),COLUMN())),"") ->  | AS27: =IFERROR(HYPERLINK(MapEvent_MouseOver(ROW(),COLUMN())),"") ->  | AT27: =IFERROR(HYPERLINK(MapEvent_MouseOver(ROW(),COLUMN())),"") ->  | AU27: =IFERROR(HYPERLINK(MapEvent_MouseOver(ROW(),COLUMN())),"") ->  | AV27: =IFERROR(HYPERLINK(MapEvent_MouseOver(ROW(),COLUMN())),"") ->  | AW27: =IFERROR(HYPERLINK(MapEvent_MouseOver(ROW(),COLUMN())),"") ->  | AX27: =IFERROR(HYPERLINK(MapEvent_MouseOver(ROW(),COLUMN())),"") ->  | AY27: =IFERROR(HYPERLINK(MapEvent_MouseOver(ROW(),COLUMN())),"") ->  | AZ27: =IFERROR(HYPERLINK(MapEvent_MouseOver(ROW(),COLUMN())),"") ->  | BA27: =IFERROR(HYPERLINK(MapEvent_MouseOver(ROW(),COLUMN())),"") ->  | BB27: =IFERROR(HYPERLINK(MapEvent_MouseOver(ROW(),COLUMN())),"") ->  | BC27: =IFERROR(HYPERLINK(MapEvent_MouseOver(ROW(),COLUMN())),"") ->  | BD27: =IFERROR(HYPERLINK(MapEvent_MouseOver(ROW(),COLUMN())),"") ->  | BE27: =IFERROR(HYPERLINK(MapEvent_MouseOver(ROW(),COLUMN())),"") ->  | BF27: =IFERROR(HYPERLINK(MapEvent_MouseOver(ROW(),COLUMN())),"") ->  | BG27: =IFERROR(HYPERLINK(MapEvent_MouseOver(ROW(),COLUMN())),"") ->  | BH27: =IFERROR(HYPERLINK(MapEvent_MouseOver(ROW(),COLUMN())),"") ->  | BI27: =IFERROR(HYPERLINK(MapEvent_MouseOver(ROW(),COLUMN())),"") ->  | BJ27: =IFERROR(HYPERLINK(MapEvent_MouseOver(ROW(),COLUMN())),"") ->  | BK27: =IFERROR(HYPERLINK(MapEvent_MouseOver(ROW(),COLUMN())),"") ->  | BL27: =IFERROR(HYPERLINK(MapEvent_MouseOver(ROW(),COLUMN())),"") ->  | BM27: =IFERROR(HYPERLINK(MapEvent_MouseOver(ROW(),COLUMN())),"") ->  | BN27: =IFERROR(HYPERLINK(MapEvent_MouseOver(ROW(),COLUMN())),"") ->  | BO27: =IFERROR(HYPERLINK(MapEvent_MouseOver(ROW(),COLUMN())),"") ->  | BP27: =IFERROR(HYPERLINK(MapEvent_MouseOver(ROW(),COLUMN())),"") ->  | BQ27: =IFERROR(HYPERLINK(MapEvent_MouseOver(ROW(),COLUMN())),"") ->  | BR27: =IFERROR(HYPERLINK(MapEvent_MouseOver(ROW(),COLUMN())),"") ->  | BS27: =IFERROR(HYPERLINK(MapEvent_MouseOver(ROW(),COLUMN())),"") ->  | BT27: =IFERROR(HYPERLINK(MapEvent_MouseOver(ROW(),COLUMN())),"") ->  | BU27: =IFERROR(HYPERLINK(MapEvent_MouseOver(ROW(),COLUMN())),"") ->  | BV27: =IFERROR(HYPERLINK(MapEvent_MouseOver(ROW(),COLUMN())),"") ->  | BW27: =IFERROR(HYPERLINK(MapEvent_MouseOver(ROW(),COLUMN())),"") ->  | BX27: =IFERROR(HYPERLINK(MapEvent_MouseOver(ROW(),COLUMN())),"") ->  | BY27: =IFERROR(HYPERLINK(MapEvent_MouseOver(ROW(),COLUMN())),"") ->  | BZ27: =IFERROR(HYPERLINK(MapEvent_MouseOver(ROW(),COLUMN())),"") ->  | CA27: =IFERROR(HYPERLINK(MapEvent_MouseOver(ROW(),COLUMN())),"") ->  | CB27: =IFERROR(HYPERLINK(MapEvent_MouseOver(ROW(),COLUMN())),"") ->  | CC27: =IFERROR(HYPERLINK(MapEvent_MouseOver(ROW(),COLUMN())),"") ->  | CD27: =IFERROR(HYPERLINK(MapEvent_MouseOver(ROW(),COLUMN())),"") ->  | CE27: =IFERROR(HYPERLINK(MapEvent_MouseOver(ROW(),COLUMN())),"") ->  | CF27: =IFERROR(HYPERLINK(MapEvent_MouseOver(ROW(),COLUMN())),"") ->  | CG27: =IFERROR(HYPERLINK(MapEvent_MouseOver(ROW(),COLUMN())),"") ->  | CH27: =IFERROR(HYPERLINK(MapEvent_MouseOver(ROW(),COLUMN())),"") ->  | CI27: =IFERROR(HYPERLINK(MapEvent_MouseOver(ROW(),COLUMN())),"") ->  | CJ27: =IFERROR(HYPERLINK(MapEvent_MouseOver(ROW(),COLUMN())),"") ->  | CK27: =IFERROR(HYPERLINK(MapEvent_MouseOver(ROW(),COLUMN())),"") ->  | CL27: =IFERROR(HYPERLINK(MapEvent_MouseOver(ROW(),COLUMN())),"") -> 
V28: =IFERROR(HYPERLINK(MapEvent_MouseOver(ROW(),COLUMN())),"") ->  | W28: =IFERROR(HYPERLINK(MapEvent_MouseOver(ROW(),COLUMN())),"") ->  | X28: =IFERROR(HYPERLINK(MapEvent_MouseOver(ROW(),COLUMN())),"") ->  | Y28: =IFERROR(HYPERLINK(MapEvent_MouseOver(ROW(),COLUMN())),"") ->  | Z28: =IFERROR(HYPERLINK(MapEvent_MouseOver(ROW(),COLUMN())),"") ->  | AA28: =IFERROR(HYPERLINK(MapEvent_MouseOver(ROW(),COLUMN())),"") ->  | AB28: =IFERROR(HYPERLINK(MapEvent_MouseOver(ROW(),COLUMN())),"") ->  | AC28: =IFERROR(HYPERLINK(MapEvent_MouseOver(ROW(),COLUMN())),"") ->  | AD28: =IFERROR(HYPERLINK(MapEvent_MouseOver(ROW(),COLUMN())),"") ->  | AE28: =IFERROR(HYPERLINK(MapEvent_MouseOver(ROW(),COLUMN())),"") ->  | AF28: =IFERROR(HYPERLINK(MapEvent_MouseOver(ROW(),COLUMN())),"") ->  | AG28: =IFERROR(HYPERLINK(MapEvent_MouseOver(ROW(),COLUMN())),"") ->  | AH28: =IFERROR(HYPERLINK(MapEvent_MouseOver(ROW(),COLUMN())),"") ->  | AI28: =IFERROR(HYPERLINK(MapEvent_MouseOver(ROW(),COLUMN())),"") ->  | AJ28: =IFERROR(HYPERLINK(MapEvent_MouseOver(ROW(),COLUMN())),"") ->  | AK28: =IFERROR(HYPERLINK(MapEvent_MouseOver(ROW(),COLUMN())),"") ->  | AL28: =IFERROR(HYPERLINK(MapEvent_MouseOver(ROW(),COLUMN())),"") ->  | AM28: =IFERROR(HYPERLINK(MapEvent_MouseOver(ROW(),COLUMN())),"") ->  | AN28: =IFERROR(HYPERLINK(MapEvent_MouseOver(ROW(),COLUMN())),"") ->  | AO28: =IFERROR(HYPERLINK(MapEvent_MouseOver(ROW(),COLUMN())),"") ->  | AP28: =IFERROR(HYPERLINK(MapEvent_MouseOver(ROW(),COLUMN())),"") ->  | AQ28: =IFERROR(HYPERLINK(MapEvent_MouseOver(ROW(),COLUMN())),"") ->  | AR28: =IFERROR(HYPERLINK(MapEvent_MouseOver(ROW(),COLUMN())),"") ->  | AS28: =IFERROR(HYPERLINK(MapEvent_MouseOver(ROW(),COLUMN())),"") ->  | AT28: =IFERROR(HYPERLINK(MapEvent_MouseOver(ROW(),COLUMN())),"") ->  | AU28: =IFERROR(HYPERLINK(MapEvent_MouseOver(ROW(),COLUMN())),"") ->  | AV28: =IFERROR(HYPERLINK(MapEvent_MouseOver(ROW(),COLUMN())),"") ->  | AW28: =IFERROR(HYPERLINK(MapEvent_MouseOver(ROW(),COLUMN())),"") ->  | AX28: =IFERROR(HYPERLINK(MapEvent_MouseOver(ROW(),COLUMN())),"") ->  | AY28: =IFERROR(HYPERLINK(MapEvent_MouseOver(ROW(),COLUMN())),"") ->  | AZ28: =IFERROR(HYPERLINK(MapEvent_MouseOver(ROW(),COLUMN())),"") ->  | BA28: =IFERROR(HYPERLINK(MapEvent_MouseOver(ROW(),COLUMN())),"") ->  | BB28: =IFERROR(HYPERLINK(MapEvent_MouseOver(ROW(),COLUMN())),"") ->  | BC28: =IFERROR(HYPERLINK(MapEvent_MouseOver(ROW(),COLUMN())),"") ->  | BD28: =IFERROR(HYPERLINK(MapEvent_MouseOver(ROW(),COLUMN())),"") ->  | BE28: =IFERROR(HYPERLINK(MapEvent_MouseOver(ROW(),COLUMN())),"") ->  | BF28: =IFERROR(HYPERLINK(MapEvent_MouseOver(ROW(),COLUMN())),"") ->  | BG28: =IFERROR(HYPERLINK(MapEvent_MouseOver(ROW(),COLUMN())),"") ->  | BH28: =IFERROR(HYPERLINK(MapEvent_MouseOver(ROW(),COLUMN())),"") ->  | BI28: =IFERROR(HYPERLINK(MapEvent_MouseOver(ROW(),COLUMN())),"") ->  | BJ28: =IFERROR(HYPERLINK(MapEvent_MouseOver(ROW(),COLUMN())),"") ->  | BK28: =IFERROR(HYPERLINK(MapEvent_MouseOver(ROW(),COLUMN())),"") ->  | BL28: =IFERROR(HYPERLINK(MapEvent_MouseOver(ROW(),COLUMN())),"") ->  | BM28: =IFERROR(HYPERLINK(MapEvent_MouseOver(ROW(),COLUMN())),"") ->  | BN28: =IFERROR(HYPERLINK(MapEvent_MouseOver(ROW(),COLUMN())),"") ->  | BO28: =IFERROR(HYPERLINK(MapEvent_MouseOver(ROW(),COLUMN())),"") ->  | BP28: =IFERROR(HYPERLINK(MapEvent_MouseOver(ROW(),COLUMN())),"") ->  | BQ28: =IFERROR(HYPERLINK(MapEvent_MouseOver(ROW(),COLUMN())),"") ->  | BR28: =IFERROR(HYPERLINK(MapEvent_MouseOver(ROW(),COLUMN())),"") ->  | BS28: =IFERROR(HYPERLINK(MapEvent_MouseOver(ROW(),COLUMN())),"") ->  | BT28: =IFERROR(HYPERLINK(MapEvent_MouseOver(ROW(),COLUMN())),"") ->  | BU28: =IFERROR(HYPERLINK(MapEvent_MouseOver(ROW(),COLUMN())),"") ->  | BV28: =IFERROR(HYPERLINK(MapEvent_MouseOver(ROW(),COLUMN())),"") ->  | BW28: =IFERROR(HYPERLINK(MapEvent_MouseOver(ROW(),COLUMN())),"") ->  | BX28: =IFERROR(HYPERLINK(MapEvent_MouseOver(ROW(),COLUMN())),"") ->  | BY28: =IFERROR(HYPERLINK(MapEvent_MouseOver(ROW(),COLUMN())),"") ->  | BZ28: =IFERROR(HYPERLINK(MapEvent_MouseOver(ROW(),COLUMN())),"") ->  | CA28: =IFERROR(HYPERLINK(MapEvent_MouseOver(ROW(),COLUMN())),"") ->  | CB28: =IFERROR(HYPERLINK(MapEvent_MouseOver(ROW(),COLUMN())),"") ->  | CC28: =IFERROR(HYPERLINK(MapEvent_MouseOver(ROW(),COLUMN())),"") ->  | CD28: =IFERROR(HYPERLINK(MapEvent_MouseOver(ROW(),COLUMN())),"") ->  | CE28: =IFERROR(HYPERLINK(MapEvent_MouseOver(ROW(),COLUMN())),"") ->  | CF28: =IFERROR(HYPERLINK(MapEvent_MouseOver(ROW(),COLUMN())),"") ->  | CG28: =IFERROR(HYPERLINK(MapEvent_MouseOver(ROW(),COLUMN())),"") ->  | CH28: =IFERROR(HYPERLINK(MapEvent_MouseOver(ROW(),COLUMN())),"") ->  | CI28: =IFERROR(HYPERLINK(MapEvent_MouseOver(ROW(),COLUMN())),"") ->  | CJ28: =IFERROR(HYPERLINK(MapEvent_MouseOver(ROW(),COLUMN())),"") ->  | CK28: =IFERROR(HYPERLINK(MapEvent_MouseOver(ROW(),COLUMN())),"") ->  | CL28: =IFERROR(HYPERLINK(MapEvent_MouseOver(ROW(),COLUMN())),"") -> 
V29: =IFERROR(HYPERLINK(MapEvent_MouseOver(ROW(),COLUMN())),"") ->  | W29: =IFERROR(HYPERLINK(MapEvent_MouseOver(ROW(),COLUMN())),"") ->  | X29: =IFERROR(HYPERLINK(MapEvent_MouseOver(ROW(),COLUMN())),"") ->  | Y29: =IFERROR(HYPERLINK(MapEvent_MouseOver(ROW(),COLUMN())),"") ->  | Z29: =IFERROR(HYPERLINK(MapEvent_MouseOver(ROW(),COLUMN())),"") ->  | AA29: =IFERROR(HYPERLINK(MapEvent_MouseOver(ROW(),COLUMN())),"") ->  | AB29: =IFERROR(HYPERLINK(MapEvent_MouseOver(ROW(),COLUMN())),"") ->  | AC29: =IFERROR(HYPERLINK(MapEvent_MouseOver(ROW(),COLUMN())),"") ->  | AD29: =IFERROR(HYPERLINK(MapEvent_MouseOver(ROW(),COLUMN())),"") ->  | AE29: =IFERROR(HYPERLINK(MapEvent_MouseOver(ROW(),COLUMN())),"") ->  | AF29: =IFERROR(HYPERLINK(MapEvent_MouseOver(ROW(),COLUMN())),"") ->  | AG29: =IFERROR(HYPERLINK(MapEvent_MouseOver(ROW(),COLUMN())),"") ->  | AH29: =IFERROR(HYPERLINK(MapEvent_MouseOver(ROW(),COLUMN())),"") ->  | AI29: =IFERROR(HYPERLINK(MapEvent_MouseOver(ROW(),COLUMN())),"") ->  | AJ29: =IFERROR(HYPERLINK(MapEvent_MouseOver(ROW(),COLUMN())),"") ->  | AK29: =IFERROR(HYPERLINK(MapEvent_MouseOver(ROW(),COLUMN())),"") ->  | AL29: =IFERROR(HYPERLINK(MapEvent_MouseOver(ROW(),COLUMN())),"") ->  | AM29: =IFERROR(HYPERLINK(MapEvent_MouseOver(ROW(),COLUMN())),"") ->  | AN29: =IFERROR(HYPERLINK(MapEvent_MouseOver(ROW(),COLUMN())),"") ->  | AO29: =IFERROR(HYPERLINK(MapEvent_MouseOver(ROW(),COLUMN())),"") ->  | AP29: =IFERROR(HYPERLINK(MapEvent_MouseOver(ROW(),COLUMN())),"") ->  | AQ29: =IFERROR(HYPERLINK(MapEvent_MouseOver(ROW(),COLUMN())),"") ->  | AR29: =IFERROR(HYPERLINK(MapEvent_MouseOver(ROW(),COLUMN())),"") ->  | AS29: =IFERROR(HYPERLINK(MapEvent_MouseOver(ROW(),COLUMN())),"") ->  | AT29: =IFERROR(HYPERLINK(MapEvent_MouseOver(ROW(),COLUMN())),"") ->  | AU29: =IFERROR(HYPERLINK(MapEvent_MouseOver(ROW(),COLUMN())),"") ->  | AV29: =IFERROR(HYPERLINK(MapEvent_MouseOver(ROW(),COLUMN())),"") ->  | AW29: =IFERROR(HYPERLINK(MapEvent_MouseOver(ROW(),COLUMN())),"") ->  | AX29: =IFERROR(HYPERLINK(MapEvent_MouseOver(ROW(),COLUMN())),"") ->  | AY29: =IFERROR(HYPERLINK(MapEvent_MouseOver(ROW(),COLUMN())),"") ->  | AZ29: =IFERROR(HYPERLINK(MapEvent_MouseOver(ROW(),COLUMN())),"") ->  | BA29: =IFERROR(HYPERLINK(MapEvent_MouseOver(ROW(),COLUMN())),"") ->  | BB29: =IFERROR(HYPERLINK(MapEvent_MouseOver(ROW(),COLUMN())),"") ->  | BC29: =IFERROR(HYPERLINK(MapEvent_MouseOver(ROW(),COLUMN())),"") ->  | BD29: =IFERROR(HYPERLINK(MapEvent_MouseOver(ROW(),COLUMN())),"") ->  | BE29: =IFERROR(HYPERLINK(MapEvent_MouseOver(ROW(),COLUMN())),"") ->  | BF29: =IFERROR(HYPERLINK(MapEvent_MouseOver(ROW(),COLUMN())),"") ->  | BG29: =IFERROR(HYPERLINK(MapEvent_MouseOver(ROW(),COLUMN())),"") ->  | BH29: =IFERROR(HYPERLINK(MapEvent_MouseOver(ROW(),COLUMN())),"") ->  | BI29: =IFERROR(HYPERLINK(MapEvent_MouseOver(ROW(),COLUMN())),"") ->  | BJ29: =IFERROR(HYPERLINK(MapEvent_MouseOver(ROW(),COLUMN())),"") ->  | BK29: =IFERROR(HYPERLINK(MapEvent_MouseOver(ROW(),COLUMN())),"") ->  | BL29: =IFERROR(HYPERLINK(MapEvent_MouseOver(ROW(),COLUMN())),"") ->  | BM29: =IFERROR(HYPERLINK(MapEvent_MouseOver(ROW(),COLUMN())),"") ->  | BN29: =IFERROR(HYPERLINK(MapEvent_MouseOver(ROW(),COLUMN())),"") ->  | BO29: =IFERROR(HYPERLINK(MapEvent_MouseOver(ROW(),COLUMN())),"") ->  | BP29: =IFERROR(HYPERLINK(MapEvent_MouseOver(ROW(),COLUMN())),"") ->  | BQ29: =IFERROR(HYPERLINK(MapEvent_MouseOver(ROW(),COLUMN())),"") ->  | BR29: =IFERROR(HYPERLINK(MapEvent_MouseOver(ROW(),COLUMN())),"") ->  | BS29: =IFERROR(HYPERLINK(MapEvent_MouseOver(ROW(),COLUMN())),"") ->  | BT29: =IFERROR(HYPERLINK(MapEvent_MouseOver(ROW(),COLUMN())),"") ->  | BU29: =IFERROR(HYPERLINK(MapEvent_MouseOver(ROW(),COLUMN())),"") ->  | BV29: =IFERROR(HYPERLINK(MapEvent_MouseOver(ROW(),COLUMN())),"") ->  | BW29: =IFERROR(HYPERLINK(MapEvent_MouseOver(ROW(),COLUMN())),"") ->  | BX29: =IFERROR(HYPERLINK(MapEvent_MouseOver(ROW(),COLUMN())),"") ->  | BY29: =IFERROR(HYPERLINK(MapEvent_MouseOver(ROW(),COLUMN())),"") ->  | BZ29: =IFERROR(HYPERLINK(MapEvent_MouseOver(ROW(),COLUMN())),"") ->  | CA29: =IFERROR(HYPERLINK(MapEvent_MouseOver(ROW(),COLUMN())),"") ->  | CB29: =IFERROR(HYPERLINK(MapEvent_MouseOver(ROW(),COLUMN())),"") ->  | CC29: =IFERROR(HYPERLINK(MapEvent_MouseOver(ROW(),COLUMN())),"") ->  | CD29: =IFERROR(HYPERLINK(MapEvent_MouseOver(ROW(),COLUMN())),"") ->  | CE29: =IFERROR(HYPERLINK(MapEvent_MouseOver(ROW(),COLUMN())),"") ->  | CF29: =IFERROR(HYPERLINK(MapEvent_MouseOver(ROW(),COLUMN())),"") ->  | CG29: =IFERROR(HYPERLINK(MapEvent_MouseOver(ROW(),COLUMN())),"") ->  | CH29: =IFERROR(HYPERLINK(MapEvent_MouseOver(ROW(),COLUMN())),"") ->  | CI29: =IFERROR(HYPERLINK(MapEvent_MouseOver(ROW(),COLUMN())),"") ->  | CJ29: =IFERROR(HYPERLINK(MapEvent_MouseOver(ROW(),COLUMN())),"") ->  | CK29: =IFERROR(HYPERLINK(MapEvent_MouseOver(ROW(),COLUMN())),"") ->  | CL29: =IFERROR(HYPERLINK(MapEvent_MouseOver(ROW(),COLUMN())),"") -> 
V30: =IFERROR(HYPERLINK(MapEvent_MouseOver(ROW(),COLUMN())),"") ->  | W30: =IFERROR(HYPERLINK(MapEvent_MouseOver(ROW(),COLUMN())),"") ->  | X30: =IFERROR(HYPERLINK(MapEvent_MouseOver(ROW(),COLUMN())),"") ->  | Y30: =IFERROR(HYPERLINK(MapEvent_MouseOver(ROW(),COLUMN())),"") ->  | Z30: =IFERROR(HYPERLINK(MapEvent_MouseOver(ROW(),COLUMN())),"") ->  | AA30: =IFERROR(HYPERLINK(MapEvent_MouseOver(ROW(),COLUMN())),"") ->  | AB30: =IFERROR(HYPERLINK(MapEvent_MouseOver(ROW(),COLUMN())),"") ->  | AC30: =IFERROR(HYPERLINK(MapEvent_MouseOver(ROW(),COLUMN())),"") ->  | AD30: =IFERROR(HYPERLINK(MapEvent_MouseOver(ROW(),COLUMN())),"") ->  | AE30: =IFERROR(HYPERLINK(MapEvent_MouseOver(ROW(),COLUMN())),"") ->  | AF30: =IFERROR(HYPERLINK(MapEvent_MouseOver(ROW(),COLUMN())),"") ->  | AG30: =IFERROR(HYPERLINK(MapEvent_MouseOver(ROW(),COLUMN())),"") ->  | AH30: =IFERROR(HYPERLINK(MapEvent_MouseOver(ROW(),COLUMN())),"") ->  | AI30: =IFERROR(HYPERLINK(MapEvent_MouseOver(ROW(),COLUMN())),"") ->  | AJ30: =IFERROR(HYPERLINK(MapEvent_MouseOver(ROW(),COLUMN())),"") ->  | AK30: =IFERROR(HYPERLINK(MapEvent_MouseOver(ROW(),COLUMN())),"") ->  | AL30: =IFERROR(HYPERLINK(MapEvent_MouseOver(ROW(),COLUMN())),"") ->  | AM30: =IFERROR(HYPERLINK(MapEvent_MouseOver(ROW(),COLUMN())),"") ->  | AN30: =IFERROR(HYPERLINK(MapEvent_MouseOver(ROW(),COLUMN())),"") ->  | AO30: =IFERROR(HYPERLINK(MapEvent_MouseOver(ROW(),COLUMN())),"") ->  | AP30: =IFERROR(HYPERLINK(MapEvent_MouseOver(ROW(),COLUMN())),"") ->  | AQ30: =IFERROR(HYPERLINK(MapEvent_MouseOver(ROW(),COLUMN())),"") ->  | AR30: =IFERROR(HYPERLINK(MapEvent_MouseOver(ROW(),COLUMN())),"") ->  | AS30: =IFERROR(HYPERLINK(MapEvent_MouseOver(ROW(),COLUMN())),"") ->  | AT30: =IFERROR(HYPERLINK(MapEvent_MouseOver(ROW(),COLUMN())),"") ->  | AU30: =IFERROR(HYPERLINK(MapEvent_MouseOver(ROW(),COLUMN())),"") ->  | AV30: =IFERROR(HYPERLINK(MapEvent_MouseOver(ROW(),COLUMN())),"") ->  | AW30: =IFERROR(HYPERLINK(MapEvent_MouseOver(ROW(),COLUMN())),"") ->  | AX30: =IFERROR(HYPERLINK(MapEvent_MouseOver(ROW(),COLUMN())),"") ->  | AY30: =IFERROR(HYPERLINK(MapEvent_MouseOver(ROW(),COLUMN())),"") ->  | AZ30: =IFERROR(HYPERLINK(MapEvent_MouseOver(ROW(),COLUMN())),"") ->  | BA30: =IFERROR(HYPERLINK(MapEvent_MouseOver(ROW(),COLUMN())),"") ->  | BB30: =IFERROR(HYPERLINK(MapEvent_MouseOver(ROW(),COLUMN())),"") ->  | BC30: =IFERROR(HYPERLINK(MapEvent_MouseOver(ROW(),COLUMN())),"") ->  | BD30: =IFERROR(HYPERLINK(MapEvent_MouseOver(ROW(),COLUMN())),"") ->  | BE30: =IFERROR(HYPERLINK(MapEvent_MouseOver(ROW(),COLUMN())),"") ->  | BF30: =IFERROR(HYPERLINK(MapEvent_MouseOver(ROW(),COLUMN())),"") ->  | BG30: =IFERROR(HYPERLINK(MapEvent_MouseOver(ROW(),COLUMN())),"") ->  | BH30: =IFERROR(HYPERLINK(MapEvent_MouseOver(ROW(),COLUMN())),"") ->  | BI30: =IFERROR(HYPERLINK(MapEvent_MouseOver(ROW(),COLUMN())),"") ->  | BJ30: =IFERROR(HYPERLINK(MapEvent_MouseOver(ROW(),COLUMN())),"") ->  | BK30: =IFERROR(HYPERLINK(MapEvent_MouseOver(ROW(),COLUMN())),"") ->  | BL30: =IFERROR(HYPERLINK(MapEvent_MouseOver(ROW(),COLUMN())),"") ->  | BM30: =IFERROR(HYPERLINK(MapEvent_MouseOver(ROW(),COLUMN())),"") ->  | BN30: =IFERROR(HYPERLINK(MapEvent_MouseOver(ROW(),COLUMN())),"") ->  | BO30: =IFERROR(HYPERLINK(MapEvent_MouseOver(ROW(),COLUMN())),"") ->  | BP30: =IFERROR(HYPERLINK(MapEvent_MouseOver(ROW(),COLUMN())),"") ->  | BQ30: =IFERROR(HYPERLINK(MapEvent_MouseOver(ROW(),COLUMN())),"") ->  | BR30: =IFERROR(HYPERLINK(MapEvent_MouseOver(ROW(),COLUMN())),"") ->  | BS30: =IFERROR(HYPERLINK(MapEvent_MouseOver(ROW(),COLUMN())),"") ->  | BT30: =IFERROR(HYPERLINK(MapEvent_MouseOver(ROW(),COLUMN())),"") ->  | BU30: =IFERROR(HYPERLINK(MapEvent_MouseOver(ROW(),COLUMN())),"") ->  | BV30: =IFERROR(HYPERLINK(MapEvent_MouseOver(ROW(),COLUMN())),"") ->  | BW30: =IFERROR(HYPERLINK(MapEvent_MouseOver(ROW(),COLUMN())),"") ->  | BX30: =IFERROR(HYPERLINK(MapEvent_MouseOver(ROW(),COLUMN())),"") ->  | BY30: =IFERROR(HYPERLINK(MapEvent_MouseOver(ROW(),COLUMN())),"") ->  | BZ30: =IFERROR(HYPERLINK(MapEvent_MouseOver(ROW(),COLUMN())),"") ->  | CA30: =IFERROR(HYPERLINK(MapEvent_MouseOver(ROW(),COLUMN())),"") ->  | CB30: =IFERROR(HYPERLINK(MapEvent_MouseOver(ROW(),COLUMN())),"") ->  | CC30: =IFERROR(HYPERLINK(MapEvent_MouseOver(ROW(),COLUMN())),"") ->  | CD30: =IFERROR(HYPERLINK(MapEvent_MouseOver(ROW(),COLUMN())),"") ->  | CE30: =IFERROR(HYPERLINK(MapEvent_MouseOver(ROW(),COLUMN())),"") ->  | CF30: =IFERROR(HYPERLINK(MapEvent_MouseOver(ROW(),COLUMN())),"") ->  | CG30: =IFERROR(HYPERLINK(MapEvent_MouseOver(ROW(),COLUMN())),"") ->  | CH30: =IFERROR(HYPERLINK(MapEvent_MouseOver(ROW(),COLUMN())),"") ->  | CI30: =IFERROR(HYPERLINK(MapEvent_MouseOver(ROW(),COLUMN())),"") ->  | CJ30: =IFERROR(HYPERLINK(MapEvent_MouseOver(ROW(),COLUMN())),"") ->  | CK30: =IFERROR(HYPERLINK(MapEvent_MouseOver(ROW(),COLUMN())),"") ->  | CL30: =IFERROR(HYPERLINK(MapEvent_MouseOver(ROW(),COLUMN())),"") -> 
V31: =IFERROR(HYPERLINK(MapEvent_MouseOver(ROW(),COLUMN())),"") ->  | W31: =IFERROR(HYPERLINK(MapEvent_MouseOver(ROW(),COLUMN())),"") ->  | X31: =IFERROR(HYPERLINK(MapEvent_MouseOver(ROW(),COLUMN())),"") ->  | Y31: =IFERROR(HYPERLINK(MapEvent_MouseOver(ROW(),COLUMN())),"") ->  | Z31: =IFERROR(HYPERLINK(MapEvent_MouseOver(ROW(),COLUMN())),"") ->  | AA31: =IFERROR(HYPERLINK(MapEvent_MouseOver(ROW(),COLUMN())),"") ->  | AB31: =IFERROR(HYPERLINK(MapEvent_MouseOver(ROW(),COLUMN())),"") ->  | AC31: =IFERROR(HYPERLINK(MapEvent_MouseOver(ROW(),COLUMN())),"") ->  | AD31: =IFERROR(HYPERLINK(MapEvent_MouseOver(ROW(),COLUMN())),"") ->  | AE31: =IFERROR(HYPERLINK(MapEvent_MouseOver(ROW(),COLUMN())),"") ->  | AF31: =IFERROR(HYPERLINK(MapEvent_MouseOver(ROW(),COLUMN())),"") ->  | AG31: =IFERROR(HYPERLINK(MapEvent_MouseOver(ROW(),COLUMN())),"") ->  | AH31: =IFERROR(HYPERLINK(MapEvent_MouseOver(ROW(),COLUMN())),"") ->  | AI31: =IFERROR(HYPERLINK(MapEvent_MouseOver(ROW(),COLUMN())),"") ->  | AJ31: =IFERROR(HYPERLINK(MapEvent_MouseOver(ROW(),COLUMN())),"") ->  | AK31: =IFERROR(HYPERLINK(MapEvent_MouseOver(ROW(),COLUMN())),"") ->  | AL31: =IFERROR(HYPERLINK(MapEvent_MouseOver(ROW(),COLUMN())),"") ->  | AM31: =IFERROR(HYPERLINK(MapEvent_MouseOver(ROW(),COLUMN())),"") ->  | AN31: =IFERROR(HYPERLINK(MapEvent_MouseOver(ROW(),COLUMN())),"") ->  | AO31: =IFERROR(HYPERLINK(MapEvent_MouseOver(ROW(),COLUMN())),"") ->  | AP31: =IFERROR(HYPERLINK(MapEvent_MouseOver(ROW(),COLUMN())),"") ->  | AQ31: =IFERROR(HYPERLINK(MapEvent_MouseOver(ROW(),COLUMN())),"") ->  | AR31: =IFERROR(HYPERLINK(MapEvent_MouseOver(ROW(),COLUMN())),"") ->  | AS31: =IFERROR(HYPERLINK(MapEvent_MouseOver(ROW(),COLUMN())),"") ->  | AT31: =IFERROR(HYPERLINK(MapEvent_MouseOver(ROW(),COLUMN())),"") ->  | AU31: =IFERROR(HYPERLINK(MapEvent_MouseOver(ROW(),COLUMN())),"") ->  | AV31: =IFERROR(HYPERLINK(MapEvent_MouseOver(ROW(),COLUMN())),"") ->  | AW31: =IFERROR(HYPERLINK(MapEvent_MouseOver(ROW(),COLUMN())),"") ->  | AX31: =IFERROR(HYPERLINK(MapEvent_MouseOver(ROW(),COLUMN())),"") ->  | AY31: =IFERROR(HYPERLINK(MapEvent_MouseOver(ROW(),COLUMN())),"") ->  | AZ31: =IFERROR(HYPERLINK(MapEvent_MouseOver(ROW(),COLUMN())),"") ->  | BA31: =IFERROR(HYPERLINK(MapEvent_MouseOver(ROW(),COLUMN())),"") ->  | BB31: =IFERROR(HYPERLINK(MapEvent_MouseOver(ROW(),COLUMN())),"") ->  | BC31: =IFERROR(HYPERLINK(MapEvent_MouseOver(ROW(),COLUMN())),"") ->  | BD31: =IFERROR(HYPERLINK(MapEvent_MouseOver(ROW(),COLUMN())),"") ->  | BE31: =IFERROR(HYPERLINK(MapEvent_MouseOver(ROW(),COLUMN())),"") ->  | BF31: =IFERROR(HYPERLINK(MapEvent_MouseOver(ROW(),COLUMN())),"") ->  | BG31: =IFERROR(HYPERLINK(MapEvent_MouseOver(ROW(),COLUMN())),"") ->  | BH31: =IFERROR(HYPERLINK(MapEvent_MouseOver(ROW(),COLUMN())),"") ->  | BI31: =IFERROR(HYPERLINK(MapEvent_MouseOver(ROW(),COLUMN())),"") ->  | BJ31: =IFERROR(HYPERLINK(MapEvent_MouseOver(ROW(),COLUMN())),"") ->  | BK31: =IFERROR(HYPERLINK(MapEvent_MouseOver(ROW(),COLUMN())),"") ->  | BL31: =IFERROR(HYPERLINK(MapEvent_MouseOver(ROW(),COLUMN())),"") ->  | BM31: =IFERROR(HYPERLINK(MapEvent_MouseOver(ROW(),COLUMN())),"") ->  | BN31: =IFERROR(HYPERLINK(MapEvent_MouseOver(ROW(),COLUMN())),"") ->  | BO31: =IFERROR(HYPERLINK(MapEvent_MouseOver(ROW(),COLUMN())),"") ->  | BP31: =IFERROR(HYPERLINK(MapEvent_MouseOver(ROW(),COLUMN())),"") ->  | BQ31: =IFERROR(HYPERLINK(MapEvent_MouseOver(ROW(),COLUMN())),"") ->  | BR31: =IFERROR(HYPERLINK(MapEvent_MouseOver(ROW(),COLUMN())),"") ->  | BS31: =IFERROR(HYPERLINK(MapEvent_MouseOver(ROW(),COLUMN())),"") ->  | BT31: =IFERROR(HYPERLINK(MapEvent_MouseOver(ROW(),COLUMN())),"") ->  | BU31: =IFERROR(HYPERLINK(MapEvent_MouseOver(ROW(),COLUMN())),"") ->  | BV31: =IFERROR(HYPERLINK(MapEvent_MouseOver(ROW(),COLUMN())),"") ->  | BW31: =IFERROR(HYPERLINK(MapEvent_MouseOver(ROW(),COLUMN())),"") ->  | BX31: =IFERROR(HYPERLINK(MapEvent_MouseOver(ROW(),COLUMN())),"") ->  | BY31: =IFERROR(HYPERLINK(MapEvent_MouseOver(ROW(),COLUMN())),"") ->  | BZ31: =IFERROR(HYPERLINK(MapEvent_MouseOver(ROW(),COLUMN())),"") ->  | CA31: =IFERROR(HYPERLINK(MapEvent_MouseOver(ROW(),COLUMN())),"") ->  | CB31: =IFERROR(HYPERLINK(MapEvent_MouseOver(ROW(),COLUMN())),"") ->  | CC31: =IFERROR(HYPERLINK(MapEvent_MouseOver(ROW(),COLUMN())),"") ->  | CD31: =IFERROR(HYPERLINK(MapEvent_MouseOver(ROW(),COLUMN())),"") ->  | CE31: =IFERROR(HYPERLINK(MapEvent_MouseOver(ROW(),COLUMN())),"") ->  | CF31: =IFERROR(HYPERLINK(MapEvent_MouseOver(ROW(),COLUMN())),"") ->  | CG31: =IFERROR(HYPERLINK(MapEvent_MouseOver(ROW(),COLUMN())),"") ->  | CH31: =IFERROR(HYPERLINK(MapEvent_MouseOver(ROW(),COLUMN())),"") ->  | CI31: =IFERROR(HYPERLINK(MapEvent_MouseOver(ROW(),COLUMN())),"") ->  | CJ31: =IFERROR(HYPERLINK(MapEvent_MouseOver(ROW(),COLUMN())),"") ->  | CK31: =IFERROR(HYPERLINK(MapEvent_MouseOver(ROW(),COLUMN())),"") ->  | CL31: =IFERROR(HYPERLINK(MapEvent_MouseOver(ROW(),COLUMN())),"") -> 
V32: =IFERROR(HYPERLINK(MapEvent_MouseOver(ROW(),COLUMN())),"") ->  | W32: =IFERROR(HYPERLINK(MapEvent_MouseOver(ROW(),COLUMN())),"") ->  | X32: =IFERROR(HYPERLINK(MapEvent_MouseOver(ROW(),COLUMN())),"") ->  | Y32: =IFERROR(HYPERLINK(MapEvent_MouseOver(ROW(),COLUMN())),"") ->  | Z32: =IFERROR(HYPERLINK(MapEvent_MouseOver(ROW(),COLUMN())),"") ->  | AA32: =IFERROR(HYPERLINK(MapEvent_MouseOver(ROW(),COLUMN())),"") ->  | AB32: =IFERROR(HYPERLINK(MapEvent_MouseOver(ROW(),COLUMN())),"") ->  | AC32: =IFERROR(HYPERLINK(MapEvent_MouseOver(ROW(),COLUMN())),"") ->  | AD32: =IFERROR(HYPERLINK(MapEvent_MouseOver(ROW(),COLUMN())),"") ->  | AE32: =IFERROR(HYPERLINK(MapEvent_MouseOver(ROW(),COLUMN())),"") ->  | AF32: =IFERROR(HYPERLINK(MapEvent_MouseOver(ROW(),COLUMN())),"") ->  | AG32: =IFERROR(HYPERLINK(MapEvent_MouseOver(ROW(),COLUMN())),"") ->  | AH32: =IFERROR(HYPERLINK(MapEvent_MouseOver(ROW(),COLUMN())),"") ->  | AI32: =IFERROR(HYPERLINK(MapEvent_MouseOver(ROW(),COLUMN())),"") ->  | AJ32: =IFERROR(HYPERLINK(MapEvent_MouseOver(ROW(),COLUMN())),"") ->  | AK32: =IFERROR(HYPERLINK(MapEvent_MouseOver(ROW(),COLUMN())),"") ->  | AL32: =IFERROR(HYPERLINK(MapEvent_MouseOver(ROW(),COLUMN())),"") ->  | AM32: =IFERROR(HYPERLINK(MapEvent_MouseOver(ROW(),COLUMN())),"") ->  | AN32: =IFERROR(HYPERLINK(MapEvent_MouseOver(ROW(),COLUMN())),"") ->  | AO32: =IFERROR(HYPERLINK(MapEvent_MouseOver(ROW(),COLUMN())),"") ->  | AP32: =IFERROR(HYPERLINK(MapEvent_MouseOver(ROW(),COLUMN())),"") ->  | AQ32: =IFERROR(HYPERLINK(MapEvent_MouseOver(ROW(),COLUMN())),"") ->  | AR32: =IFERROR(HYPERLINK(MapEvent_MouseOver(ROW(),COLUMN())),"") ->  | AS32: =IFERROR(HYPERLINK(MapEvent_MouseOver(ROW(),COLUMN())),"") ->  | AT32: =IFERROR(HYPERLINK(MapEvent_MouseOver(ROW(),COLUMN())),"") ->  | AU32: =IFERROR(HYPERLINK(MapEvent_MouseOver(ROW(),COLUMN())),"") ->  | AV32: =IFERROR(HYPERLINK(MapEvent_MouseOver(ROW(),COLUMN())),"") ->  | AW32: =IFERROR(HYPERLINK(MapEvent_MouseOver(ROW(),COLUMN())),"") ->  | AX32: =IFERROR(HYPERLINK(MapEvent_MouseOver(ROW(),COLUMN())),"") ->  | AY32: =IFERROR(HYPERLINK(MapEvent_MouseOver(ROW(),COLUMN())),"") ->  | AZ32: =IFERROR(HYPERLINK(MapEvent_MouseOver(ROW(),COLUMN())),"") ->  | BA32: =IFERROR(HYPERLINK(MapEvent_MouseOver(ROW(),COLUMN())),"") ->  | BB32: =IFERROR(HYPERLINK(MapEvent_MouseOver(ROW(),COLUMN())),"") ->  | BC32: =IFERROR(HYPERLINK(MapEvent_MouseOver(ROW(),COLUMN())),"") ->  | BD32: =IFERROR(HYPERLINK(MapEvent_MouseOver(ROW(),COLUMN())),"") ->  | BE32: =IFERROR(HYPERLINK(MapEvent_MouseOver(ROW(),COLUMN())),"") ->  | BF32: =IFERROR(HYPERLINK(MapEvent_MouseOver(ROW(),COLUMN())),"") ->  | BG32: =IFERROR(HYPERLINK(MapEvent_MouseOver(ROW(),COLUMN())),"") ->  | BH32: =IFERROR(HYPERLINK(MapEvent_MouseOver(ROW(),COLUMN())),"") ->  | BI32: =IFERROR(HYPERLINK(MapEvent_MouseOver(ROW(),COLUMN())),"") ->  | BJ32: =IFERROR(HYPERLINK(MapEvent_MouseOver(ROW(),COLUMN())),"") ->  | BK32: =IFERROR(HYPERLINK(MapEvent_MouseOver(ROW(),COLUMN())),"") ->  | BL32: =IFERROR(HYPERLINK(MapEvent_MouseOver(ROW(),COLUMN())),"") ->  | BM32: =IFERROR(HYPERLINK(MapEvent_MouseOver(ROW(),COLUMN())),"") ->  | BN32: =IFERROR(HYPERLINK(MapEvent_MouseOver(ROW(),COLUMN())),"") ->  | BO32: =IFERROR(HYPERLINK(MapEvent_MouseOver(ROW(),COLUMN())),"") ->  | BP32: =IFERROR(HYPERLINK(MapEvent_MouseOver(ROW(),COLUMN())),"") ->  | BQ32: =IFERROR(HYPERLINK(MapEvent_MouseOver(ROW(),COLUMN())),"") ->  | BR32: =IFERROR(HYPERLINK(MapEvent_MouseOver(ROW(),COLUMN())),"") ->  | BS32: =IFERROR(HYPERLINK(MapEvent_MouseOver(ROW(),COLUMN())),"") ->  | BT32: =IFERROR(HYPERLINK(MapEvent_MouseOver(ROW(),COLUMN())),"") ->  | BU32: =IFERROR(HYPERLINK(MapEvent_MouseOver(ROW(),COLUMN())),"") ->  | BV32: =IFERROR(HYPERLINK(MapEvent_MouseOver(ROW(),COLUMN())),"") ->  | BW32: =IFERROR(HYPERLINK(MapEvent_MouseOver(ROW(),COLUMN())),"") ->  | BX32: =IFERROR(HYPERLINK(MapEvent_MouseOver(ROW(),COLUMN())),"") ->  | BY32: =IFERROR(HYPERLINK(MapEvent_MouseOver(ROW(),COLUMN())),"") ->  | BZ32: =IFERROR(HYPERLINK(MapEvent_MouseOver(ROW(),COLUMN())),"") ->  | CA32: =IFERROR(HYPERLINK(MapEvent_MouseOver(ROW(),COLUMN())),"") ->  | CB32: =IFERROR(HYPERLINK(MapEvent_MouseOver(ROW(),COLUMN())),"") ->  | CC32: =IFERROR(HYPERLINK(MapEvent_MouseOver(ROW(),COLUMN())),"") ->  | CD32: =IFERROR(HYPERLINK(MapEvent_MouseOver(ROW(),COLUMN())),"") ->  | CE32: =IFERROR(HYPERLINK(MapEvent_MouseOver(ROW(),COLUMN())),"") ->  | CF32: =IFERROR(HYPERLINK(MapEvent_MouseOver(ROW(),COLUMN())),"") ->  | CG32: =IFERROR(HYPERLINK(MapEvent_MouseOver(ROW(),COLUMN())),"") ->  | CH32: =IFERROR(HYPERLINK(MapEvent_MouseOver(ROW(),COLUMN())),"") ->  | CI32: =IFERROR(HYPERLINK(MapEvent_MouseOver(ROW(),COLUMN())),"") ->  | CJ32: =IFERROR(HYPERLINK(MapEvent_MouseOver(ROW(),COLUMN())),"") ->  | CK32: =IFERROR(HYPERLINK(MapEvent_MouseOver(ROW(),COLUMN())),"") ->  | CL32: =IFERROR(HYPERLINK(MapEvent_MouseOver(ROW(),COLUMN())),"") -> 
V33: =IFERROR(HYPERLINK(MapEvent_MouseOver(ROW(),COLUMN())),"") ->  | W33: =IFERROR(HYPERLINK(MapEvent_MouseOver(ROW(),COLUMN())),"") ->  | X33: =IFERROR(HYPERLINK(MapEvent_MouseOver(ROW(),COLUMN())),"") ->  | Y33: =IFERROR(HYPERLINK(MapEvent_MouseOver(ROW(),COLUMN())),"") ->  | Z33: =IFERROR(HYPERLINK(MapEvent_MouseOver(ROW(),COLUMN())),"") ->  | AA33: =IFERROR(HYPERLINK(MapEvent_MouseOver(ROW(),COLUMN())),"") ->  | AB33: =IFERROR(HYPERLINK(MapEvent_MouseOver(ROW(),COLUMN())),"") ->  | AC33: =IFERROR(HYPERLINK(MapEvent_MouseOver(ROW(),COLUMN())),"") ->  | AD33: =IFERROR(HYPERLINK(MapEvent_MouseOver(ROW(),COLUMN())),"") ->  | AE33: =IFERROR(HYPERLINK(MapEvent_MouseOver(ROW(),COLUMN())),"") ->  | AF33: =IFERROR(HYPERLINK(MapEvent_MouseOver(ROW(),COLUMN())),"") ->  | AG33: =IFERROR(HYPERLINK(MapEvent_MouseOver(ROW(),COLUMN())),"") ->  | AH33: =IFERROR(HYPERLINK(MapEvent_MouseOver(ROW(),COLUMN())),"") ->  | AI33: =IFERROR(HYPERLINK(MapEvent_MouseOver(ROW(),COLUMN())),"") ->  | AJ33: =IFERROR(HYPERLINK(MapEvent_MouseOver(ROW(),COLUMN())),"") ->  | AK33: =IFERROR(HYPERLINK(MapEvent_MouseOver(ROW(),COLUMN())),"") ->  | AL33: =IFERROR(HYPERLINK(MapEvent_MouseOver(ROW(),COLUMN())),"") ->  | AM33: =IFERROR(HYPERLINK(MapEvent_MouseOver(ROW(),COLUMN())),"") ->  | AN33: =IFERROR(HYPERLINK(MapEvent_MouseOver(ROW(),COLUMN())),"") ->  | AO33: =IFERROR(HYPERLINK(MapEvent_MouseOver(ROW(),COLUMN())),"") ->  | AP33: =IFERROR(HYPERLINK(MapEvent_MouseOver(ROW(),COLUMN())),"") ->  | AQ33: =IFERROR(HYPERLINK(MapEvent_MouseOver(ROW(),COLUMN())),"") ->  | AR33: =IFERROR(HYPERLINK(MapEvent_MouseOver(ROW(),COLUMN())),"") ->  | AS33: =IFERROR(HYPERLINK(MapEvent_MouseOver(ROW(),COLUMN())),"") ->  | AT33: =IFERROR(HYPERLINK(MapEvent_MouseOver(ROW(),COLUMN())),"") ->  | AU33: =IFERROR(HYPERLINK(MapEvent_MouseOver(ROW(),COLUMN())),"") ->  | AV33: =IFERROR(HYPERLINK(MapEvent_MouseOver(ROW(),COLUMN())),"") ->  | AW33: =IFERROR(HYPERLINK(MapEvent_MouseOver(ROW(),COLUMN())),"") ->  | AX33: =IFERROR(HYPERLINK(MapEvent_MouseOver(ROW(),COLUMN())),"") ->  | AY33: =IFERROR(HYPERLINK(MapEvent_MouseOver(ROW(),COLUMN())),"") ->  | AZ33: =IFERROR(HYPERLINK(MapEvent_MouseOver(ROW(),COLUMN())),"") ->  | BA33: =IFERROR(HYPERLINK(MapEvent_MouseOver(ROW(),COLUMN())),"") ->  | BB33: =IFERROR(HYPERLINK(MapEvent_MouseOver(ROW(),COLUMN())),"") ->  | BC33: =IFERROR(HYPERLINK(MapEvent_MouseOver(ROW(),COLUMN())),"") ->  | BD33: =IFERROR(HYPERLINK(MapEvent_MouseOver(ROW(),COLUMN())),"") ->  | BE33: =IFERROR(HYPERLINK(MapEvent_MouseOver(ROW(),COLUMN())),"") ->  | BF33: =IFERROR(HYPERLINK(MapEvent_MouseOver(ROW(),COLUMN())),"") ->  | BG33: =IFERROR(HYPERLINK(MapEvent_MouseOver(ROW(),COLUMN())),"") ->  | BH33: =IFERROR(HYPERLINK(MapEvent_MouseOver(ROW(),COLUMN())),"") ->  | BI33: =IFERROR(HYPERLINK(MapEvent_MouseOver(ROW(),COLUMN())),"") ->  | BJ33: =IFERROR(HYPERLINK(MapEvent_MouseOver(ROW(),COLUMN())),"") ->  | BK33: =IFERROR(HYPERLINK(MapEvent_MouseOver(ROW(),COLUMN())),"") ->  | BL33: =IFERROR(HYPERLINK(MapEvent_MouseOver(ROW(),COLUMN())),"") ->  | BM33: =IFERROR(HYPERLINK(MapEvent_MouseOver(ROW(),COLUMN())),"") ->  | BN33: =IFERROR(HYPERLINK(MapEvent_MouseOver(ROW(),COLUMN())),"") ->  | BO33: =IFERROR(HYPERLINK(MapEvent_MouseOver(ROW(),COLUMN())),"") ->  | BP33: =IFERROR(HYPERLINK(MapEvent_MouseOver(ROW(),COLUMN())),"") ->  | BQ33: =IFERROR(HYPERLINK(MapEvent_MouseOver(ROW(),COLUMN())),"") ->  | BR33: =IFERROR(HYPERLINK(MapEvent_MouseOver(ROW(),COLUMN())),"") ->  | BS33: =IFERROR(HYPERLINK(MapEvent_MouseOver(ROW(),COLUMN())),"") ->  | BT33: =IFERROR(HYPERLINK(MapEvent_MouseOver(ROW(),COLUMN())),"") ->  | BU33: =IFERROR(HYPERLINK(MapEvent_MouseOver(ROW(),COLUMN())),"") ->  | BV33: =IFERROR(HYPERLINK(MapEvent_MouseOver(ROW(),COLUMN())),"") ->  | BW33: =IFERROR(HYPERLINK(MapEvent_MouseOver(ROW(),COLUMN())),"") ->  | BX33: =IFERROR(HYPERLINK(MapEvent_MouseOver(ROW(),COLUMN())),"") ->  | BY33: =IFERROR(HYPERLINK(MapEvent_MouseOver(ROW(),COLUMN())),"") ->  | BZ33: =IFERROR(HYPERLINK(MapEvent_MouseOver(ROW(),COLUMN())),"") ->  | CA33: =IFERROR(HYPERLINK(MapEvent_MouseOver(ROW(),COLUMN())),"") ->  | CB33: =IFERROR(HYPERLINK(MapEvent_MouseOver(ROW(),COLUMN())),"") ->  | CC33: =IFERROR(HYPERLINK(MapEvent_MouseOver(ROW(),COLUMN())),"") ->  | CD33: =IFERROR(HYPERLINK(MapEvent_MouseOver(ROW(),COLUMN())),"") ->  | CE33: =IFERROR(HYPERLINK(MapEvent_MouseOver(ROW(),COLUMN())),"") ->  | CF33: =IFERROR(HYPERLINK(MapEvent_MouseOver(ROW(),COLUMN())),"") ->  | CG33: =IFERROR(HYPERLINK(MapEvent_MouseOver(ROW(),COLUMN())),"") ->  | CH33: =IFERROR(HYPERLINK(MapEvent_MouseOver(ROW(),COLUMN())),"") ->  | CI33: =IFERROR(HYPERLINK(MapEvent_MouseOver(ROW(),COLUMN())),"") ->  | CJ33: =IFERROR(HYPERLINK(MapEvent_MouseOver(ROW(),COLUMN())),"") ->  | CK33: =IFERROR(HYPERLINK(MapEvent_MouseOver(ROW(),COLUMN())),"") ->  | CL33: =IFERROR(HYPERLINK(MapEvent_MouseOver(ROW(),COLUMN())),"") -> 
V34: =IFERROR(HYPERLINK(MapEvent_MouseOver(ROW(),COLUMN())),"") ->  | W34: =IFERROR(HYPERLINK(MapEvent_MouseOver(ROW(),COLUMN())),"") ->  | X34: =IFERROR(HYPERLINK(MapEvent_MouseOver(ROW(),COLUMN())),"") ->  | Y34: =IFERROR(HYPERLINK(MapEvent_MouseOver(ROW(),COLUMN())),"") ->  | Z34: =IFERROR(HYPERLINK(MapEvent_MouseOver(ROW(),COLUMN())),"") ->  | AA34: =IFERROR(HYPERLINK(MapEvent_MouseOver(ROW(),COLUMN())),"") ->  | AB34: =IFERROR(HYPERLINK(MapEvent_MouseOver(ROW(),COLUMN())),"") ->  | AC34: =IFERROR(HYPERLINK(MapEvent_MouseOver(ROW(),COLUMN())),"") ->  | AD34: =IFERROR(HYPERLINK(MapEvent_MouseOver(ROW(),COLUMN())),"") ->  | AE34: =IFERROR(HYPERLINK(MapEvent_MouseOver(ROW(),COLUMN())),"") ->  | AF34: =IFERROR(HYPERLINK(MapEvent_MouseOver(ROW(),COLUMN())),"") ->  | AG34: =IFERROR(HYPERLINK(MapEvent_MouseOver(ROW(),COLUMN())),"") ->  | AH34: =IFERROR(HYPERLINK(MapEvent_MouseOver(ROW(),COLUMN())),"") ->  | AI34: =IFERROR(HYPERLINK(MapEvent_MouseOver(ROW(),COLUMN())),"") ->  | AJ34: =IFERROR(HYPERLINK(MapEvent_MouseOver(ROW(),COLUMN())),"") ->  | AK34: =IFERROR(HYPERLINK(MapEvent_MouseOver(ROW(),COLUMN())),"") ->  | AL34: =IFERROR(HYPERLINK(MapEvent_MouseOver(ROW(),COLUMN())),"") ->  | AM34: =IFERROR(HYPERLINK(MapEvent_MouseOver(ROW(),COLUMN())),"") ->  | AN34: =IFERROR(HYPERLINK(MapEvent_MouseOver(ROW(),COLUMN())),"") ->  | AO34: =IFERROR(HYPERLINK(MapEvent_MouseOver(ROW(),COLUMN())),"") ->  | AP34: =IFERROR(HYPERLINK(MapEvent_MouseOver(ROW(),COLUMN())),"") ->  | AQ34: =IFERROR(HYPERLINK(MapEvent_MouseOver(ROW(),COLUMN())),"") ->  | AR34: =IFERROR(HYPERLINK(MapEvent_MouseOver(ROW(),COLUMN())),"") ->  | AS34: =IFERROR(HYPERLINK(MapEvent_MouseOver(ROW(),COLUMN())),"") ->  | AT34: =IFERROR(HYPERLINK(MapEvent_MouseOver(ROW(),COLUMN())),"") ->  | AU34: =IFERROR(HYPERLINK(MapEvent_MouseOver(ROW(),COLUMN())),"") ->  | AV34: =IFERROR(HYPERLINK(MapEvent_MouseOver(ROW(),COLUMN())),"") ->  | AW34: =IFERROR(HYPERLINK(MapEvent_MouseOver(ROW(),COLUMN())),"") ->  | AX34: =IFERROR(HYPERLINK(MapEvent_MouseOver(ROW(),COLUMN())),"") ->  | AY34: =IFERROR(HYPERLINK(MapEvent_MouseOver(ROW(),COLUMN())),"") ->  | AZ34: =IFERROR(HYPERLINK(MapEvent_MouseOver(ROW(),COLUMN())),"") ->  | BA34: =IFERROR(HYPERLINK(MapEvent_MouseOver(ROW(),COLUMN())),"") ->  | BB34: =IFERROR(HYPERLINK(MapEvent_MouseOver(ROW(),COLUMN())),"") ->  | BC34: =IFERROR(HYPERLINK(MapEvent_MouseOver(ROW(),COLUMN())),"") ->  | BD34: =IFERROR(HYPERLINK(MapEvent_MouseOver(ROW(),COLUMN())),"") ->  | BE34: =IFERROR(HYPERLINK(MapEvent_MouseOver(ROW(),COLUMN())),"") ->  | BF34: =IFERROR(HYPERLINK(MapEvent_MouseOver(ROW(),COLUMN())),"") ->  | BG34: =IFERROR(HYPERLINK(MapEvent_MouseOver(ROW(),COLUMN())),"") ->  | BH34: =IFERROR(HYPERLINK(MapEvent_MouseOver(ROW(),COLUMN())),"") ->  | BI34: =IFERROR(HYPERLINK(MapEvent_MouseOver(ROW(),COLUMN())),"") ->  | BJ34: =IFERROR(HYPERLINK(MapEvent_MouseOver(ROW(),COLUMN())),"") ->  | BK34: =IFERROR(HYPERLINK(MapEvent_MouseOver(ROW(),COLUMN())),"") ->  | BL34: =IFERROR(HYPERLINK(MapEvent_MouseOver(ROW(),COLUMN())),"") ->  | BM34: =IFERROR(HYPERLINK(MapEvent_MouseOver(ROW(),COLUMN())),"") ->  | BN34: =IFERROR(HYPERLINK(MapEvent_MouseOver(ROW(),COLUMN())),"") ->  | BO34: =IFERROR(HYPERLINK(MapEvent_MouseOver(ROW(),COLUMN())),"") ->  | BP34: =IFERROR(HYPERLINK(MapEvent_MouseOver(ROW(),COLUMN())),"") ->  | BQ34: =IFERROR(HYPERLINK(MapEvent_MouseOver(ROW(),COLUMN())),"") ->  | BR34: =IFERROR(HYPERLINK(MapEvent_MouseOver(ROW(),COLUMN())),"") ->  | BS34: =IFERROR(HYPERLINK(MapEvent_MouseOver(ROW(),COLUMN())),"") ->  | BT34: =IFERROR(HYPERLINK(MapEvent_MouseOver(ROW(),COLUMN())),"") ->  | BU34: =IFERROR(HYPERLINK(MapEvent_MouseOver(ROW(),COLUMN())),"") ->  | BV34: =IFERROR(HYPERLINK(MapEvent_MouseOver(ROW(),COLUMN())),"") ->  | BW34: =IFERROR(HYPERLINK(MapEvent_MouseOver(ROW(),COLUMN())),"") ->  | BX34: =IFERROR(HYPERLINK(MapEvent_MouseOver(ROW(),COLUMN())),"") ->  | BY34: =IFERROR(HYPERLINK(MapEvent_MouseOver(ROW(),COLUMN())),"") ->  | BZ34: =IFERROR(HYPERLINK(MapEvent_MouseOver(ROW(),COLUMN())),"") ->  | CA34: =IFERROR(HYPERLINK(MapEvent_MouseOver(ROW(),COLUMN())),"") ->  | CB34: =IFERROR(HYPERLINK(MapEvent_MouseOver(ROW(),COLUMN())),"") ->  | CC34: =IFERROR(HYPERLINK(MapEvent_MouseOver(ROW(),COLUMN())),"") ->  | CD34: =IFERROR(HYPERLINK(MapEvent_MouseOver(ROW(),COLUMN())),"") ->  | CE34: =IFERROR(HYPERLINK(MapEvent_MouseOver(ROW(),COLUMN())),"") ->  | CF34: =IFERROR(HYPERLINK(MapEvent_MouseOver(ROW(),COLUMN())),"") ->  | CG34: =IFERROR(HYPERLINK(MapEvent_MouseOver(ROW(),COLUMN())),"") ->  | CH34: =IFERROR(HYPERLINK(MapEvent_MouseOver(ROW(),COLUMN())),"") ->  | CI34: =IFERROR(HYPERLINK(MapEvent_MouseOver(ROW(),COLUMN())),"") ->  | CJ34: =IFERROR(HYPERLINK(MapEvent_MouseOver(ROW(),COLUMN())),"") ->  | CK34: =IFERROR(HYPERLINK(MapEvent_MouseOver(ROW(),COLUMN())),"") ->  | CL34: =IFERROR(HYPERLINK(MapEvent_MouseOver(ROW(),COLUMN())),"") -> 
V35: =IFERROR(HYPERLINK(MapEvent_MouseOver(ROW(),COLUMN())),"") ->  | W35: =IFERROR(HYPERLINK(MapEvent_MouseOver(ROW(),COLUMN())),"") ->  | X35: =IFERROR(HYPERLINK(MapEvent_MouseOver(ROW(),COLUMN())),"") ->  | Y35: =IFERROR(HYPERLINK(MapEvent_MouseOver(ROW(),COLUMN())),"") ->  | Z35: =IFERROR(HYPERLINK(MapEvent_MouseOver(ROW(),COLUMN())),"") ->  | AA35: =IFERROR(HYPERLINK(MapEvent_MouseOver(ROW(),COLUMN())),"") ->  | AB35: =IFERROR(HYPERLINK(MapEvent_MouseOver(ROW(),COLUMN())),"") ->  | AC35: =IFERROR(HYPERLINK(MapEvent_MouseOver(ROW(),COLUMN())),"") ->  | AD35: =IFERROR(HYPERLINK(MapEvent_MouseOver(ROW(),COLUMN())),"") ->  | AE35: =IFERROR(HYPERLINK(MapEvent_MouseOver(ROW(),COLUMN())),"") ->  | AF35: =IFERROR(HYPERLINK(MapEvent_MouseOver(ROW(),COLUMN())),"") ->  | AG35: =IFERROR(HYPERLINK(MapEvent_MouseOver(ROW(),COLUMN())),"") ->  | AH35: =IFERROR(HYPERLINK(MapEvent_MouseOver(ROW(),COLUMN())),"") ->  | AI35: =IFERROR(HYPERLINK(MapEvent_MouseOver(ROW(),COLUMN())),"") ->  | AJ35: =IFERROR(HYPERLINK(MapEvent_MouseOver(ROW(),COLUMN())),"") ->  | AK35: =IFERROR(HYPERLINK(MapEvent_MouseOver(ROW(),COLUMN())),"") ->  | AL35: =IFERROR(HYPERLINK(MapEvent_MouseOver(ROW(),COLUMN())),"") ->  | AM35: =IFERROR(HYPERLINK(MapEvent_MouseOver(ROW(),COLUMN())),"") ->  | AN35: =IFERROR(HYPERLINK(MapEvent_MouseOver(ROW(),COLUMN())),"") ->  | AO35: =IFERROR(HYPERLINK(MapEvent_MouseOver(ROW(),COLUMN())),"") ->  | AP35: =IFERROR(HYPERLINK(MapEvent_MouseOver(ROW(),COLUMN())),"") ->  | AQ35: =IFERROR(HYPERLINK(MapEvent_MouseOver(ROW(),COLUMN())),"") ->  | AR35: =IFERROR(HYPERLINK(MapEvent_MouseOver(ROW(),COLUMN())),"") ->  | AS35: =IFERROR(HYPERLINK(MapEvent_MouseOver(ROW(),COLUMN())),"") ->  | AT35: =IFERROR(HYPERLINK(MapEvent_MouseOver(ROW(),COLUMN())),"") ->  | AU35: =IFERROR(HYPERLINK(MapEvent_MouseOver(ROW(),COLUMN())),"") ->  | AV35: =IFERROR(HYPERLINK(MapEvent_MouseOver(ROW(),COLUMN())),"") ->  | AW35: =IFERROR(HYPERLINK(MapEvent_MouseOver(ROW(),COLUMN())),"") ->  | AX35: =IFERROR(HYPERLINK(MapEvent_MouseOver(ROW(),COLUMN())),"") ->  | AY35: =IFERROR(HYPERLINK(MapEvent_MouseOver(ROW(),COLUMN())),"") ->  | AZ35: =IFERROR(HYPERLINK(MapEvent_MouseOver(ROW(),COLUMN())),"") ->  | BA35: =IFERROR(HYPERLINK(MapEvent_MouseOver(ROW(),COLUMN())),"") ->  | BB35: =IFERROR(HYPERLINK(MapEvent_MouseOver(ROW(),COLUMN())),"") ->  | BC35: =IFERROR(HYPERLINK(MapEvent_MouseOver(ROW(),COLUMN())),"") ->  | BD35: =IFERROR(HYPERLINK(MapEvent_MouseOver(ROW(),COLUMN())),"") ->  | BE35: =IFERROR(HYPERLINK(MapEvent_MouseOver(ROW(),COLUMN())),"") ->  | BF35: =IFERROR(HYPERLINK(MapEvent_MouseOver(ROW(),COLUMN())),"") ->  | BG35: =IFERROR(HYPERLINK(MapEvent_MouseOver(ROW(),COLUMN())),"") ->  | BH35: =IFERROR(HYPERLINK(MapEvent_MouseOver(ROW(),COLUMN())),"") ->  | BI35: =IFERROR(HYPERLINK(MapEvent_MouseOver(ROW(),COLUMN())),"") ->  | BJ35: =IFERROR(HYPERLINK(MapEvent_MouseOver(ROW(),COLUMN())),"") ->  | BK35: =IFERROR(HYPERLINK(MapEvent_MouseOver(ROW(),COLUMN())),"") ->  | BL35: =IFERROR(HYPERLINK(MapEvent_MouseOver(ROW(),COLUMN())),"") ->  | BM35: =IFERROR(HYPERLINK(MapEvent_MouseOver(ROW(),COLUMN())),"") ->  | BN35: =IFERROR(HYPERLINK(MapEvent_MouseOver(ROW(),COLUMN())),"") ->  | BO35: =IFERROR(HYPERLINK(MapEvent_MouseOver(ROW(),COLUMN())),"") ->  | BP35: =IFERROR(HYPERLINK(MapEvent_MouseOver(ROW(),COLUMN())),"") ->  | BQ35: =IFERROR(HYPERLINK(MapEvent_MouseOver(ROW(),COLUMN())),"") ->  | BR35: =IFERROR(HYPERLINK(MapEvent_MouseOver(ROW(),COLUMN())),"") ->  | BS35: =IFERROR(HYPERLINK(MapEvent_MouseOver(ROW(),COLUMN())),"") ->  | BT35: =IFERROR(HYPERLINK(MapEvent_MouseOver(ROW(),COLUMN())),"") ->  | BU35: =IFERROR(HYPERLINK(MapEvent_MouseOver(ROW(),COLUMN())),"") ->  | BV35: =IFERROR(HYPERLINK(MapEvent_MouseOver(ROW(),COLUMN())),"") ->  | BW35: =IFERROR(HYPERLINK(MapEvent_MouseOver(ROW(),COLUMN())),"") ->  | BX35: =IFERROR(HYPERLINK(MapEvent_MouseOver(ROW(),COLUMN())),"") ->  | BY35: =IFERROR(HYPERLINK(MapEvent_MouseOver(ROW(),COLUMN())),"") ->  | BZ35: =IFERROR(HYPERLINK(MapEvent_MouseOver(ROW(),COLUMN())),"") ->  | CA35: =IFERROR(HYPERLINK(MapEvent_MouseOver(ROW(),COLUMN())),"") ->  | CB35: =IFERROR(HYPERLINK(MapEvent_MouseOver(ROW(),COLUMN())),"") ->  | CC35: =IFERROR(HYPERLINK(MapEvent_MouseOver(ROW(),COLUMN())),"") ->  | CD35: =IFERROR(HYPERLINK(MapEvent_MouseOver(ROW(),COLUMN())),"") ->  | CE35: =IFERROR(HYPERLINK(MapEvent_MouseOver(ROW(),COLUMN())),"") ->  | CF35: =IFERROR(HYPERLINK(MapEvent_MouseOver(ROW(),COLUMN())),"") ->  | CG35: =IFERROR(HYPERLINK(MapEvent_MouseOver(ROW(),COLUMN())),"") ->  | CH35: =IFERROR(HYPERLINK(MapEvent_MouseOver(ROW(),COLUMN())),"") ->  | CI35: =IFERROR(HYPERLINK(MapEvent_MouseOver(ROW(),COLUMN())),"") ->  | CJ35: =IFERROR(HYPERLINK(MapEvent_MouseOver(ROW(),COLUMN())),"") ->  | CK35: =IFERROR(HYPERLINK(MapEvent_MouseOver(ROW(),COLUMN())),"") ->  | CL35: =IFERROR(HYPERLINK(MapEvent_MouseOver(ROW(),COLUMN())),"") -> 
V36: =IFERROR(HYPERLINK(MapEvent_MouseOver(ROW(),COLUMN())),"") ->  | W36: =IFERROR(HYPERLINK(MapEvent_MouseOver(ROW(),COLUMN())),"") ->  | X36: =IFERROR(HYPERLINK(MapEvent_MouseOver(ROW(),COLUMN())),"") ->  | Y36: =IFERROR(HYPERLINK(MapEvent_MouseOver(ROW(),COLUMN())),"") ->  | Z36: =IFERROR(HYPERLINK(MapEvent_MouseOver(ROW(),COLUMN())),"") ->  | AA36: =IFERROR(HYPERLINK(MapEvent_MouseOver(ROW(),COLUMN())),"") ->  | AB36: =IFERROR(HYPERLINK(MapEvent_MouseOver(ROW(),COLUMN())),"") ->  | AC36: =IFERROR(HYPERLINK(MapEvent_MouseOver(ROW(),COLUMN())),"") ->  | AD36: =IFERROR(HYPERLINK(MapEvent_MouseOver(ROW(),COLUMN())),"") ->  | AE36: =IFERROR(HYPERLINK(MapEvent_MouseOver(ROW(),COLUMN())),"") ->  | AF36: =IFERROR(HYPERLINK(MapEvent_MouseOver(ROW(),COLUMN())),"") ->  | AG36: =IFERROR(HYPERLINK(MapEvent_MouseOver(ROW(),COLUMN())),"") ->  | AH36: =IFERROR(HYPERLINK(MapEvent_MouseOver(ROW(),COLUMN())),"") ->  | AI36: =IFERROR(HYPERLINK(MapEvent_MouseOver(ROW(),COLUMN())),"") ->  | AJ36: =IFERROR(HYPERLINK(MapEvent_MouseOver(ROW(),COLUMN())),"") ->  | AK36: =IFERROR(HYPERLINK(MapEvent_MouseOver(ROW(),COLUMN())),"") ->  | AL36: =IFERROR(HYPERLINK(MapEvent_MouseOver(ROW(),COLUMN())),"") ->  | AM36: =IFERROR(HYPERLINK(MapEvent_MouseOver(ROW(),COLUMN())),"") ->  | AN36: =IFERROR(HYPERLINK(MapEvent_MouseOver(ROW(),COLUMN())),"") ->  | AO36: =IFERROR(HYPERLINK(MapEvent_MouseOver(ROW(),COLUMN())),"") ->  | AP36: =IFERROR(HYPERLINK(MapEvent_MouseOver(ROW(),COLUMN())),"") ->  | AQ36: =IFERROR(HYPERLINK(MapEvent_MouseOver(ROW(),COLUMN())),"") ->  | AR36: =IFERROR(HYPERLINK(MapEvent_MouseOver(ROW(),COLUMN())),"") ->  | AS36: =IFERROR(HYPERLINK(MapEvent_MouseOver(ROW(),COLUMN())),"") ->  | AT36: =IFERROR(HYPERLINK(MapEvent_MouseOver(ROW(),COLUMN())),"") ->  | AU36: =IFERROR(HYPERLINK(MapEvent_MouseOver(ROW(),COLUMN())),"") ->  | AV36: =IFERROR(HYPERLINK(MapEvent_MouseOver(ROW(),COLUMN())),"") ->  | AW36: =IFERROR(HYPERLINK(MapEvent_MouseOver(ROW(),COLUMN())),"") ->  | AX36: =IFERROR(HYPERLINK(MapEvent_MouseOver(ROW(),COLUMN())),"") ->  | AY36: =IFERROR(HYPERLINK(MapEvent_MouseOver(ROW(),COLUMN())),"") ->  | AZ36: =IFERROR(HYPERLINK(MapEvent_MouseOver(ROW(),COLUMN())),"") ->  | BA36: =IFERROR(HYPERLINK(MapEvent_MouseOver(ROW(),COLUMN())),"") ->  | BB36: =IFERROR(HYPERLINK(MapEvent_MouseOver(ROW(),COLUMN())),"") ->  | BC36: =IFERROR(HYPERLINK(MapEvent_MouseOver(ROW(),COLUMN())),"") ->  | BD36: =IFERROR(HYPERLINK(MapEvent_MouseOver(ROW(),COLUMN())),"") ->  | BE36: =IFERROR(HYPERLINK(MapEvent_MouseOver(ROW(),COLUMN())),"") ->  | BF36: =IFERROR(HYPERLINK(MapEvent_MouseOver(ROW(),COLUMN())),"") ->  | BG36: =IFERROR(HYPERLINK(MapEvent_MouseOver(ROW(),COLUMN())),"") ->  | BH36: =IFERROR(HYPERLINK(MapEvent_MouseOver(ROW(),COLUMN())),"") ->  | BI36: =IFERROR(HYPERLINK(MapEvent_MouseOver(ROW(),COLUMN())),"") ->  | BJ36: =IFERROR(HYPERLINK(MapEvent_MouseOver(ROW(),COLUMN())),"") ->  | BK36: =IFERROR(HYPERLINK(MapEvent_MouseOver(ROW(),COLUMN())),"") ->  | BL36: =IFERROR(HYPERLINK(MapEvent_MouseOver(ROW(),COLUMN())),"") ->  | BM36: =IFERROR(HYPERLINK(MapEvent_MouseOver(ROW(),COLUMN())),"") ->  | BN36: =IFERROR(HYPERLINK(MapEvent_MouseOver(ROW(),COLUMN())),"") ->  | BO36: =IFERROR(HYPERLINK(MapEvent_MouseOver(ROW(),COLUMN())),"") ->  | BP36: =IFERROR(HYPERLINK(MapEvent_MouseOver(ROW(),COLUMN())),"") ->  | BQ36: =IFERROR(HYPERLINK(MapEvent_MouseOver(ROW(),COLUMN())),"") ->  | BR36: =IFERROR(HYPERLINK(MapEvent_MouseOver(ROW(),COLUMN())),"") ->  | BS36: =IFERROR(HYPERLINK(MapEvent_MouseOver(ROW(),COLUMN())),"") ->  | BT36: =IFERROR(HYPERLINK(MapEvent_MouseOver(ROW(),COLUMN())),"") ->  | BU36: =IFERROR(HYPERLINK(MapEvent_MouseOver(ROW(),COLUMN())),"") ->  | BV36: =IFERROR(HYPERLINK(MapEvent_MouseOver(ROW(),COLUMN())),"") ->  | BW36: =IFERROR(HYPERLINK(MapEvent_MouseOver(ROW(),COLUMN())),"") ->  | BX36: =IFERROR(HYPERLINK(MapEvent_MouseOver(ROW(),COLUMN())),"") ->  | BY36: =IFERROR(HYPERLINK(MapEvent_MouseOver(ROW(),COLUMN())),"") ->  | BZ36: =IFERROR(HYPERLINK(MapEvent_MouseOver(ROW(),COLUMN())),"") ->  | CA36: =IFERROR(HYPERLINK(MapEvent_MouseOver(ROW(),COLUMN())),"") ->  | CB36: =IFERROR(HYPERLINK(MapEvent_MouseOver(ROW(),COLUMN())),"") ->  | CC36: =IFERROR(HYPERLINK(MapEvent_MouseOver(ROW(),COLUMN())),"") ->  | CD36: =IFERROR(HYPERLINK(MapEvent_MouseOver(ROW(),COLUMN())),"") ->  | CE36: =IFERROR(HYPERLINK(MapEvent_MouseOver(ROW(),COLUMN())),"") ->  | CF36: =IFERROR(HYPERLINK(MapEvent_MouseOver(ROW(),COLUMN())),"") ->  | CG36: =IFERROR(HYPERLINK(MapEvent_MouseOver(ROW(),COLUMN())),"") ->  | CH36: =IFERROR(HYPERLINK(MapEvent_MouseOver(ROW(),COLUMN())),"") ->  | CI36: =IFERROR(HYPERLINK(MapEvent_MouseOver(ROW(),COLUMN())),"") ->  | CJ36: =IFERROR(HYPERLINK(MapEvent_MouseOver(ROW(),COLUMN())),"") ->  | CK36: =IFERROR(HYPERLINK(MapEvent_MouseOver(ROW(),COLUMN())),"") ->  | CL36: =IFERROR(HYPERLINK(MapEvent_MouseOver(ROW(),COLUMN())),"") -> 
V37: =IFERROR(HYPERLINK(MapEvent_MouseOver(ROW(),COLUMN())),"") ->  | W37: =IFERROR(HYPERLINK(MapEvent_MouseOver(ROW(),COLUMN())),"") ->  | X37: =IFERROR(HYPERLINK(MapEvent_MouseOver(ROW(),COLUMN())),"") ->  | Y37: =IFERROR(HYPERLINK(MapEvent_MouseOver(ROW(),COLUMN())),"") ->  | Z37: =IFERROR(HYPERLINK(MapEvent_MouseOver(ROW(),COLUMN())),"") ->  | AA37: =IFERROR(HYPERLINK(MapEvent_MouseOver(ROW(),COLUMN())),"") ->  | AB37: =IFERROR(HYPERLINK(MapEvent_MouseOver(ROW(),COLUMN())),"") ->  | AC37: =IFERROR(HYPERLINK(MapEvent_MouseOver(ROW(),COLUMN())),"") ->  | AD37: =IFERROR(HYPERLINK(MapEvent_MouseOver(ROW(),COLUMN())),"") ->  | AE37: =IFERROR(HYPERLINK(MapEvent_MouseOver(ROW(),COLUMN())),"") ->  | AF37: =IFERROR(HYPERLINK(MapEvent_MouseOver(ROW(),COLUMN())),"") ->  | AG37: =IFERROR(HYPERLINK(MapEvent_MouseOver(ROW(),COLUMN())),"") ->  | AH37: =IFERROR(HYPERLINK(MapEvent_MouseOver(ROW(),COLUMN())),"") ->  | AI37: =IFERROR(HYPERLINK(MapEvent_MouseOver(ROW(),COLUMN())),"") ->  | AJ37: =IFERROR(HYPERLINK(MapEvent_MouseOver(ROW(),COLUMN())),"") ->  | AK37: =IFERROR(HYPERLINK(MapEvent_MouseOver(ROW(),COLUMN())),"") ->  | AL37: =IFERROR(HYPERLINK(MapEvent_MouseOver(ROW(),COLUMN())),"") ->  | AM37: =IFERROR(HYPERLINK(MapEvent_MouseOver(ROW(),COLUMN())),"") ->  | AN37: =IFERROR(HYPERLINK(MapEvent_MouseOver(ROW(),COLUMN())),"") ->  | AO37: =IFERROR(HYPERLINK(MapEvent_MouseOver(ROW(),COLUMN())),"") ->  | AP37: =IFERROR(HYPERLINK(MapEvent_MouseOver(ROW(),COLUMN())),"") ->  | AQ37: =IFERROR(HYPERLINK(MapEvent_MouseOver(ROW(),COLUMN())),"") ->  | AR37: =IFERROR(HYPERLINK(MapEvent_MouseOver(ROW(),COLUMN())),"") ->  | AS37: =IFERROR(HYPERLINK(MapEvent_MouseOver(ROW(),COLUMN())),"") ->  | AT37: =IFERROR(HYPERLINK(MapEvent_MouseOver(ROW(),COLUMN())),"") ->  | AU37: =IFERROR(HYPERLINK(MapEvent_MouseOver(ROW(),COLUMN())),"") ->  | AV37: =IFERROR(HYPERLINK(MapEvent_MouseOver(ROW(),COLUMN())),"") ->  | AW37: =IFERROR(HYPERLINK(MapEvent_MouseOver(ROW(),COLUMN())),"") ->  | AX37: =IFERROR(HYPERLINK(MapEvent_MouseOver(ROW(),COLUMN())),"") ->  | AY37: =IFERROR(HYPERLINK(MapEvent_MouseOver(ROW(),COLUMN())),"") ->  | AZ37: =IFERROR(HYPERLINK(MapEvent_MouseOver(ROW(),COLUMN())),"") ->  | BA37: =IFERROR(HYPERLINK(MapEvent_MouseOver(ROW(),COLUMN())),"") ->  | BB37: =IFERROR(HYPERLINK(MapEvent_MouseOver(ROW(),COLUMN())),"") ->  | BC37: =IFERROR(HYPERLINK(MapEvent_MouseOver(ROW(),COLUMN())),"") ->  | BD37: =IFERROR(HYPERLINK(MapEvent_MouseOver(ROW(),COLUMN())),"") ->  | BE37: =IFERROR(HYPERLINK(MapEvent_MouseOver(ROW(),COLUMN())),"") ->  | BF37: =IFERROR(HYPERLINK(MapEvent_MouseOver(ROW(),COLUMN())),"") ->  | BG37: =IFERROR(HYPERLINK(MapEvent_MouseOver(ROW(),COLUMN())),"") ->  | BH37: =IFERROR(HYPERLINK(MapEvent_MouseOver(ROW(),COLUMN())),"") ->  | BI37: =IFERROR(HYPERLINK(MapEvent_MouseOver(ROW(),COLUMN())),"") ->  | BJ37: =IFERROR(HYPERLINK(MapEvent_MouseOver(ROW(),COLUMN())),"") ->  | BK37: =IFERROR(HYPERLINK(MapEvent_MouseOver(ROW(),COLUMN())),"") ->  | BL37: =IFERROR(HYPERLINK(MapEvent_MouseOver(ROW(),COLUMN())),"") ->  | BM37: =IFERROR(HYPERLINK(MapEvent_MouseOver(ROW(),COLUMN())),"") ->  | BN37: =IFERROR(HYPERLINK(MapEvent_MouseOver(ROW(),COLUMN())),"") ->  | BO37: =IFERROR(HYPERLINK(MapEvent_MouseOver(ROW(),COLUMN())),"") ->  | BP37: =IFERROR(HYPERLINK(MapEvent_MouseOver(ROW(),COLUMN())),"") ->  | BQ37: =IFERROR(HYPERLINK(MapEvent_MouseOver(ROW(),COLUMN())),"") ->  | BR37: =IFERROR(HYPERLINK(MapEvent_MouseOver(ROW(),COLUMN())),"") ->  | BS37: =IFERROR(HYPERLINK(MapEvent_MouseOver(ROW(),COLUMN())),"") ->  | BT37: =IFERROR(HYPERLINK(MapEvent_MouseOver(ROW(),COLUMN())),"") ->  | BU37: =IFERROR(HYPERLINK(MapEvent_MouseOver(ROW(),COLUMN())),"") ->  | BV37: =IFERROR(HYPERLINK(MapEvent_MouseOver(ROW(),COLUMN())),"") ->  | BW37: =IFERROR(HYPERLINK(MapEvent_MouseOver(ROW(),COLUMN())),"") ->  | BX37: =IFERROR(HYPERLINK(MapEvent_MouseOver(ROW(),COLUMN())),"") ->  | BY37: =IFERROR(HYPERLINK(MapEvent_MouseOver(ROW(),COLUMN())),"") ->  | BZ37: =IFERROR(HYPERLINK(MapEvent_MouseOver(ROW(),COLUMN())),"") ->  | CA37: =IFERROR(HYPERLINK(MapEvent_MouseOver(ROW(),COLUMN())),"") ->  | CB37: =IFERROR(HYPERLINK(MapEvent_MouseOver(ROW(),COLUMN())),"") ->  | CC37: =IFERROR(HYPERLINK(MapEvent_MouseOver(ROW(),COLUMN())),"") ->  | CD37: =IFERROR(HYPERLINK(MapEvent_MouseOver(ROW(),COLUMN())),"") ->  | CE37: =IFERROR(HYPERLINK(MapEvent_MouseOver(ROW(),COLUMN())),"") ->  | CF37: =IFERROR(HYPERLINK(MapEvent_MouseOver(ROW(),COLUMN())),"") ->  | CG37: =IFERROR(HYPERLINK(MapEvent_MouseOver(ROW(),COLUMN())),"") ->  | CH37: =IFERROR(HYPERLINK(MapEvent_MouseOver(ROW(),COLUMN())),"") ->  | CI37: =IFERROR(HYPERLINK(MapEvent_MouseOver(ROW(),COLUMN())),"") ->  | CJ37: =IFERROR(HYPERLINK(MapEvent_MouseOver(ROW(),COLUMN())),"") ->  | CK37: =IFERROR(HYPERLINK(MapEvent_MouseOver(ROW(),COLUMN())),"") ->  | CL37: =IFERROR(HYPERLINK(MapEvent_MouseOver(ROW(),COLUMN())),"") -> 
V38: =IFERROR(HYPERLINK(MapEvent_MouseOver(ROW(),COLUMN())),"") ->  | W38: =IFERROR(HYPERLINK(MapEvent_MouseOver(ROW(),COLUMN())),"") ->  | X38: =IFERROR(HYPERLINK(MapEvent_MouseOver(ROW(),COLUMN())),"") ->  | Y38: =IFERROR(HYPERLINK(MapEvent_MouseOver(ROW(),COLUMN())),"") ->  | Z38: =IFERROR(HYPERLINK(MapEvent_MouseOver(ROW(),COLUMN())),"") ->  | AA38: =IFERROR(HYPERLINK(MapEvent_MouseOver(ROW(),COLUMN())),"") ->  | AB38: =IFERROR(HYPERLINK(MapEvent_MouseOver(ROW(),COLUMN())),"") ->  | AC38: =IFERROR(HYPERLINK(MapEvent_MouseOver(ROW(),COLUMN())),"") ->  | AD38: =IFERROR(HYPERLINK(MapEvent_MouseOver(ROW(),COLUMN())),"") ->  | AE38: =IFERROR(HYPERLINK(MapEvent_MouseOver(ROW(),COLUMN())),"") ->  | AF38: =IFERROR(HYPERLINK(MapEvent_MouseOver(ROW(),COLUMN())),"") ->  | AG38: =IFERROR(HYPERLINK(MapEvent_MouseOver(ROW(),COLUMN())),"") ->  | AH38: =IFERROR(HYPERLINK(MapEvent_MouseOver(ROW(),COLUMN())),"") ->  | AI38: =IFERROR(HYPERLINK(MapEvent_MouseOver(ROW(),COLUMN())),"") ->  | AJ38: =IFERROR(HYPERLINK(MapEvent_MouseOver(ROW(),COLUMN())),"") ->  | AK38: =IFERROR(HYPERLINK(MapEvent_MouseOver(ROW(),COLUMN())),"") ->  | AL38: =IFERROR(HYPERLINK(MapEvent_MouseOver(ROW(),COLUMN())),"") ->  | AM38: =IFERROR(HYPERLINK(MapEvent_MouseOver(ROW(),COLUMN())),"") ->  | AN38: =IFERROR(HYPERLINK(MapEvent_MouseOver(ROW(),COLUMN())),"") ->  | AO38: =IFERROR(HYPERLINK(MapEvent_MouseOver(ROW(),COLUMN())),"") ->  | AP38: =IFERROR(HYPERLINK(MapEvent_MouseOver(ROW(),COLUMN())),"") ->  | AQ38: =IFERROR(HYPERLINK(MapEvent_MouseOver(ROW(),COLUMN())),"") ->  | AR38: =IFERROR(HYPERLINK(MapEvent_MouseOver(ROW(),COLUMN())),"") ->  | AS38: =IFERROR(HYPERLINK(MapEvent_MouseOver(ROW(),COLUMN())),"") ->  | AT38: =IFERROR(HYPERLINK(MapEvent_MouseOver(ROW(),COLUMN())),"") ->  | AU38: =IFERROR(HYPERLINK(MapEvent_MouseOver(ROW(),COLUMN())),"") ->  | AV38: =IFERROR(HYPERLINK(MapEvent_MouseOver(ROW(),COLUMN())),"") ->  | AW38: =IFERROR(HYPERLINK(MapEvent_MouseOver(ROW(),COLUMN())),"") ->  | AX38: =IFERROR(HYPERLINK(MapEvent_MouseOver(ROW(),COLUMN())),"") ->  | AY38: =IFERROR(HYPERLINK(MapEvent_MouseOver(ROW(),COLUMN())),"") ->  | AZ38: =IFERROR(HYPERLINK(MapEvent_MouseOver(ROW(),COLUMN())),"") ->  | BA38: =IFERROR(HYPERLINK(MapEvent_MouseOver(ROW(),COLUMN())),"") ->  | BB38: =IFERROR(HYPERLINK(MapEvent_MouseOver(ROW(),COLUMN())),"") ->  | BC38: =IFERROR(HYPERLINK(MapEvent_MouseOver(ROW(),COLUMN())),"") ->  | BD38: =IFERROR(HYPERLINK(MapEvent_MouseOver(ROW(),COLUMN())),"") ->  | BE38: =IFERROR(HYPERLINK(MapEvent_MouseOver(ROW(),COLUMN())),"") ->  | BF38: =IFERROR(HYPERLINK(MapEvent_MouseOver(ROW(),COLUMN())),"") ->  | BG38: =IFERROR(HYPERLINK(MapEvent_MouseOver(ROW(),COLUMN())),"") ->  | BH38: =IFERROR(HYPERLINK(MapEvent_MouseOver(ROW(),COLUMN())),"") ->  | BI38: =IFERROR(HYPERLINK(MapEvent_MouseOver(ROW(),COLUMN())),"") ->  | BJ38: =IFERROR(HYPERLINK(MapEvent_MouseOver(ROW(),COLUMN())),"") ->  | BK38: =IFERROR(HYPERLINK(MapEvent_MouseOver(ROW(),COLUMN())),"") ->  | BL38: =IFERROR(HYPERLINK(MapEvent_MouseOver(ROW(),COLUMN())),"") ->  | BM38: =IFERROR(HYPERLINK(MapEvent_MouseOver(ROW(),COLUMN())),"") ->  | BN38: =IFERROR(HYPERLINK(MapEvent_MouseOver(ROW(),COLUMN())),"") ->  | BO38: =IFERROR(HYPERLINK(MapEvent_MouseOver(ROW(),COLUMN())),"") ->  | BP38: =IFERROR(HYPERLINK(MapEvent_MouseOver(ROW(),COLUMN())),"") ->  | BQ38: =IFERROR(HYPERLINK(MapEvent_MouseOver(ROW(),COLUMN())),"") ->  | BR38: =IFERROR(HYPERLINK(MapEvent_MouseOver(ROW(),COLUMN())),"") ->  | BS38: =IFERROR(HYPERLINK(MapEvent_MouseOver(ROW(),COLUMN())),"") ->  | BT38: =IFERROR(HYPERLINK(MapEvent_MouseOver(ROW(),COLUMN())),"") ->  | BU38: =IFERROR(HYPERLINK(MapEvent_MouseOver(ROW(),COLUMN())),"") ->  | BV38: =IFERROR(HYPERLINK(MapEvent_MouseOver(ROW(),COLUMN())),"") ->  | BW38: =IFERROR(HYPERLINK(MapEvent_MouseOver(ROW(),COLUMN())),"") ->  | BX38: =IFERROR(HYPERLINK(MapEvent_MouseOver(ROW(),COLUMN())),"") ->  | BY38: =IFERROR(HYPERLINK(MapEvent_MouseOver(ROW(),COLUMN())),"") ->  | BZ38: =IFERROR(HYPERLINK(MapEvent_MouseOver(ROW(),COLUMN())),"") ->  | CA38: =IFERROR(HYPERLINK(MapEvent_MouseOver(ROW(),COLUMN())),"") ->  | CB38: =IFERROR(HYPERLINK(MapEvent_MouseOver(ROW(),COLUMN())),"") ->  | CC38: =IFERROR(HYPERLINK(MapEvent_MouseOver(ROW(),COLUMN())),"") ->  | CD38: =IFERROR(HYPERLINK(MapEvent_MouseOver(ROW(),COLUMN())),"") ->  | CE38: =IFERROR(HYPERLINK(MapEvent_MouseOver(ROW(),COLUMN())),"") ->  | CF38: =IFERROR(HYPERLINK(MapEvent_MouseOver(ROW(),COLUMN())),"") ->  | CG38: =IFERROR(HYPERLINK(MapEvent_MouseOver(ROW(),COLUMN())),"") ->  | CH38: =IFERROR(HYPERLINK(MapEvent_MouseOver(ROW(),COLUMN())),"") ->  | CI38: =IFERROR(HYPERLINK(MapEvent_MouseOver(ROW(),COLUMN())),"") ->  | CJ38: =IFERROR(HYPERLINK(MapEvent_MouseOver(ROW(),COLUMN())),"") ->  | CK38: =IFERROR(HYPERLINK(MapEvent_MouseOver(ROW(),COLUMN())),"") ->  | CL38: =IFERROR(HYPERLINK(MapEvent_MouseOver(ROW(),COLUMN())),"") -> 
V39: =IFERROR(HYPERLINK(MapEvent_MouseOver(ROW(),COLUMN())),"") ->  | W39: =IFERROR(HYPERLINK(MapEvent_MouseOver(ROW(),COLUMN())),"") ->  | X39: =IFERROR(HYPERLINK(MapEvent_MouseOver(ROW(),COLUMN())),"") ->  | Y39: =IFERROR(HYPERLINK(MapEvent_MouseOver(ROW(),COLUMN())),"") ->  | Z39: =IFERROR(HYPERLINK(MapEvent_MouseOver(ROW(),COLUMN())),"") ->  | AA39: =IFERROR(HYPERLINK(MapEvent_MouseOver(ROW(),COLUMN())),"") ->  | AB39: =IFERROR(HYPERLINK(MapEvent_MouseOver(ROW(),COLUMN())),"") ->  | AC39: =IFERROR(HYPERLINK(MapEvent_MouseOver(ROW(),COLUMN())),"") ->  | AD39: =IFERROR(HYPERLINK(MapEvent_MouseOver(ROW(),COLUMN())),"") ->  | AE39: =IFERROR(HYPERLINK(MapEvent_MouseOver(ROW(),COLUMN())),"") ->  | AF39: =IFERROR(HYPERLINK(MapEvent_MouseOver(ROW(),COLUMN())),"") ->  | AG39: =IFERROR(HYPERLINK(MapEvent_MouseOver(ROW(),COLUMN())),"") ->  | AH39: =IFERROR(HYPERLINK(MapEvent_MouseOver(ROW(),COLUMN())),"") ->  | AI39: =IFERROR(HYPERLINK(MapEvent_MouseOver(ROW(),COLUMN())),"") ->  | AJ39: =IFERROR(HYPERLINK(MapEvent_MouseOver(ROW(),COLUMN())),"") ->  | AK39: =IFERROR(HYPERLINK(MapEvent_MouseOver(ROW(),COLUMN())),"") ->  | AL39: =IFERROR(HYPERLINK(MapEvent_MouseOver(ROW(),COLUMN())),"") ->  | AM39: =IFERROR(HYPERLINK(MapEvent_MouseOver(ROW(),COLUMN())),"") ->  | AN39: =IFERROR(HYPERLINK(MapEvent_MouseOver(ROW(),COLUMN())),"") ->  | AO39: =IFERROR(HYPERLINK(MapEvent_MouseOver(ROW(),COLUMN())),"") ->  | AP39: =IFERROR(HYPERLINK(MapEvent_MouseOver(ROW(),COLUMN())),"") ->  | AQ39: =IFERROR(HYPERLINK(MapEvent_MouseOver(ROW(),COLUMN())),"") ->  | AR39: =IFERROR(HYPERLINK(MapEvent_MouseOver(ROW(),COLUMN())),"") ->  | AS39: =IFERROR(HYPERLINK(MapEvent_MouseOver(ROW(),COLUMN())),"") ->  | AT39: =IFERROR(HYPERLINK(MapEvent_MouseOver(ROW(),COLUMN())),"") ->  | AU39: =IFERROR(HYPERLINK(MapEvent_MouseOver(ROW(),COLUMN())),"") ->  | AV39: =IFERROR(HYPERLINK(MapEvent_MouseOver(ROW(),COLUMN())),"") ->  | AW39: =IFERROR(HYPERLINK(MapEvent_MouseOver(ROW(),COLUMN())),"") ->  | AX39: =IFERROR(HYPERLINK(MapEvent_MouseOver(ROW(),COLUMN())),"") ->  | AY39: =IFERROR(HYPERLINK(MapEvent_MouseOver(ROW(),COLUMN())),"") ->  | AZ39: =IFERROR(HYPERLINK(MapEvent_MouseOver(ROW(),COLUMN())),"") ->  | BA39: =IFERROR(HYPERLINK(MapEvent_MouseOver(ROW(),COLUMN())),"") ->  | BB39: =IFERROR(HYPERLINK(MapEvent_MouseOver(ROW(),COLUMN())),"") ->  | BC39: =IFERROR(HYPERLINK(MapEvent_MouseOver(ROW(),COLUMN())),"") ->  | BD39: =IFERROR(HYPERLINK(MapEvent_MouseOver(ROW(),COLUMN())),"") ->  | BE39: =IFERROR(HYPERLINK(MapEvent_MouseOver(ROW(),COLUMN())),"") ->  | BF39: =IFERROR(HYPERLINK(MapEvent_MouseOver(ROW(),COLUMN())),"") ->  | BG39: =IFERROR(HYPERLINK(MapEvent_MouseOver(ROW(),COLUMN())),"") ->  | BH39: =IFERROR(HYPERLINK(MapEvent_MouseOver(ROW(),COLUMN())),"") ->  | BI39: =IFERROR(HYPERLINK(MapEvent_MouseOver(ROW(),COLUMN())),"") ->  | BJ39: =IFERROR(HYPERLINK(MapEvent_MouseOver(ROW(),COLUMN())),"") ->  | BK39: =IFERROR(HYPERLINK(MapEvent_MouseOver(ROW(),COLUMN())),"") ->  | BL39: =IFERROR(HYPERLINK(MapEvent_MouseOver(ROW(),COLUMN())),"") ->  | BM39: =IFERROR(HYPERLINK(MapEvent_MouseOver(ROW(),COLUMN())),"") ->  | BN39: =IFERROR(HYPERLINK(MapEvent_MouseOver(ROW(),COLUMN())),"") ->  | BO39: =IFERROR(HYPERLINK(MapEvent_MouseOver(ROW(),COLUMN())),"") ->  | BP39: =IFERROR(HYPERLINK(MapEvent_MouseOver(ROW(),COLUMN())),"") ->  | BQ39: =IFERROR(HYPERLINK(MapEvent_MouseOver(ROW(),COLUMN())),"") ->  | BR39: =IFERROR(HYPERLINK(MapEvent_MouseOver(ROW(),COLUMN())),"") ->  | BS39: =IFERROR(HYPERLINK(MapEvent_MouseOver(ROW(),COLUMN())),"") ->  | BT39: =IFERROR(HYPERLINK(MapEvent_MouseOver(ROW(),COLUMN())),"") ->  | BU39: =IFERROR(HYPERLINK(MapEvent_MouseOver(ROW(),COLUMN())),"") ->  | BV39: =IFERROR(HYPERLINK(MapEvent_MouseOver(ROW(),COLUMN())),"") ->  | BW39: =IFERROR(HYPERLINK(MapEvent_MouseOver(ROW(),COLUMN())),"") ->  | BX39: =IFERROR(HYPERLINK(MapEvent_MouseOver(ROW(),COLUMN())),"") ->  | BY39: =IFERROR(HYPERLINK(MapEvent_MouseOver(ROW(),COLUMN())),"") ->  | BZ39: =IFERROR(HYPERLINK(MapEvent_MouseOver(ROW(),COLUMN())),"") ->  | CA39: =IFERROR(HYPERLINK(MapEvent_MouseOver(ROW(),COLUMN())),"") ->  | CB39: =IFERROR(HYPERLINK(MapEvent_MouseOver(ROW(),COLUMN())),"") ->  | CC39: =IFERROR(HYPERLINK(MapEvent_MouseOver(ROW(),COLUMN())),"") ->  | CD39: =IFERROR(HYPERLINK(MapEvent_MouseOver(ROW(),COLUMN())),"") ->  | CE39: =IFERROR(HYPERLINK(MapEvent_MouseOver(ROW(),COLUMN())),"") ->  | CF39: =IFERROR(HYPERLINK(MapEvent_MouseOver(ROW(),COLUMN())),"") ->  | CG39: =IFERROR(HYPERLINK(MapEvent_MouseOver(ROW(),COLUMN())),"") ->  | CH39: =IFERROR(HYPERLINK(MapEvent_MouseOver(ROW(),COLUMN())),"") ->  | CI39: =IFERROR(HYPERLINK(MapEvent_MouseOver(ROW(),COLUMN())),"") ->  | CJ39: =IFERROR(HYPERLINK(MapEvent_MouseOver(ROW(),COLUMN())),"") ->  | CK39: =IFERROR(HYPERLINK(MapEvent_MouseOver(ROW(),COLUMN())),"") ->  | CL39: =IFERROR(HYPERLINK(MapEvent_MouseOver(ROW(),COLUMN())),"") -> 
V40: =IFERROR(HYPERLINK(MapEvent_MouseOver(ROW(),COLUMN())),"") ->  | W40: =IFERROR(HYPERLINK(MapEvent_MouseOver(ROW(),COLUMN())),"") ->  | X40: =IFERROR(HYPERLINK(MapEvent_MouseOver(ROW(),COLUMN())),"") ->  | Y40: =IFERROR(HYPERLINK(MapEvent_MouseOver(ROW(),COLUMN())),"") ->  | Z40: =IFERROR(HYPERLINK(MapEvent_MouseOver(ROW(),COLUMN())),"") ->  | AA40: =IFERROR(HYPERLINK(MapEvent_MouseOver(ROW(),COLUMN())),"") ->  | AB40: =IFERROR(HYPERLINK(MapEvent_MouseOver(ROW(),COLUMN())),"") ->  | AC40: =IFERROR(HYPERLINK(MapEvent_MouseOver(ROW(),COLUMN())),"") ->  | AD40: =IFERROR(HYPERLINK(MapEvent_MouseOver(ROW(),COLUMN())),"") ->  | AE40: =IFERROR(HYPERLINK(MapEvent_MouseOver(ROW(),COLUMN())),"") ->  | AF40: =IFERROR(HYPERLINK(MapEvent_MouseOver(ROW(),COLUMN())),"") ->  | AG40: =IFERROR(HYPERLINK(MapEvent_MouseOver(ROW(),COLUMN())),"") ->  | AH40: =IFERROR(HYPERLINK(MapEvent_MouseOver(ROW(),COLUMN())),"") ->  | AI40: =IFERROR(HYPERLINK(MapEvent_MouseOver(ROW(),COLUMN())),"") ->  | AJ40: =IFERROR(HYPERLINK(MapEvent_MouseOver(ROW(),COLUMN())),"") ->  | AK40: =IFERROR(HYPERLINK(MapEvent_MouseOver(ROW(),COLUMN())),"") ->  | AL40: =IFERROR(HYPERLINK(MapEvent_MouseOver(ROW(),COLUMN())),"") ->  | AM40: =IFERROR(HYPERLINK(MapEvent_MouseOver(ROW(),COLUMN())),"") ->  | AN40: =IFERROR(HYPERLINK(MapEvent_MouseOver(ROW(),COLUMN())),"") ->  | AO40: =IFERROR(HYPERLINK(MapEvent_MouseOver(ROW(),COLUMN())),"") ->  | AP40: =IFERROR(HYPERLINK(MapEvent_MouseOver(ROW(),COLUMN())),"") ->  | AQ40: =IFERROR(HYPERLINK(MapEvent_MouseOver(ROW(),COLUMN())),"") ->  | AR40: =IFERROR(HYPERLINK(MapEvent_MouseOver(ROW(),COLUMN())),"") ->  | AS40: =IFERROR(HYPERLINK(MapEvent_MouseOver(ROW(),COLUMN())),"") ->  | AT40: =IFERROR(HYPERLINK(MapEvent_MouseOver(ROW(),COLUMN())),"") ->  | AU40: =IFERROR(HYPERLINK(MapEvent_MouseOver(ROW(),COLUMN())),"") ->  | AV40: =IFERROR(HYPERLINK(MapEvent_MouseOver(ROW(),COLUMN())),"") ->  | AW40: =IFERROR(HYPERLINK(MapEvent_MouseOver(ROW(),COLUMN())),"") ->  | AX40: =IFERROR(HYPERLINK(MapEvent_MouseOver(ROW(),COLUMN())),"") ->  | AY40: =IFERROR(HYPERLINK(MapEvent_MouseOver(ROW(),COLUMN())),"") ->  | AZ40: =IFERROR(HYPERLINK(MapEvent_MouseOver(ROW(),COLUMN())),"") ->  | BA40: =IFERROR(HYPERLINK(MapEvent_MouseOver(ROW(),COLUMN())),"") ->  | BB40: =IFERROR(HYPERLINK(MapEvent_MouseOver(ROW(),COLUMN())),"") ->  | BC40: =IFERROR(HYPERLINK(MapEvent_MouseOver(ROW(),COLUMN())),"") ->  | BD40: =IFERROR(HYPERLINK(MapEvent_MouseOver(ROW(),COLUMN())),"") ->  | BE40: =IFERROR(HYPERLINK(MapEvent_MouseOver(ROW(),COLUMN())),"") ->  | BF40: =IFERROR(HYPERLINK(MapEvent_MouseOver(ROW(),COLUMN())),"") ->  | BG40: =IFERROR(HYPERLINK(MapEvent_MouseOver(ROW(),COLUMN())),"") ->  | BH40: =IFERROR(HYPERLINK(MapEvent_MouseOver(ROW(),COLUMN())),"") ->  | BI40: =IFERROR(HYPERLINK(MapEvent_MouseOver(ROW(),COLUMN())),"") ->  | BJ40: =IFERROR(HYPERLINK(MapEvent_MouseOver(ROW(),COLUMN())),"") ->  | BK40: =IFERROR(HYPERLINK(MapEvent_MouseOver(ROW(),COLUMN())),"") ->  | BL40: =IFERROR(HYPERLINK(MapEvent_MouseOver(ROW(),COLUMN())),"") ->  | BM40: =IFERROR(HYPERLINK(MapEvent_MouseOver(ROW(),COLUMN())),"") ->  | BN40: =IFERROR(HYPERLINK(MapEvent_MouseOver(ROW(),COLUMN())),"") ->  | BO40: =IFERROR(HYPERLINK(MapEvent_MouseOver(ROW(),COLUMN())),"") ->  | BP40: =IFERROR(HYPERLINK(MapEvent_MouseOver(ROW(),COLUMN())),"") ->  | BQ40: =IFERROR(HYPERLINK(MapEvent_MouseOver(ROW(),COLUMN())),"") ->  | BR40: =IFERROR(HYPERLINK(MapEvent_MouseOver(ROW(),COLUMN())),"") ->  | BS40: =IFERROR(HYPERLINK(MapEvent_MouseOver(ROW(),COLUMN())),"") ->  | BT40: =IFERROR(HYPERLINK(MapEvent_MouseOver(ROW(),COLUMN())),"") ->  | BU40: =IFERROR(HYPERLINK(MapEvent_MouseOver(ROW(),COLUMN())),"") ->  | BV40: =IFERROR(HYPERLINK(MapEvent_MouseOver(ROW(),COLUMN())),"") ->  | BW40: =IFERROR(HYPERLINK(MapEvent_MouseOver(ROW(),COLUMN())),"") ->  | BX40: =IFERROR(HYPERLINK(MapEvent_MouseOver(ROW(),COLUMN())),"") ->  | BY40: =IFERROR(HYPERLINK(MapEvent_MouseOver(ROW(),COLUMN())),"") ->  | BZ40: =IFERROR(HYPERLINK(MapEvent_MouseOver(ROW(),COLUMN())),"") ->  | CA40: =IFERROR(HYPERLINK(MapEvent_MouseOver(ROW(),COLUMN())),"") ->  | CB40: =IFERROR(HYPERLINK(MapEvent_MouseOver(ROW(),COLUMN())),"") ->  | CC40: =IFERROR(HYPERLINK(MapEvent_MouseOver(ROW(),COLUMN())),"") ->  | CD40: =IFERROR(HYPERLINK(MapEvent_MouseOver(ROW(),COLUMN())),"") ->  | CE40: =IFERROR(HYPERLINK(MapEvent_MouseOver(ROW(),COLUMN())),"") ->  | CF40: =IFERROR(HYPERLINK(MapEvent_MouseOver(ROW(),COLUMN())),"") ->  | CG40: =IFERROR(HYPERLINK(MapEvent_MouseOver(ROW(),COLUMN())),"") ->  | CH40: =IFERROR(HYPERLINK(MapEvent_MouseOver(ROW(),COLUMN())),"") ->  | CI40: =IFERROR(HYPERLINK(MapEvent_MouseOver(ROW(),COLUMN())),"") ->  | CJ40: =IFERROR(HYPERLINK(MapEvent_MouseOver(ROW(),COLUMN())),"") ->  | CK40: =IFERROR(HYPERLINK(MapEvent_MouseOver(ROW(),COLUMN())),"") ->  | CL40: =IFERROR(HYPERLINK(MapEvent_MouseOver(ROW(),COLUMN())),"") -> 
V41: =IFERROR(HYPERLINK(MapEvent_MouseOver(ROW(),COLUMN())),"") ->  | W41: =IFERROR(HYPERLINK(MapEvent_MouseOver(ROW(),COLUMN())),"") ->  | X41: =IFERROR(HYPERLINK(MapEvent_MouseOver(ROW(),COLUMN())),"") ->  | Y41: =IFERROR(HYPERLINK(MapEvent_MouseOver(ROW(),COLUMN())),"") ->  | Z41: =IFERROR(HYPERLINK(MapEvent_MouseOver(ROW(),COLUMN())),"") ->  | AA41: =IFERROR(HYPERLINK(MapEvent_MouseOver(ROW(),COLUMN())),"") ->  | AB41: =IFERROR(HYPERLINK(MapEvent_MouseOver(ROW(),COLUMN())),"") ->  | AC41: =IFERROR(HYPERLINK(MapEvent_MouseOver(ROW(),COLUMN())),"") ->  | AD41: =IFERROR(HYPERLINK(MapEvent_MouseOver(ROW(),COLUMN())),"") ->  | AE41: =IFERROR(HYPERLINK(MapEvent_MouseOver(ROW(),COLUMN())),"") ->  | AF41: =IFERROR(HYPERLINK(MapEvent_MouseOver(ROW(),COLUMN())),"") ->  | AG41: =IFERROR(HYPERLINK(MapEvent_MouseOver(ROW(),COLUMN())),"") ->  | AH41: =IFERROR(HYPERLINK(MapEvent_MouseOver(ROW(),COLUMN())),"") ->  | AI41: =IFERROR(HYPERLINK(MapEvent_MouseOver(ROW(),COLUMN())),"") ->  | AJ41: =IFERROR(HYPERLINK(MapEvent_MouseOver(ROW(),COLUMN())),"") ->  | AK41: =IFERROR(HYPERLINK(MapEvent_MouseOver(ROW(),COLUMN())),"") ->  | AL41: =IFERROR(HYPERLINK(MapEvent_MouseOver(ROW(),COLUMN())),"") ->  | AM41: =IFERROR(HYPERLINK(MapEvent_MouseOver(ROW(),COLUMN())),"") ->  | AN41: =IFERROR(HYPERLINK(MapEvent_MouseOver(ROW(),COLUMN())),"") ->  | AO41: =IFERROR(HYPERLINK(MapEvent_MouseOver(ROW(),COLUMN())),"") ->  | AP41: =IFERROR(HYPERLINK(MapEvent_MouseOver(ROW(),COLUMN())),"") ->  | AQ41: =IFERROR(HYPERLINK(MapEvent_MouseOver(ROW(),COLUMN())),"") ->  | AR41: =IFERROR(HYPERLINK(MapEvent_MouseOver(ROW(),COLUMN())),"") ->  | AS41: =IFERROR(HYPERLINK(MapEvent_MouseOver(ROW(),COLUMN())),"") ->  | AT41: =IFERROR(HYPERLINK(MapEvent_MouseOver(ROW(),COLUMN())),"") ->  | AU41: =IFERROR(HYPERLINK(MapEvent_MouseOver(ROW(),COLUMN())),"") ->  | AV41: =IFERROR(HYPERLINK(MapEvent_MouseOver(ROW(),COLUMN())),"") ->  | AW41: =IFERROR(HYPERLINK(MapEvent_MouseOver(ROW(),COLUMN())),"") ->  | AX41: =IFERROR(HYPERLINK(MapEvent_MouseOver(ROW(),COLUMN())),"") ->  | AY41: =IFERROR(HYPERLINK(MapEvent_MouseOver(ROW(),COLUMN())),"") ->  | AZ41: =IFERROR(HYPERLINK(MapEvent_MouseOver(ROW(),COLUMN())),"") ->  | BA41: =IFERROR(HYPERLINK(MapEvent_MouseOver(ROW(),COLUMN())),"") ->  | BB41: =IFERROR(HYPERLINK(MapEvent_MouseOver(ROW(),COLUMN())),"") ->  | BC41: =IFERROR(HYPERLINK(MapEvent_MouseOver(ROW(),COLUMN())),"") ->  | BD41: =IFERROR(HYPERLINK(MapEvent_MouseOver(ROW(),COLUMN())),"") ->  | BE41: =IFERROR(HYPERLINK(MapEvent_MouseOver(ROW(),COLUMN())),"") ->  | BF41: =IFERROR(HYPERLINK(MapEvent_MouseOver(ROW(),COLUMN())),"") ->  | BG41: =IFERROR(HYPERLINK(MapEvent_MouseOver(ROW(),COLUMN())),"") ->  | BH41: =IFERROR(HYPERLINK(MapEvent_MouseOver(ROW(),COLUMN())),"") ->  | BI41: =IFERROR(HYPERLINK(MapEvent_MouseOver(ROW(),COLUMN())),"") ->  | BJ41: =IFERROR(HYPERLINK(MapEvent_MouseOver(ROW(),COLUMN())),"") ->  | BK41: =IFERROR(HYPERLINK(MapEvent_MouseOver(ROW(),COLUMN())),"") ->  | BL41: =IFERROR(HYPERLINK(MapEvent_MouseOver(ROW(),COLUMN())),"") ->  | BM41: =IFERROR(HYPERLINK(MapEvent_MouseOver(ROW(),COLUMN())),"") ->  | BN41: =IFERROR(HYPERLINK(MapEvent_MouseOver(ROW(),COLUMN())),"") ->  | BO41: =IFERROR(HYPERLINK(MapEvent_MouseOver(ROW(),COLUMN())),"") ->  | BP41: =IFERROR(HYPERLINK(MapEvent_MouseOver(ROW(),COLUMN())),"") ->  | BQ41: =IFERROR(HYPERLINK(MapEvent_MouseOver(ROW(),COLUMN())),"") ->  | BR41: =IFERROR(HYPERLINK(MapEvent_MouseOver(ROW(),COLUMN())),"") ->  | BS41: =IFERROR(HYPERLINK(MapEvent_MouseOver(ROW(),COLUMN())),"") ->  | BT41: =IFERROR(HYPERLINK(MapEvent_MouseOver(ROW(),COLUMN())),"") ->  | BU41: =IFERROR(HYPERLINK(MapEvent_MouseOver(ROW(),COLUMN())),"") ->  | BV41: =IFERROR(HYPERLINK(MapEvent_MouseOver(ROW(),COLUMN())),"") ->  | BW41: =IFERROR(HYPERLINK(MapEvent_MouseOver(ROW(),COLUMN())),"") ->  | BX41: =IFERROR(HYPERLINK(MapEvent_MouseOver(ROW(),COLUMN())),"") ->  | BY41: =IFERROR(HYPERLINK(MapEvent_MouseOver(ROW(),COLUMN())),"") ->  | BZ41: =IFERROR(HYPERLINK(MapEvent_MouseOver(ROW(),COLUMN())),"") ->  | CA41: =IFERROR(HYPERLINK(MapEvent_MouseOver(ROW(),COLUMN())),"") ->  | CB41: =IFERROR(HYPERLINK(MapEvent_MouseOver(ROW(),COLUMN())),"") ->  | CC41: =IFERROR(HYPERLINK(MapEvent_MouseOver(ROW(),COLUMN())),"") ->  | CD41: =IFERROR(HYPERLINK(MapEvent_MouseOver(ROW(),COLUMN())),"") ->  | CE41: =IFERROR(HYPERLINK(MapEvent_MouseOver(ROW(),COLUMN())),"") ->  | CF41: =IFERROR(HYPERLINK(MapEvent_MouseOver(ROW(),COLUMN())),"") ->  | CG41: =IFERROR(HYPERLINK(MapEvent_MouseOver(ROW(),COLUMN())),"") ->  | CH41: =IFERROR(HYPERLINK(MapEvent_MouseOver(ROW(),COLUMN())),"") ->  | CI41: =IFERROR(HYPERLINK(MapEvent_MouseOver(ROW(),COLUMN())),"") ->  | CJ41: =IFERROR(HYPERLINK(MapEvent_MouseOver(ROW(),COLUMN())),"") ->  | CK41: =IFERROR(HYPERLINK(MapEvent_MouseOver(ROW(),COLUMN())),"") ->  | CL41: =IFERROR(HYPERLINK(MapEvent_MouseOver(ROW(),COLUMN())),"") -> 
V42: =IFERROR(HYPERLINK(MapEvent_MouseOver(ROW(),COLUMN())),"") ->  | W42: =IFERROR(HYPERLINK(MapEvent_MouseOver(ROW(),COLUMN())),"") ->  | X42: =IFERROR(HYPERLINK(MapEvent_MouseOver(ROW(),COLUMN())),"") ->  | Y42: =IFERROR(HYPERLINK(MapEvent_MouseOver(ROW(),COLUMN())),"") ->  | Z42: =IFERROR(HYPERLINK(MapEvent_MouseOver(ROW(),COLUMN())),"") ->  | AA42: =IFERROR(HYPERLINK(MapEvent_MouseOver(ROW(),COLUMN())),"") ->  | AB42: =IFERROR(HYPERLINK(MapEvent_MouseOver(ROW(),COLUMN())),"") ->  | AC42: =IFERROR(HYPERLINK(MapEvent_MouseOver(ROW(),COLUMN())),"") ->  | AD42: =IFERROR(HYPERLINK(MapEvent_MouseOver(ROW(),COLUMN())),"") ->  | AE42: =IFERROR(HYPERLINK(MapEvent_MouseOver(ROW(),COLUMN())),"") ->  | AF42: =IFERROR(HYPERLINK(MapEvent_MouseOver(ROW(),COLUMN())),"") ->  | AG42: =IFERROR(HYPERLINK(MapEvent_MouseOver(ROW(),COLUMN())),"") ->  | AH42: =IFERROR(HYPERLINK(MapEvent_MouseOver(ROW(),COLUMN())),"") ->  | AI42: =IFERROR(HYPERLINK(MapEvent_MouseOver(ROW(),COLUMN())),"") ->  | AJ42: =IFERROR(HYPERLINK(MapEvent_MouseOver(ROW(),COLUMN())),"") ->  | AK42: =IFERROR(HYPERLINK(MapEvent_MouseOver(ROW(),COLUMN())),"") ->  | AL42: =IFERROR(HYPERLINK(MapEvent_MouseOver(ROW(),COLUMN())),"") ->  | AM42: =IFERROR(HYPERLINK(MapEvent_MouseOver(ROW(),COLUMN())),"") ->  | AN42: =IFERROR(HYPERLINK(MapEvent_MouseOver(ROW(),COLUMN())),"") ->  | AO42: =IFERROR(HYPERLINK(MapEvent_MouseOver(ROW(),COLUMN())),"") ->  | AP42: =IFERROR(HYPERLINK(MapEvent_MouseOver(ROW(),COLUMN())),"") ->  | AQ42: =IFERROR(HYPERLINK(MapEvent_MouseOver(ROW(),COLUMN())),"") ->  | AR42: =IFERROR(HYPERLINK(MapEvent_MouseOver(ROW(),COLUMN())),"") ->  | AS42: =IFERROR(HYPERLINK(MapEvent_MouseOver(ROW(),COLUMN())),"") ->  | AT42: =IFERROR(HYPERLINK(MapEvent_MouseOver(ROW(),COLUMN())),"") ->  | AU42: =IFERROR(HYPERLINK(MapEvent_MouseOver(ROW(),COLUMN())),"") ->  | AV42: =IFERROR(HYPERLINK(MapEvent_MouseOver(ROW(),COLUMN())),"") ->  | AW42: =IFERROR(HYPERLINK(MapEvent_MouseOver(ROW(),COLUMN())),"") ->  | AX42: =IFERROR(HYPERLINK(MapEvent_MouseOver(ROW(),COLUMN())),"") ->  | AY42: =IFERROR(HYPERLINK(MapEvent_MouseOver(ROW(),COLUMN())),"") ->  | AZ42: =IFERROR(HYPERLINK(MapEvent_MouseOver(ROW(),COLUMN())),"") ->  | BA42: =IFERROR(HYPERLINK(MapEvent_MouseOver(ROW(),COLUMN())),"") ->  | BB42: =IFERROR(HYPERLINK(MapEvent_MouseOver(ROW(),COLUMN())),"") ->  | BC42: =IFERROR(HYPERLINK(MapEvent_MouseOver(ROW(),COLUMN())),"") ->  | BD42: =IFERROR(HYPERLINK(MapEvent_MouseOver(ROW(),COLUMN())),"") ->  | BE42: =IFERROR(HYPERLINK(MapEvent_MouseOver(ROW(),COLUMN())),"") ->  | BF42: =IFERROR(HYPERLINK(MapEvent_MouseOver(ROW(),COLUMN())),"") ->  | BG42: =IFERROR(HYPERLINK(MapEvent_MouseOver(ROW(),COLUMN())),"") ->  | BH42: =IFERROR(HYPERLINK(MapEvent_MouseOver(ROW(),COLUMN())),"") ->  | BI42: =IFERROR(HYPERLINK(MapEvent_MouseOver(ROW(),COLUMN())),"") ->  | BJ42: =IFERROR(HYPERLINK(MapEvent_MouseOver(ROW(),COLUMN())),"") ->  | BK42: =IFERROR(HYPERLINK(MapEvent_MouseOver(ROW(),COLUMN())),"") ->  | BL42: =IFERROR(HYPERLINK(MapEvent_MouseOver(ROW(),COLUMN())),"") ->  | BM42: =IFERROR(HYPERLINK(MapEvent_MouseOver(ROW(),COLUMN())),"") ->  | BN42: =IFERROR(HYPERLINK(MapEvent_MouseOver(ROW(),COLUMN())),"") ->  | BO42: =IFERROR(HYPERLINK(MapEvent_MouseOver(ROW(),COLUMN())),"") ->  | BP42: =IFERROR(HYPERLINK(MapEvent_MouseOver(ROW(),COLUMN())),"") ->  | BQ42: =IFERROR(HYPERLINK(MapEvent_MouseOver(ROW(),COLUMN())),"") ->  | BR42: =IFERROR(HYPERLINK(MapEvent_MouseOver(ROW(),COLUMN())),"") ->  | BS42: =IFERROR(HYPERLINK(MapEvent_MouseOver(ROW(),COLUMN())),"") ->  | BT42: =IFERROR(HYPERLINK(MapEvent_MouseOver(ROW(),COLUMN())),"") ->  | BU42: =IFERROR(HYPERLINK(MapEvent_MouseOver(ROW(),COLUMN())),"") ->  | BV42: =IFERROR(HYPERLINK(MapEvent_MouseOver(ROW(),COLUMN())),"") ->  | BW42: =IFERROR(HYPERLINK(MapEvent_MouseOver(ROW(),COLUMN())),"") ->  | BX42: =IFERROR(HYPERLINK(MapEvent_MouseOver(ROW(),COLUMN())),"") ->  | BY42: =IFERROR(HYPERLINK(MapEvent_MouseOver(ROW(),COLUMN())),"") ->  | BZ42: =IFERROR(HYPERLINK(MapEvent_MouseOver(ROW(),COLUMN())),"") ->  | CA42: =IFERROR(HYPERLINK(MapEvent_MouseOver(ROW(),COLUMN())),"") ->  | CB42: =IFERROR(HYPERLINK(MapEvent_MouseOver(ROW(),COLUMN())),"") ->  | CC42: =IFERROR(HYPERLINK(MapEvent_MouseOver(ROW(),COLUMN())),"") ->  | CD42: =IFERROR(HYPERLINK(MapEvent_MouseOver(ROW(),COLUMN())),"") ->  | CE42: =IFERROR(HYPERLINK(MapEvent_MouseOver(ROW(),COLUMN())),"") ->  | CF42: =IFERROR(HYPERLINK(MapEvent_MouseOver(ROW(),COLUMN())),"") ->  | CG42: =IFERROR(HYPERLINK(MapEvent_MouseOver(ROW(),COLUMN())),"") ->  | CH42: =IFERROR(HYPERLINK(MapEvent_MouseOver(ROW(),COLUMN())),"") ->  | CI42: =IFERROR(HYPERLINK(MapEvent_MouseOver(ROW(),COLUMN())),"") ->  | CJ42: =IFERROR(HYPERLINK(MapEvent_MouseOver(ROW(),COLUMN())),"") ->  | CK42: =IFERROR(HYPERLINK(MapEvent_MouseOver(ROW(),COLUMN())),"") ->  | CL42: =IFERROR(HYPERLINK(MapEvent_MouseOver(ROW(),COLUMN())),"") -> 
V43: =IFERROR(HYPERLINK(MapEvent_MouseOver(ROW(),COLUMN())),"") ->  | W43: =IFERROR(HYPERLINK(MapEvent_MouseOver(ROW(),COLUMN())),"") ->  | X43: =IFERROR(HYPERLINK(MapEvent_MouseOver(ROW(),COLUMN())),"") ->  | Y43: =IFERROR(HYPERLINK(MapEvent_MouseOver(ROW(),COLUMN())),"") ->  | Z43: =IFERROR(HYPERLINK(MapEvent_MouseOver(ROW(),COLUMN())),"") ->  | AA43: =IFERROR(HYPERLINK(MapEvent_MouseOver(ROW(),COLUMN())),"") ->  | AB43: =IFERROR(HYPERLINK(MapEvent_MouseOver(ROW(),COLUMN())),"") ->  | AC43: =IFERROR(HYPERLINK(MapEvent_MouseOver(ROW(),COLUMN())),"") ->  | AD43: =IFERROR(HYPERLINK(MapEvent_MouseOver(ROW(),COLUMN())),"") ->  | AE43: =IFERROR(HYPERLINK(MapEvent_MouseOver(ROW(),COLUMN())),"") ->  | AF43: =IFERROR(HYPERLINK(MapEvent_MouseOver(ROW(),COLUMN())),"") ->  | AG43: =IFERROR(HYPERLINK(MapEvent_MouseOver(ROW(),COLUMN())),"") ->  | AH43: =IFERROR(HYPERLINK(MapEvent_MouseOver(ROW(),COLUMN())),"") ->  | AI43: =IFERROR(HYPERLINK(MapEvent_MouseOver(ROW(),COLUMN())),"") ->  | AJ43: =IFERROR(HYPERLINK(MapEvent_MouseOver(ROW(),COLUMN())),"") ->  | AK43: =IFERROR(HYPERLINK(MapEvent_MouseOver(ROW(),COLUMN())),"") ->  | AL43: =IFERROR(HYPERLINK(MapEvent_MouseOver(ROW(),COLUMN())),"") ->  | AM43: =IFERROR(HYPERLINK(MapEvent_MouseOver(ROW(),COLUMN())),"") ->  | AN43: =IFERROR(HYPERLINK(MapEvent_MouseOver(ROW(),COLUMN())),"") ->  | AO43: =IFERROR(HYPERLINK(MapEvent_MouseOver(ROW(),COLUMN())),"") ->  | AP43: =IFERROR(HYPERLINK(MapEvent_MouseOver(ROW(),COLUMN())),"") ->  | AQ43: =IFERROR(HYPERLINK(MapEvent_MouseOver(ROW(),COLUMN())),"") ->  | AR43: =IFERROR(HYPERLINK(MapEvent_MouseOver(ROW(),COLUMN())),"") ->  | AS43: =IFERROR(HYPERLINK(MapEvent_MouseOver(ROW(),COLUMN())),"") ->  | AT43: =IFERROR(HYPERLINK(MapEvent_MouseOver(ROW(),COLUMN())),"") ->  | AU43: =IFERROR(HYPERLINK(MapEvent_MouseOver(ROW(),COLUMN())),"") ->  | AV43: =IFERROR(HYPERLINK(MapEvent_MouseOver(ROW(),COLUMN())),"") ->  | AW43: =IFERROR(HYPERLINK(MapEvent_MouseOver(ROW(),COLUMN())),"") ->  | AX43: =IFERROR(HYPERLINK(MapEvent_MouseOver(ROW(),COLUMN())),"") ->  | AY43: =IFERROR(HYPERLINK(MapEvent_MouseOver(ROW(),COLUMN())),"") ->  | AZ43: =IFERROR(HYPERLINK(MapEvent_MouseOver(ROW(),COLUMN())),"") ->  | BA43: =IFERROR(HYPERLINK(MapEvent_MouseOver(ROW(),COLUMN())),"") ->  | BB43: =IFERROR(HYPERLINK(MapEvent_MouseOver(ROW(),COLUMN())),"") ->  | BC43: =IFERROR(HYPERLINK(MapEvent_MouseOver(ROW(),COLUMN())),"") ->  | BD43: =IFERROR(HYPERLINK(MapEvent_MouseOver(ROW(),COLUMN())),"") ->  | BE43: =IFERROR(HYPERLINK(MapEvent_MouseOver(ROW(),COLUMN())),"") ->  | BF43: =IFERROR(HYPERLINK(MapEvent_MouseOver(ROW(),COLUMN())),"") ->  | BG43: =IFERROR(HYPERLINK(MapEvent_MouseOver(ROW(),COLUMN())),"") ->  | BH43: =IFERROR(HYPERLINK(MapEvent_MouseOver(ROW(),COLUMN())),"") ->  | BI43: =IFERROR(HYPERLINK(MapEvent_MouseOver(ROW(),COLUMN())),"") ->  | BJ43: =IFERROR(HYPERLINK(MapEvent_MouseOver(ROW(),COLUMN())),"") ->  | BK43: =IFERROR(HYPERLINK(MapEvent_MouseOver(ROW(),COLUMN())),"") ->  | BL43: =IFERROR(HYPERLINK(MapEvent_MouseOver(ROW(),COLUMN())),"") ->  | BM43: =IFERROR(HYPERLINK(MapEvent_MouseOver(ROW(),COLUMN())),"") ->  | BN43: =IFERROR(HYPERLINK(MapEvent_MouseOver(ROW(),COLUMN())),"") ->  | BO43: =IFERROR(HYPERLINK(MapEvent_MouseOver(ROW(),COLUMN())),"") ->  | BP43: =IFERROR(HYPERLINK(MapEvent_MouseOver(ROW(),COLUMN())),"") ->  | BQ43: =IFERROR(HYPERLINK(MapEvent_MouseOver(ROW(),COLUMN())),"") ->  | BR43: =IFERROR(HYPERLINK(MapEvent_MouseOver(ROW(),COLUMN())),"") ->  | BS43: =IFERROR(HYPERLINK(MapEvent_MouseOver(ROW(),COLUMN())),"") ->  | BT43: =IFERROR(HYPERLINK(MapEvent_MouseOver(ROW(),COLUMN())),"") ->  | BU43: =IFERROR(HYPERLINK(MapEvent_MouseOver(ROW(),COLUMN())),"") ->  | BV43: =IFERROR(HYPERLINK(MapEvent_MouseOver(ROW(),COLUMN())),"") ->  | BW43: =IFERROR(HYPERLINK(MapEvent_MouseOver(ROW(),COLUMN())),"") ->  | BX43: =IFERROR(HYPERLINK(MapEvent_MouseOver(ROW(),COLUMN())),"") ->  | BY43: =IFERROR(HYPERLINK(MapEvent_MouseOver(ROW(),COLUMN())),"") ->  | BZ43: =IFERROR(HYPERLINK(MapEvent_MouseOver(ROW(),COLUMN())),"") ->  | CA43: =IFERROR(HYPERLINK(MapEvent_MouseOver(ROW(),COLUMN())),"") ->  | CB43: =IFERROR(HYPERLINK(MapEvent_MouseOver(ROW(),COLUMN())),"") ->  | CC43: =IFERROR(HYPERLINK(MapEvent_MouseOver(ROW(),COLUMN())),"") ->  | CD43: =IFERROR(HYPERLINK(MapEvent_MouseOver(ROW(),COLUMN())),"") ->  | CE43: =IFERROR(HYPERLINK(MapEvent_MouseOver(ROW(),COLUMN())),"") ->  | CF43: =IFERROR(HYPERLINK(MapEvent_MouseOver(ROW(),COLUMN())),"") ->  | CG43: =IFERROR(HYPERLINK(MapEvent_MouseOver(ROW(),COLUMN())),"") ->  | CH43: =IFERROR(HYPERLINK(MapEvent_MouseOver(ROW(),COLUMN())),"") ->  | CI43: =IFERROR(HYPERLINK(MapEvent_MouseOver(ROW(),COLUMN())),"") ->  | CJ43: =IFERROR(HYPERLINK(MapEvent_MouseOver(ROW(),COLUMN())),"") ->  | CK43: =IFERROR(HYPERLINK(MapEvent_MouseOver(ROW(),COLUMN())),"") ->  | CL43: =IFERROR(HYPERLINK(MapEvent_MouseOver(ROW(),COLUMN())),"") -> 
V44: =IFERROR(HYPERLINK(MapEvent_MouseOver(ROW(),COLUMN())),"") ->  | W44: =IFERROR(HYPERLINK(MapEvent_MouseOver(ROW(),COLUMN())),"") ->  | X44: =IFERROR(HYPERLINK(MapEvent_MouseOver(ROW(),COLUMN())),"") ->  | Y44: =IFERROR(HYPERLINK(MapEvent_MouseOver(ROW(),COLUMN())),"") ->  | Z44: =IFERROR(HYPERLINK(MapEvent_MouseOver(ROW(),COLUMN())),"") ->  | AA44: =IFERROR(HYPERLINK(MapEvent_MouseOver(ROW(),COLUMN())),"") ->  | AB44: =IFERROR(HYPERLINK(MapEvent_MouseOver(ROW(),COLUMN())),"") ->  | AC44: =IFERROR(HYPERLINK(MapEvent_MouseOver(ROW(),COLUMN())),"") ->  | AD44: =IFERROR(HYPERLINK(MapEvent_MouseOver(ROW(),COLUMN())),"") ->  | AE44: =IFERROR(HYPERLINK(MapEvent_MouseOver(ROW(),COLUMN())),"") ->  | AF44: =IFERROR(HYPERLINK(MapEvent_MouseOver(ROW(),COLUMN())),"") ->  | AG44: =IFERROR(HYPERLINK(MapEvent_MouseOver(ROW(),COLUMN())),"") ->  | AH44: =IFERROR(HYPERLINK(MapEvent_MouseOver(ROW(),COLUMN())),"") ->  | AI44: =IFERROR(HYPERLINK(MapEvent_MouseOver(ROW(),COLUMN())),"") ->  | AJ44: =IFERROR(HYPERLINK(MapEvent_MouseOver(ROW(),COLUMN())),"") ->  | AK44: =IFERROR(HYPERLINK(MapEvent_MouseOver(ROW(),COLUMN())),"") ->  | AL44: =IFERROR(HYPERLINK(MapEvent_MouseOver(ROW(),COLUMN())),"") ->  | AM44: =IFERROR(HYPERLINK(MapEvent_MouseOver(ROW(),COLUMN())),"") ->  | AN44: =IFERROR(HYPERLINK(MapEvent_MouseOver(ROW(),COLUMN())),"") ->  | AO44: =IFERROR(HYPERLINK(MapEvent_MouseOver(ROW(),COLUMN())),"") ->  | AP44: =IFERROR(HYPERLINK(MapEvent_MouseOver(ROW(),COLUMN())),"") ->  | AQ44: =IFERROR(HYPERLINK(MapEvent_MouseOver(ROW(),COLUMN())),"") ->  | AR44: =IFERROR(HYPERLINK(MapEvent_MouseOver(ROW(),COLUMN())),"") ->  | AS44: =IFERROR(HYPERLINK(MapEvent_MouseOver(ROW(),COLUMN())),"") ->  | AT44: =IFERROR(HYPERLINK(MapEvent_MouseOver(ROW(),COLUMN())),"") ->  | AU44: =IFERROR(HYPERLINK(MapEvent_MouseOver(ROW(),COLUMN())),"") ->  | AV44: =IFERROR(HYPERLINK(MapEvent_MouseOver(ROW(),COLUMN())),"") ->  | AW44: =IFERROR(HYPERLINK(MapEvent_MouseOver(ROW(),COLUMN())),"") ->  | AX44: =IFERROR(HYPERLINK(MapEvent_MouseOver(ROW(),COLUMN())),"") ->  | AY44: =IFERROR(HYPERLINK(MapEvent_MouseOver(ROW(),COLUMN())),"") ->  | AZ44: =IFERROR(HYPERLINK(MapEvent_MouseOver(ROW(),COLUMN())),"") ->  | BA44: =IFERROR(HYPERLINK(MapEvent_MouseOver(ROW(),COLUMN())),"") ->  | BB44: =IFERROR(HYPERLINK(MapEvent_MouseOver(ROW(),COLUMN())),"") ->  | BC44: =IFERROR(HYPERLINK(MapEvent_MouseOver(ROW(),COLUMN())),"") ->  | BD44: =IFERROR(HYPERLINK(MapEvent_MouseOver(ROW(),COLUMN())),"") ->  | BE44: =IFERROR(HYPERLINK(MapEvent_MouseOver(ROW(),COLUMN())),"") ->  | BF44: =IFERROR(HYPERLINK(MapEvent_MouseOver(ROW(),COLUMN())),"") ->  | BG44: =IFERROR(HYPERLINK(MapEvent_MouseOver(ROW(),COLUMN())),"") ->  | BH44: =IFERROR(HYPERLINK(MapEvent_MouseOver(ROW(),COLUMN())),"") ->  | BI44: =IFERROR(HYPERLINK(MapEvent_MouseOver(ROW(),COLUMN())),"") ->  | BJ44: =IFERROR(HYPERLINK(MapEvent_MouseOver(ROW(),COLUMN())),"") ->  | BK44: =IFERROR(HYPERLINK(MapEvent_MouseOver(ROW(),COLUMN())),"") ->  | BL44: =IFERROR(HYPERLINK(MapEvent_MouseOver(ROW(),COLUMN())),"") ->  | BM44: =IFERROR(HYPERLINK(MapEvent_MouseOver(ROW(),COLUMN())),"") ->  | BN44: =IFERROR(HYPERLINK(MapEvent_MouseOver(ROW(),COLUMN())),"") ->  | BO44: =IFERROR(HYPERLINK(MapEvent_MouseOver(ROW(),COLUMN())),"") ->  | BP44: =IFERROR(HYPERLINK(MapEvent_MouseOver(ROW(),COLUMN())),"") ->  | BQ44: =IFERROR(HYPERLINK(MapEvent_MouseOver(ROW(),COLUMN())),"") ->  | BR44: =IFERROR(HYPERLINK(MapEvent_MouseOver(ROW(),COLUMN())),"") ->  | BS44: =IFERROR(HYPERLINK(MapEvent_MouseOver(ROW(),COLUMN())),"") ->  | BT44: =IFERROR(HYPERLINK(MapEvent_MouseOver(ROW(),COLUMN())),"") ->  | BU44: =IFERROR(HYPERLINK(MapEvent_MouseOver(ROW(),COLUMN())),"") ->  | BV44: =IFERROR(HYPERLINK(MapEvent_MouseOver(ROW(),COLUMN())),"") ->  | BW44: =IFERROR(HYPERLINK(MapEvent_MouseOver(ROW(),COLUMN())),"") ->  | BX44: =IFERROR(HYPERLINK(MapEvent_MouseOver(ROW(),COLUMN())),"") ->  | BY44: =IFERROR(HYPERLINK(MapEvent_MouseOver(ROW(),COLUMN())),"") ->  | BZ44: =IFERROR(HYPERLINK(MapEvent_MouseOver(ROW(),COLUMN())),"") ->  | CA44: =IFERROR(HYPERLINK(MapEvent_MouseOver(ROW(),COLUMN())),"") ->  | CB44: =IFERROR(HYPERLINK(MapEvent_MouseOver(ROW(),COLUMN())),"") ->  | CC44: =IFERROR(HYPERLINK(MapEvent_MouseOver(ROW(),COLUMN())),"") ->  | CD44: =IFERROR(HYPERLINK(MapEvent_MouseOver(ROW(),COLUMN())),"") ->  | CE44: =IFERROR(HYPERLINK(MapEvent_MouseOver(ROW(),COLUMN())),"") ->  | CF44: =IFERROR(HYPERLINK(MapEvent_MouseOver(ROW(),COLUMN())),"") ->  | CG44: =IFERROR(HYPERLINK(MapEvent_MouseOver(ROW(),COLUMN())),"") ->  | CH44: =IFERROR(HYPERLINK(MapEvent_MouseOver(ROW(),COLUMN())),"") ->  | CI44: =IFERROR(HYPERLINK(MapEvent_MouseOver(ROW(),COLUMN())),"") ->  | CJ44: =IFERROR(HYPERLINK(MapEvent_MouseOver(ROW(),COLUMN())),"") ->  | CK44: =IFERROR(HYPERLINK(MapEvent_MouseOver(ROW(),COLUMN())),"") ->  | CL44: =IFERROR(HYPERLINK(MapEvent_MouseOver(ROW(),COLUMN())),"") -> 
V45: =IFERROR(HYPERLINK(MapEvent_MouseOver(ROW(),COLUMN())),"") ->  | W45: =IFERROR(HYPERLINK(MapEvent_MouseOver(ROW(),COLUMN())),"") ->  | X45: =IFERROR(HYPERLINK(MapEvent_MouseOver(ROW(),COLUMN())),"") ->  | Y45: =IFERROR(HYPERLINK(MapEvent_MouseOver(ROW(),COLUMN())),"") ->  | Z45: =IFERROR(HYPERLINK(MapEvent_MouseOver(ROW(),COLUMN())),"") ->  | AA45: =IFERROR(HYPERLINK(MapEvent_MouseOver(ROW(),COLUMN())),"") ->  | AB45: =IFERROR(HYPERLINK(MapEvent_MouseOver(ROW(),COLUMN())),"") ->  | AC45: =IFERROR(HYPERLINK(MapEvent_MouseOver(ROW(),COLUMN())),"") ->  | AD45: =IFERROR(HYPERLINK(MapEvent_MouseOver(ROW(),COLUMN())),"") ->  | AE45: =IFERROR(HYPERLINK(MapEvent_MouseOver(ROW(),COLUMN())),"") ->  | AF45: =IFERROR(HYPERLINK(MapEvent_MouseOver(ROW(),COLUMN())),"") ->  | AG45: =IFERROR(HYPERLINK(MapEvent_MouseOver(ROW(),COLUMN())),"") ->  | AH45: =IFERROR(HYPERLINK(MapEvent_MouseOver(ROW(),COLUMN())),"") ->  | AI45: =IFERROR(HYPERLINK(MapEvent_MouseOver(ROW(),COLUMN())),"") ->  | AJ45: =IFERROR(HYPERLINK(MapEvent_MouseOver(ROW(),COLUMN())),"") ->  | AK45: =IFERROR(HYPERLINK(MapEvent_MouseOver(ROW(),COLUMN())),"") ->  | AL45: =IFERROR(HYPERLINK(MapEvent_MouseOver(ROW(),COLUMN())),"") ->  | AM45: =IFERROR(HYPERLINK(MapEvent_MouseOver(ROW(),COLUMN())),"") ->  | AN45: =IFERROR(HYPERLINK(MapEvent_MouseOver(ROW(),COLUMN())),"") ->  | AO45: =IFERROR(HYPERLINK(MapEvent_MouseOver(ROW(),COLUMN())),"") ->  | AP45: =IFERROR(HYPERLINK(MapEvent_MouseOver(ROW(),COLUMN())),"") ->  | AQ45: =IFERROR(HYPERLINK(MapEvent_MouseOver(ROW(),COLUMN())),"") ->  | AR45: =IFERROR(HYPERLINK(MapEvent_MouseOver(ROW(),COLUMN())),"") ->  | AS45: =IFERROR(HYPERLINK(MapEvent_MouseOver(ROW(),COLUMN())),"") ->  | AT45: =IFERROR(HYPERLINK(MapEvent_MouseOver(ROW(),COLUMN())),"") ->  | AU45: =IFERROR(HYPERLINK(MapEvent_MouseOver(ROW(),COLUMN())),"") ->  | AV45: =IFERROR(HYPERLINK(MapEvent_MouseOver(ROW(),COLUMN())),"") ->  | AW45: =IFERROR(HYPERLINK(MapEvent_MouseOver(ROW(),COLUMN())),"") ->  | AX45: =IFERROR(HYPERLINK(MapEvent_MouseOver(ROW(),COLUMN())),"") ->  | AY45: =IFERROR(HYPERLINK(MapEvent_MouseOver(ROW(),COLUMN())),"") ->  | AZ45: =IFERROR(HYPERLINK(MapEvent_MouseOver(ROW(),COLUMN())),"") ->  | BA45: =IFERROR(HYPERLINK(MapEvent_MouseOver(ROW(),COLUMN())),"") ->  | BB45: =IFERROR(HYPERLINK(MapEvent_MouseOver(ROW(),COLUMN())),"") ->  | BC45: =IFERROR(HYPERLINK(MapEvent_MouseOver(ROW(),COLUMN())),"") ->  | BD45: =IFERROR(HYPERLINK(MapEvent_MouseOver(ROW(),COLUMN())),"") ->  | BE45: =IFERROR(HYPERLINK(MapEvent_MouseOver(ROW(),COLUMN())),"") ->  | BF45: =IFERROR(HYPERLINK(MapEvent_MouseOver(ROW(),COLUMN())),"") ->  | BG45: =IFERROR(HYPERLINK(MapEvent_MouseOver(ROW(),COLUMN())),"") ->  | BH45: =IFERROR(HYPERLINK(MapEvent_MouseOver(ROW(),COLUMN())),"") ->  | BI45: =IFERROR(HYPERLINK(MapEvent_MouseOver(ROW(),COLUMN())),"") ->  | BJ45: =IFERROR(HYPERLINK(MapEvent_MouseOver(ROW(),COLUMN())),"") ->  | BK45: =IFERROR(HYPERLINK(MapEvent_MouseOver(ROW(),COLUMN())),"") ->  | BL45: =IFERROR(HYPERLINK(MapEvent_MouseOver(ROW(),COLUMN())),"") ->  | BM45: =IFERROR(HYPERLINK(MapEvent_MouseOver(ROW(),COLUMN())),"") ->  | BN45: =IFERROR(HYPERLINK(MapEvent_MouseOver(ROW(),COLUMN())),"") ->  | BO45: =IFERROR(HYPERLINK(MapEvent_MouseOver(ROW(),COLUMN())),"") ->  | BP45: =IFERROR(HYPERLINK(MapEvent_MouseOver(ROW(),COLUMN())),"") ->  | BQ45: =IFERROR(HYPERLINK(MapEvent_MouseOver(ROW(),COLUMN())),"") ->  | BR45: =IFERROR(HYPERLINK(MapEvent_MouseOver(ROW(),COLUMN())),"") ->  | BS45: =IFERROR(HYPERLINK(MapEvent_MouseOver(ROW(),COLUMN())),"") ->  | BT45: =IFERROR(HYPERLINK(MapEvent_MouseOver(ROW(),COLUMN())),"") ->  | BU45: =IFERROR(HYPERLINK(MapEvent_MouseOver(ROW(),COLUMN())),"") ->  | BV45: =IFERROR(HYPERLINK(MapEvent_MouseOver(ROW(),COLUMN())),"") ->  | BW45: =IFERROR(HYPERLINK(MapEvent_MouseOver(ROW(),COLUMN())),"") ->  | BX45: =IFERROR(HYPERLINK(MapEvent_MouseOver(ROW(),COLUMN())),"") ->  | BY45: =IFERROR(HYPERLINK(MapEvent_MouseOver(ROW(),COLUMN())),"") ->  | BZ45: =IFERROR(HYPERLINK(MapEvent_MouseOver(ROW(),COLUMN())),"") ->  | CA45: =IFERROR(HYPERLINK(MapEvent_MouseOver(ROW(),COLUMN())),"") ->  | CB45: =IFERROR(HYPERLINK(MapEvent_MouseOver(ROW(),COLUMN())),"") ->  | CC45: =IFERROR(HYPERLINK(MapEvent_MouseOver(ROW(),COLUMN())),"") ->  | CD45: =IFERROR(HYPERLINK(MapEvent_MouseOver(ROW(),COLUMN())),"") ->  | CE45: =IFERROR(HYPERLINK(MapEvent_MouseOver(ROW(),COLUMN())),"") ->  | CF45: =IFERROR(HYPERLINK(MapEvent_MouseOver(ROW(),COLUMN())),"") ->  | CG45: =IFERROR(HYPERLINK(MapEvent_MouseOver(ROW(),COLUMN())),"") ->  | CH45: =IFERROR(HYPERLINK(MapEvent_MouseOver(ROW(),COLUMN())),"") ->  | CI45: =IFERROR(HYPERLINK(MapEvent_MouseOver(ROW(),COLUMN())),"") ->  | CJ45: =IFERROR(HYPERLINK(MapEvent_MouseOver(ROW(),COLUMN())),"") ->  | CK45: =IFERROR(HYPERLINK(MapEvent_MouseOver(ROW(),COLUMN())),"") ->  | CL45: =IFERROR(HYPERLINK(MapEvent_MouseOver(ROW(),COLUMN())),"") -> 
V46: =IFERROR(HYPERLINK(MapEvent_MouseOver(ROW(),COLUMN())),"") ->  | W46: =IFERROR(HYPERLINK(MapEvent_MouseOver(ROW(),COLUMN())),"") ->  | X46: =IFERROR(HYPERLINK(MapEvent_MouseOver(ROW(),COLUMN())),"") ->  | Y46: =IFERROR(HYPERLINK(MapEvent_MouseOver(ROW(),COLUMN())),"") ->  | Z46: =IFERROR(HYPERLINK(MapEvent_MouseOver(ROW(),COLUMN())),"") ->  | AA46: =IFERROR(HYPERLINK(MapEvent_MouseOver(ROW(),COLUMN())),"") ->  | AB46: =IFERROR(HYPERLINK(MapEvent_MouseOver(ROW(),COLUMN())),"") ->  | AC46: =IFERROR(HYPERLINK(MapEvent_MouseOver(ROW(),COLUMN())),"") ->  | AD46: =IFERROR(HYPERLINK(MapEvent_MouseOver(ROW(),COLUMN())),"") ->  | AE46: =IFERROR(HYPERLINK(MapEvent_MouseOver(ROW(),COLUMN())),"") ->  | AF46: =IFERROR(HYPERLINK(MapEvent_MouseOver(ROW(),COLUMN())),"") ->  | AG46: =IFERROR(HYPERLINK(MapEvent_MouseOver(ROW(),COLUMN())),"") ->  | AH46: =IFERROR(HYPERLINK(MapEvent_MouseOver(ROW(),COLUMN())),"") ->  | AI46: =IFERROR(HYPERLINK(MapEvent_MouseOver(ROW(),COLUMN())),"") ->  | AJ46: =IFERROR(HYPERLINK(MapEvent_MouseOver(ROW(),COLUMN())),"") ->  | AK46: =IFERROR(HYPERLINK(MapEvent_MouseOver(ROW(),COLUMN())),"") ->  | AL46: =IFERROR(HYPERLINK(MapEvent_MouseOver(ROW(),COLUMN())),"") ->  | AM46: =IFERROR(HYPERLINK(MapEvent_MouseOver(ROW(),COLUMN())),"") ->  | AN46: =IFERROR(HYPERLINK(MapEvent_MouseOver(ROW(),COLUMN())),"") ->  | AO46: =IFERROR(HYPERLINK(MapEvent_MouseOver(ROW(),COLUMN())),"") ->  | AP46: =IFERROR(HYPERLINK(MapEvent_MouseOver(ROW(),COLUMN())),"") ->  | AQ46: =IFERROR(HYPERLINK(MapEvent_MouseOver(ROW(),COLUMN())),"") ->  | AR46: =IFERROR(HYPERLINK(MapEvent_MouseOver(ROW(),COLUMN())),"") ->  | AS46: =IFERROR(HYPERLINK(MapEvent_MouseOver(ROW(),COLUMN())),"") ->  | AT46: =IFERROR(HYPERLINK(MapEvent_MouseOver(ROW(),COLUMN())),"") ->  | AU46: =IFERROR(HYPERLINK(MapEvent_MouseOver(ROW(),COLUMN())),"") ->  | AV46: =IFERROR(HYPERLINK(MapEvent_MouseOver(ROW(),COLUMN())),"") ->  | AW46: =IFERROR(HYPERLINK(MapEvent_MouseOver(ROW(),COLUMN())),"") ->  | AX46: =IFERROR(HYPERLINK(MapEvent_MouseOver(ROW(),COLUMN())),"") ->  | AY46: =IFERROR(HYPERLINK(MapEvent_MouseOver(ROW(),COLUMN())),"") ->  | AZ46: =IFERROR(HYPERLINK(MapEvent_MouseOver(ROW(),COLUMN())),"") ->  | BA46: =IFERROR(HYPERLINK(MapEvent_MouseOver(ROW(),COLUMN())),"") ->  | BB46: =IFERROR(HYPERLINK(MapEvent_MouseOver(ROW(),COLUMN())),"") ->  | BC46: =IFERROR(HYPERLINK(MapEvent_MouseOver(ROW(),COLUMN())),"") ->  | BD46: =IFERROR(HYPERLINK(MapEvent_MouseOver(ROW(),COLUMN())),"") ->  | BE46: =IFERROR(HYPERLINK(MapEvent_MouseOver(ROW(),COLUMN())),"") ->  | BF46: =IFERROR(HYPERLINK(MapEvent_MouseOver(ROW(),COLUMN())),"") ->  | BG46: =IFERROR(HYPERLINK(MapEvent_MouseOver(ROW(),COLUMN())),"") ->  | BH46: =IFERROR(HYPERLINK(MapEvent_MouseOver(ROW(),COLUMN())),"") ->  | BI46: =IFERROR(HYPERLINK(MapEvent_MouseOver(ROW(),COLUMN())),"") ->  | BJ46: =IFERROR(HYPERLINK(MapEvent_MouseOver(ROW(),COLUMN())),"") ->  | BK46: =IFERROR(HYPERLINK(MapEvent_MouseOver(ROW(),COLUMN())),"") ->  | BL46: =IFERROR(HYPERLINK(MapEvent_MouseOver(ROW(),COLUMN())),"") ->  | BM46: =IFERROR(HYPERLINK(MapEvent_MouseOver(ROW(),COLUMN())),"") ->  | BN46: =IFERROR(HYPERLINK(MapEvent_MouseOver(ROW(),COLUMN())),"") ->  | BO46: =IFERROR(HYPERLINK(MapEvent_MouseOver(ROW(),COLUMN())),"") ->  | BP46: =IFERROR(HYPERLINK(MapEvent_MouseOver(ROW(),COLUMN())),"") ->  | BQ46: =IFERROR(HYPERLINK(MapEvent_MouseOver(ROW(),COLUMN())),"") ->  | BR46: =IFERROR(HYPERLINK(MapEvent_MouseOver(ROW(),COLUMN())),"") ->  | BS46: =IFERROR(HYPERLINK(MapEvent_MouseOver(ROW(),COLUMN())),"") ->  | BT46: =IFERROR(HYPERLINK(MapEvent_MouseOver(ROW(),COLUMN())),"") ->  | BU46: =IFERROR(HYPERLINK(MapEvent_MouseOver(ROW(),COLUMN())),"") ->  | BV46: =IFERROR(HYPERLINK(MapEvent_MouseOver(ROW(),COLUMN())),"") ->  | BW46: =IFERROR(HYPERLINK(MapEvent_MouseOver(ROW(),COLUMN())),"") ->  | BX46: =IFERROR(HYPERLINK(MapEvent_MouseOver(ROW(),COLUMN())),"") ->  | BY46: =IFERROR(HYPERLINK(MapEvent_MouseOver(ROW(),COLUMN())),"") ->  | BZ46: =IFERROR(HYPERLINK(MapEvent_MouseOver(ROW(),COLUMN())),"") ->  | CA46: =IFERROR(HYPERLINK(MapEvent_MouseOver(ROW(),COLUMN())),"") ->  | CB46: =IFERROR(HYPERLINK(MapEvent_MouseOver(ROW(),COLUMN())),"") ->  | CC46: =IFERROR(HYPERLINK(MapEvent_MouseOver(ROW(),COLUMN())),"") ->  | CD46: =IFERROR(HYPERLINK(MapEvent_MouseOver(ROW(),COLUMN())),"") ->  | CE46: =IFERROR(HYPERLINK(MapEvent_MouseOver(ROW(),COLUMN())),"") ->  | CF46: =IFERROR(HYPERLINK(MapEvent_MouseOver(ROW(),COLUMN())),"") ->  | CG46: =IFERROR(HYPERLINK(MapEvent_MouseOver(ROW(),COLUMN())),"") ->  | CH46: =IFERROR(HYPERLINK(MapEvent_MouseOver(ROW(),COLUMN())),"") ->  | CI46: =IFERROR(HYPERLINK(MapEvent_MouseOver(ROW(),COLUMN())),"") ->  | CJ46: =IFERROR(HYPERLINK(MapEvent_MouseOver(ROW(),COLUMN())),"") ->  | CK46: =IFERROR(HYPERLINK(MapEvent_MouseOver(ROW(),COLUMN())),"") ->  | CL46: =IFERROR(HYPERLINK(MapEvent_MouseOver(ROW(),COLUMN())),"") -> 
V47: =IFERROR(HYPERLINK(MapEvent_MouseOver(ROW(),COLUMN())),"") ->  | W47: =IFERROR(HYPERLINK(MapEvent_MouseOver(ROW(),COLUMN())),"") ->  | X47: =IFERROR(HYPERLINK(MapEvent_MouseOver(ROW(),COLUMN())),"") ->  | Y47: =IFERROR(HYPERLINK(MapEvent_MouseOver(ROW(),COLUMN())),"") ->  | Z47: =IFERROR(HYPERLINK(MapEvent_MouseOver(ROW(),COLUMN())),"") ->  | AA47: =IFERROR(HYPERLINK(MapEvent_MouseOver(ROW(),COLUMN())),"") ->  | AB47: =IFERROR(HYPERLINK(MapEvent_MouseOver(ROW(),COLUMN())),"") ->  | AC47: =IFERROR(HYPERLINK(MapEvent_MouseOver(ROW(),COLUMN())),"") ->  | AD47: =IFERROR(HYPERLINK(MapEvent_MouseOver(ROW(),COLUMN())),"") ->  | AE47: =IFERROR(HYPERLINK(MapEvent_MouseOver(ROW(),COLUMN())),"") ->  | AF47: =IFERROR(HYPERLINK(MapEvent_MouseOver(ROW(),COLUMN())),"") ->  | AG47: =IFERROR(HYPERLINK(MapEvent_MouseOver(ROW(),COLUMN())),"") ->  | AH47: =IFERROR(HYPERLINK(MapEvent_MouseOver(ROW(),COLUMN())),"") ->  | AI47: =IFERROR(HYPERLINK(MapEvent_MouseOver(ROW(),COLUMN())),"") ->  | AJ47: =IFERROR(HYPERLINK(MapEvent_MouseOver(ROW(),COLUMN())),"") ->  | AK47: =IFERROR(HYPERLINK(MapEvent_MouseOver(ROW(),COLUMN())),"") ->  | AL47: =IFERROR(HYPERLINK(MapEvent_MouseOver(ROW(),COLUMN())),"") ->  | AM47: =IFERROR(HYPERLINK(MapEvent_MouseOver(ROW(),COLUMN())),"") ->  | AN47: =IFERROR(HYPERLINK(MapEvent_MouseOver(ROW(),COLUMN())),"") ->  | AO47: =IFERROR(HYPERLINK(MapEvent_MouseOver(ROW(),COLUMN())),"") ->  | AP47: =IFERROR(HYPERLINK(MapEvent_MouseOver(ROW(),COLUMN())),"") ->  | AQ47: =IFERROR(HYPERLINK(MapEvent_MouseOver(ROW(),COLUMN())),"") ->  | AR47: =IFERROR(HYPERLINK(MapEvent_MouseOver(ROW(),COLUMN())),"") ->  | AS47: =IFERROR(HYPERLINK(MapEvent_MouseOver(ROW(),COLUMN())),"") ->  | AT47: =IFERROR(HYPERLINK(MapEvent_MouseOver(ROW(),COLUMN())),"") ->  | AU47: =IFERROR(HYPERLINK(MapEvent_MouseOver(ROW(),COLUMN())),"") ->  | AV47: =IFERROR(HYPERLINK(MapEvent_MouseOver(ROW(),COLUMN())),"") ->  | AW47: =IFERROR(HYPERLINK(MapEvent_MouseOver(ROW(),COLUMN())),"") ->  | AX47: =IFERROR(HYPERLINK(MapEvent_MouseOver(ROW(),COLUMN())),"") ->  | AY47: =IFERROR(HYPERLINK(MapEvent_MouseOver(ROW(),COLUMN())),"") ->  | AZ47: =IFERROR(HYPERLINK(MapEvent_MouseOver(ROW(),COLUMN())),"") ->  | BA47: =IFERROR(HYPERLINK(MapEvent_MouseOver(ROW(),COLUMN())),"") ->  | BB47: =IFERROR(HYPERLINK(MapEvent_MouseOver(ROW(),COLUMN())),"") ->  | BC47: =IFERROR(HYPERLINK(MapEvent_MouseOver(ROW(),COLUMN())),"") ->  | BD47: =IFERROR(HYPERLINK(MapEvent_MouseOver(ROW(),COLUMN())),"") ->  | BE47: =IFERROR(HYPERLINK(MapEvent_MouseOver(ROW(),COLUMN())),"") ->  | BF47: =IFERROR(HYPERLINK(MapEvent_MouseOver(ROW(),COLUMN())),"") ->  | BG47: =IFERROR(HYPERLINK(MapEvent_MouseOver(ROW(),COLUMN())),"") ->  | BH47: =IFERROR(HYPERLINK(MapEvent_MouseOver(ROW(),COLUMN())),"") ->  | BI47: =IFERROR(HYPERLINK(MapEvent_MouseOver(ROW(),COLUMN())),"") ->  | BJ47: =IFERROR(HYPERLINK(MapEvent_MouseOver(ROW(),COLUMN())),"") ->  | BK47: =IFERROR(HYPERLINK(MapEvent_MouseOver(ROW(),COLUMN())),"") ->  | BL47: =IFERROR(HYPERLINK(MapEvent_MouseOver(ROW(),COLUMN())),"") ->  | BM47: =IFERROR(HYPERLINK(MapEvent_MouseOver(ROW(),COLUMN())),"") ->  | BN47: =IFERROR(HYPERLINK(MapEvent_MouseOver(ROW(),COLUMN())),"") ->  | BO47: =IFERROR(HYPERLINK(MapEvent_MouseOver(ROW(),COLUMN())),"") ->  | BP47: =IFERROR(HYPERLINK(MapEvent_MouseOver(ROW(),COLUMN())),"") ->  | BQ47: =IFERROR(HYPERLINK(MapEvent_MouseOver(ROW(),COLUMN())),"") ->  | BR47: =IFERROR(HYPERLINK(MapEvent_MouseOver(ROW(),COLUMN())),"") ->  | BS47: =IFERROR(HYPERLINK(MapEvent_MouseOver(ROW(),COLUMN())),"") ->  | BT47: =IFERROR(HYPERLINK(MapEvent_MouseOver(ROW(),COLUMN())),"") ->  | BU47: =IFERROR(HYPERLINK(MapEvent_MouseOver(ROW(),COLUMN())),"") ->  | BV47: =IFERROR(HYPERLINK(MapEvent_MouseOver(ROW(),COLUMN())),"") ->  | BW47: =IFERROR(HYPERLINK(MapEvent_MouseOver(ROW(),COLUMN())),"") ->  | BX47: =IFERROR(HYPERLINK(MapEvent_MouseOver(ROW(),COLUMN())),"") ->  | BY47: =IFERROR(HYPERLINK(MapEvent_MouseOver(ROW(),COLUMN())),"") ->  | BZ47: =IFERROR(HYPERLINK(MapEvent_MouseOver(ROW(),COLUMN())),"") ->  | CA47: =IFERROR(HYPERLINK(MapEvent_MouseOver(ROW(),COLUMN())),"") ->  | CB47: =IFERROR(HYPERLINK(MapEvent_MouseOver(ROW(),COLUMN())),"") ->  | CC47: =IFERROR(HYPERLINK(MapEvent_MouseOver(ROW(),COLUMN())),"") ->  | CD47: =IFERROR(HYPERLINK(MapEvent_MouseOver(ROW(),COLUMN())),"") ->  | CE47: =IFERROR(HYPERLINK(MapEvent_MouseOver(ROW(),COLUMN())),"") ->  | CF47: =IFERROR(HYPERLINK(MapEvent_MouseOver(ROW(),COLUMN())),"") ->  | CG47: =IFERROR(HYPERLINK(MapEvent_MouseOver(ROW(),COLUMN())),"") ->  | CH47: =IFERROR(HYPERLINK(MapEvent_MouseOver(ROW(),COLUMN())),"") ->  | CI47: =IFERROR(HYPERLINK(MapEvent_MouseOver(ROW(),COLUMN())),"") ->  | CJ47: =IFERROR(HYPERLINK(MapEvent_MouseOver(ROW(),COLUMN())),"") ->  | CK47: =IFERROR(HYPERLINK(MapEvent_MouseOver(ROW(),COLUMN())),"") ->  | CL47: =IFERROR(HYPERLINK(MapEvent_MouseOver(ROW(),COLUMN())),"") -> 
V48: =IFERROR(HYPERLINK(MapEvent_MouseOver(ROW(),COLUMN())),"") ->  | W48: =IFERROR(HYPERLINK(MapEvent_MouseOver(ROW(),COLUMN())),"") ->  | X48: =IFERROR(HYPERLINK(MapEvent_MouseOver(ROW(),COLUMN())),"") ->  | Y48: =IFERROR(HYPERLINK(MapEvent_MouseOver(ROW(),COLUMN())),"") ->  | Z48: =IFERROR(HYPERLINK(MapEvent_MouseOver(ROW(),COLUMN())),"") ->  | AA48: =IFERROR(HYPERLINK(MapEvent_MouseOver(ROW(),COLUMN())),"") ->  | AB48: =IFERROR(HYPERLINK(MapEvent_MouseOver(ROW(),COLUMN())),"") ->  | AC48: =IFERROR(HYPERLINK(MapEvent_MouseOver(ROW(),COLUMN())),"") ->  | AD48: =IFERROR(HYPERLINK(MapEvent_MouseOver(ROW(),COLUMN())),"") ->  | AE48: =IFERROR(HYPERLINK(MapEvent_MouseOver(ROW(),COLUMN())),"") ->  | AF48: =IFERROR(HYPERLINK(MapEvent_MouseOver(ROW(),COLUMN())),"") ->  | AG48: =IFERROR(HYPERLINK(MapEvent_MouseOver(ROW(),COLUMN())),"") ->  | AH48: =IFERROR(HYPERLINK(MapEvent_MouseOver(ROW(),COLUMN())),"") ->  | AI48: =IFERROR(HYPERLINK(MapEvent_MouseOver(ROW(),COLUMN())),"") ->  | AJ48: =IFERROR(HYPERLINK(MapEvent_MouseOver(ROW(),COLUMN())),"") ->  | AK48: =IFERROR(HYPERLINK(MapEvent_MouseOver(ROW(),COLUMN())),"") ->  | AL48: =IFERROR(HYPERLINK(MapEvent_MouseOver(ROW(),COLUMN())),"") ->  | AM48: =IFERROR(HYPERLINK(MapEvent_MouseOver(ROW(),COLUMN())),"") ->  | AN48: =IFERROR(HYPERLINK(MapEvent_MouseOver(ROW(),COLUMN())),"") ->  | AO48: =IFERROR(HYPERLINK(MapEvent_MouseOver(ROW(),COLUMN())),"") ->  | AP48: =IFERROR(HYPERLINK(MapEvent_MouseOver(ROW(),COLUMN())),"") ->  | AQ48: =IFERROR(HYPERLINK(MapEvent_MouseOver(ROW(),COLUMN())),"") ->  | AR48: =IFERROR(HYPERLINK(MapEvent_MouseOver(ROW(),COLUMN())),"") ->  | AS48: =IFERROR(HYPERLINK(MapEvent_MouseOver(ROW(),COLUMN())),"") ->  | AT48: =IFERROR(HYPERLINK(MapEvent_MouseOver(ROW(),COLUMN())),"") ->  | AU48: =IFERROR(HYPERLINK(MapEvent_MouseOver(ROW(),COLUMN())),"") ->  | AV48: =IFERROR(HYPERLINK(MapEvent_MouseOver(ROW(),COLUMN())),"") ->  | AW48: =IFERROR(HYPERLINK(MapEvent_MouseOver(ROW(),COLUMN())),"") ->  | AX48: =IFERROR(HYPERLINK(MapEvent_MouseOver(ROW(),COLUMN())),"") ->  | AY48: =IFERROR(HYPERLINK(MapEvent_MouseOver(ROW(),COLUMN())),"") ->  | AZ48: =IFERROR(HYPERLINK(MapEvent_MouseOver(ROW(),COLUMN())),"") ->  | BA48: =IFERROR(HYPERLINK(MapEvent_MouseOver(ROW(),COLUMN())),"") ->  | BB48: =IFERROR(HYPERLINK(MapEvent_MouseOver(ROW(),COLUMN())),"") ->  | BC48: =IFERROR(HYPERLINK(MapEvent_MouseOver(ROW(),COLUMN())),"") ->  | BD48: =IFERROR(HYPERLINK(MapEvent_MouseOver(ROW(),COLUMN())),"") ->  | BE48: =IFERROR(HYPERLINK(MapEvent_MouseOver(ROW(),COLUMN())),"") ->  | BF48: =IFERROR(HYPERLINK(MapEvent_MouseOver(ROW(),COLUMN())),"") ->  | BG48: =IFERROR(HYPERLINK(MapEvent_MouseOver(ROW(),COLUMN())),"") ->  | BH48: =IFERROR(HYPERLINK(MapEvent_MouseOver(ROW(),COLUMN())),"") ->  | BI48: =IFERROR(HYPERLINK(MapEvent_MouseOver(ROW(),COLUMN())),"") ->  | BJ48: =IFERROR(HYPERLINK(MapEvent_MouseOver(ROW(),COLUMN())),"") ->  | BK48: =IFERROR(HYPERLINK(MapEvent_MouseOver(ROW(),COLUMN())),"") ->  | BL48: =IFERROR(HYPERLINK(MapEvent_MouseOver(ROW(),COLUMN())),"") ->  | BM48: =IFERROR(HYPERLINK(MapEvent_MouseOver(ROW(),COLUMN())),"") ->  | BN48: =IFERROR(HYPERLINK(MapEvent_MouseOver(ROW(),COLUMN())),"") ->  | BO48: =IFERROR(HYPERLINK(MapEvent_MouseOver(ROW(),COLUMN())),"") ->  | BP48: =IFERROR(HYPERLINK(MapEvent_MouseOver(ROW(),COLUMN())),"") ->  | BQ48: =IFERROR(HYPERLINK(MapEvent_MouseOver(ROW(),COLUMN())),"") ->  | BR48: =IFERROR(HYPERLINK(MapEvent_MouseOver(ROW(),COLUMN())),"") ->  | BS48: =IFERROR(HYPERLINK(MapEvent_MouseOver(ROW(),COLUMN())),"") ->  | BT48: =IFERROR(HYPERLINK(MapEvent_MouseOver(ROW(),COLUMN())),"") ->  | BU48: =IFERROR(HYPERLINK(MapEvent_MouseOver(ROW(),COLUMN())),"") ->  | BV48: =IFERROR(HYPERLINK(MapEvent_MouseOver(ROW(),COLUMN())),"") ->  | BW48: =IFERROR(HYPERLINK(MapEvent_MouseOver(ROW(),COLUMN())),"") ->  | BX48: =IFERROR(HYPERLINK(MapEvent_MouseOver(ROW(),COLUMN())),"") ->  | BY48: =IFERROR(HYPERLINK(MapEvent_MouseOver(ROW(),COLUMN())),"") ->  | BZ48: =IFERROR(HYPERLINK(MapEvent_MouseOver(ROW(),COLUMN())),"") ->  | CA48: =IFERROR(HYPERLINK(MapEvent_MouseOver(ROW(),COLUMN())),"") ->  | CB48: =IFERROR(HYPERLINK(MapEvent_MouseOver(ROW(),COLUMN())),"") ->  | CC48: =IFERROR(HYPERLINK(MapEvent_MouseOver(ROW(),COLUMN())),"") ->  | CD48: =IFERROR(HYPERLINK(MapEvent_MouseOver(ROW(),COLUMN())),"") ->  | CE48: =IFERROR(HYPERLINK(MapEvent_MouseOver(ROW(),COLUMN())),"") ->  | CF48: =IFERROR(HYPERLINK(MapEvent_MouseOver(ROW(),COLUMN())),"") ->  | CG48: =IFERROR(HYPERLINK(MapEvent_MouseOver(ROW(),COLUMN())),"") ->  | CH48: =IFERROR(HYPERLINK(MapEvent_MouseOver(ROW(),COLUMN())),"") ->  | CI48: =IFERROR(HYPERLINK(MapEvent_MouseOver(ROW(),COLUMN())),"") ->  | CJ48: =IFERROR(HYPERLINK(MapEvent_MouseOver(ROW(),COLUMN())),"") ->  | CK48: =IFERROR(HYPERLINK(MapEvent_MouseOver(ROW(),COLUMN())),"") ->  | CL48: =IFERROR(HYPERLINK(MapEvent_MouseOver(ROW(),COLUMN())),"") -> 
V49: =IFERROR(HYPERLINK(MapEvent_MouseOver(ROW(),COLUMN())),"") ->  | W49: =IFERROR(HYPERLINK(MapEvent_MouseOver(ROW(),COLUMN())),"") ->  | X49: =IFERROR(HYPERLINK(MapEvent_MouseOver(ROW(),COLUMN())),"") ->  | Y49: =IFERROR(HYPERLINK(MapEvent_MouseOver(ROW(),COLUMN())),"") ->  | Z49: =IFERROR(HYPERLINK(MapEvent_MouseOver(ROW(),COLUMN())),"") ->  | AA49: =IFERROR(HYPERLINK(MapEvent_MouseOver(ROW(),COLUMN())),"") ->  | AB49: =IFERROR(HYPERLINK(MapEvent_MouseOver(ROW(),COLUMN())),"") ->  | AC49: =IFERROR(HYPERLINK(MapEvent_MouseOver(ROW(),COLUMN())),"") ->  | AD49: =IFERROR(HYPERLINK(MapEvent_MouseOver(ROW(),COLUMN())),"") ->  | AE49: =IFERROR(HYPERLINK(MapEvent_MouseOver(ROW(),COLUMN())),"") ->  | AF49: =IFERROR(HYPERLINK(MapEvent_MouseOver(ROW(),COLUMN())),"") ->  | AG49: =IFERROR(HYPERLINK(MapEvent_MouseOver(ROW(),COLUMN())),"") ->  | AH49: =IFERROR(HYPERLINK(MapEvent_MouseOver(ROW(),COLUMN())),"") ->  | AI49: =IFERROR(HYPERLINK(MapEvent_MouseOver(ROW(),COLUMN())),"") ->  | AJ49: =IFERROR(HYPERLINK(MapEvent_MouseOver(ROW(),COLUMN())),"") ->  | AK49: =IFERROR(HYPERLINK(MapEvent_MouseOver(ROW(),COLUMN())),"") ->  | AL49: =IFERROR(HYPERLINK(MapEvent_MouseOver(ROW(),COLUMN())),"") ->  | AM49: =IFERROR(HYPERLINK(MapEvent_MouseOver(ROW(),COLUMN())),"") ->  | AN49: =IFERROR(HYPERLINK(MapEvent_MouseOver(ROW(),COLUMN())),"") ->  | AO49: =IFERROR(HYPERLINK(MapEvent_MouseOver(ROW(),COLUMN())),"") ->  | AP49: =IFERROR(HYPERLINK(MapEvent_MouseOver(ROW(),COLUMN())),"") ->  | AQ49: =IFERROR(HYPERLINK(MapEvent_MouseOver(ROW(),COLUMN())),"") ->  | AR49: =IFERROR(HYPERLINK(MapEvent_MouseOver(ROW(),COLUMN())),"") ->  | AS49: =IFERROR(HYPERLINK(MapEvent_MouseOver(ROW(),COLUMN())),"") ->  | AT49: =IFERROR(HYPERLINK(MapEvent_MouseOver(ROW(),COLUMN())),"") ->  | AU49: =IFERROR(HYPERLINK(MapEvent_MouseOver(ROW(),COLUMN())),"") ->  | AV49: =IFERROR(HYPERLINK(MapEvent_MouseOver(ROW(),COLUMN())),"") ->  | AW49: =IFERROR(HYPERLINK(MapEvent_MouseOver(ROW(),COLUMN())),"") ->  | AX49: =IFERROR(HYPERLINK(MapEvent_MouseOver(ROW(),COLUMN())),"") ->  | AY49: =IFERROR(HYPERLINK(MapEvent_MouseOver(ROW(),COLUMN())),"") ->  | AZ49: =IFERROR(HYPERLINK(MapEvent_MouseOver(ROW(),COLUMN())),"") ->  | BA49: =IFERROR(HYPERLINK(MapEvent_MouseOver(ROW(),COLUMN())),"") ->  | BB49: =IFERROR(HYPERLINK(MapEvent_MouseOver(ROW(),COLUMN())),"") ->  | BC49: =IFERROR(HYPERLINK(MapEvent_MouseOver(ROW(),COLUMN())),"") ->  | BD49: =IFERROR(HYPERLINK(MapEvent_MouseOver(ROW(),COLUMN())),"") ->  | BE49: =IFERROR(HYPERLINK(MapEvent_MouseOver(ROW(),COLUMN())),"") ->  | BF49: =IFERROR(HYPERLINK(MapEvent_MouseOver(ROW(),COLUMN())),"") ->  | BG49: =IFERROR(HYPERLINK(MapEvent_MouseOver(ROW(),COLUMN())),"") ->  | BH49: =IFERROR(HYPERLINK(MapEvent_MouseOver(ROW(),COLUMN())),"") ->  | BI49: =IFERROR(HYPERLINK(MapEvent_MouseOver(ROW(),COLUMN())),"") ->  | BJ49: =IFERROR(HYPERLINK(MapEvent_MouseOver(ROW(),COLUMN())),"") ->  | BK49: =IFERROR(HYPERLINK(MapEvent_MouseOver(ROW(),COLUMN())),"") ->  | BL49: =IFERROR(HYPERLINK(MapEvent_MouseOver(ROW(),COLUMN())),"") ->  | BM49: =IFERROR(HYPERLINK(MapEvent_MouseOver(ROW(),COLUMN())),"") ->  | BN49: =IFERROR(HYPERLINK(MapEvent_MouseOver(ROW(),COLUMN())),"") ->  | BO49: =IFERROR(HYPERLINK(MapEvent_MouseOver(ROW(),COLUMN())),"") ->  | BP49: =IFERROR(HYPERLINK(MapEvent_MouseOver(ROW(),COLUMN())),"") ->  | BQ49: =IFERROR(HYPERLINK(MapEvent_MouseOver(ROW(),COLUMN())),"") ->  | BR49: =IFERROR(HYPERLINK(MapEvent_MouseOver(ROW(),COLUMN())),"") ->  | BS49: =IFERROR(HYPERLINK(MapEvent_MouseOver(ROW(),COLUMN())),"") ->  | BT49: =IFERROR(HYPERLINK(MapEvent_MouseOver(ROW(),COLUMN())),"") ->  | BU49: =IFERROR(HYPERLINK(MapEvent_MouseOver(ROW(),COLUMN())),"") ->  | BV49: =IFERROR(HYPERLINK(MapEvent_MouseOver(ROW(),COLUMN())),"") ->  | BW49: =IFERROR(HYPERLINK(MapEvent_MouseOver(ROW(),COLUMN())),"") ->  | BX49: =IFERROR(HYPERLINK(MapEvent_MouseOver(ROW(),COLUMN())),"") ->  | BY49: =IFERROR(HYPERLINK(MapEvent_MouseOver(ROW(),COLUMN())),"") ->  | BZ49: =IFERROR(HYPERLINK(MapEvent_MouseOver(ROW(),COLUMN())),"") ->  | CA49: =IFERROR(HYPERLINK(MapEvent_MouseOver(ROW(),COLUMN())),"") ->  | CB49: =IFERROR(HYPERLINK(MapEvent_MouseOver(ROW(),COLUMN())),"") ->  | CC49: =IFERROR(HYPERLINK(MapEvent_MouseOver(ROW(),COLUMN())),"") ->  | CD49: =IFERROR(HYPERLINK(MapEvent_MouseOver(ROW(),COLUMN())),"") ->  | CE49: =IFERROR(HYPERLINK(MapEvent_MouseOver(ROW(),COLUMN())),"") ->  | CF49: =IFERROR(HYPERLINK(MapEvent_MouseOver(ROW(),COLUMN())),"") ->  | CG49: =IFERROR(HYPERLINK(MapEvent_MouseOver(ROW(),COLUMN())),"") ->  | CH49: =IFERROR(HYPERLINK(MapEvent_MouseOver(ROW(),COLUMN())),"") ->  | CI49: =IFERROR(HYPERLINK(MapEvent_MouseOver(ROW(),COLUMN())),"") ->  | CJ49: =IFERROR(HYPERLINK(MapEvent_MouseOver(ROW(),COLUMN())),"") ->  | CK49: =IFERROR(HYPERLINK(MapEvent_MouseOver(ROW(),COLUMN())),"") ->  | CL49: =IFERROR(HYPERLINK(MapEvent_MouseOver(ROW(),COLUMN())),"") -> 
V50: =IFERROR(HYPERLINK(MapEvent_MouseOver(ROW(),COLUMN())),"") ->  | W50: =IFERROR(HYPERLINK(MapEvent_MouseOver(ROW(),COLUMN())),"") ->  | X50: =IFERROR(HYPERLINK(MapEvent_MouseOver(ROW(),COLUMN())),"") ->  | Y50: =IFERROR(HYPERLINK(MapEvent_MouseOver(ROW(),COLUMN())),"") ->  | Z50: =IFERROR(HYPERLINK(MapEvent_MouseOver(ROW(),COLUMN())),"") ->  | AA50: =IFERROR(HYPERLINK(MapEvent_MouseOver(ROW(),COLUMN())),"") ->  | AB50: =IFERROR(HYPERLINK(MapEvent_MouseOver(ROW(),COLUMN())),"") ->  | AC50: =IFERROR(HYPERLINK(MapEvent_MouseOver(ROW(),COLUMN())),"") ->  | AD50: =IFERROR(HYPERLINK(MapEvent_MouseOver(ROW(),COLUMN())),"") ->  | AE50: =IFERROR(HYPERLINK(MapEvent_MouseOver(ROW(),COLUMN())),"") ->  | AF50: =IFERROR(HYPERLINK(MapEvent_MouseOver(ROW(),COLUMN())),"") ->  | AG50: =IFERROR(HYPERLINK(MapEvent_MouseOver(ROW(),COLUMN())),"") ->  | AH50: =IFERROR(HYPERLINK(MapEvent_MouseOver(ROW(),COLUMN())),"") ->  | AI50: =IFERROR(HYPERLINK(MapEvent_MouseOver(ROW(),COLUMN())),"") ->  | AJ50: =IFERROR(HYPERLINK(MapEvent_MouseOver(ROW(),COLUMN())),"") ->  | AK50: =IFERROR(HYPERLINK(MapEvent_MouseOver(ROW(),COLUMN())),"") ->  | AL50: =IFERROR(HYPERLINK(MapEvent_MouseOver(ROW(),COLUMN())),"") ->  | AM50: =IFERROR(HYPERLINK(MapEvent_MouseOver(ROW(),COLUMN())),"") ->  | AN50: =IFERROR(HYPERLINK(MapEvent_MouseOver(ROW(),COLUMN())),"") ->  | AO50: =IFERROR(HYPERLINK(MapEvent_MouseOver(ROW(),COLUMN())),"") ->  | AP50: =IFERROR(HYPERLINK(MapEvent_MouseOver(ROW(),COLUMN())),"") ->  | AQ50: =IFERROR(HYPERLINK(MapEvent_MouseOver(ROW(),COLUMN())),"") ->  | AR50: =IFERROR(HYPERLINK(MapEvent_MouseOver(ROW(),COLUMN())),"") ->  | AS50: =IFERROR(HYPERLINK(MapEvent_MouseOver(ROW(),COLUMN())),"") ->  | AT50: =IFERROR(HYPERLINK(MapEvent_MouseOver(ROW(),COLUMN())),"") ->  | AU50: =IFERROR(HYPERLINK(MapEvent_MouseOver(ROW(),COLUMN())),"") ->  | AV50: =IFERROR(HYPERLINK(MapEvent_MouseOver(ROW(),COLUMN())),"") ->  | AW50: =IFERROR(HYPERLINK(MapEvent_MouseOver(ROW(),COLUMN())),"") ->  | AX50: =IFERROR(HYPERLINK(MapEvent_MouseOver(ROW(),COLUMN())),"") ->  | AY50: =IFERROR(HYPERLINK(MapEvent_MouseOver(ROW(),COLUMN())),"") ->  | AZ50: =IFERROR(HYPERLINK(MapEvent_MouseOver(ROW(),COLUMN())),"") ->  | BA50: =IFERROR(HYPERLINK(MapEvent_MouseOver(ROW(),COLUMN())),"") ->  | BB50: =IFERROR(HYPERLINK(MapEvent_MouseOver(ROW(),COLUMN())),"") ->  | BC50: =IFERROR(HYPERLINK(MapEvent_MouseOver(ROW(),COLUMN())),"") ->  | BD50: =IFERROR(HYPERLINK(MapEvent_MouseOver(ROW(),COLUMN())),"") ->  | BE50: =IFERROR(HYPERLINK(MapEvent_MouseOver(ROW(),COLUMN())),"") ->  | BF50: =IFERROR(HYPERLINK(MapEvent_MouseOver(ROW(),COLUMN())),"") ->  | BG50: =IFERROR(HYPERLINK(MapEvent_MouseOver(ROW(),COLUMN())),"") ->  | BH50: =IFERROR(HYPERLINK(MapEvent_MouseOver(ROW(),COLUMN())),"") ->  | BI50: =IFERROR(HYPERLINK(MapEvent_MouseOver(ROW(),COLUMN())),"") ->  | BJ50: =IFERROR(HYPERLINK(MapEvent_MouseOver(ROW(),COLUMN())),"") ->  | BK50: =IFERROR(HYPERLINK(MapEvent_MouseOver(ROW(),COLUMN())),"") ->  | BL50: =IFERROR(HYPERLINK(MapEvent_MouseOver(ROW(),COLUMN())),"") ->  | BM50: =IFERROR(HYPERLINK(MapEvent_MouseOver(ROW(),COLUMN())),"") ->  | BN50: =IFERROR(HYPERLINK(MapEvent_MouseOver(ROW(),COLUMN())),"") ->  | BO50: =IFERROR(HYPERLINK(MapEvent_MouseOver(ROW(),COLUMN())),"") ->  | BP50: =IFERROR(HYPERLINK(MapEvent_MouseOver(ROW(),COLUMN())),"") ->  | BQ50: =IFERROR(HYPERLINK(MapEvent_MouseOver(ROW(),COLUMN())),"") ->  | BR50: =IFERROR(HYPERLINK(MapEvent_MouseOver(ROW(),COLUMN())),"") ->  | BS50: =IFERROR(HYPERLINK(MapEvent_MouseOver(ROW(),COLUMN())),"") ->  | BT50: =IFERROR(HYPERLINK(MapEvent_MouseOver(ROW(),COLUMN())),"") ->  | BU50: =IFERROR(HYPERLINK(MapEvent_MouseOver(ROW(),COLUMN())),"") ->  | BV50: =IFERROR(HYPERLINK(MapEvent_MouseOver(ROW(),COLUMN())),"") ->  | BW50: =IFERROR(HYPERLINK(MapEvent_MouseOver(ROW(),COLUMN())),"") ->  | BX50: =IFERROR(HYPERLINK(MapEvent_MouseOver(ROW(),COLUMN())),"") ->  | BY50: =IFERROR(HYPERLINK(MapEvent_MouseOver(ROW(),COLUMN())),"") ->  | BZ50: =IFERROR(HYPERLINK(MapEvent_MouseOver(ROW(),COLUMN())),"") ->  | CA50: =IFERROR(HYPERLINK(MapEvent_MouseOver(ROW(),COLUMN())),"") ->  | CB50: =IFERROR(HYPERLINK(MapEvent_MouseOver(ROW(),COLUMN())),"") ->  | CC50: =IFERROR(HYPERLINK(MapEvent_MouseOver(ROW(),COLUMN())),"") ->  | CD50: =IFERROR(HYPERLINK(MapEvent_MouseOver(ROW(),COLUMN())),"") ->  | CE50: =IFERROR(HYPERLINK(MapEvent_MouseOver(ROW(),COLUMN())),"") ->  | CF50: =IFERROR(HYPERLINK(MapEvent_MouseOver(ROW(),COLUMN())),"") ->  | CG50: =IFERROR(HYPERLINK(MapEvent_MouseOver(ROW(),COLUMN())),"") ->  | CH50: =IFERROR(HYPERLINK(MapEvent_MouseOver(ROW(),COLUMN())),"") ->  | CI50: =IFERROR(HYPERLINK(MapEvent_MouseOver(ROW(),COLUMN())),"") ->  | CJ50: =IFERROR(HYPERLINK(MapEvent_MouseOver(ROW(),COLUMN())),"") ->  | CK50: =IFERROR(HYPERLINK(MapEvent_MouseOver(ROW(),COLUMN())),"") ->  | CL50: =IFERROR(HYPERLINK(MapEvent_MouseOver(ROW(),COLUMN())),"") -> 
V51: =IFERROR(HYPERLINK(MapEvent_MouseOver(ROW(),COLUMN())),"") ->  | W51: =IFERROR(HYPERLINK(MapEvent_MouseOver(ROW(),COLUMN())),"") ->  | X51: =IFERROR(HYPERLINK(MapEvent_MouseOver(ROW(),COLUMN())),"") ->  | Y51: =IFERROR(HYPERLINK(MapEvent_MouseOver(ROW(),COLUMN())),"") ->  | Z51: =IFERROR(HYPERLINK(MapEvent_MouseOver(ROW(),COLUMN())),"") ->  | AA51: =IFERROR(HYPERLINK(MapEvent_MouseOver(ROW(),COLUMN())),"") ->  | AB51: =IFERROR(HYPERLINK(MapEvent_MouseOver(ROW(),COLUMN())),"") ->  | AC51: =IFERROR(HYPERLINK(MapEvent_MouseOver(ROW(),COLUMN())),"") ->  | AD51: =IFERROR(HYPERLINK(MapEvent_MouseOver(ROW(),COLUMN())),"") ->  | AE51: =IFERROR(HYPERLINK(MapEvent_MouseOver(ROW(),COLUMN())),"") ->  | AF51: =IFERROR(HYPERLINK(MapEvent_MouseOver(ROW(),COLUMN())),"") ->  | AG51: =IFERROR(HYPERLINK(MapEvent_MouseOver(ROW(),COLUMN())),"") ->  | AH51: =IFERROR(HYPERLINK(MapEvent_MouseOver(ROW(),COLUMN())),"") ->  | AI51: =IFERROR(HYPERLINK(MapEvent_MouseOver(ROW(),COLUMN())),"") ->  | AJ51: =IFERROR(HYPERLINK(MapEvent_MouseOver(ROW(),COLUMN())),"") ->  | AK51: =IFERROR(HYPERLINK(MapEvent_MouseOver(ROW(),COLUMN())),"") ->  | AL51: =IFERROR(HYPERLINK(MapEvent_MouseOver(ROW(),COLUMN())),"") ->  | AM51: =IFERROR(HYPERLINK(MapEvent_MouseOver(ROW(),COLUMN())),"") ->  | AN51: =IFERROR(HYPERLINK(MapEvent_MouseOver(ROW(),COLUMN())),"") ->  | AO51: =IFERROR(HYPERLINK(MapEvent_MouseOver(ROW(),COLUMN())),"") ->  | AP51: =IFERROR(HYPERLINK(MapEvent_MouseOver(ROW(),COLUMN())),"") ->  | AQ51: =IFERROR(HYPERLINK(MapEvent_MouseOver(ROW(),COLUMN())),"") ->  | AR51: =IFERROR(HYPERLINK(MapEvent_MouseOver(ROW(),COLUMN())),"") ->  | AS51: =IFERROR(HYPERLINK(MapEvent_MouseOver(ROW(),COLUMN())),"") ->  | AT51: =IFERROR(HYPERLINK(MapEvent_MouseOver(ROW(),COLUMN())),"") ->  | AU51: =IFERROR(HYPERLINK(MapEvent_MouseOver(ROW(),COLUMN())),"") ->  | AV51: =IFERROR(HYPERLINK(MapEvent_MouseOver(ROW(),COLUMN())),"") ->  | AW51: =IFERROR(HYPERLINK(MapEvent_MouseOver(ROW(),COLUMN())),"") ->  | AX51: =IFERROR(HYPERLINK(MapEvent_MouseOver(ROW(),COLUMN())),"") ->  | AY51: =IFERROR(HYPERLINK(MapEvent_MouseOver(ROW(),COLUMN())),"") ->  | AZ51: =IFERROR(HYPERLINK(MapEvent_MouseOver(ROW(),COLUMN())),"") ->  | BA51: =IFERROR(HYPERLINK(MapEvent_MouseOver(ROW(),COLUMN())),"") ->  | BB51: =IFERROR(HYPERLINK(MapEvent_MouseOver(ROW(),COLUMN())),"") ->  | BC51: =IFERROR(HYPERLINK(MapEvent_MouseOver(ROW(),COLUMN())),"") ->  | BD51: =IFERROR(HYPERLINK(MapEvent_MouseOver(ROW(),COLUMN())),"") ->  | BE51: =IFERROR(HYPERLINK(MapEvent_MouseOver(ROW(),COLUMN())),"") ->  | BF51: =IFERROR(HYPERLINK(MapEvent_MouseOver(ROW(),COLUMN())),"") ->  | BG51: =IFERROR(HYPERLINK(MapEvent_MouseOver(ROW(),COLUMN())),"") ->  | BH51: =IFERROR(HYPERLINK(MapEvent_MouseOver(ROW(),COLUMN())),"") ->  | BI51: =IFERROR(HYPERLINK(MapEvent_MouseOver(ROW(),COLUMN())),"") ->  | BJ51: =IFERROR(HYPERLINK(MapEvent_MouseOver(ROW(),COLUMN())),"") ->  | BK51: =IFERROR(HYPERLINK(MapEvent_MouseOver(ROW(),COLUMN())),"") ->  | BL51: =IFERROR(HYPERLINK(MapEvent_MouseOver(ROW(),COLUMN())),"") ->  | BM51: =IFERROR(HYPERLINK(MapEvent_MouseOver(ROW(),COLUMN())),"") ->  | BN51: =IFERROR(HYPERLINK(MapEvent_MouseOver(ROW(),COLUMN())),"") ->  | BO51: =IFERROR(HYPERLINK(MapEvent_MouseOver(ROW(),COLUMN())),"") ->  | BP51: =IFERROR(HYPERLINK(MapEvent_MouseOver(ROW(),COLUMN())),"") ->  | BQ51: =IFERROR(HYPERLINK(MapEvent_MouseOver(ROW(),COLUMN())),"") ->  | BR51: =IFERROR(HYPERLINK(MapEvent_MouseOver(ROW(),COLUMN())),"") ->  | BS51: =IFERROR(HYPERLINK(MapEvent_MouseOver(ROW(),COLUMN())),"") ->  | BT51: =IFERROR(HYPERLINK(MapEvent_MouseOver(ROW(),COLUMN())),"") ->  | BU51: =IFERROR(HYPERLINK(MapEvent_MouseOver(ROW(),COLUMN())),"") ->  | BV51: =IFERROR(HYPERLINK(MapEvent_MouseOver(ROW(),COLUMN())),"") ->  | BW51: =IFERROR(HYPERLINK(MapEvent_MouseOver(ROW(),COLUMN())),"") ->  | BX51: =IFERROR(HYPERLINK(MapEvent_MouseOver(ROW(),COLUMN())),"") ->  | BY51: =IFERROR(HYPERLINK(MapEvent_MouseOver(ROW(),COLUMN())),"") ->  | BZ51: =IFERROR(HYPERLINK(MapEvent_MouseOver(ROW(),COLUMN())),"") ->  | CA51: =IFERROR(HYPERLINK(MapEvent_MouseOver(ROW(),COLUMN())),"") ->  | CB51: =IFERROR(HYPERLINK(MapEvent_MouseOver(ROW(),COLUMN())),"") ->  | CC51: =IFERROR(HYPERLINK(MapEvent_MouseOver(ROW(),COLUMN())),"") ->  | CD51: =IFERROR(HYPERLINK(MapEvent_MouseOver(ROW(),COLUMN())),"") ->  | CE51: =IFERROR(HYPERLINK(MapEvent_MouseOver(ROW(),COLUMN())),"") ->  | CF51: =IFERROR(HYPERLINK(MapEvent_MouseOver(ROW(),COLUMN())),"") ->  | CG51: =IFERROR(HYPERLINK(MapEvent_MouseOver(ROW(),COLUMN())),"") ->  | CH51: =IFERROR(HYPERLINK(MapEvent_MouseOver(ROW(),COLUMN())),"") ->  | CI51: =IFERROR(HYPERLINK(MapEvent_MouseOver(ROW(),COLUMN())),"") ->  | CJ51: =IFERROR(HYPERLINK(MapEvent_MouseOver(ROW(),COLUMN())),"") ->  | CK51: =IFERROR(HYPERLINK(MapEvent_MouseOver(ROW(),COLUMN())),"") ->  | CL51: =IFERROR(HYPERLINK(MapEvent_MouseOver(ROW(),COLUMN())),"") -> 
V52: =IFERROR(HYPERLINK(MapEvent_MouseOver(ROW(),COLUMN())),"") ->  | W52: =IFERROR(HYPERLINK(MapEvent_MouseOver(ROW(),COLUMN())),"") ->  | X52: =IFERROR(HYPERLINK(MapEvent_MouseOver(ROW(),COLUMN())),"") ->  | Y52: =IFERROR(HYPERLINK(MapEvent_MouseOver(ROW(),COLUMN())),"") ->  | Z52: =IFERROR(HYPERLINK(MapEvent_MouseOver(ROW(),COLUMN())),"") ->  | AA52: =IFERROR(HYPERLINK(MapEvent_MouseOver(ROW(),COLUMN())),"") ->  | AB52: =IFERROR(HYPERLINK(MapEvent_MouseOver(ROW(),COLUMN())),"") ->  | AC52: =IFERROR(HYPERLINK(MapEvent_MouseOver(ROW(),COLUMN())),"") ->  | AD52: =IFERROR(HYPERLINK(MapEvent_MouseOver(ROW(),COLUMN())),"") ->  | AE52: =IFERROR(HYPERLINK(MapEvent_MouseOver(ROW(),COLUMN())),"") ->  | AF52: =IFERROR(HYPERLINK(MapEvent_MouseOver(ROW(),COLUMN())),"") ->  | AG52: =IFERROR(HYPERLINK(MapEvent_MouseOver(ROW(),COLUMN())),"") ->  | AH52: =IFERROR(HYPERLINK(MapEvent_MouseOver(ROW(),COLUMN())),"") ->  | AI52: =IFERROR(HYPERLINK(MapEvent_MouseOver(ROW(),COLUMN())),"") ->  | AJ52: =IFERROR(HYPERLINK(MapEvent_MouseOver(ROW(),COLUMN())),"") ->  | AK52: =IFERROR(HYPERLINK(MapEvent_MouseOver(ROW(),COLUMN())),"") ->  | AL52: =IFERROR(HYPERLINK(MapEvent_MouseOver(ROW(),COLUMN())),"") ->  | AM52: =IFERROR(HYPERLINK(MapEvent_MouseOver(ROW(),COLUMN())),"") ->  | AN52: =IFERROR(HYPERLINK(MapEvent_MouseOver(ROW(),COLUMN())),"") ->  | AO52: =IFERROR(HYPERLINK(MapEvent_MouseOver(ROW(),COLUMN())),"") ->  | AP52: =IFERROR(HYPERLINK(MapEvent_MouseOver(ROW(),COLUMN())),"") ->  | AQ52: =IFERROR(HYPERLINK(MapEvent_MouseOver(ROW(),COLUMN())),"") ->  | AR52: =IFERROR(HYPERLINK(MapEvent_MouseOver(ROW(),COLUMN())),"") ->  | AS52: =IFERROR(HYPERLINK(MapEvent_MouseOver(ROW(),COLUMN())),"") ->  | AT52: =IFERROR(HYPERLINK(MapEvent_MouseOver(ROW(),COLUMN())),"") ->  | AU52: =IFERROR(HYPERLINK(MapEvent_MouseOver(ROW(),COLUMN())),"") ->  | AV52: =IFERROR(HYPERLINK(MapEvent_MouseOver(ROW(),COLUMN())),"") ->  | AW52: =IFERROR(HYPERLINK(MapEvent_MouseOver(ROW(),COLUMN())),"") ->  | AX52: =IFERROR(HYPERLINK(MapEvent_MouseOver(ROW(),COLUMN())),"") ->  | AY52: =IFERROR(HYPERLINK(MapEvent_MouseOver(ROW(),COLUMN())),"") ->  | AZ52: =IFERROR(HYPERLINK(MapEvent_MouseOver(ROW(),COLUMN())),"") ->  | BA52: =IFERROR(HYPERLINK(MapEvent_MouseOver(ROW(),COLUMN())),"") ->  | BB52: =IFERROR(HYPERLINK(MapEvent_MouseOver(ROW(),COLUMN())),"") ->  | BC52: =IFERROR(HYPERLINK(MapEvent_MouseOver(ROW(),COLUMN())),"") ->  | BD52: =IFERROR(HYPERLINK(MapEvent_MouseOver(ROW(),COLUMN())),"") ->  | BE52: =IFERROR(HYPERLINK(MapEvent_MouseOver(ROW(),COLUMN())),"") ->  | BF52: =IFERROR(HYPERLINK(MapEvent_MouseOver(ROW(),COLUMN())),"") ->  | BG52: =IFERROR(HYPERLINK(MapEvent_MouseOver(ROW(),COLUMN())),"") ->  | BH52: =IFERROR(HYPERLINK(MapEvent_MouseOver(ROW(),COLUMN())),"") ->  | BI52: =IFERROR(HYPERLINK(MapEvent_MouseOver(ROW(),COLUMN())),"") ->  | BJ52: =IFERROR(HYPERLINK(MapEvent_MouseOver(ROW(),COLUMN())),"") ->  | BK52: =IFERROR(HYPERLINK(MapEvent_MouseOver(ROW(),COLUMN())),"") ->  | BL52: =IFERROR(HYPERLINK(MapEvent_MouseOver(ROW(),COLUMN())),"") ->  | BM52: =IFERROR(HYPERLINK(MapEvent_MouseOver(ROW(),COLUMN())),"") ->  | BN52: =IFERROR(HYPERLINK(MapEvent_MouseOver(ROW(),COLUMN())),"") ->  | BO52: =IFERROR(HYPERLINK(MapEvent_MouseOver(ROW(),COLUMN())),"") ->  | BP52: =IFERROR(HYPERLINK(MapEvent_MouseOver(ROW(),COLUMN())),"") ->  | BQ52: =IFERROR(HYPERLINK(MapEvent_MouseOver(ROW(),COLUMN())),"") ->  | BR52: =IFERROR(HYPERLINK(MapEvent_MouseOver(ROW(),COLUMN())),"") ->  | BS52: =IFERROR(HYPERLINK(MapEvent_MouseOver(ROW(),COLUMN())),"") ->  | BT52: =IFERROR(HYPERLINK(MapEvent_MouseOver(ROW(),COLUMN())),"") ->  | BU52: =IFERROR(HYPERLINK(MapEvent_MouseOver(ROW(),COLUMN())),"") ->  | BV52: =IFERROR(HYPERLINK(MapEvent_MouseOver(ROW(),COLUMN())),"") ->  | BW52: =IFERROR(HYPERLINK(MapEvent_MouseOver(ROW(),COLUMN())),"") ->  | BX52: =IFERROR(HYPERLINK(MapEvent_MouseOver(ROW(),COLUMN())),"") ->  | BY52: =IFERROR(HYPERLINK(MapEvent_MouseOver(ROW(),COLUMN())),"") ->  | BZ52: =IFERROR(HYPERLINK(MapEvent_MouseOver(ROW(),COLUMN())),"") ->  | CA52: =IFERROR(HYPERLINK(MapEvent_MouseOver(ROW(),COLUMN())),"") ->  | CB52: =IFERROR(HYPERLINK(MapEvent_MouseOver(ROW(),COLUMN())),"") ->  | CC52: =IFERROR(HYPERLINK(MapEvent_MouseOver(ROW(),COLUMN())),"") ->  | CD52: =IFERROR(HYPERLINK(MapEvent_MouseOver(ROW(),COLUMN())),"") ->  | CE52: =IFERROR(HYPERLINK(MapEvent_MouseOver(ROW(),COLUMN())),"") ->  | CF52: =IFERROR(HYPERLINK(MapEvent_MouseOver(ROW(),COLUMN())),"") ->  | CG52: =IFERROR(HYPERLINK(MapEvent_MouseOver(ROW(),COLUMN())),"") ->  | CH52: =IFERROR(HYPERLINK(MapEvent_MouseOver(ROW(),COLUMN())),"") ->  | CI52: =IFERROR(HYPERLINK(MapEvent_MouseOver(ROW(),COLUMN())),"") ->  | CJ52: =IFERROR(HYPERLINK(MapEvent_MouseOver(ROW(),COLUMN())),"") ->  | CK52: =IFERROR(HYPERLINK(MapEvent_MouseOver(ROW(),COLUMN())),"") ->  | CL52: =IFERROR(HYPERLINK(MapEvent_MouseOver(ROW(),COLUMN())),"") -> 
V53: =IFERROR(HYPERLINK(MapEvent_MouseOver(ROW(),COLUMN())),"") ->  | W53: =IFERROR(HYPERLINK(MapEvent_MouseOver(ROW(),COLUMN())),"") ->  | X53: =IFERROR(HYPERLINK(MapEvent_MouseOver(ROW(),COLUMN())),"") ->  | Y53: =IFERROR(HYPERLINK(MapEvent_MouseOver(ROW(),COLUMN())),"") ->  | Z53: =IFERROR(HYPERLINK(MapEvent_MouseOver(ROW(),COLUMN())),"") ->  | AA53: =IFERROR(HYPERLINK(MapEvent_MouseOver(ROW(),COLUMN())),"") ->  | AB53: =IFERROR(HYPERLINK(MapEvent_MouseOver(ROW(),COLUMN())),"") ->  | AC53: =IFERROR(HYPERLINK(MapEvent_MouseOver(ROW(),COLUMN())),"") ->  | AD53: =IFERROR(HYPERLINK(MapEvent_MouseOver(ROW(),COLUMN())),"") ->  | AE53: =IFERROR(HYPERLINK(MapEvent_MouseOver(ROW(),COLUMN())),"") ->  | AF53: =IFERROR(HYPERLINK(MapEvent_MouseOver(ROW(),COLUMN())),"") ->  | AG53: =IFERROR(HYPERLINK(MapEvent_MouseOver(ROW(),COLUMN())),"") ->  | AH53: =IFERROR(HYPERLINK(MapEvent_MouseOver(ROW(),COLUMN())),"") ->  | AI53: =IFERROR(HYPERLINK(MapEvent_MouseOver(ROW(),COLUMN())),"") ->  | AJ53: =IFERROR(HYPERLINK(MapEvent_MouseOver(ROW(),COLUMN())),"") ->  | AK53: =IFERROR(HYPERLINK(MapEvent_MouseOver(ROW(),COLUMN())),"") ->  | AL53: =IFERROR(HYPERLINK(MapEvent_MouseOver(ROW(),COLUMN())),"") ->  | AM53: =IFERROR(HYPERLINK(MapEvent_MouseOver(ROW(),COLUMN())),"") ->  | AN53: =IFERROR(HYPERLINK(MapEvent_MouseOver(ROW(),COLUMN())),"") ->  | AO53: =IFERROR(HYPERLINK(MapEvent_MouseOver(ROW(),COLUMN())),"") ->  | AP53: =IFERROR(HYPERLINK(MapEvent_MouseOver(ROW(),COLUMN())),"") ->  | AQ53: =IFERROR(HYPERLINK(MapEvent_MouseOver(ROW(),COLUMN())),"") ->  | AR53: =IFERROR(HYPERLINK(MapEvent_MouseOver(ROW(),COLUMN())),"") ->  | AS53: =IFERROR(HYPERLINK(MapEvent_MouseOver(ROW(),COLUMN())),"") ->  | AT53: =IFERROR(HYPERLINK(MapEvent_MouseOver(ROW(),COLUMN())),"") ->  | AU53: =IFERROR(HYPERLINK(MapEvent_MouseOver(ROW(),COLUMN())),"") ->  | AV53: =IFERROR(HYPERLINK(MapEvent_MouseOver(ROW(),COLUMN())),"") ->  | AW53: =IFERROR(HYPERLINK(MapEvent_MouseOver(ROW(),COLUMN())),"") ->  | AX53: =IFERROR(HYPERLINK(MapEvent_MouseOver(ROW(),COLUMN())),"") ->  | AY53: =IFERROR(HYPERLINK(MapEvent_MouseOver(ROW(),COLUMN())),"") ->  | AZ53: =IFERROR(HYPERLINK(MapEvent_MouseOver(ROW(),COLUMN())),"") ->  | BA53: =IFERROR(HYPERLINK(MapEvent_MouseOver(ROW(),COLUMN())),"") ->  | BB53: =IFERROR(HYPERLINK(MapEvent_MouseOver(ROW(),COLUMN())),"") ->  | BC53: =IFERROR(HYPERLINK(MapEvent_MouseOver(ROW(),COLUMN())),"") ->  | BD53: =IFERROR(HYPERLINK(MapEvent_MouseOver(ROW(),COLUMN())),"") ->  | BE53: =IFERROR(HYPERLINK(MapEvent_MouseOver(ROW(),COLUMN())),"") ->  | BF53: =IFERROR(HYPERLINK(MapEvent_MouseOver(ROW(),COLUMN())),"") ->  | BG53: =IFERROR(HYPERLINK(MapEvent_MouseOver(ROW(),COLUMN())),"") ->  | BH53: =IFERROR(HYPERLINK(MapEvent_MouseOver(ROW(),COLUMN())),"") ->  | BI53: =IFERROR(HYPERLINK(MapEvent_MouseOver(ROW(),COLUMN())),"") ->  | BJ53: =IFERROR(HYPERLINK(MapEvent_MouseOver(ROW(),COLUMN())),"") ->  | BK53: =IFERROR(HYPERLINK(MapEvent_MouseOver(ROW(),COLUMN())),"") ->  | BL53: =IFERROR(HYPERLINK(MapEvent_MouseOver(ROW(),COLUMN())),"") ->  | BM53: =IFERROR(HYPERLINK(MapEvent_MouseOver(ROW(),COLUMN())),"") ->  | BN53: =IFERROR(HYPERLINK(MapEvent_MouseOver(ROW(),COLUMN())),"") ->  | BO53: =IFERROR(HYPERLINK(MapEvent_MouseOver(ROW(),COLUMN())),"") ->  | BP53: =IFERROR(HYPERLINK(MapEvent_MouseOver(ROW(),COLUMN())),"") ->  | BQ53: =IFERROR(HYPERLINK(MapEvent_MouseOver(ROW(),COLUMN())),"") ->  | BR53: =IFERROR(HYPERLINK(MapEvent_MouseOver(ROW(),COLUMN())),"") ->  | BS53: =IFERROR(HYPERLINK(MapEvent_MouseOver(ROW(),COLUMN())),"") ->  | BT53: =IFERROR(HYPERLINK(MapEvent_MouseOver(ROW(),COLUMN())),"") ->  | BU53: =IFERROR(HYPERLINK(MapEvent_MouseOver(ROW(),COLUMN())),"") ->  | BV53: =IFERROR(HYPERLINK(MapEvent_MouseOver(ROW(),COLUMN())),"") ->  | BW53: =IFERROR(HYPERLINK(MapEvent_MouseOver(ROW(),COLUMN())),"") ->  | BX53: =IFERROR(HYPERLINK(MapEvent_MouseOver(ROW(),COLUMN())),"") ->  | BY53: =IFERROR(HYPERLINK(MapEvent_MouseOver(ROW(),COLUMN())),"") ->  | BZ53: =IFERROR(HYPERLINK(MapEvent_MouseOver(ROW(),COLUMN())),"") ->  | CA53: =IFERROR(HYPERLINK(MapEvent_MouseOver(ROW(),COLUMN())),"") ->  | CB53: =IFERROR(HYPERLINK(MapEvent_MouseOver(ROW(),COLUMN())),"") ->  | CC53: =IFERROR(HYPERLINK(MapEvent_MouseOver(ROW(),COLUMN())),"") ->  | CD53: =IFERROR(HYPERLINK(MapEvent_MouseOver(ROW(),COLUMN())),"") ->  | CE53: =IFERROR(HYPERLINK(MapEvent_MouseOver(ROW(),COLUMN())),"") ->  | CF53: =IFERROR(HYPERLINK(MapEvent_MouseOver(ROW(),COLUMN())),"") ->  | CG53: =IFERROR(HYPERLINK(MapEvent_MouseOver(ROW(),COLUMN())),"") ->  | CH53: =IFERROR(HYPERLINK(MapEvent_MouseOver(ROW(),COLUMN())),"") ->  | CI53: =IFERROR(HYPERLINK(MapEvent_MouseOver(ROW(),COLUMN())),"") ->  | CJ53: =IFERROR(HYPERLINK(MapEvent_MouseOver(ROW(),COLUMN())),"") ->  | CK53: =IFERROR(HYPERLINK(MapEvent_MouseOver(ROW(),COLUMN())),"") ->  | CL53: =IFERROR(HYPERLINK(MapEvent_MouseOver(ROW(),COLUMN())),"") -> 
V54: =IFERROR(HYPERLINK(MapEvent_MouseOver(ROW(),COLUMN())),"") ->  | W54: =IFERROR(HYPERLINK(MapEvent_MouseOver(ROW(),COLUMN())),"") ->  | X54: =IFERROR(HYPERLINK(MapEvent_MouseOver(ROW(),COLUMN())),"") ->  | Y54: =IFERROR(HYPERLINK(MapEvent_MouseOver(ROW(),COLUMN())),"") ->  | Z54: =IFERROR(HYPERLINK(MapEvent_MouseOver(ROW(),COLUMN())),"") ->  | AA54: =IFERROR(HYPERLINK(MapEvent_MouseOver(ROW(),COLUMN())),"") ->  | AB54: =IFERROR(HYPERLINK(MapEvent_MouseOver(ROW(),COLUMN())),"") ->  | AC54: =IFERROR(HYPERLINK(MapEvent_MouseOver(ROW(),COLUMN())),"") ->  | AD54: =IFERROR(HYPERLINK(MapEvent_MouseOver(ROW(),COLUMN())),"") ->  | AE54: =IFERROR(HYPERLINK(MapEvent_MouseOver(ROW(),COLUMN())),"") ->  | AF54: =IFERROR(HYPERLINK(MapEvent_MouseOver(ROW(),COLUMN())),"") ->  | AG54: =IFERROR(HYPERLINK(MapEvent_MouseOver(ROW(),COLUMN())),"") ->  | AH54: =IFERROR(HYPERLINK(MapEvent_MouseOver(ROW(),COLUMN())),"") ->  | AI54: =IFERROR(HYPERLINK(MapEvent_MouseOver(ROW(),COLUMN())),"") ->  | AJ54: =IFERROR(HYPERLINK(MapEvent_MouseOver(ROW(),COLUMN())),"") ->  | AK54: =IFERROR(HYPERLINK(MapEvent_MouseOver(ROW(),COLUMN())),"") ->  | AL54: =IFERROR(HYPERLINK(MapEvent_MouseOver(ROW(),COLUMN())),"") ->  | AM54: =IFERROR(HYPERLINK(MapEvent_MouseOver(ROW(),COLUMN())),"") ->  | AN54: =IFERROR(HYPERLINK(MapEvent_MouseOver(ROW(),COLUMN())),"") ->  | AO54: =IFERROR(HYPERLINK(MapEvent_MouseOver(ROW(),COLUMN())),"") ->  | AP54: =IFERROR(HYPERLINK(MapEvent_MouseOver(ROW(),COLUMN())),"") ->  | AQ54: =IFERROR(HYPERLINK(MapEvent_MouseOver(ROW(),COLUMN())),"") ->  | AR54: =IFERROR(HYPERLINK(MapEvent_MouseOver(ROW(),COLUMN())),"") ->  | AS54: =IFERROR(HYPERLINK(MapEvent_MouseOver(ROW(),COLUMN())),"") ->  | AT54: =IFERROR(HYPERLINK(MapEvent_MouseOver(ROW(),COLUMN())),"") ->  | AU54: =IFERROR(HYPERLINK(MapEvent_MouseOver(ROW(),COLUMN())),"") ->  | AV54: =IFERROR(HYPERLINK(MapEvent_MouseOver(ROW(),COLUMN())),"") ->  | AW54: =IFERROR(HYPERLINK(MapEvent_MouseOver(ROW(),COLUMN())),"") ->  | AX54: =IFERROR(HYPERLINK(MapEvent_MouseOver(ROW(),COLUMN())),"") ->  | AY54: =IFERROR(HYPERLINK(MapEvent_MouseOver(ROW(),COLUMN())),"") ->  | AZ54: =IFERROR(HYPERLINK(MapEvent_MouseOver(ROW(),COLUMN())),"") ->  | BA54: =IFERROR(HYPERLINK(MapEvent_MouseOver(ROW(),COLUMN())),"") ->  | BB54: =IFERROR(HYPERLINK(MapEvent_MouseOver(ROW(),COLUMN())),"") ->  | BC54: =IFERROR(HYPERLINK(MapEvent_MouseOver(ROW(),COLUMN())),"") ->  | BD54: =IFERROR(HYPERLINK(MapEvent_MouseOver(ROW(),COLUMN())),"") ->  | BE54: =IFERROR(HYPERLINK(MapEvent_MouseOver(ROW(),COLUMN())),"") ->  | BF54: =IFERROR(HYPERLINK(MapEvent_MouseOver(ROW(),COLUMN())),"") ->  | BG54: =IFERROR(HYPERLINK(MapEvent_MouseOver(ROW(),COLUMN())),"") ->  | BH54: =IFERROR(HYPERLINK(MapEvent_MouseOver(ROW(),COLUMN())),"") ->  | BI54: =IFERROR(HYPERLINK(MapEvent_MouseOver(ROW(),COLUMN())),"") ->  | BJ54: =IFERROR(HYPERLINK(MapEvent_MouseOver(ROW(),COLUMN())),"") ->  | BK54: =IFERROR(HYPERLINK(MapEvent_MouseOver(ROW(),COLUMN())),"") ->  | BL54: =IFERROR(HYPERLINK(MapEvent_MouseOver(ROW(),COLUMN())),"") ->  | BM54: =IFERROR(HYPERLINK(MapEvent_MouseOver(ROW(),COLUMN())),"") ->  | BN54: =IFERROR(HYPERLINK(MapEvent_MouseOver(ROW(),COLUMN())),"") ->  | BO54: =IFERROR(HYPERLINK(MapEvent_MouseOver(ROW(),COLUMN())),"") ->  | BP54: =IFERROR(HYPERLINK(MapEvent_MouseOver(ROW(),COLUMN())),"") ->  | BQ54: =IFERROR(HYPERLINK(MapEvent_MouseOver(ROW(),COLUMN())),"") ->  | BR54: =IFERROR(HYPERLINK(MapEvent_MouseOver(ROW(),COLUMN())),"") ->  | BS54: =IFERROR(HYPERLINK(MapEvent_MouseOver(ROW(),COLUMN())),"") ->  | BT54: =IFERROR(HYPERLINK(MapEvent_MouseOver(ROW(),COLUMN())),"") ->  | BU54: =IFERROR(HYPERLINK(MapEvent_MouseOver(ROW(),COLUMN())),"") ->  | BV54: =IFERROR(HYPERLINK(MapEvent_MouseOver(ROW(),COLUMN())),"") ->  | BW54: =IFERROR(HYPERLINK(MapEvent_MouseOver(ROW(),COLUMN())),"") ->  | BX54: =IFERROR(HYPERLINK(MapEvent_MouseOver(ROW(),COLUMN())),"") ->  | BY54: =IFERROR(HYPERLINK(MapEvent_MouseOver(ROW(),COLUMN())),"") ->  | BZ54: =IFERROR(HYPERLINK(MapEvent_MouseOver(ROW(),COLUMN())),"") ->  | CA54: =IFERROR(HYPERLINK(MapEvent_MouseOver(ROW(),COLUMN())),"") ->  | CB54: =IFERROR(HYPERLINK(MapEvent_MouseOver(ROW(),COLUMN())),"") ->  | CC54: =IFERROR(HYPERLINK(MapEvent_MouseOver(ROW(),COLUMN())),"") ->  | CD54: =IFERROR(HYPERLINK(MapEvent_MouseOver(ROW(),COLUMN())),"") ->  | CE54: =IFERROR(HYPERLINK(MapEvent_MouseOver(ROW(),COLUMN())),"") ->  | CF54: =IFERROR(HYPERLINK(MapEvent_MouseOver(ROW(),COLUMN())),"") ->  | CG54: =IFERROR(HYPERLINK(MapEvent_MouseOver(ROW(),COLUMN())),"") ->  | CH54: =IFERROR(HYPERLINK(MapEvent_MouseOver(ROW(),COLUMN())),"") ->  | CI54: =IFERROR(HYPERLINK(MapEvent_MouseOver(ROW(),COLUMN())),"") ->  | CJ54: =IFERROR(HYPERLINK(MapEvent_MouseOver(ROW(),COLUMN())),"") ->  | CK54: =IFERROR(HYPERLINK(MapEvent_MouseOver(ROW(),COLUMN())),"") ->  | CL54: =IFERROR(HYPERLINK(MapEvent_MouseOver(ROW(),COLUMN())),"") -> 
V55: =IFERROR(HYPERLINK(MapEvent_MouseOver(ROW(),COLUMN())),"") ->  | W55: =IFERROR(HYPERLINK(MapEvent_MouseOver(ROW(),COLUMN())),"") ->  | X55: =IFERROR(HYPERLINK(MapEvent_MouseOver(ROW(),COLUMN())),"") ->  | Y55: =IFERROR(HYPERLINK(MapEvent_MouseOver(ROW(),COLUMN())),"") ->  | Z55: =IFERROR(HYPERLINK(MapEvent_MouseOver(ROW(),COLUMN())),"") ->  | AA55: =IFERROR(HYPERLINK(MapEvent_MouseOver(ROW(),COLUMN())),"") ->  | AB55: =IFERROR(HYPERLINK(MapEvent_MouseOver(ROW(),COLUMN())),"") ->  | AC55: =IFERROR(HYPERLINK(MapEvent_MouseOver(ROW(),COLUMN())),"") ->  | AD55: =IFERROR(HYPERLINK(MapEvent_MouseOver(ROW(),COLUMN())),"") ->  | AE55: =IFERROR(HYPERLINK(MapEvent_MouseOver(ROW(),COLUMN())),"") ->  | AF55: =IFERROR(HYPERLINK(MapEvent_MouseOver(ROW(),COLUMN())),"") ->  | AG55: =IFERROR(HYPERLINK(MapEvent_MouseOver(ROW(),COLUMN())),"") ->  | AH55: =IFERROR(HYPERLINK(MapEvent_MouseOver(ROW(),COLUMN())),"") ->  | AI55: =IFERROR(HYPERLINK(MapEvent_MouseOver(ROW(),COLUMN())),"") ->  | AJ55: =IFERROR(HYPERLINK(MapEvent_MouseOver(ROW(),COLUMN())),"") ->  | AK55: =IFERROR(HYPERLINK(MapEvent_MouseOver(ROW(),COLUMN())),"") ->  | AL55: =IFERROR(HYPERLINK(MapEvent_MouseOver(ROW(),COLUMN())),"") ->  | AM55: =IFERROR(HYPERLINK(MapEvent_MouseOver(ROW(),COLUMN())),"") ->  | AN55: =IFERROR(HYPERLINK(MapEvent_MouseOver(ROW(),COLUMN())),"") ->  | AO55: =IFERROR(HYPERLINK(MapEvent_MouseOver(ROW(),COLUMN())),"") ->  | AP55: =IFERROR(HYPERLINK(MapEvent_MouseOver(ROW(),COLUMN())),"") ->  | AQ55: =IFERROR(HYPERLINK(MapEvent_MouseOver(ROW(),COLUMN())),"") ->  | AR55: =IFERROR(HYPERLINK(MapEvent_MouseOver(ROW(),COLUMN())),"") ->  | AS55: =IFERROR(HYPERLINK(MapEvent_MouseOver(ROW(),COLUMN())),"") ->  | AT55: =IFERROR(HYPERLINK(MapEvent_MouseOver(ROW(),COLUMN())),"") ->  | AU55: =IFERROR(HYPERLINK(MapEvent_MouseOver(ROW(),COLUMN())),"") ->  | AV55: =IFERROR(HYPERLINK(MapEvent_MouseOver(ROW(),COLUMN())),"") ->  | AW55: =IFERROR(HYPERLINK(MapEvent_MouseOver(ROW(),COLUMN())),"") ->  | AX55: =IFERROR(HYPERLINK(MapEvent_MouseOver(ROW(),COLUMN())),"") ->  | AY55: =IFERROR(HYPERLINK(MapEvent_MouseOver(ROW(),COLUMN())),"") ->  | AZ55: =IFERROR(HYPERLINK(MapEvent_MouseOver(ROW(),COLUMN())),"") ->  | BA55: =IFERROR(HYPERLINK(MapEvent_MouseOver(ROW(),COLUMN())),"") ->  | BB55: =IFERROR(HYPERLINK(MapEvent_MouseOver(ROW(),COLUMN())),"") ->  | BC55: =IFERROR(HYPERLINK(MapEvent_MouseOver(ROW(),COLUMN())),"") ->  | BD55: =IFERROR(HYPERLINK(MapEvent_MouseOver(ROW(),COLUMN())),"") ->  | BE55: =IFERROR(HYPERLINK(MapEvent_MouseOver(ROW(),COLUMN())),"") ->  | BF55: =IFERROR(HYPERLINK(MapEvent_MouseOver(ROW(),COLUMN())),"") ->  | BG55: =IFERROR(HYPERLINK(MapEvent_MouseOver(ROW(),COLUMN())),"") ->  | BH55: =IFERROR(HYPERLINK(MapEvent_MouseOver(ROW(),COLUMN())),"") ->  | BI55: =IFERROR(HYPERLINK(MapEvent_MouseOver(ROW(),COLUMN())),"") ->  | BJ55: =IFERROR(HYPERLINK(MapEvent_MouseOver(ROW(),COLUMN())),"") ->  | BK55: =IFERROR(HYPERLINK(MapEvent_MouseOver(ROW(),COLUMN())),"") ->  | BL55: =IFERROR(HYPERLINK(MapEvent_MouseOver(ROW(),COLUMN())),"") ->  | BM55: =IFERROR(HYPERLINK(MapEvent_MouseOver(ROW(),COLUMN())),"") ->  | BN55: =IFERROR(HYPERLINK(MapEvent_MouseOver(ROW(),COLUMN())),"") ->  | BO55: =IFERROR(HYPERLINK(MapEvent_MouseOver(ROW(),COLUMN())),"") ->  | BP55: =IFERROR(HYPERLINK(MapEvent_MouseOver(ROW(),COLUMN())),"") ->  | BQ55: =IFERROR(HYPERLINK(MapEvent_MouseOver(ROW(),COLUMN())),"") ->  | BR55: =IFERROR(HYPERLINK(MapEvent_MouseOver(ROW(),COLUMN())),"") ->  | BS55: =IFERROR(HYPERLINK(MapEvent_MouseOver(ROW(),COLUMN())),"") ->  | BT55: =IFERROR(HYPERLINK(MapEvent_MouseOver(ROW(),COLUMN())),"") ->  | BU55: =IFERROR(HYPERLINK(MapEvent_MouseOver(ROW(),COLUMN())),"") ->  | BV55: =IFERROR(HYPERLINK(MapEvent_MouseOver(ROW(),COLUMN())),"") ->  | BW55: =IFERROR(HYPERLINK(MapEvent_MouseOver(ROW(),COLUMN())),"") ->  | BX55: =IFERROR(HYPERLINK(MapEvent_MouseOver(ROW(),COLUMN())),"") ->  | BY55: =IFERROR(HYPERLINK(MapEvent_MouseOver(ROW(),COLUMN())),"") ->  | BZ55: =IFERROR(HYPERLINK(MapEvent_MouseOver(ROW(),COLUMN())),"") ->  | CA55: =IFERROR(HYPERLINK(MapEvent_MouseOver(ROW(),COLUMN())),"") ->  | CB55: =IFERROR(HYPERLINK(MapEvent_MouseOver(ROW(),COLUMN())),"") ->  | CC55: =IFERROR(HYPERLINK(MapEvent_MouseOver(ROW(),COLUMN())),"") ->  | CD55: =IFERROR(HYPERLINK(MapEvent_MouseOver(ROW(),COLUMN())),"") ->  | CE55: =IFERROR(HYPERLINK(MapEvent_MouseOver(ROW(),COLUMN())),"") ->  | CF55: =IFERROR(HYPERLINK(MapEvent_MouseOver(ROW(),COLUMN())),"") ->  | CG55: =IFERROR(HYPERLINK(MapEvent_MouseOver(ROW(),COLUMN())),"") ->  | CH55: =IFERROR(HYPERLINK(MapEvent_MouseOver(ROW(),COLUMN())),"") ->  | CI55: =IFERROR(HYPERLINK(MapEvent_MouseOver(ROW(),COLUMN())),"") ->  | CJ55: =IFERROR(HYPERLINK(MapEvent_MouseOver(ROW(),COLUMN())),"") ->  | CK55: =IFERROR(HYPERLINK(MapEvent_MouseOver(ROW(),COLUMN())),"") ->  | CL55: =IFERROR(HYPERLINK(MapEvent_MouseOver(ROW(),COLUMN())),"") -> 
V56: =IFERROR(HYPERLINK(MapEvent_MouseOver(ROW(),COLUMN())),"") ->  | W56: =IFERROR(HYPERLINK(MapEvent_MouseOver(ROW(),COLUMN())),"") ->  | X56: =IFERROR(HYPERLINK(MapEvent_MouseOver(ROW(),COLUMN())),"") ->  | Y56: =IFERROR(HYPERLINK(MapEvent_MouseOver(ROW(),COLUMN())),"") ->  | Z56: =IFERROR(HYPERLINK(MapEvent_MouseOver(ROW(),COLUMN())),"") ->  | AA56: =IFERROR(HYPERLINK(MapEvent_MouseOver(ROW(),COLUMN())),"") ->  | AB56: =IFERROR(HYPERLINK(MapEvent_MouseOver(ROW(),COLUMN())),"") ->  | AC56: =IFERROR(HYPERLINK(MapEvent_MouseOver(ROW(),COLUMN())),"") ->  | AD56: =IFERROR(HYPERLINK(MapEvent_MouseOver(ROW(),COLUMN())),"") ->  | AE56: =IFERROR(HYPERLINK(MapEvent_MouseOver(ROW(),COLUMN())),"") ->  | AF56: =IFERROR(HYPERLINK(MapEvent_MouseOver(ROW(),COLUMN())),"") ->  | AG56: =IFERROR(HYPERLINK(MapEvent_MouseOver(ROW(),COLUMN())),"") ->  | AH56: =IFERROR(HYPERLINK(MapEvent_MouseOver(ROW(),COLUMN())),"") ->  | AI56: =IFERROR(HYPERLINK(MapEvent_MouseOver(ROW(),COLUMN())),"") ->  | AJ56: =IFERROR(HYPERLINK(MapEvent_MouseOver(ROW(),COLUMN())),"") ->  | AK56: =IFERROR(HYPERLINK(MapEvent_MouseOver(ROW(),COLUMN())),"") ->  | AL56: =IFERROR(HYPERLINK(MapEvent_MouseOver(ROW(),COLUMN())),"") ->  | AM56: =IFERROR(HYPERLINK(MapEvent_MouseOver(ROW(),COLUMN())),"") ->  | AN56: =IFERROR(HYPERLINK(MapEvent_MouseOver(ROW(),COLUMN())),"") ->  | AO56: =IFERROR(HYPERLINK(MapEvent_MouseOver(ROW(),COLUMN())),"") ->  | AP56: =IFERROR(HYPERLINK(MapEvent_MouseOver(ROW(),COLUMN())),"") ->  | AQ56: =IFERROR(HYPERLINK(MapEvent_MouseOver(ROW(),COLUMN())),"") ->  | AR56: =IFERROR(HYPERLINK(MapEvent_MouseOver(ROW(),COLUMN())),"") ->  | AS56: =IFERROR(HYPERLINK(MapEvent_MouseOver(ROW(),COLUMN())),"") ->  | AT56: =IFERROR(HYPERLINK(MapEvent_MouseOver(ROW(),COLUMN())),"") ->  | AU56: =IFERROR(HYPERLINK(MapEvent_MouseOver(ROW(),COLUMN())),"") ->  | AV56: =IFERROR(HYPERLINK(MapEvent_MouseOver(ROW(),COLUMN())),"") ->  | AW56: =IFERROR(HYPERLINK(MapEvent_MouseOver(ROW(),COLUMN())),"") ->  | AX56: =IFERROR(HYPERLINK(MapEvent_MouseOver(ROW(),COLUMN())),"") ->  | AY56: =IFERROR(HYPERLINK(MapEvent_MouseOver(ROW(),COLUMN())),"") ->  | AZ56: =IFERROR(HYPERLINK(MapEvent_MouseOver(ROW(),COLUMN())),"") ->  | BA56: =IFERROR(HYPERLINK(MapEvent_MouseOver(ROW(),COLUMN())),"") ->  | BB56: =IFERROR(HYPERLINK(MapEvent_MouseOver(ROW(),COLUMN())),"") ->  | BC56: =IFERROR(HYPERLINK(MapEvent_MouseOver(ROW(),COLUMN())),"") ->  | BD56: =IFERROR(HYPERLINK(MapEvent_MouseOver(ROW(),COLUMN())),"") ->  | BE56: =IFERROR(HYPERLINK(MapEvent_MouseOver(ROW(),COLUMN())),"") ->  | BF56: =IFERROR(HYPERLINK(MapEvent_MouseOver(ROW(),COLUMN())),"") ->  | BG56: =IFERROR(HYPERLINK(MapEvent_MouseOver(ROW(),COLUMN())),"") ->  | BH56: =IFERROR(HYPERLINK(MapEvent_MouseOver(ROW(),COLUMN())),"") ->  | BI56: =IFERROR(HYPERLINK(MapEvent_MouseOver(ROW(),COLUMN())),"") ->  | BJ56: =IFERROR(HYPERLINK(MapEvent_MouseOver(ROW(),COLUMN())),"") ->  | BK56: =IFERROR(HYPERLINK(MapEvent_MouseOver(ROW(),COLUMN())),"") ->  | BL56: =IFERROR(HYPERLINK(MapEvent_MouseOver(ROW(),COLUMN())),"") ->  | BM56: =IFERROR(HYPERLINK(MapEvent_MouseOver(ROW(),COLUMN())),"") ->  | BN56: =IFERROR(HYPERLINK(MapEvent_MouseOver(ROW(),COLUMN())),"") ->  | BO56: =IFERROR(HYPERLINK(MapEvent_MouseOver(ROW(),COLUMN())),"") ->  | BP56: =IFERROR(HYPERLINK(MapEvent_MouseOver(ROW(),COLUMN())),"") ->  | BQ56: =IFERROR(HYPERLINK(MapEvent_MouseOver(ROW(),COLUMN())),"") ->  | BR56: =IFERROR(HYPERLINK(MapEvent_MouseOver(ROW(),COLUMN())),"") ->  | BS56: =IFERROR(HYPERLINK(MapEvent_MouseOver(ROW(),COLUMN())),"") ->  | BT56: =IFERROR(HYPERLINK(MapEvent_MouseOver(ROW(),COLUMN())),"") ->  | BU56: =IFERROR(HYPERLINK(MapEvent_MouseOver(ROW(),COLUMN())),"") ->  | BV56: =IFERROR(HYPERLINK(MapEvent_MouseOver(ROW(),COLUMN())),"") ->  | BW56: =IFERROR(HYPERLINK(MapEvent_MouseOver(ROW(),COLUMN())),"") ->  | BX56: =IFERROR(HYPERLINK(MapEvent_MouseOver(ROW(),COLUMN())),"") ->  | BY56: =IFERROR(HYPERLINK(MapEvent_MouseOver(ROW(),COLUMN())),"") ->  | BZ56: =IFERROR(HYPERLINK(MapEvent_MouseOver(ROW(),COLUMN())),"") ->  | CA56: =IFERROR(HYPERLINK(MapEvent_MouseOver(ROW(),COLUMN())),"") ->  | CB56: =IFERROR(HYPERLINK(MapEvent_MouseOver(ROW(),COLUMN())),"") ->  | CC56: =IFERROR(HYPERLINK(MapEvent_MouseOver(ROW(),COLUMN())),"") ->  | CD56: =IFERROR(HYPERLINK(MapEvent_MouseOver(ROW(),COLUMN())),"") ->  | CE56: =IFERROR(HYPERLINK(MapEvent_MouseOver(ROW(),COLUMN())),"") ->  | CF56: =IFERROR(HYPERLINK(MapEvent_MouseOver(ROW(),COLUMN())),"") ->  | CG56: =IFERROR(HYPERLINK(MapEvent_MouseOver(ROW(),COLUMN())),"") ->  | CH56: =IFERROR(HYPERLINK(MapEvent_MouseOver(ROW(),COLUMN())),"") ->  | CI56: =IFERROR(HYPERLINK(MapEvent_MouseOver(ROW(),COLUMN())),"") ->  | CJ56: =IFERROR(HYPERLINK(MapEvent_MouseOver(ROW(),COLUMN())),"") ->  | CK56: =IFERROR(HYPERLINK(MapEvent_MouseOver(ROW(),COLUMN())),"") ->  | CL56: =IFERROR(HYPERLINK(MapEvent_MouseOver(ROW(),COLUMN())),"") -> 
V57: =IFERROR(HYPERLINK(MapEvent_MouseOver(ROW(),COLUMN())),"") ->  | W57: =IFERROR(HYPERLINK(MapEvent_MouseOver(ROW(),COLUMN())),"") ->  | X57: =IFERROR(HYPERLINK(MapEvent_MouseOver(ROW(),COLUMN())),"") ->  | Y57: =IFERROR(HYPERLINK(MapEvent_MouseOver(ROW(),COLUMN())),"") ->  | Z57: =IFERROR(HYPERLINK(MapEvent_MouseOver(ROW(),COLUMN())),"") ->  | AA57: =IFERROR(HYPERLINK(MapEvent_MouseOver(ROW(),COLUMN())),"") ->  | AB57: =IFERROR(HYPERLINK(MapEvent_MouseOver(ROW(),COLUMN())),"") ->  | AC57: =IFERROR(HYPERLINK(MapEvent_MouseOver(ROW(),COLUMN())),"") ->  | AD57: =IFERROR(HYPERLINK(MapEvent_MouseOver(ROW(),COLUMN())),"") ->  | AE57: =IFERROR(HYPERLINK(MapEvent_MouseOver(ROW(),COLUMN())),"") ->  | AF57: =IFERROR(HYPERLINK(MapEvent_MouseOver(ROW(),COLUMN())),"") ->  | AG57: =IFERROR(HYPERLINK(MapEvent_MouseOver(ROW(),COLUMN())),"") ->  | AH57: =IFERROR(HYPERLINK(MapEvent_MouseOver(ROW(),COLUMN())),"") ->  | AI57: =IFERROR(HYPERLINK(MapEvent_MouseOver(ROW(),COLUMN())),"") ->  | AJ57: =IFERROR(HYPERLINK(MapEvent_MouseOver(ROW(),COLUMN())),"") ->  | AK57: =IFERROR(HYPERLINK(MapEvent_MouseOver(ROW(),COLUMN())),"") ->  | AL57: =IFERROR(HYPERLINK(MapEvent_MouseOver(ROW(),COLUMN())),"") ->  | AM57: =IFERROR(HYPERLINK(MapEvent_MouseOver(ROW(),COLUMN())),"") ->  | AN57: =IFERROR(HYPERLINK(MapEvent_MouseOver(ROW(),COLUMN())),"") ->  | AO57: =IFERROR(HYPERLINK(MapEvent_MouseOver(ROW(),COLUMN())),"") ->  | AP57: =IFERROR(HYPERLINK(MapEvent_MouseOver(ROW(),COLUMN())),"") ->  | AQ57: =IFERROR(HYPERLINK(MapEvent_MouseOver(ROW(),COLUMN())),"") ->  | AR57: =IFERROR(HYPERLINK(MapEvent_MouseOver(ROW(),COLUMN())),"") ->  | AS57: =IFERROR(HYPERLINK(MapEvent_MouseOver(ROW(),COLUMN())),"") ->  | AT57: =IFERROR(HYPERLINK(MapEvent_MouseOver(ROW(),COLUMN())),"") ->  | AU57: =IFERROR(HYPERLINK(MapEvent_MouseOver(ROW(),COLUMN())),"") ->  | AV57: =IFERROR(HYPERLINK(MapEvent_MouseOver(ROW(),COLUMN())),"") ->  | AW57: =IFERROR(HYPERLINK(MapEvent_MouseOver(ROW(),COLUMN())),"") ->  | AX57: =IFERROR(HYPERLINK(MapEvent_MouseOver(ROW(),COLUMN())),"") ->  | AY57: =IFERROR(HYPERLINK(MapEvent_MouseOver(ROW(),COLUMN())),"") ->  | AZ57: =IFERROR(HYPERLINK(MapEvent_MouseOver(ROW(),COLUMN())),"") ->  | BA57: =IFERROR(HYPERLINK(MapEvent_MouseOver(ROW(),COLUMN())),"") ->  | BB57: =IFERROR(HYPERLINK(MapEvent_MouseOver(ROW(),COLUMN())),"") ->  | BC57: =IFERROR(HYPERLINK(MapEvent_MouseOver(ROW(),COLUMN())),"") ->  | BD57: =IFERROR(HYPERLINK(MapEvent_MouseOver(ROW(),COLUMN())),"") ->  | BE57: =IFERROR(HYPERLINK(MapEvent_MouseOver(ROW(),COLUMN())),"") ->  | BF57: =IFERROR(HYPERLINK(MapEvent_MouseOver(ROW(),COLUMN())),"") ->  | BG57: =IFERROR(HYPERLINK(MapEvent_MouseOver(ROW(),COLUMN())),"") ->  | BH57: =IFERROR(HYPERLINK(MapEvent_MouseOver(ROW(),COLUMN())),"") ->  | BI57: =IFERROR(HYPERLINK(MapEvent_MouseOver(ROW(),COLUMN())),"") ->  | BJ57: =IFERROR(HYPERLINK(MapEvent_MouseOver(ROW(),COLUMN())),"") ->  | BK57: =IFERROR(HYPERLINK(MapEvent_MouseOver(ROW(),COLUMN())),"") ->  | BL57: =IFERROR(HYPERLINK(MapEvent_MouseOver(ROW(),COLUMN())),"") ->  | BM57: =IFERROR(HYPERLINK(MapEvent_MouseOver(ROW(),COLUMN())),"") ->  | BN57: =IFERROR(HYPERLINK(MapEvent_MouseOver(ROW(),COLUMN())),"") ->  | BO57: =IFERROR(HYPERLINK(MapEvent_MouseOver(ROW(),COLUMN())),"") ->  | BP57: =IFERROR(HYPERLINK(MapEvent_MouseOver(ROW(),COLUMN())),"") ->  | BQ57: =IFERROR(HYPERLINK(MapEvent_MouseOver(ROW(),COLUMN())),"") ->  | BR57: =IFERROR(HYPERLINK(MapEvent_MouseOver(ROW(),COLUMN())),"") ->  | BS57: =IFERROR(HYPERLINK(MapEvent_MouseOver(ROW(),COLUMN())),"") ->  | BT57: =IFERROR(HYPERLINK(MapEvent_MouseOver(ROW(),COLUMN())),"") ->  | BU57: =IFERROR(HYPERLINK(MapEvent_MouseOver(ROW(),COLUMN())),"") ->  | BV57: =IFERROR(HYPERLINK(MapEvent_MouseOver(ROW(),COLUMN())),"") ->  | BW57: =IFERROR(HYPERLINK(MapEvent_MouseOver(ROW(),COLUMN())),"") ->  | BX57: =IFERROR(HYPERLINK(MapEvent_MouseOver(ROW(),COLUMN())),"") ->  | BY57: =IFERROR(HYPERLINK(MapEvent_MouseOver(ROW(),COLUMN())),"") ->  | BZ57: =IFERROR(HYPERLINK(MapEvent_MouseOver(ROW(),COLUMN())),"") ->  | CA57: =IFERROR(HYPERLINK(MapEvent_MouseOver(ROW(),COLUMN())),"") ->  | CB57: =IFERROR(HYPERLINK(MapEvent_MouseOver(ROW(),COLUMN())),"") ->  | CC57: =IFERROR(HYPERLINK(MapEvent_MouseOver(ROW(),COLUMN())),"") ->  | CD57: =IFERROR(HYPERLINK(MapEvent_MouseOver(ROW(),COLUMN())),"") ->  | CE57: =IFERROR(HYPERLINK(MapEvent_MouseOver(ROW(),COLUMN())),"") ->  | CF57: =IFERROR(HYPERLINK(MapEvent_MouseOver(ROW(),COLUMN())),"") ->  | CG57: =IFERROR(HYPERLINK(MapEvent_MouseOver(ROW(),COLUMN())),"") ->  | CH57: =IFERROR(HYPERLINK(MapEvent_MouseOver(ROW(),COLUMN())),"") ->  | CI57: =IFERROR(HYPERLINK(MapEvent_MouseOver(ROW(),COLUMN())),"") ->  | CJ57: =IFERROR(HYPERLINK(MapEvent_MouseOver(ROW(),COLUMN())),"") ->  | CK57: =IFERROR(HYPERLINK(MapEvent_MouseOver(ROW(),COLUMN())),"") ->  | CL57: =IFERROR(HYPERLINK(MapEvent_MouseOver(ROW(),COLUMN())),"") -> 
V58: =IFERROR(HYPERLINK(MapEvent_MouseOver(ROW(),COLUMN())),"") ->  | W58: =IFERROR(HYPERLINK(MapEvent_MouseOver(ROW(),COLUMN())),"") ->  | X58: =IFERROR(HYPERLINK(MapEvent_MouseOver(ROW(),COLUMN())),"") ->  | Y58: =IFERROR(HYPERLINK(MapEvent_MouseOver(ROW(),COLUMN())),"") ->  | Z58: =IFERROR(HYPERLINK(MapEvent_MouseOver(ROW(),COLUMN())),"") ->  | AA58: =IFERROR(HYPERLINK(MapEvent_MouseOver(ROW(),COLUMN())),"") ->  | AB58: =IFERROR(HYPERLINK(MapEvent_MouseOver(ROW(),COLUMN())),"") ->  | AC58: =IFERROR(HYPERLINK(MapEvent_MouseOver(ROW(),COLUMN())),"") ->  | AD58: =IFERROR(HYPERLINK(MapEvent_MouseOver(ROW(),COLUMN())),"") ->  | AE58: =IFERROR(HYPERLINK(MapEvent_MouseOver(ROW(),COLUMN())),"") ->  | AF58: =IFERROR(HYPERLINK(MapEvent_MouseOver(ROW(),COLUMN())),"") ->  | AG58: =IFERROR(HYPERLINK(MapEvent_MouseOver(ROW(),COLUMN())),"") ->  | AH58: =IFERROR(HYPERLINK(MapEvent_MouseOver(ROW(),COLUMN())),"") ->  | AI58: =IFERROR(HYPERLINK(MapEvent_MouseOver(ROW(),COLUMN())),"") ->  | AJ58: =IFERROR(HYPERLINK(MapEvent_MouseOver(ROW(),COLUMN())),"") ->  | AK58: =IFERROR(HYPERLINK(MapEvent_MouseOver(ROW(),COLUMN())),"") ->  | AL58: =IFERROR(HYPERLINK(MapEvent_MouseOver(ROW(),COLUMN())),"") ->  | AM58: =IFERROR(HYPERLINK(MapEvent_MouseOver(ROW(),COLUMN())),"") ->  | AN58: =IFERROR(HYPERLINK(MapEvent_MouseOver(ROW(),COLUMN())),"") ->  | AO58: =IFERROR(HYPERLINK(MapEvent_MouseOver(ROW(),COLUMN())),"") ->  | AP58: =IFERROR(HYPERLINK(MapEvent_MouseOver(ROW(),COLUMN())),"") ->  | AQ58: =IFERROR(HYPERLINK(MapEvent_MouseOver(ROW(),COLUMN())),"") ->  | AR58: =IFERROR(HYPERLINK(MapEvent_MouseOver(ROW(),COLUMN())),"") ->  | AS58: =IFERROR(HYPERLINK(MapEvent_MouseOver(ROW(),COLUMN())),"") ->  | AT58: =IFERROR(HYPERLINK(MapEvent_MouseOver(ROW(),COLUMN())),"") ->  | AU58: =IFERROR(HYPERLINK(MapEvent_MouseOver(ROW(),COLUMN())),"") ->  | AV58: =IFERROR(HYPERLINK(MapEvent_MouseOver(ROW(),COLUMN())),"") ->  | AW58: =IFERROR(HYPERLINK(MapEvent_MouseOver(ROW(),COLUMN())),"") ->  | AX58: =IFERROR(HYPERLINK(MapEvent_MouseOver(ROW(),COLUMN())),"") ->  | AY58: =IFERROR(HYPERLINK(MapEvent_MouseOver(ROW(),COLUMN())),"") ->  | AZ58: =IFERROR(HYPERLINK(MapEvent_MouseOver(ROW(),COLUMN())),"") ->  | BA58: =IFERROR(HYPERLINK(MapEvent_MouseOver(ROW(),COLUMN())),"") ->  | BB58: =IFERROR(HYPERLINK(MapEvent_MouseOver(ROW(),COLUMN())),"") ->  | BC58: =IFERROR(HYPERLINK(MapEvent_MouseOver(ROW(),COLUMN())),"") ->  | BD58: =IFERROR(HYPERLINK(MapEvent_MouseOver(ROW(),COLUMN())),"") ->  | BE58: =IFERROR(HYPERLINK(MapEvent_MouseOver(ROW(),COLUMN())),"") ->  | BF58: =IFERROR(HYPERLINK(MapEvent_MouseOver(ROW(),COLUMN())),"") ->  | BG58: =IFERROR(HYPERLINK(MapEvent_MouseOver(ROW(),COLUMN())),"") ->  | BH58: =IFERROR(HYPERLINK(MapEvent_MouseOver(ROW(),COLUMN())),"") ->  | BI58: =IFERROR(HYPERLINK(MapEvent_MouseOver(ROW(),COLUMN())),"") ->  | BJ58: =IFERROR(HYPERLINK(MapEvent_MouseOver(ROW(),COLUMN())),"") ->  | BK58: =IFERROR(HYPERLINK(MapEvent_MouseOver(ROW(),COLUMN())),"") ->  | BL58: =IFERROR(HYPERLINK(MapEvent_MouseOver(ROW(),COLUMN())),"") ->  | BM58: =IFERROR(HYPERLINK(MapEvent_MouseOver(ROW(),COLUMN())),"") ->  | BN58: =IFERROR(HYPERLINK(MapEvent_MouseOver(ROW(),COLUMN())),"") ->  | BO58: =IFERROR(HYPERLINK(MapEvent_MouseOver(ROW(),COLUMN())),"") ->  | BP58: =IFERROR(HYPERLINK(MapEvent_MouseOver(ROW(),COLUMN())),"") ->  | BQ58: =IFERROR(HYPERLINK(MapEvent_MouseOver(ROW(),COLUMN())),"") ->  | BR58: =IFERROR(HYPERLINK(MapEvent_MouseOver(ROW(),COLUMN())),"") ->  | BS58: =IFERROR(HYPERLINK(MapEvent_MouseOver(ROW(),COLUMN())),"") ->  | BT58: =IFERROR(HYPERLINK(MapEvent_MouseOver(ROW(),COLUMN())),"") ->  | BU58: =IFERROR(HYPERLINK(MapEvent_MouseOver(ROW(),COLUMN())),"") ->  | BV58: =IFERROR(HYPERLINK(MapEvent_MouseOver(ROW(),COLUMN())),"") ->  | BW58: =IFERROR(HYPERLINK(MapEvent_MouseOver(ROW(),COLUMN())),"") ->  | BX58: =IFERROR(HYPERLINK(MapEvent_MouseOver(ROW(),COLUMN())),"") ->  | BY58: =IFERROR(HYPERLINK(MapEvent_MouseOver(ROW(),COLUMN())),"") ->  | BZ58: =IFERROR(HYPERLINK(MapEvent_MouseOver(ROW(),COLUMN())),"") ->  | CA58: =IFERROR(HYPERLINK(MapEvent_MouseOver(ROW(),COLUMN())),"") ->  | CB58: =IFERROR(HYPERLINK(MapEvent_MouseOver(ROW(),COLUMN())),"") ->  | CC58: =IFERROR(HYPERLINK(MapEvent_MouseOver(ROW(),COLUMN())),"") ->  | CD58: =IFERROR(HYPERLINK(MapEvent_MouseOver(ROW(),COLUMN())),"") ->  | CE58: =IFERROR(HYPERLINK(MapEvent_MouseOver(ROW(),COLUMN())),"") ->  | CF58: =IFERROR(HYPERLINK(MapEvent_MouseOver(ROW(),COLUMN())),"") ->  | CG58: =IFERROR(HYPERLINK(MapEvent_MouseOver(ROW(),COLUMN())),"") ->  | CH58: =IFERROR(HYPERLINK(MapEvent_MouseOver(ROW(),COLUMN())),"") ->  | CI58: =IFERROR(HYPERLINK(MapEvent_MouseOver(ROW(),COLUMN())),"") ->  | CJ58: =IFERROR(HYPERLINK(MapEvent_MouseOver(ROW(),COLUMN())),"") ->  | CK58: =IFERROR(HYPERLINK(MapEvent_MouseOver(ROW(),COLUMN())),"") ->  | CL58: =IFERROR(HYPERLINK(MapEvent_MouseOver(ROW(),COLUMN())),"") -> 
V59: =IFERROR(HYPERLINK(MapEvent_MouseOver(ROW(),COLUMN())),"") ->  | W59: =IFERROR(HYPERLINK(MapEvent_MouseOver(ROW(),COLUMN())),"") ->  | X59: =IFERROR(HYPERLINK(MapEvent_MouseOver(ROW(),COLUMN())),"") ->  | Y59: =IFERROR(HYPERLINK(MapEvent_MouseOver(ROW(),COLUMN())),"") ->  | Z59: =IFERROR(HYPERLINK(MapEvent_MouseOver(ROW(),COLUMN())),"") ->  | AA59: =IFERROR(HYPERLINK(MapEvent_MouseOver(ROW(),COLUMN())),"") ->  | AB59: =IFERROR(HYPERLINK(MapEvent_MouseOver(ROW(),COLUMN())),"") ->  | AC59: =IFERROR(HYPERLINK(MapEvent_MouseOver(ROW(),COLUMN())),"") ->  | AD59: =IFERROR(HYPERLINK(MapEvent_MouseOver(ROW(),COLUMN())),"") ->  | AE59: =IFERROR(HYPERLINK(MapEvent_MouseOver(ROW(),COLUMN())),"") ->  | AF59: =IFERROR(HYPERLINK(MapEvent_MouseOver(ROW(),COLUMN())),"") ->  | AG59: =IFERROR(HYPERLINK(MapEvent_MouseOver(ROW(),COLUMN())),"") ->  | AH59: =IFERROR(HYPERLINK(MapEvent_MouseOver(ROW(),COLUMN())),"") ->  | AI59: =IFERROR(HYPERLINK(MapEvent_MouseOver(ROW(),COLUMN())),"") ->  | AJ59: =IFERROR(HYPERLINK(MapEvent_MouseOver(ROW(),COLUMN())),"") ->  | AK59: =IFERROR(HYPERLINK(MapEvent_MouseOver(ROW(),COLUMN())),"") ->  | AL59: =IFERROR(HYPERLINK(MapEvent_MouseOver(ROW(),COLUMN())),"") ->  | AM59: =IFERROR(HYPERLINK(MapEvent_MouseOver(ROW(),COLUMN())),"") ->  | AN59: =IFERROR(HYPERLINK(MapEvent_MouseOver(ROW(),COLUMN())),"") ->  | AO59: =IFERROR(HYPERLINK(MapEvent_MouseOver(ROW(),COLUMN())),"") ->  | AP59: =IFERROR(HYPERLINK(MapEvent_MouseOver(ROW(),COLUMN())),"") ->  | AQ59: =IFERROR(HYPERLINK(MapEvent_MouseOver(ROW(),COLUMN())),"") ->  | AR59: =IFERROR(HYPERLINK(MapEvent_MouseOver(ROW(),COLUMN())),"") ->  | AS59: =IFERROR(HYPERLINK(MapEvent_MouseOver(ROW(),COLUMN())),"") ->  | AT59: =IFERROR(HYPERLINK(MapEvent_MouseOver(ROW(),COLUMN())),"") ->  | AU59: =IFERROR(HYPERLINK(MapEvent_MouseOver(ROW(),COLUMN())),"") ->  | AV59: =IFERROR(HYPERLINK(MapEvent_MouseOver(ROW(),COLUMN())),"") ->  | AW59: =IFERROR(HYPERLINK(MapEvent_MouseOver(ROW(),COLUMN())),"") ->  | AX59: =IFERROR(HYPERLINK(MapEvent_MouseOver(ROW(),COLUMN())),"") ->  | AY59: =IFERROR(HYPERLINK(MapEvent_MouseOver(ROW(),COLUMN())),"") ->  | AZ59: =IFERROR(HYPERLINK(MapEvent_MouseOver(ROW(),COLUMN())),"") ->  | BA59: =IFERROR(HYPERLINK(MapEvent_MouseOver(ROW(),COLUMN())),"") ->  | BB59: =IFERROR(HYPERLINK(MapEvent_MouseOver(ROW(),COLUMN())),"") ->  | BC59: =IFERROR(HYPERLINK(MapEvent_MouseOver(ROW(),COLUMN())),"") ->  | BD59: =IFERROR(HYPERLINK(MapEvent_MouseOver(ROW(),COLUMN())),"") ->  | BE59: =IFERROR(HYPERLINK(MapEvent_MouseOver(ROW(),COLUMN())),"") ->  | BF59: =IFERROR(HYPERLINK(MapEvent_MouseOver(ROW(),COLUMN())),"") ->  | BG59: =IFERROR(HYPERLINK(MapEvent_MouseOver(ROW(),COLUMN())),"") ->  | BH59: =IFERROR(HYPERLINK(MapEvent_MouseOver(ROW(),COLUMN())),"") ->  | BI59: =IFERROR(HYPERLINK(MapEvent_MouseOver(ROW(),COLUMN())),"") ->  | BJ59: =IFERROR(HYPERLINK(MapEvent_MouseOver(ROW(),COLUMN())),"") ->  | BK59: =IFERROR(HYPERLINK(MapEvent_MouseOver(ROW(),COLUMN())),"") ->  | BL59: =IFERROR(HYPERLINK(MapEvent_MouseOver(ROW(),COLUMN())),"") ->  | BM59: =IFERROR(HYPERLINK(MapEvent_MouseOver(ROW(),COLUMN())),"") ->  | BN59: =IFERROR(HYPERLINK(MapEvent_MouseOver(ROW(),COLUMN())),"") ->  | BO59: =IFERROR(HYPERLINK(MapEvent_MouseOver(ROW(),COLUMN())),"") ->  | BP59: =IFERROR(HYPERLINK(MapEvent_MouseOver(ROW(),COLUMN())),"") ->  | BQ59: =IFERROR(HYPERLINK(MapEvent_MouseOver(ROW(),COLUMN())),"") ->  | BR59: =IFERROR(HYPERLINK(MapEvent_MouseOver(ROW(),COLUMN())),"") ->  | BS59: =IFERROR(HYPERLINK(MapEvent_MouseOver(ROW(),COLUMN())),"") ->  | BT59: =IFERROR(HYPERLINK(MapEvent_MouseOver(ROW(),COLUMN())),"") ->  | BU59: =IFERROR(HYPERLINK(MapEvent_MouseOver(ROW(),COLUMN())),"") ->  | BV59: =IFERROR(HYPERLINK(MapEvent_MouseOver(ROW(),COLUMN())),"") ->  | BW59: =IFERROR(HYPERLINK(MapEvent_MouseOver(ROW(),COLUMN())),"") ->  | BX59: =IFERROR(HYPERLINK(MapEvent_MouseOver(ROW(),COLUMN())),"") ->  | BY59: =IFERROR(HYPERLINK(MapEvent_MouseOver(ROW(),COLUMN())),"") ->  | BZ59: =IFERROR(HYPERLINK(MapEvent_MouseOver(ROW(),COLUMN())),"") ->  | CA59: =IFERROR(HYPERLINK(MapEvent_MouseOver(ROW(),COLUMN())),"") ->  | CB59: =IFERROR(HYPERLINK(MapEvent_MouseOver(ROW(),COLUMN())),"") ->  | CC59: =IFERROR(HYPERLINK(MapEvent_MouseOver(ROW(),COLUMN())),"") ->  | CD59: =IFERROR(HYPERLINK(MapEvent_MouseOver(ROW(),COLUMN())),"") ->  | CE59: =IFERROR(HYPERLINK(MapEvent_MouseOver(ROW(),COLUMN())),"") ->  | CF59: =IFERROR(HYPERLINK(MapEvent_MouseOver(ROW(),COLUMN())),"") ->  | CG59: =IFERROR(HYPERLINK(MapEvent_MouseOver(ROW(),COLUMN())),"") ->  | CH59: =IFERROR(HYPERLINK(MapEvent_MouseOver(ROW(),COLUMN())),"") ->  | CI59: =IFERROR(HYPERLINK(MapEvent_MouseOver(ROW(),COLUMN())),"") ->  | CJ59: =IFERROR(HYPERLINK(MapEvent_MouseOver(ROW(),COLUMN())),"") ->  | CK59: =IFERROR(HYPERLINK(MapEvent_MouseOver(ROW(),COLUMN())),"") ->  | CL59: =IFERROR(HYPERLINK(MapEvent_MouseOver(ROW(),COLUMN())),"") -> 
D60: =IFERROR(HYPERLINK(OnMouseOutAbsolutecolorscale(),""),"") ->  | E60: =IFERROR(HYPERLINK(OnMouseOutAbsolutecolorscale(),""),"") ->  | F60: =IFERROR(HYPERLINK(OnMouseOutAbsolutecolorscale(),""),"") ->  | G60: =IFERROR(HYPERLINK(OnMouseOutAbsolutecolorscale(),""),"") ->  | H60: =IFERROR(HYPERLINK(OnMouseOutAbsolutecolorscale(),""),"") ->  | V60: =IFERROR(HYPERLINK(MapEvent_MouseOver(ROW(),COLUMN())),"") ->  | W60: =IFERROR(HYPERLINK(MapEvent_MouseOver(ROW(),COLUMN())),"") ->  | X60: =IFERROR(HYPERLINK(MapEvent_MouseOver(ROW(),COLUMN())),"") ->  | Y60: =IFERROR(HYPERLINK(MapEvent_MouseOver(ROW(),COLUMN())),"") ->  | Z60: =IFERROR(HYPERLINK(MapEvent_MouseOver(ROW(),COLUMN())),"") ->  | AA60: =IFERROR(HYPERLINK(MapEvent_MouseOver(ROW(),COLUMN())),"") ->  | AB60: =IFERROR(HYPERLINK(MapEvent_MouseOver(ROW(),COLUMN())),"") ->  | AC60: =IFERROR(HYPERLINK(MapEvent_MouseOver(ROW(),COLUMN())),"") ->  | AD60: =IFERROR(HYPERLINK(MapEvent_MouseOver(ROW(),COLUMN())),"") ->  | AE60: =IFERROR(HYPERLINK(MapEvent_MouseOver(ROW(),COLUMN())),"") ->  | AF60: =IFERROR(HYPERLINK(MapEvent_MouseOver(ROW(),COLUMN())),"") ->  | AG60: =IFERROR(HYPERLINK(MapEvent_MouseOver(ROW(),COLUMN())),"") ->  | AH60: =IFERROR(HYPERLINK(MapEvent_MouseOver(ROW(),COLUMN())),"") ->  | AI60: =IFERROR(HYPERLINK(MapEvent_MouseOver(ROW(),COLUMN())),"") ->  | AJ60: =IFERROR(HYPERLINK(MapEvent_MouseOver(ROW(),COLUMN())),"") ->  | AK60: =IFERROR(HYPERLINK(MapEvent_MouseOver(ROW(),COLUMN())),"") ->  | AL60: =IFERROR(HYPERLINK(MapEvent_MouseOver(ROW(),COLUMN())),"") ->  | AM60: =IFERROR(HYPERLINK(MapEvent_MouseOver(ROW(),COLUMN())),"") ->  | AN60: =IFERROR(HYPERLINK(MapEvent_MouseOver(ROW(),COLUMN())),"") ->  | AO60: =IFERROR(HYPERLINK(MapEvent_MouseOver(ROW(),COLUMN())),"") ->  | AP60: =IFERROR(HYPERLINK(MapEvent_MouseOver(ROW(),COLUMN())),"") ->  | AQ60: =IFERROR(HYPERLINK(MapEvent_MouseOver(ROW(),COLUMN())),"") ->  | AR60: =IFERROR(HYPERLINK(MapEvent_MouseOver(ROW(),COLUMN())),"") ->  | AS60: =IFERROR(HYPERLINK(MapEvent_MouseOver(ROW(),COLUMN())),"") ->  | AT60: =IFERROR(HYPERLINK(MapEvent_MouseOver(ROW(),COLUMN())),"") ->  | AU60: =IFERROR(HYPERLINK(MapEvent_MouseOver(ROW(),COLUMN())),"") ->  | AV60: =IFERROR(HYPERLINK(MapEvent_MouseOver(ROW(),COLUMN())),"") ->  | AW60: =IFERROR(HYPERLINK(MapEvent_MouseOver(ROW(),COLUMN())),"") ->  | AX60: =IFERROR(HYPERLINK(MapEvent_MouseOver(ROW(),COLUMN())),"") ->  | AY60: =IFERROR(HYPERLINK(MapEvent_MouseOver(ROW(),COLUMN())),"") ->  | AZ60: =IFERROR(HYPERLINK(MapEvent_MouseOver(ROW(),COLUMN())),"") ->  | BA60: =IFERROR(HYPERLINK(MapEvent_MouseOver(ROW(),COLUMN())),"") ->  | BB60: =IFERROR(HYPERLINK(MapEvent_MouseOver(ROW(),COLUMN())),"") ->  | BC60: =IFERROR(HYPERLINK(MapEvent_MouseOver(ROW(),COLUMN())),"") ->  | BD60: =IFERROR(HYPERLINK(MapEvent_MouseOver(ROW(),COLUMN())),"") ->  | BE60: =IFERROR(HYPERLINK(MapEvent_MouseOver(ROW(),COLUMN())),"") ->  | BF60: =IFERROR(HYPERLINK(MapEvent_MouseOver(ROW(),COLUMN())),"") ->  | BG60: =IFERROR(HYPERLINK(MapEvent_MouseOver(ROW(),COLUMN())),"") ->  | BH60: =IFERROR(HYPERLINK(MapEvent_MouseOver(ROW(),COLUMN())),"") ->  | BI60: =IFERROR(HYPERLINK(MapEvent_MouseOver(ROW(),COLUMN())),"") ->  | BJ60: =IFERROR(HYPERLINK(MapEvent_MouseOver(ROW(),COLUMN())),"") ->  | BK60: =IFERROR(HYPERLINK(MapEvent_MouseOver(ROW(),COLUMN())),"") ->  | BL60: =IFERROR(HYPERLINK(MapEvent_MouseOver(ROW(),COLUMN())),"") ->  | BM60: =IFERROR(HYPERLINK(MapEvent_MouseOver(ROW(),COLUMN())),"") ->  | BN60: =IFERROR(HYPERLINK(MapEvent_MouseOver(ROW(),COLUMN())),"") ->  | BO60: =IFERROR(HYPERLINK(MapEvent_MouseOver(ROW(),COLUMN())),"") ->  | BP60: =IFERROR(HYPERLINK(MapEvent_MouseOver(ROW(),COLUMN())),"") ->  | BQ60: =IFERROR(HYPERLINK(MapEvent_MouseOver(ROW(),COLUMN())),"") ->  | BR60: =IFERROR(HYPERLINK(MapEvent_MouseOver(ROW(),COLUMN())),"") ->  | BS60: =IFERROR(HYPERLINK(MapEvent_MouseOver(ROW(),COLUMN())),"") ->  | BT60: =IFERROR(HYPERLINK(MapEvent_MouseOver(ROW(),COLUMN())),"") ->  | BU60: =IFERROR(HYPERLINK(MapEvent_MouseOver(ROW(),COLUMN())),"") ->  | BV60: =IFERROR(HYPERLINK(MapEvent_MouseOver(ROW(),COLUMN())),"") ->  | BW60: =IFERROR(HYPERLINK(MapEvent_MouseOver(ROW(),COLUMN())),"") ->  | BX60: =IFERROR(HYPERLINK(MapEvent_MouseOver(ROW(),COLUMN())),"") ->  | BY60: =IFERROR(HYPERLINK(MapEvent_MouseOver(ROW(),COLUMN())),"") ->  | BZ60: =IFERROR(HYPERLINK(MapEvent_MouseOver(ROW(),COLUMN())),"") ->  | CA60: =IFERROR(HYPERLINK(MapEvent_MouseOver(ROW(),COLUMN())),"") ->  | CB60: =IFERROR(HYPERLINK(MapEvent_MouseOver(ROW(),COLUMN())),"") ->  | CC60: =IFERROR(HYPERLINK(MapEvent_MouseOver(ROW(),COLUMN())),"") ->  | CD60: =IFERROR(HYPERLINK(MapEvent_MouseOver(ROW(),COLUMN())),"") ->  | CE60: =IFERROR(HYPERLINK(MapEvent_MouseOver(ROW(),COLUMN())),"") ->  | CF60: =IFERROR(HYPERLINK(MapEvent_MouseOver(ROW(),COLUMN())),"") ->  | CG60: =IFERROR(HYPERLINK(MapEvent_MouseOver(ROW(),COLUMN())),"") ->  | CH60: =IFERROR(HYPERLINK(MapEvent_MouseOver(ROW(),COLUMN())),"") ->  | CI60: =IFERROR(HYPERLINK(MapEvent_MouseOver(ROW(),COLUMN())),"") ->  | CJ60: =IFERROR(HYPERLINK(MapEvent_MouseOver(ROW(),COLUMN())),"") ->  | CK60: =IFERROR(HYPERLINK(MapEvent_MouseOver(ROW(),COLUMN())),"") ->  | CL60: =IFERROR(HYPERLINK(MapEvent_MouseOver(ROW(),COLUMN())),"") -> 
D61: =IFERROR(HYPERLINK(OnMouseOutAbsolutecolorscale(),""),"") ->  | E61: =IFERROR(HYPERLINK(OnMouseOverAbsolutecolorscale(),""),"") ->  | F61: =IFERROR(HYPERLINK(OnMouseOverAbsolutecolorscale(),""),"") ->  | G61: =IFERROR(HYPERLINK(OnMouseOverAbsolutecolorscale(),""),"") ->  | H61: =IFERROR(HYPERLINK(OnMouseOutAbsolutecolorscale(),""),"") ->  | V61: =IFERROR(HYPERLINK(MapEvent_MouseOver(ROW(),COLUMN())),"") ->  | W61: =IFERROR(HYPERLINK(MapEvent_MouseOver(ROW(),COLUMN())),"") ->  | X61: =IFERROR(HYPERLINK(MapEvent_MouseOver(ROW(),COLUMN())),"") ->  | Y61: =IFERROR(HYPERLINK(MapEvent_MouseOver(ROW(),COLUMN())),"") ->  | Z61: =IFERROR(HYPERLINK(MapEvent_MouseOver(ROW(),COLUMN())),"") ->  | AA61: =IFERROR(HYPERLINK(MapEvent_MouseOver(ROW(),COLUMN())),"") ->  | AB61: =IFERROR(HYPERLINK(MapEvent_MouseOver(ROW(),COLUMN())),"") ->  | AC61: =IFERROR(HYPERLINK(MapEvent_MouseOver(ROW(),COLUMN())),"") ->  | AD61: =IFERROR(HYPERLINK(MapEvent_MouseOver(ROW(),COLUMN())),"") ->  | AE61: =IFERROR(HYPERLINK(MapEvent_MouseOver(ROW(),COLUMN())),"") ->  | AF61: =IFERROR(HYPERLINK(MapEvent_MouseOver(ROW(),COLUMN())),"") ->  | AG61: =IFERROR(HYPERLINK(MapEvent_MouseOver(ROW(),COLUMN())),"") ->  | AH61: =IFERROR(HYPERLINK(MapEvent_MouseOver(ROW(),COLUMN())),"") ->  | AI61: =IFERROR(HYPERLINK(MapEvent_MouseOver(ROW(),COLUMN())),"") ->  | AJ61: =IFERROR(HYPERLINK(MapEvent_MouseOver(ROW(),COLUMN())),"") ->  | AK61: =IFERROR(HYPERLINK(MapEvent_MouseOver(ROW(),COLUMN())),"") ->  | AL61: =IFERROR(HYPERLINK(MapEvent_MouseOver(ROW(),COLUMN())),"") ->  | AM61: =IFERROR(HYPERLINK(MapEvent_MouseOver(ROW(),COLUMN())),"") ->  | AN61: =IFERROR(HYPERLINK(MapEvent_MouseOver(ROW(),COLUMN())),"") ->  | AO61: =IFERROR(HYPERLINK(MapEvent_MouseOver(ROW(),COLUMN())),"") ->  | AP61: =IFERROR(HYPERLINK(MapEvent_MouseOver(ROW(),COLUMN())),"") ->  | AQ61: =IFERROR(HYPERLINK(MapEvent_MouseOver(ROW(),COLUMN())),"") ->  | AR61: =IFERROR(HYPERLINK(MapEvent_MouseOver(ROW(),COLUMN())),"") ->  | AS61: =IFERROR(HYPERLINK(MapEvent_MouseOver(ROW(),COLUMN())),"") ->  | AT61: =IFERROR(HYPERLINK(MapEvent_MouseOver(ROW(),COLUMN())),"") ->  | AU61: =IFERROR(HYPERLINK(MapEvent_MouseOver(ROW(),COLUMN())),"") ->  | AV61: =IFERROR(HYPERLINK(MapEvent_MouseOver(ROW(),COLUMN())),"") ->  | AW61: =IFERROR(HYPERLINK(MapEvent_MouseOver(ROW(),COLUMN())),"") ->  | AX61: =IFERROR(HYPERLINK(MapEvent_MouseOver(ROW(),COLUMN())),"") ->  | AY61: =IFERROR(HYPERLINK(MapEvent_MouseOver(ROW(),COLUMN())),"") ->  | AZ61: =IFERROR(HYPERLINK(MapEvent_MouseOver(ROW(),COLUMN())),"") ->  | BA61: =IFERROR(HYPERLINK(MapEvent_MouseOver(ROW(),COLUMN())),"") ->  | BB61: =IFERROR(HYPERLINK(MapEvent_MouseOver(ROW(),COLUMN())),"") ->  | BC61: =IFERROR(HYPERLINK(MapEvent_MouseOver(ROW(),COLUMN())),"") ->  | BD61: =IFERROR(HYPERLINK(MapEvent_MouseOver(ROW(),COLUMN())),"") ->  | BE61: =IFERROR(HYPERLINK(MapEvent_MouseOver(ROW(),COLUMN())),"") ->  | BF61: =IFERROR(HYPERLINK(MapEvent_MouseOver(ROW(),COLUMN())),"") ->  | BG61: =IFERROR(HYPERLINK(MapEvent_MouseOver(ROW(),COLUMN())),"") ->  | BH61: =IFERROR(HYPERLINK(MapEvent_MouseOver(ROW(),COLUMN())),"") ->  | BI61: =IFERROR(HYPERLINK(MapEvent_MouseOver(ROW(),COLUMN())),"") ->  | BJ61: =IFERROR(HYPERLINK(MapEvent_MouseOver(ROW(),COLUMN())),"") ->  | BK61: =IFERROR(HYPERLINK(MapEvent_MouseOver(ROW(),COLUMN())),"") ->  | BL61: =IFERROR(HYPERLINK(MapEvent_MouseOver(ROW(),COLUMN())),"") ->  | BM61: =IFERROR(HYPERLINK(MapEvent_MouseOver(ROW(),COLUMN())),"") ->  | BN61: =IFERROR(HYPERLINK(MapEvent_MouseOver(ROW(),COLUMN())),"") ->  | BO61: =IFERROR(HYPERLINK(MapEvent_MouseOver(ROW(),COLUMN())),"") ->  | BP61: =IFERROR(HYPERLINK(MapEvent_MouseOver(ROW(),COLUMN())),"") ->  | BQ61: =IFERROR(HYPERLINK(MapEvent_MouseOver(ROW(),COLUMN())),"") ->  | BR61: =IFERROR(HYPERLINK(MapEvent_MouseOver(ROW(),COLUMN())),"") ->  | BS61: =IFERROR(HYPERLINK(MapEvent_MouseOver(ROW(),COLUMN())),"") ->  | BT61: =IFERROR(HYPERLINK(MapEvent_MouseOver(ROW(),COLUMN())),"") ->  | BU61: =IFERROR(HYPERLINK(MapEvent_MouseOver(ROW(),COLUMN())),"") ->  | BV61: =IFERROR(HYPERLINK(MapEvent_MouseOver(ROW(),COLUMN())),"") ->  | BW61: =IFERROR(HYPERLINK(MapEvent_MouseOver(ROW(),COLUMN())),"") ->  | BX61: =IFERROR(HYPERLINK(MapEvent_MouseOver(ROW(),COLUMN())),"") ->  | BY61: =IFERROR(HYPERLINK(MapEvent_MouseOver(ROW(),COLUMN())),"") ->  | BZ61: =IFERROR(HYPERLINK(MapEvent_MouseOver(ROW(),COLUMN())),"") ->  | CA61: =IFERROR(HYPERLINK(MapEvent_MouseOver(ROW(),COLUMN())),"") ->  | CB61: =IFERROR(HYPERLINK(MapEvent_MouseOver(ROW(),COLUMN())),"") ->  | CC61: =IFERROR(HYPERLINK(MapEvent_MouseOver(ROW(),COLUMN())),"") ->  | CD61: =IFERROR(HYPERLINK(MapEvent_MouseOver(ROW(),COLUMN())),"") ->  | CE61: =IFERROR(HYPERLINK(MapEvent_MouseOver(ROW(),COLUMN())),"") ->  | CF61: =IFERROR(HYPERLINK(MapEvent_MouseOver(ROW(),COLUMN())),"") ->  | CG61: =IFERROR(HYPERLINK(MapEvent_MouseOver(ROW(),COLUMN())),"") ->  | CH61: =IFERROR(HYPERLINK(MapEvent_MouseOver(ROW(),COLUMN())),"") ->  | CI61: =IFERROR(HYPERLINK(MapEvent_MouseOver(ROW(),COLUMN())),"") ->  | CJ61: =IFERROR(HYPERLINK(MapEvent_MouseOver(ROW(),COLUMN())),"") ->  | CK61: =IFERROR(HYPERLINK(MapEvent_MouseOver(ROW(),COLUMN())),"") ->  | CL61: =IFERROR(HYPERLINK(MapEvent_MouseOver(ROW(),COLUMN())),"") -> 
D62: =IFERROR(HYPERLINK(OnMouseOutAbsolutecolorscale(),""),"") ->  | E62: =IFERROR(HYPERLINK(OnMouseOverAbsolutecolorscale(),""),"") ->  | F62: =IFERROR(HYPERLINK(OnMouseOverAbsolutecolorscale(),""),"") ->  | G62: =IFERROR(HYPERLINK(OnMouseOverAbsolutecolorscale(),""),"") ->  | H62: =IFERROR(HYPERLINK(OnMouseOutAbsolutecolorscale(),""),"") ->  | V62: =IFERROR(HYPERLINK(MapEvent_MouseOver(ROW(),COLUMN())),"") ->  | W62: =IFERROR(HYPERLINK(MapEvent_MouseOver(ROW(),COLUMN())),"") ->  | X62: =IFERROR(HYPERLINK(MapEvent_MouseOver(ROW(),COLUMN())),"") ->  | Y62: =IFERROR(HYPERLINK(MapEvent_MouseOver(ROW(),COLUMN())),"") ->  | Z62: =IFERROR(HYPERLINK(MapEvent_MouseOver(ROW(),COLUMN())),"") ->  | AA62: =IFERROR(HYPERLINK(MapEvent_MouseOver(ROW(),COLUMN())),"") ->  | AB62: =IFERROR(HYPERLINK(MapEvent_MouseOver(ROW(),COLUMN())),"") ->  | AC62: =IFERROR(HYPERLINK(MapEvent_MouseOver(ROW(),COLUMN())),"") ->  | AD62: =IFERROR(HYPERLINK(MapEvent_MouseOver(ROW(),COLUMN())),"") ->  | AE62: =IFERROR(HYPERLINK(MapEvent_MouseOver(ROW(),COLUMN())),"") ->  | AF62: =IFERROR(HYPERLINK(MapEvent_MouseOver(ROW(),COLUMN())),"") ->  | AG62: =IFERROR(HYPERLINK(MapEvent_MouseOver(ROW(),COLUMN())),"") ->  | AH62: =IFERROR(HYPERLINK(MapEvent_MouseOver(ROW(),COLUMN())),"") ->  | AI62: =IFERROR(HYPERLINK(MapEvent_MouseOver(ROW(),COLUMN())),"") ->  | AJ62: =IFERROR(HYPERLINK(MapEvent_MouseOver(ROW(),COLUMN())),"") ->  | AK62: =IFERROR(HYPERLINK(MapEvent_MouseOver(ROW(),COLUMN())),"") ->  | AL62: =IFERROR(HYPERLINK(MapEvent_MouseOver(ROW(),COLUMN())),"") ->  | AM62: =IFERROR(HYPERLINK(MapEvent_MouseOver(ROW(),COLUMN())),"") ->  | AN62: =IFERROR(HYPERLINK(MapEvent_MouseOver(ROW(),COLUMN())),"") ->  | AO62: =IFERROR(HYPERLINK(MapEvent_MouseOver(ROW(),COLUMN())),"") ->  | AP62: =IFERROR(HYPERLINK(MapEvent_MouseOver(ROW(),COLUMN())),"") ->  | AQ62: =IFERROR(HYPERLINK(MapEvent_MouseOver(ROW(),COLUMN())),"") ->  | AR62: =IFERROR(HYPERLINK(MapEvent_MouseOver(ROW(),COLUMN())),"") ->  | AS62: =IFERROR(HYPERLINK(MapEvent_MouseOver(ROW(),COLUMN())),"") ->  | AT62: =IFERROR(HYPERLINK(MapEvent_MouseOver(ROW(),COLUMN())),"") ->  | AU62: =IFERROR(HYPERLINK(MapEvent_MouseOver(ROW(),COLUMN())),"") ->  | AV62: =IFERROR(HYPERLINK(MapEvent_MouseOver(ROW(),COLUMN())),"") ->  | AW62: =IFERROR(HYPERLINK(MapEvent_MouseOver(ROW(),COLUMN())),"") ->  | AX62: =IFERROR(HYPERLINK(MapEvent_MouseOver(ROW(),COLUMN())),"") ->  | AY62: =IFERROR(HYPERLINK(MapEvent_MouseOver(ROW(),COLUMN())),"") ->  | AZ62: =IFERROR(HYPERLINK(MapEvent_MouseOver(ROW(),COLUMN())),"") ->  | BA62: =IFERROR(HYPERLINK(MapEvent_MouseOver(ROW(),COLUMN())),"") ->  | BB62: =IFERROR(HYPERLINK(MapEvent_MouseOver(ROW(),COLUMN())),"") ->  | BC62: =IFERROR(HYPERLINK(MapEvent_MouseOver(ROW(),COLUMN())),"") ->  | BD62: =IFERROR(HYPERLINK(MapEvent_MouseOver(ROW(),COLUMN())),"") ->  | BE62: =IFERROR(HYPERLINK(MapEvent_MouseOver(ROW(),COLUMN())),"") ->  | BF62: =IFERROR(HYPERLINK(MapEvent_MouseOver(ROW(),COLUMN())),"") ->  | BG62: =IFERROR(HYPERLINK(MapEvent_MouseOver(ROW(),COLUMN())),"") ->  | BH62: =IFERROR(HYPERLINK(MapEvent_MouseOver(ROW(),COLUMN())),"") ->  | BI62: =IFERROR(HYPERLINK(MapEvent_MouseOver(ROW(),COLUMN())),"") ->  | BJ62: =IFERROR(HYPERLINK(MapEvent_MouseOver(ROW(),COLUMN())),"") ->  | BK62: =IFERROR(HYPERLINK(MapEvent_MouseOver(ROW(),COLUMN())),"") ->  | BL62: =IFERROR(HYPERLINK(MapEvent_MouseOver(ROW(),COLUMN())),"") ->  | BM62: =IFERROR(HYPERLINK(MapEvent_MouseOver(ROW(),COLUMN())),"") ->  | BN62: =IFERROR(HYPERLINK(MapEvent_MouseOver(ROW(),COLUMN())),"") ->  | BO62: =IFERROR(HYPERLINK(MapEvent_MouseOver(ROW(),COLUMN())),"") ->  | BP62: =IFERROR(HYPERLINK(MapEvent_MouseOver(ROW(),COLUMN())),"") ->  | BQ62: =IFERROR(HYPERLINK(MapEvent_MouseOver(ROW(),COLUMN())),"") ->  | BR62: =IFERROR(HYPERLINK(MapEvent_MouseOver(ROW(),COLUMN())),"") ->  | BS62: =IFERROR(HYPERLINK(MapEvent_MouseOver(ROW(),COLUMN())),"") ->  | BT62: =IFERROR(HYPERLINK(MapEvent_MouseOver(ROW(),COLUMN())),"") ->  | BU62: =IFERROR(HYPERLINK(MapEvent_MouseOver(ROW(),COLUMN())),"") ->  | BV62: =IFERROR(HYPERLINK(MapEvent_MouseOver(ROW(),COLUMN())),"") ->  | BW62: =IFERROR(HYPERLINK(MapEvent_MouseOver(ROW(),COLUMN())),"") ->  | BX62: =IFERROR(HYPERLINK(MapEvent_MouseOver(ROW(),COLUMN())),"") ->  | BY62: =IFERROR(HYPERLINK(MapEvent_MouseOver(ROW(),COLUMN())),"") ->  | BZ62: =IFERROR(HYPERLINK(MapEvent_MouseOver(ROW(),COLUMN())),"") ->  | CA62: =IFERROR(HYPERLINK(MapEvent_MouseOver(ROW(),COLUMN())),"") ->  | CB62: =IFERROR(HYPERLINK(MapEvent_MouseOver(ROW(),COLUMN())),"") ->  | CC62: =IFERROR(HYPERLINK(MapEvent_MouseOver(ROW(),COLUMN())),"") ->  | CD62: =IFERROR(HYPERLINK(MapEvent_MouseOver(ROW(),COLUMN())),"") ->  | CE62: =IFERROR(HYPERLINK(MapEvent_MouseOver(ROW(),COLUMN())),"") ->  | CF62: =IFERROR(HYPERLINK(MapEvent_MouseOver(ROW(),COLUMN())),"") ->  | CG62: =IFERROR(HYPERLINK(MapEvent_MouseOver(ROW(),COLUMN())),"") ->  | CH62: =IFERROR(HYPERLINK(MapEvent_MouseOver(ROW(),COLUMN())),"") ->  | CI62: =IFERROR(HYPERLINK(MapEvent_MouseOver(ROW(),COLUMN())),"") ->  | CJ62: =IFERROR(HYPERLINK(MapEvent_MouseOver(ROW(),COLUMN())),"") ->  | CK62: =IFERROR(HYPERLINK(MapEvent_MouseOver(ROW(),COLUMN())),"") ->  | CL62: =IFERROR(HYPERLINK(MapEvent_MouseOver(ROW(),COLUMN())),"") -> 
D63: =IFERROR(HYPERLINK(OnMouseOutAbsolutecolorscale(),""),"") ->  | E63: =IFERROR(HYPERLINK(OnMouseOverAbsolutecolorscale(),""),"") ->  | F63: =IFERROR(HYPERLINK(OnMouseOverAbsolutecolorscale(),""),"") ->  | G63: =IFERROR(HYPERLINK(OnMouseOverAbsolutecolorscale(),""),"") ->  | H63: =IFERROR(HYPERLINK(OnMouseOutAbsolutecolorscale(),""),"") ->  | V63: =IFERROR(HYPERLINK(MapEvent_MouseOver(ROW(),COLUMN())),"") ->  | W63: =IFERROR(HYPERLINK(MapEvent_MouseOver(ROW(),COLUMN())),"") ->  | X63: =IFERROR(HYPERLINK(MapEvent_MouseOver(ROW(),COLUMN())),"") ->  | Y63: =IFERROR(HYPERLINK(MapEvent_MouseOver(ROW(),COLUMN())),"") ->  | Z63: =IFERROR(HYPERLINK(MapEvent_MouseOver(ROW(),COLUMN())),"") ->  | AA63: =IFERROR(HYPERLINK(MapEvent_MouseOver(ROW(),COLUMN())),"") ->  | AB63: =IFERROR(HYPERLINK(MapEvent_MouseOver(ROW(),COLUMN())),"") ->  | AC63: =IFERROR(HYPERLINK(MapEvent_MouseOver(ROW(),COLUMN())),"") ->  | AD63: =IFERROR(HYPERLINK(MapEvent_MouseOver(ROW(),COLUMN())),"") ->  | AE63: =IFERROR(HYPERLINK(MapEvent_MouseOver(ROW(),COLUMN())),"") ->  | AF63: =IFERROR(HYPERLINK(MapEvent_MouseOver(ROW(),COLUMN())),"") ->  | AG63: =IFERROR(HYPERLINK(MapEvent_MouseOver(ROW(),COLUMN())),"") ->  | AH63: =IFERROR(HYPERLINK(MapEvent_MouseOver(ROW(),COLUMN())),"") ->  | AI63: =IFERROR(HYPERLINK(MapEvent_MouseOver(ROW(),COLUMN())),"") ->  | AJ63: =IFERROR(HYPERLINK(MapEvent_MouseOver(ROW(),COLUMN())),"") ->  | AK63: =IFERROR(HYPERLINK(MapEvent_MouseOver(ROW(),COLUMN())),"") ->  | AL63: =IFERROR(HYPERLINK(MapEvent_MouseOver(ROW(),COLUMN())),"") ->  | AM63: =IFERROR(HYPERLINK(MapEvent_MouseOver(ROW(),COLUMN())),"") ->  | AN63: =IFERROR(HYPERLINK(MapEvent_MouseOver(ROW(),COLUMN())),"") ->  | AO63: =IFERROR(HYPERLINK(MapEvent_MouseOver(ROW(),COLUMN())),"") ->  | AP63: =IFERROR(HYPERLINK(MapEvent_MouseOver(ROW(),COLUMN())),"") ->  | AQ63: =IFERROR(HYPERLINK(MapEvent_MouseOver(ROW(),COLUMN())),"") ->  | AR63: =IFERROR(HYPERLINK(MapEvent_MouseOver(ROW(),COLUMN())),"") ->  | AS63: =IFERROR(HYPERLINK(MapEvent_MouseOver(ROW(),COLUMN())),"") ->  | AT63: =IFERROR(HYPERLINK(MapEvent_MouseOver(ROW(),COLUMN())),"") ->  | AU63: =IFERROR(HYPERLINK(MapEvent_MouseOver(ROW(),COLUMN())),"") ->  | AV63: =IFERROR(HYPERLINK(MapEvent_MouseOver(ROW(),COLUMN())),"") ->  | AW63: =IFERROR(HYPERLINK(MapEvent_MouseOver(ROW(),COLUMN())),"") ->  | AX63: =IFERROR(HYPERLINK(MapEvent_MouseOver(ROW(),COLUMN())),"") ->  | AY63: =IFERROR(HYPERLINK(MapEvent_MouseOver(ROW(),COLUMN())),"") ->  | AZ63: =IFERROR(HYPERLINK(MapEvent_MouseOver(ROW(),COLUMN())),"") ->  | BA63: =IFERROR(HYPERLINK(MapEvent_MouseOver(ROW(),COLUMN())),"") ->  | BB63: =IFERROR(HYPERLINK(MapEvent_MouseOver(ROW(),COLUMN())),"") ->  | BC63: =IFERROR(HYPERLINK(MapEvent_MouseOver(ROW(),COLUMN())),"") ->  | BD63: =IFERROR(HYPERLINK(MapEvent_MouseOver(ROW(),COLUMN())),"") ->  | BE63: =IFERROR(HYPERLINK(MapEvent_MouseOver(ROW(),COLUMN())),"") ->  | BF63: =IFERROR(HYPERLINK(MapEvent_MouseOver(ROW(),COLUMN())),"") ->  | BG63: =IFERROR(HYPERLINK(MapEvent_MouseOver(ROW(),COLUMN())),"") ->  | BH63: =IFERROR(HYPERLINK(MapEvent_MouseOver(ROW(),COLUMN())),"") ->  | BI63: =IFERROR(HYPERLINK(MapEvent_MouseOver(ROW(),COLUMN())),"") ->  | BJ63: =IFERROR(HYPERLINK(MapEvent_MouseOver(ROW(),COLUMN())),"") ->  | BK63: =IFERROR(HYPERLINK(MapEvent_MouseOver(ROW(),COLUMN())),"") ->  | BL63: =IFERROR(HYPERLINK(MapEvent_MouseOver(ROW(),COLUMN())),"") ->  | BM63: =IFERROR(HYPERLINK(MapEvent_MouseOver(ROW(),COLUMN())),"") ->  | BN63: =IFERROR(HYPERLINK(MapEvent_MouseOver(ROW(),COLUMN())),"") ->  | BO63: =IFERROR(HYPERLINK(MapEvent_MouseOver(ROW(),COLUMN())),"") ->  | BP63: =IFERROR(HYPERLINK(MapEvent_MouseOver(ROW(),COLUMN())),"") ->  | BQ63: =IFERROR(HYPERLINK(MapEvent_MouseOver(ROW(),COLUMN())),"") ->  | BR63: =IFERROR(HYPERLINK(MapEvent_MouseOver(ROW(),COLUMN())),"") ->  | BS63: =IFERROR(HYPERLINK(MapEvent_MouseOver(ROW(),COLUMN())),"") ->  | BT63: =IFERROR(HYPERLINK(MapEvent_MouseOver(ROW(),COLUMN())),"") ->  | BU63: =IFERROR(HYPERLINK(MapEvent_MouseOver(ROW(),COLUMN())),"") ->  | BV63: =IFERROR(HYPERLINK(MapEvent_MouseOver(ROW(),COLUMN())),"") ->  | BW63: =IFERROR(HYPERLINK(MapEvent_MouseOver(ROW(),COLUMN())),"") ->  | BX63: =IFERROR(HYPERLINK(MapEvent_MouseOver(ROW(),COLUMN())),"") ->  | BY63: =IFERROR(HYPERLINK(MapEvent_MouseOver(ROW(),COLUMN())),"") ->  | BZ63: =IFERROR(HYPERLINK(MapEvent_MouseOver(ROW(),COLUMN())),"") ->  | CA63: =IFERROR(HYPERLINK(MapEvent_MouseOver(ROW(),COLUMN())),"") ->  | CB63: =IFERROR(HYPERLINK(MapEvent_MouseOver(ROW(),COLUMN())),"") ->  | CC63: =IFERROR(HYPERLINK(MapEvent_MouseOver(ROW(),COLUMN())),"") ->  | CD63: =IFERROR(HYPERLINK(MapEvent_MouseOver(ROW(),COLUMN())),"") ->  | CE63: =IFERROR(HYPERLINK(MapEvent_MouseOver(ROW(),COLUMN())),"") ->  | CF63: =IFERROR(HYPERLINK(MapEvent_MouseOver(ROW(),COLUMN())),"") ->  | CG63: =IFERROR(HYPERLINK(MapEvent_MouseOver(ROW(),COLUMN())),"") ->  | CH63: =IFERROR(HYPERLINK(MapEvent_MouseOver(ROW(),COLUMN())),"") ->  | CI63: =IFERROR(HYPERLINK(MapEvent_MouseOver(ROW(),COLUMN())),"") ->  | CJ63: =IFERROR(HYPERLINK(MapEvent_MouseOver(ROW(),COLUMN())),"") ->  | CK63: =IFERROR(HYPERLINK(MapEvent_MouseOver(ROW(),COLUMN())),"") ->  | CL63: =IFERROR(HYPERLINK(MapEvent_MouseOver(ROW(),COLUMN())),"") -> 
D64: =IFERROR(HYPERLINK(OnMouseOutAbsolutecolorscale(),""),"") ->  | E64: =IFERROR(HYPERLINK(OnMouseOutAbsolutecolorscale(),""),"") ->  | F64: =IFERROR(HYPERLINK(OnMouseOutAbsolutecolorscale(),""),"") ->  | G64: =IFERROR(HYPERLINK(OnMouseOutAbsolutecolorscale(),""),"") ->  | H64: =IFERROR(HYPERLINK(OnMouseOutAbsolutecolorscale(),""),"") ->  | V64: =IFERROR(HYPERLINK(MapEvent_MouseOver(ROW(),COLUMN())),"") ->  | W64: =IFERROR(HYPERLINK(MapEvent_MouseOver(ROW(),COLUMN())),"") ->  | X64: =IFERROR(HYPERLINK(MapEvent_MouseOver(ROW(),COLUMN())),"") ->  | Y64: =IFERROR(HYPERLINK(MapEvent_MouseOver(ROW(),COLUMN())),"") ->  | Z64: =IFERROR(HYPERLINK(MapEvent_MouseOver(ROW(),COLUMN())),"") ->  | AA64: =IFERROR(HYPERLINK(MapEvent_MouseOver(ROW(),COLUMN())),"") ->  | AB64: =IFERROR(HYPERLINK(MapEvent_MouseOver(ROW(),COLUMN())),"") ->  | AC64: =IFERROR(HYPERLINK(MapEvent_MouseOver(ROW(),COLUMN())),"") ->  | AD64: =IFERROR(HYPERLINK(MapEvent_MouseOver(ROW(),COLUMN())),"") ->  | AE64: =IFERROR(HYPERLINK(MapEvent_MouseOver(ROW(),COLUMN())),"") ->  | AF64: =IFERROR(HYPERLINK(MapEvent_MouseOver(ROW(),COLUMN())),"") ->  | AG64: =IFERROR(HYPERLINK(MapEvent_MouseOver(ROW(),COLUMN())),"") ->  | AH64: =IFERROR(HYPERLINK(MapEvent_MouseOver(ROW(),COLUMN())),"") ->  | AI64: =IFERROR(HYPERLINK(MapEvent_MouseOver(ROW(),COLUMN())),"") ->  | AJ64: =IFERROR(HYPERLINK(MapEvent_MouseOver(ROW(),COLUMN())),"") ->  | AK64: =IFERROR(HYPERLINK(MapEvent_MouseOver(ROW(),COLUMN())),"") ->  | AL64: =IFERROR(HYPERLINK(MapEvent_MouseOver(ROW(),COLUMN())),"") ->  | AM64: =IFERROR(HYPERLINK(MapEvent_MouseOver(ROW(),COLUMN())),"") ->  | AN64: =IFERROR(HYPERLINK(MapEvent_MouseOver(ROW(),COLUMN())),"") ->  | AO64: =IFERROR(HYPERLINK(MapEvent_MouseOver(ROW(),COLUMN())),"") ->  | AP64: =IFERROR(HYPERLINK(MapEvent_MouseOver(ROW(),COLUMN())),"") ->  | AQ64: =IFERROR(HYPERLINK(MapEvent_MouseOver(ROW(),COLUMN())),"") ->  | AR64: =IFERROR(HYPERLINK(MapEvent_MouseOver(ROW(),COLUMN())),"") ->  | AS64: =IFERROR(HYPERLINK(MapEvent_MouseOver(ROW(),COLUMN())),"") ->  | AT64: =IFERROR(HYPERLINK(MapEvent_MouseOver(ROW(),COLUMN())),"") ->  | AU64: =IFERROR(HYPERLINK(MapEvent_MouseOver(ROW(),COLUMN())),"") ->  | AV64: =IFERROR(HYPERLINK(MapEvent_MouseOver(ROW(),COLUMN())),"") ->  | AW64: =IFERROR(HYPERLINK(MapEvent_MouseOver(ROW(),COLUMN())),"") ->  | AX64: =IFERROR(HYPERLINK(MapEvent_MouseOver(ROW(),COLUMN())),"") ->  | AY64: =IFERROR(HYPERLINK(MapEvent_MouseOver(ROW(),COLUMN())),"") ->  | AZ64: =IFERROR(HYPERLINK(MapEvent_MouseOver(ROW(),COLUMN())),"") ->  | BA64: =IFERROR(HYPERLINK(MapEvent_MouseOver(ROW(),COLUMN())),"") ->  | BB64: =IFERROR(HYPERLINK(MapEvent_MouseOver(ROW(),COLUMN())),"") ->  | BC64: =IFERROR(HYPERLINK(MapEvent_MouseOver(ROW(),COLUMN())),"") ->  | BD64: =IFERROR(HYPERLINK(MapEvent_MouseOver(ROW(),COLUMN())),"") ->  | BE64: =IFERROR(HYPERLINK(MapEvent_MouseOver(ROW(),COLUMN())),"") ->  | BF64: =IFERROR(HYPERLINK(MapEvent_MouseOver(ROW(),COLUMN())),"") ->  | BG64: =IFERROR(HYPERLINK(MapEvent_MouseOver(ROW(),COLUMN())),"") ->  | BH64: =IFERROR(HYPERLINK(MapEvent_MouseOver(ROW(),COLUMN())),"") ->  | BI64: =IFERROR(HYPERLINK(MapEvent_MouseOver(ROW(),COLUMN())),"") ->  | BJ64: =IFERROR(HYPERLINK(MapEvent_MouseOver(ROW(),COLUMN())),"") ->  | BK64: =IFERROR(HYPERLINK(MapEvent_MouseOver(ROW(),COLUMN())),"") ->  | BL64: =IFERROR(HYPERLINK(MapEvent_MouseOver(ROW(),COLUMN())),"") ->  | BM64: =IFERROR(HYPERLINK(MapEvent_MouseOver(ROW(),COLUMN())),"") ->  | BN64: =IFERROR(HYPERLINK(MapEvent_MouseOver(ROW(),COLUMN())),"") ->  | BO64: =IFERROR(HYPERLINK(MapEvent_MouseOver(ROW(),COLUMN())),"") ->  | BP64: =IFERROR(HYPERLINK(MapEvent_MouseOver(ROW(),COLUMN())),"") ->  | BQ64: =IFERROR(HYPERLINK(MapEvent_MouseOver(ROW(),COLUMN())),"") ->  | BR64: =IFERROR(HYPERLINK(MapEvent_MouseOver(ROW(),COLUMN())),"") ->  | BS64: =IFERROR(HYPERLINK(MapEvent_MouseOver(ROW(),COLUMN())),"") ->  | BT64: =IFERROR(HYPERLINK(MapEvent_MouseOver(ROW(),COLUMN())),"") ->  | BU64: =IFERROR(HYPERLINK(MapEvent_MouseOver(ROW(),COLUMN())),"") ->  | BV64: =IFERROR(HYPERLINK(MapEvent_MouseOver(ROW(),COLUMN())),"") ->  | BW64: =IFERROR(HYPERLINK(MapEvent_MouseOver(ROW(),COLUMN())),"") ->  | BX64: =IFERROR(HYPERLINK(MapEvent_MouseOver(ROW(),COLUMN())),"") ->  | BY64: =IFERROR(HYPERLINK(MapEvent_MouseOver(ROW(),COLUMN())),"") ->  | BZ64: =IFERROR(HYPERLINK(MapEvent_MouseOver(ROW(),COLUMN())),"") ->  | CA64: =IFERROR(HYPERLINK(MapEvent_MouseOver(ROW(),COLUMN())),"") ->  | CB64: =IFERROR(HYPERLINK(MapEvent_MouseOver(ROW(),COLUMN())),"") ->  | CC64: =IFERROR(HYPERLINK(MapEvent_MouseOver(ROW(),COLUMN())),"") ->  | CD64: =IFERROR(HYPERLINK(MapEvent_MouseOver(ROW(),COLUMN())),"") ->  | CE64: =IFERROR(HYPERLINK(MapEvent_MouseOver(ROW(),COLUMN())),"") ->  | CF64: =IFERROR(HYPERLINK(MapEvent_MouseOver(ROW(),COLUMN())),"") ->  | CG64: =IFERROR(HYPERLINK(MapEvent_MouseOver(ROW(),COLUMN())),"") ->  | CH64: =IFERROR(HYPERLINK(MapEvent_MouseOver(ROW(),COLUMN())),"") ->  | CI64: =IFERROR(HYPERLINK(MapEvent_MouseOver(ROW(),COLUMN())),"") ->  | CJ64: =IFERROR(HYPERLINK(MapEvent_MouseOver(ROW(),COLUMN())),"") ->  | CK64: =IFERROR(HYPERLINK(MapEvent_MouseOver(ROW(),COLUMN())),"") ->  | CL64: =IFERROR(HYPERLINK(MapEvent_MouseOver(ROW(),COLUMN())),"") -> 
V65: =IFERROR(HYPERLINK(MapEvent_MouseOver(ROW(),COLUMN())),"") ->  | W65: =IFERROR(HYPERLINK(MapEvent_MouseOver(ROW(),COLUMN())),"") ->  | X65: =IFERROR(HYPERLINK(MapEvent_MouseOver(ROW(),COLUMN())),"") ->  | Y65: =IFERROR(HYPERLINK(MapEvent_MouseOver(ROW(),COLUMN())),"") ->  | Z65: =IFERROR(HYPERLINK(MapEvent_MouseOver(ROW(),COLUMN())),"") ->  | AA65: =IFERROR(HYPERLINK(MapEvent_MouseOver(ROW(),COLUMN())),"") ->  | AB65: =IFERROR(HYPERLINK(MapEvent_MouseOver(ROW(),COLUMN())),"") ->  | AC65: =IFERROR(HYPERLINK(MapEvent_MouseOver(ROW(),COLUMN())),"") ->  | AD65: =IFERROR(HYPERLINK(MapEvent_MouseOver(ROW(),COLUMN())),"") ->  | AE65: =IFERROR(HYPERLINK(MapEvent_MouseOver(ROW(),COLUMN())),"") ->  | AF65: =IFERROR(HYPERLINK(MapEvent_MouseOver(ROW(),COLUMN())),"") ->  | AG65: =IFERROR(HYPERLINK(MapEvent_MouseOver(ROW(),COLUMN())),"") ->  | AH65: =IFERROR(HYPERLINK(MapEvent_MouseOver(ROW(),COLUMN())),"") ->  | AI65: =IFERROR(HYPERLINK(MapEvent_MouseOver(ROW(),COLUMN())),"") ->  | AJ65: =IFERROR(HYPERLINK(MapEvent_MouseOver(ROW(),COLUMN())),"") ->  | AK65: =IFERROR(HYPERLINK(MapEvent_MouseOver(ROW(),COLUMN())),"") ->  | AL65: =IFERROR(HYPERLINK(MapEvent_MouseOver(ROW(),COLUMN())),"") ->  | AM65: =IFERROR(HYPERLINK(MapEvent_MouseOver(ROW(),COLUMN())),"") ->  | AN65: =IFERROR(HYPERLINK(MapEvent_MouseOver(ROW(),COLUMN())),"") ->  | AO65: =IFERROR(HYPERLINK(MapEvent_MouseOver(ROW(),COLUMN())),"") ->  | AP65: =IFERROR(HYPERLINK(MapEvent_MouseOver(ROW(),COLUMN())),"") ->  | AQ65: =IFERROR(HYPERLINK(MapEvent_MouseOver(ROW(),COLUMN())),"") ->  | AR65: =IFERROR(HYPERLINK(MapEvent_MouseOver(ROW(),COLUMN())),"") ->  | AS65: =IFERROR(HYPERLINK(MapEvent_MouseOver(ROW(),COLUMN())),"") ->  | AT65: =IFERROR(HYPERLINK(MapEvent_MouseOver(ROW(),COLUMN())),"") ->  | AU65: =IFERROR(HYPERLINK(MapEvent_MouseOver(ROW(),COLUMN())),"") ->  | AV65: =IFERROR(HYPERLINK(MapEvent_MouseOver(ROW(),COLUMN())),"") ->  | AW65: =IFERROR(HYPERLINK(MapEvent_MouseOver(ROW(),COLUMN())),"") ->  | AX65: =IFERROR(HYPERLINK(MapEvent_MouseOver(ROW(),COLUMN())),"") ->  | AY65: =IFERROR(HYPERLINK(MapEvent_MouseOver(ROW(),COLUMN())),"") ->  | AZ65: =IFERROR(HYPERLINK(MapEvent_MouseOver(ROW(),COLUMN())),"") ->  | BA65: =IFERROR(HYPERLINK(MapEvent_MouseOver(ROW(),COLUMN())),"") ->  | BB65: =IFERROR(HYPERLINK(MapEvent_MouseOver(ROW(),COLUMN())),"") ->  | BC65: =IFERROR(HYPERLINK(MapEvent_MouseOver(ROW(),COLUMN())),"") ->  | BD65: =IFERROR(HYPERLINK(MapEvent_MouseOver(ROW(),COLUMN())),"") ->  | BE65: =IFERROR(HYPERLINK(MapEvent_MouseOver(ROW(),COLUMN())),"") ->  | BF65: =IFERROR(HYPERLINK(MapEvent_MouseOver(ROW(),COLUMN())),"") ->  | BG65: =IFERROR(HYPERLINK(MapEvent_MouseOver(ROW(),COLUMN())),"") ->  | BH65: =IFERROR(HYPERLINK(MapEvent_MouseOver(ROW(),COLUMN())),"") ->  | BI65: =IFERROR(HYPERLINK(MapEvent_MouseOver(ROW(),COLUMN())),"") ->  | BJ65: =IFERROR(HYPERLINK(MapEvent_MouseOver(ROW(),COLUMN())),"") ->  | BK65: =IFERROR(HYPERLINK(MapEvent_MouseOver(ROW(),COLUMN())),"") ->  | BL65: =IFERROR(HYPERLINK(MapEvent_MouseOver(ROW(),COLUMN())),"") ->  | BM65: =IFERROR(HYPERLINK(MapEvent_MouseOver(ROW(),COLUMN())),"") ->  | BN65: =IFERROR(HYPERLINK(MapEvent_MouseOver(ROW(),COLUMN())),"") ->  | BO65: =IFERROR(HYPERLINK(MapEvent_MouseOver(ROW(),COLUMN())),"") ->  | BP65: =IFERROR(HYPERLINK(MapEvent_MouseOver(ROW(),COLUMN())),"") ->  | BQ65: =IFERROR(HYPERLINK(MapEvent_MouseOver(ROW(),COLUMN())),"") ->  | BR65: =IFERROR(HYPERLINK(MapEvent_MouseOver(ROW(),COLUMN())),"") ->  | BS65: =IFERROR(HYPERLINK(MapEvent_MouseOver(ROW(),COLUMN())),"") ->  | BT65: =IFERROR(HYPERLINK(MapEvent_MouseOver(ROW(),COLUMN())),"") ->  | BU65: =IFERROR(HYPERLINK(MapEvent_MouseOver(ROW(),COLUMN())),"") ->  | BV65: =IFERROR(HYPERLINK(MapEvent_MouseOver(ROW(),COLUMN())),"") ->  | BW65: =IFERROR(HYPERLINK(MapEvent_MouseOver(ROW(),COLUMN())),"") ->  | BX65: =IFERROR(HYPERLINK(MapEvent_MouseOver(ROW(),COLUMN())),"") ->  | BY65: =IFERROR(HYPERLINK(MapEvent_MouseOver(ROW(),COLUMN())),"") ->  | BZ65: =IFERROR(HYPERLINK(MapEvent_MouseOver(ROW(),COLUMN())),"") ->  | CA65: =IFERROR(HYPERLINK(MapEvent_MouseOver(ROW(),COLUMN())),"") ->  | CB65: =IFERROR(HYPERLINK(MapEvent_MouseOver(ROW(),COLUMN())),"") ->  | CC65: =IFERROR(HYPERLINK(MapEvent_MouseOver(ROW(),COLUMN())),"") ->  | CD65: =IFERROR(HYPERLINK(MapEvent_MouseOver(ROW(),COLUMN())),"") ->  | CE65: =IFERROR(HYPERLINK(MapEvent_MouseOver(ROW(),COLUMN())),"") ->  | CF65: =IFERROR(HYPERLINK(MapEvent_MouseOver(ROW(),COLUMN())),"") ->  | CG65: =IFERROR(HYPERLINK(MapEvent_MouseOver(ROW(),COLUMN())),"") ->  | CH65: =IFERROR(HYPERLINK(MapEvent_MouseOver(ROW(),COLUMN())),"") ->  | CI65: =IFERROR(HYPERLINK(MapEvent_MouseOver(ROW(),COLUMN())),"") ->  | CJ65: =IFERROR(HYPERLINK(MapEvent_MouseOver(ROW(),COLUMN())),"") ->  | CK65: =IFERROR(HYPERLINK(MapEvent_MouseOver(ROW(),COLUMN())),"") ->  | CL65: =IFERROR(HYPERLINK(MapEvent_MouseOver(ROW(),COLUMN())),"") -> 
V66: =IFERROR(HYPERLINK(MapEvent_MouseOver(ROW(),COLUMN())),"") ->  | W66: =IFERROR(HYPERLINK(MapEvent_MouseOver(ROW(),COLUMN())),"") ->  | X66: =IFERROR(HYPERLINK(MapEvent_MouseOver(ROW(),COLUMN())),"") ->  | Y66: =IFERROR(HYPERLINK(MapEvent_MouseOver(ROW(),COLUMN())),"") ->  | Z66: =IFERROR(HYPERLINK(MapEvent_MouseOver(ROW(),COLUMN())),"") ->  | AA66: =IFERROR(HYPERLINK(MapEvent_MouseOver(ROW(),COLUMN())),"") ->  | AB66: =IFERROR(HYPERLINK(MapEvent_MouseOver(ROW(),COLUMN())),"") ->  | AC66: =IFERROR(HYPERLINK(MapEvent_MouseOver(ROW(),COLUMN())),"") ->  | AD66: =IFERROR(HYPERLINK(MapEvent_MouseOver(ROW(),COLUMN())),"") ->  | AE66: =IFERROR(HYPERLINK(MapEvent_MouseOver(ROW(),COLUMN())),"") ->  | AF66: =IFERROR(HYPERLINK(MapEvent_MouseOver(ROW(),COLUMN())),"") ->  | AG66: =IFERROR(HYPERLINK(MapEvent_MouseOver(ROW(),COLUMN())),"") ->  | AH66: =IFERROR(HYPERLINK(MapEvent_MouseOver(ROW(),COLUMN())),"") ->  | AI66: =IFERROR(HYPERLINK(MapEvent_MouseOver(ROW(),COLUMN())),"") ->  | AJ66: =IFERROR(HYPERLINK(MapEvent_MouseOver(ROW(),COLUMN())),"") ->  | AK66: =IFERROR(HYPERLINK(MapEvent_MouseOver(ROW(),COLUMN())),"") ->  | AL66: =IFERROR(HYPERLINK(MapEvent_MouseOver(ROW(),COLUMN())),"") ->  | AM66: =IFERROR(HYPERLINK(MapEvent_MouseOver(ROW(),COLUMN())),"") ->  | AN66: =IFERROR(HYPERLINK(MapEvent_MouseOver(ROW(),COLUMN())),"") ->  | AO66: =IFERROR(HYPERLINK(MapEvent_MouseOver(ROW(),COLUMN())),"") ->  | AP66: =IFERROR(HYPERLINK(MapEvent_MouseOver(ROW(),COLUMN())),"") ->  | AQ66: =IFERROR(HYPERLINK(MapEvent_MouseOver(ROW(),COLUMN())),"") ->  | AR66: =IFERROR(HYPERLINK(MapEvent_MouseOver(ROW(),COLUMN())),"") ->  | AS66: =IFERROR(HYPERLINK(MapEvent_MouseOver(ROW(),COLUMN())),"") ->  | AT66: =IFERROR(HYPERLINK(MapEvent_MouseOver(ROW(),COLUMN())),"") ->  | AU66: =IFERROR(HYPERLINK(MapEvent_MouseOver(ROW(),COLUMN())),"") ->  | AV66: =IFERROR(HYPERLINK(MapEvent_MouseOver(ROW(),COLUMN())),"") ->  | AW66: =IFERROR(HYPERLINK(MapEvent_MouseOver(ROW(),COLUMN())),"") ->  | AX66: =IFERROR(HYPERLINK(MapEvent_MouseOver(ROW(),COLUMN())),"") ->  | AY66: =IFERROR(HYPERLINK(MapEvent_MouseOver(ROW(),COLUMN())),"") ->  | AZ66: =IFERROR(HYPERLINK(MapEvent_MouseOver(ROW(),COLUMN())),"") ->  | BA66: =IFERROR(HYPERLINK(MapEvent_MouseOver(ROW(),COLUMN())),"") ->  | BB66: =IFERROR(HYPERLINK(MapEvent_MouseOver(ROW(),COLUMN())),"") ->  | BC66: =IFERROR(HYPERLINK(MapEvent_MouseOver(ROW(),COLUMN())),"") ->  | BD66: =IFERROR(HYPERLINK(MapEvent_MouseOver(ROW(),COLUMN())),"") ->  | BE66: =IFERROR(HYPERLINK(MapEvent_MouseOver(ROW(),COLUMN())),"") ->  | BF66: =IFERROR(HYPERLINK(MapEvent_MouseOver(ROW(),COLUMN())),"") ->  | BG66: =IFERROR(HYPERLINK(MapEvent_MouseOver(ROW(),COLUMN())),"") ->  | BH66: =IFERROR(HYPERLINK(MapEvent_MouseOver(ROW(),COLUMN())),"") ->  | BI66: =IFERROR(HYPERLINK(MapEvent_MouseOver(ROW(),COLUMN())),"") ->  | BJ66: =IFERROR(HYPERLINK(MapEvent_MouseOver(ROW(),COLUMN())),"") ->  | BK66: =IFERROR(HYPERLINK(MapEvent_MouseOver(ROW(),COLUMN())),"") ->  | BL66: =IFERROR(HYPERLINK(MapEvent_MouseOver(ROW(),COLUMN())),"") ->  | BM66: =IFERROR(HYPERLINK(MapEvent_MouseOver(ROW(),COLUMN())),"") ->  | BN66: =IFERROR(HYPERLINK(MapEvent_MouseOver(ROW(),COLUMN())),"") ->  | BO66: =IFERROR(HYPERLINK(MapEvent_MouseOver(ROW(),COLUMN())),"") ->  | BP66: =IFERROR(HYPERLINK(MapEvent_MouseOver(ROW(),COLUMN())),"") ->  | BQ66: =IFERROR(HYPERLINK(MapEvent_MouseOver(ROW(),COLUMN())),"") ->  | BR66: =IFERROR(HYPERLINK(MapEvent_MouseOver(ROW(),COLUMN())),"") ->  | BS66: =IFERROR(HYPERLINK(MapEvent_MouseOver(ROW(),COLUMN())),"") ->  | BT66: =IFERROR(HYPERLINK(MapEvent_MouseOver(ROW(),COLUMN())),"") ->  | BU66: =IFERROR(HYPERLINK(MapEvent_MouseOver(ROW(),COLUMN())),"") ->  | BV66: =IFERROR(HYPERLINK(MapEvent_MouseOver(ROW(),COLUMN())),"") ->  | BW66: =IFERROR(HYPERLINK(MapEvent_MouseOver(ROW(),COLUMN())),"") ->  | BX66: =IFERROR(HYPERLINK(MapEvent_MouseOver(ROW(),COLUMN())),"") ->  | BY66: =IFERROR(HYPERLINK(MapEvent_MouseOver(ROW(),COLUMN())),"") ->  | BZ66: =IFERROR(HYPERLINK(MapEvent_MouseOver(ROW(),COLUMN())),"") ->  | CA66: =IFERROR(HYPERLINK(MapEvent_MouseOver(ROW(),COLUMN())),"") ->  | CB66: =IFERROR(HYPERLINK(MapEvent_MouseOver(ROW(),COLUMN())),"") ->  | CC66: =IFERROR(HYPERLINK(MapEvent_MouseOver(ROW(),COLUMN())),"") ->  | CD66: =IFERROR(HYPERLINK(MapEvent_MouseOver(ROW(),COLUMN())),"") ->  | CE66: =IFERROR(HYPERLINK(MapEvent_MouseOver(ROW(),COLUMN())),"") ->  | CF66: =IFERROR(HYPERLINK(MapEvent_MouseOver(ROW(),COLUMN())),"") ->  | CG66: =IFERROR(HYPERLINK(MapEvent_MouseOver(ROW(),COLUMN())),"") ->  | CH66: =IFERROR(HYPERLINK(MapEvent_MouseOver(ROW(),COLUMN())),"") ->  | CI66: =IFERROR(HYPERLINK(MapEvent_MouseOver(ROW(),COLUMN())),"") ->  | CJ66: =IFERROR(HYPERLINK(MapEvent_MouseOver(ROW(),COLUMN())),"") ->  | CK66: =IFERROR(HYPERLINK(MapEvent_MouseOver(ROW(),COLUMN())),"") ->  | CL66: =IFERROR(HYPERLINK(MapEvent_MouseOver(ROW(),COLUMN())),"") -> 
B74: NUTS-3 | K74: Landkreis
B76: =Berechnungen!AA7 -> DEG03 | K76: =Berechnungen!AB7 -> Jena | BQ76: =Berechnungen!AC7 -> 251 | CY76: =Berechnungen!AC35 -> 23
B77: =Berechnungen!AA8 -> DEG0F | K77: =Berechnungen!AB8 -> Ilm-Kreis | BQ77: =Berechnungen!AC8 -> 55 | CY77: =Berechnungen!AC36 -> 0
B78: =Berechnungen!AA9 -> DEG0I | K78: =Berechnungen!AB9 -> Saalfeld-Rudolstadt | BQ78: =Berechnungen!AC9 -> 28 | CY78: =Berechnungen!AC37 -> 0
B79: =Berechnungen!AA10 -> DEG0K | K79: =Berechnungen!AB10 -> Saale-Orla-Kreis | BQ79: =Berechnungen!AC10 -> 27 | CY79: =Berechnungen!AC38 -> 1
B80: =Berechnungen!AA11 -> DEG0L | K80: =Berechnungen!AB11 -> Greiz | BQ80: =Berechnungen!AC11 -> 22 | CY80: =Berechnungen!AC39 -> 4
B81: =Berechnungen!AA12 -> DEG0B | K81: =Berechnungen!AB12 -> Schmalkalden-Meiningen | BQ81: =Berechnungen!AC12 -> 22 | CY81: =Berechnungen!AC40 -> 0
B82: =Berechnungen!AA13 -> DEG0A | K82: =Berechnungen!AB13 -> Kyffhäuserkreis | BQ82: =Berechnungen!AC13 -> 21 | CY82: =Berechnungen!AC41 -> 0
B83: =Berechnungen!AA14 -> DEG0P | K83: =Berechnungen!AB14 -> Wartburgkreis | BQ83: =Berechnungen!AC14 -> 20 | CY83: =Berechnungen!AC42 -> 0
B84: =Berechnungen!AA15 -> DEG05 | K84: =Berechnungen!AB15 -> Weimar | BQ84: =Berechnungen!AC15 -> 20 | CY84: =Berechnungen!AC43 -> 2
B85: =Berechnungen!AA16 -> DEG01 | K85: =Berechnungen!AB16 -> Erfurt | BQ85: =Berechnungen!AC16 -> 19 | CY85: =Berechnungen!AC44 -> 0
B86: =Berechnungen!AA17 -> DEG0E | K86: =Berechnungen!AB17 -> Hildburghausen | BQ86: =Berechnungen!AC17 -> 16 | CY86: =Berechnungen!AC45 -> 0
B87: =Berechnungen!AA18 -> DEG0C | K87: =Berechnungen!AB18 -> Gotha | BQ87: =Berechnungen!AC18 -> 15 | CY87: =Berechnungen!AC46 -> 0
B88: =Berechnungen!AA19 -> DEG0J | K88: =Berechnungen!AB19 -> Saale-Holzland-Kreis | BQ88: =Berechnungen!AC19 -> 12 | CY88: =Berechnungen!AC47 -> 0
B89: =Berechnungen!AA20 -> DEG0G | K89: =Berechnungen!AB20 -> Weimarer Land | BQ89: =Berechnungen!AC20 -> 10 | CY89: =Berechnungen!AC48 -> 0
B90: =Berechnungen!AA21 -> DEG07 | K90: =Berechnungen!AB21 -> Nordhausen | BQ90: =Berechnungen!AC21 -> 10 | CY90: =Berechnungen!AC49 -> 0
B91: =Berechnungen!AA22 -> DEG06 | K91: =Berechnungen!AB22 -> Eichsfeld | BQ91: =Berechnungen!AC22 -> 10 | CY91: =Berechnungen!AC50 -> 1
B92: =Berechnungen!AA23 -> DEG0H | K92: =Berechnungen!AB23 -> Sonneberg | BQ92: =Berechnungen!AC23 -> 9 | CY92: =Berechnungen!AC51 -> 0
B93: =Berechnungen!AA24 -> DEG0D | K93: =Berechnungen!AB24 -> Sömmerda | BQ93: =Berechnungen!AC24 -> 9 | CY93: =Berechnungen!AC52 -> 0
B94: =Berechnungen!AA25 -> DEG09 | K94: =Berechnungen!AB25 -> Unstrut-Hainich-Kreis | BQ94: =Berechnungen!AC25 -> 9 | CY94: =Berechnungen!AC53 -> 2
B95: =Berechnungen!AA26 -> DEG02 | K95: =Berechnungen!AB26 -> Gera | BQ95: =Berechnungen!AC26 -> 9 | CY95: =Berechnungen!AC54 -> 1
B96: =Berechnungen!AA27 -> DEG0M | K96: =Berechnungen!AB27 -> Altenburger Land | BQ96: =Berechnungen!AC27 -> 4 | CY96: =Berechnungen!AC55 -> 0
B97: =Berechnungen!AA28 -> DEG0N | K97: =Berechnungen!AB28 -> Eisenach | BQ97: =Berechnungen!AC28 -> 2 | CY97: =Berechnungen!AC56 -> 0
B98: =Berechnungen!AA29 -> DEG04 | K98: =Berechnungen!AB29 -> Suhl | BQ98: =Berechnungen!AC29 -> 1 | CY98: =Berechnungen!AC57 -> 0

Sheet Berechnungen (hidden)
B2: Berechnungen
C4: Karte, Diagramm, Technologie_1 | W4: sortiert nach #PAT im aktuellen Jahr
C6: NUTS-3 | D6: Landkreis | E6: 2010 | F6: 2011 | G6: 2012 | H6: 2013 | I6: 2014 | J6: 2015 | K6: 2016 | L6: =AllYearsLabel -> 2010-2016 | N6: =CONCATENATE(E6,"-",E6) -> 2010-2010 | O6: =CONCATENATE(E6,"-",F6) -> 2010-2011 | P6: 2011-2012 | Q6: 2012-2013 | R6: 2013-2014 | S6: 2014-2015 | T6: 2015-2016 | U6: =AllYearsLabel -> 2010-2016 | W6: =CurrentYear -> 2013 | X6: #PAT+ | Y6: Sortiert | Z6: Position | AA6: NUTS-3 sortiert | AB6: LK sortiert | AC6: #PAT sortiert | AD6: =CONCATENATE(Steuerung!$W$6,", ",CurrentYear,", #PAT") -> Alle Technologien, 2013, #PAT | AE6: =CONCATENATE(Steuerung!$W$6,", ",CurrentYear,", #PAT") -> Alle Technologien, 2013, #PAT | AF6: Farbe
